Workbook

Sheet Sample Report (hidden)
A2: Date
A3: Hen
A4: Program
A5: Start at 999999
A6: Sequence component 1 | B6: Time 1 | C6: Seqeunce Component 2 | D6: Time 2 | E6: Seqeunce Component 3 | F6: Time 3 | G6: Correct 0 = No 1=Yes | J6: Seqeunce | K6: Time
A7: 12 | B7: 7 | C7: 12 | D7: 42 | E7: 13 | F7: 18 | G7: if 77 new line, if 31 or 41 = yes new line on 77, | J7: =string of Seqeunce compponent 1, 2 & 3 | K7: =time 3
A8: This continues until ther is a 1 on its own to indicate start of summary data
J9: 10-19 =1
A10: Summary Data | J10: 20-29 =2
A11: Correct | B11: Incorrect | C11: Rft | D11: total | E11: Av Correct | F11: Av Incorrect | G11: Percent correct | H11: Time | J11: in this example the seqeunce would be 111
A12: 40 | B12: 33 | C12: 40 | D12: 73 | E12: 23.95 | F12: 15 | G12: 54 | H12: 806

Sheet Summary
A2: Day | B2: Date | C2: Average Response Rate | D2: Target % | E2: RF for non correct sequence | F2: U Value | K2: Block 1 | L2: Block 2 | M2: Block 3 | N2: Block 4 | O2: Block 5 | P2: Block 6
A3: 1 | B3: ='!LB09A43..Ta'!B2:C2 -> <date> | C3: =('!LB09A43..Ta'!F191/60)/'!LB09A43..Ta'!Q3 -> 2.154864865 | D3: ='!LB09A43..Ta'!N20/'!LB09A43..Ta'!Q3 -> 0.005405405405 | E3: =SUM('!LB09A43..Ta'!L20:Q20)/'!LB09A43..Ta'!Q3 -> 1.481081081 | F3: ='!LB09A43..Ta'!Q16 -> 0.2813553593 | J3: Average Response Rate | K3: =AVERAGE(C3:C7) -> 2.602582603 | L3: =AVERAGE(C8:C12) -> 2.101956607 | M3: =AVERAGE(C13:C17) -> 2.206300582 | N3: =AVERAGE(C18:C22) -> 4.26429881 | O3: =AVERAGE(C23:C27) -> 3.580879175 | P3: =AVERAGE(C28:C32) -> 2.728564787
A4: 2 | B4: ='!LB10A53..Ta'!B2:C2 -> <date> | C4: =('!LB10A53..Ta'!F192/60)/'!LB10A53..Ta'!Q3 -> 2.147132616 | D4: ='!LB10A53..Ta'!N20/'!LB10A53..Ta'!Q3 -> 0.01612903226 | E4: =SUM('!LB10A53..Ta'!L20:Q20)/'!LB10A53..Ta'!Q3 -> 1.483870968 | F4: ='!LB10A53..Ta'!Q16 -> 0.2601223461 | J4: Target % | K4: =AVERAGE(D3:D7) -> 0.08610799557 | L4: =AVERAGE(D8:D12) -> 0.4640571472 | M4: =AVERAGE(D13:D17) -> 0.4485819397 | N4: =AVERAGE(D18:D22) -> 0.180167264 | O4: =AVERAGE(D23:D27) -> 0.5666529195 | P4: =AVERAGE(D28:D32) -> 0.6431366074
A5: 3 | B5: ='!LB11A03..Ta'!B2:C2 -> <date> | C5: =('!LB11A03..Ta'!F107/60)/'!LB11A03..Ta'!Q3 -> 2.504125413 | D5: ='!LB11A03..Ta'!N20/'!LB11A03..Ta'!Q3 -> 0.05940594059 | E5: =SUM('!LB11A03..Ta'!L20:Q20)/'!LB11A03..Ta'!Q3 -> 1.495049505 | F5: ='!LB11A03..Ta'!Q16 -> 0.2566249901 | J5: CCRF | K5: =AVERAGE(E3:E7) -> 1.785543854 | L5: =AVERAGE(E8:E12) -> 2.611725447 | M5: =AVERAGE(E13:E17) -> 3.349959789 | N5: =AVERAGE(E18:E22) -> 3.387042355 | O5: =AVERAGE(E23:E27) -> 3.9008263 | P5: =AVERAGE(E28:E32) -> 3.696779823
A6: 4 | B6: ='!LB12A13..Ta'!B2:C2 -> <date> | C6: =('!LB12A13..Ta'!F154/60)/'!LB12A13..Ta'!Q3 -> 2.6 | D6: ='!LB12A13..Ta'!N20/'!LB12A13..Ta'!Q3 -> 0.08108108108 | E6: =SUM('!LB12A13..Ta'!L20:Q20)/'!LB12A13..Ta'!Q3 -> 1.912162162 | F6: ='!LB12A13..Ta'!Q16 -> 0.2041449798 | J6: U Value | K6: =AVERAGE(F3:F7) -> 0.2682744751 | L6: =AVERAGE(F8:F12) -> 0.1993128293 | M6: =AVERAGE(F13:F17) -> 0.1746563803 | N6: =AVERAGE(F18:F22) -> 0.08549747234 | O6: =AVERAGE(F23:F27) -> 0.1549467364 | P6: =AVERAGE(F28:F32) -> 0.2241478461
A7: 5 | B7: ='!LB13A23..Ta'!B2:C2 -> <date> | C7: =('!LB13A23..Ta'!F114/60)/'!LB13A23..Ta'!Q3 -> 3.606790123 | D7: ='!LB13A23..Ta'!N20/'!LB13A23..Ta'!Q3 -> 0.2685185185 | E7: =SUM('!LB13A23..Ta'!L20:Q20)/'!LB13A23..Ta'!Q3 -> 2.555555556 | F7: ='!LB13A23..Ta'!Q16 -> 0.3391247004
A8: 6 | B8: ='!LB14B13..Ta'!B2:C2 -> <date> | C8: =('!LB14B13..Ta'!F146/60)/'!LB14B13..Ta'!Q3 -> 2.248809524 | D8: ='!LB14B13..Ta'!N20/'!LB14B13..Ta'!Q3 -> 0.2714285714 | E8: =SUM('!LB14B13..Ta'!L20:Q20)/'!LB14B13..Ta'!Q3 -> 1.478571429 | F8: ='!LB14B13..Ta'!Q16 -> 0.2260054313
A9: 7 | B9: ='!LB15A23..Ta'!B2:C2 -> <date> | C9: =('!LB15A23..Ta'!F108/60)/'!LB15A23..Ta'!Q3 -> 2.07369281 | D9: ='!LB15A23..Ta'!N20/'!LB15A23..Ta'!Q3 -> 0.3823529412 | E9: =SUM('!LB15A23..Ta'!L20:Q20)/'!LB15A23..Ta'!Q3 -> 1.911764706 | F9: ='!LB15A23..Ta'!Q16 -> 0.1693954041 | G9: =K3 -> 2.602582603 | H9: =L3 -> 2.101956607 | I9: 2.206300582 | J9: 4.26429881 | K9: 3.580879175 | L9: 2.728564787 | M9: =K4 -> 0.08610799557 | N9: =L4 -> 0.4640571472 | O9: 0.4485819397 | P9: 0.180167264 | Q9: 0.5666529195 | R9: 0.6431366074 | S9: =K6 -> 0.2682744751 | T9: =L6 -> 0.1993128293 | U9: 0.1746563803 | V9: 0.08549747234 | W9: 0.1549467364 | X9: 0.2241478461
A10: 8 | B10: ='!LB16A13..Ta'!B2:C2 -> <date> | C10: =('!LB16A13..Ta'!F87/60)/'!LB16A13..Ta'!Q3 -> 2.15 | D10: ='!LB16A13..Ta'!N20/'!LB16A13..Ta'!Q3 -> 0.4691358025 | E10: =SUM('!LB16A13..Ta'!L20:Q20)/'!LB16A13..Ta'!Q3 -> 2.308641975 | F10: ='!LB16A13..Ta'!Q16 -> 0.2285306048
A11: 9 | B11: ='!LB17A03..Ta'!B2:C2 -> <date> | C11: =('!LB17A03..Ta'!F82/60)/'!LB17A03..Ta'!Q3 -> 2.079385965 | D11: ='!LB17A03..Ta'!N20/'!LB17A03..Ta'!Q3 -> 0.5131578947 | E11: =SUM('!LB17A03..Ta'!L20:Q20)/'!LB17A03..Ta'!Q3 -> 2.447368421 | F11: ='!LB17A03..Ta'!Q16 -> 0.2016206841
A12: 10 | B12: ='!LB18A03..Ta'!B2:C2 -> <date> | C12: =('!LB18A03..Ta'!F63/60)/'!LB18A03..Ta'!Q3 -> 1.957894737 | D12: ='!LB18A03..Ta'!N20/'!LB18A03..Ta'!Q3 -> 0.6842105263 | E12: =SUM('!LB18A03..Ta'!L20:Q20)/'!LB18A03..Ta'!Q3 -> 4.912280702 | F12: ='!LB18A03..Ta'!Q16 -> 0.171012022
A13: 11 | B13: ='!LB19C53..Ta'!B2:C2 -> <date> | C13: =('!LB19C53..Ta'!F84/60)/'!LB19C53..Ta'!Q3 -> 2.05 | D13: ='!LB19C53..Ta'!N20/'!LB19C53..Ta'!Q3 -> 0.5 | E13: =SUM('!LB19C53..Ta'!L20:Q20)/'!LB19C53..Ta'!Q3 -> 3.679487179 | F13: ='!LB19C53..Ta'!Q16 -> 0.1727842446
A14: 12 | B14: ='!LB20A13..Ta'!B2:C2 -> <date> | C14: =('!LB20A13..Ta'!F132/60)/'!LB20A13..Ta'!Q3 -> 2.169973545 | D14: ='!LB20A13..Ta'!N20/'!LB20A13..Ta'!Q3 -> 0.3095238095 | E14: =SUM('!LB20A13..Ta'!L20:Q20)/'!LB20A13..Ta'!Q3 -> 2.404761905 | F14: ='!LB20A13..Ta'!Q16 -> 0.159335389
A15: 13 | B15: ='!LB21B03..Ta'!B2:C2 -> <date> | C15: =('!LB21B03..Ta'!F124/60)/'!LB21B03..Ta'!Q3 -> 2.259745763 | D15: ='!LB21B03..Ta'!N20/'!LB21B03..Ta'!Q3 -> 0.3305084746 | E15: =SUM('!LB21B03..Ta'!L20:Q20)/'!LB21B03..Ta'!Q3 -> 2.542372881 | F15: ='!LB21B03..Ta'!Q16 -> 0.1651229374
A16: 14 | B16: ='!LB22A43..Ta'!B2:C2 -> <date> | C16: =('!LB22A43..Ta'!F92/60)/'!LB22A43..Ta'!Q3 -> 2.333139535 | D16: ='!LB22A43..Ta'!N20/'!LB22A43..Ta'!Q3 -> 0.4418604651 | E16: =SUM('!LB22A43..Ta'!L20:Q20)/'!LB22A43..Ta'!Q3 -> 3.360465116 | F16: ='!LB22A43..Ta'!Q16 -> 0.2024904792
A17: 15 | B17: ='!LB23A43..Ta'!B2:C2 -> <date> | C17: =('!LB23A43..Ta'!F65/60)/'!LB23A43..Ta'!Q3 -> 2.218644068 | D17: ='!LB23A43..Ta'!N20/'!LB23A43..Ta'!Q3 -> 0.6610169492 | E17: =SUM('!LB23A43..Ta'!L20:Q20)/'!LB23A43..Ta'!Q3 -> 4.762711864 | F17: ='!LB23A43..Ta'!Q16 -> 0.1735488511
A18: 16 | B18: ='!LB24A03..Ta'!B2:C2 -> <date> | C18: =('!LB24A03..Ta'!F112/60)/'!LB24A03..Ta'!Q3 -> 3.73254717 | D18: ='!LB24A03..Ta'!N20/'!LB24A03..Ta'!Q3 -> 0 | E18: =SUM('!LB24A03..Ta'!L20:Q20)/'!LB24A03..Ta'!Q3 -> 2.424528302 | F18: ='!LB24A03..Ta'!Q16 -> 0
A19: 17 | B19: ='!LB25953..Ta'!B2:C2 -> <date> | C19: =('!LB25953..Ta'!F99/60)/'!LB25953..Ta'!Q3 -> 2.454301075 | D19: ='!LB25953..Ta'!N20/'!LB25953..Ta'!Q3 -> 0.4193548387 | E19: =SUM('!LB25953..Ta'!L20:Q20)/'!LB25953..Ta'!Q3 -> 3.139784946 | F19: ='!LB25953..Ta'!Q16 -> 0.2107905193
A20: 18 | B20: ='!LB26943..Ta'!B2:C2 -> <date> | C20: =('!LB26943..Ta'!F87/60)/'!LB26943..Ta'!Q3 -> 2.311728395 | D20: ='!LB26943..Ta'!N20/'!LB26943..Ta'!Q3 -> 0.4814814815 | E20: =SUM('!LB26943..Ta'!L20:Q20)/'!LB26943..Ta'!Q3 -> 2.320987654 | F20: ='!LB26943..Ta'!Q16 -> 0.2166968424
A21: 19 | B21: ='!LB28B03..Ta'!B2:C2 -> <date> | C21: =('!LB28B03..Ta'!F57/60)/'!LB28B03..Ta'!Q3 -> 6.885947712 | D21: ='!LB28B03..Ta'!N20/'!LB28B03..Ta'!Q3 -> 0 | E21: =SUM('!LB28B03..Ta'!L20:Q20)/'!LB28B03..Ta'!Q3 -> 4.68627451 | F21: ='!LB28B03..Ta'!Q16 -> 0
A22: 20 | B22: ='!LB29953..Ta'!B2:C2 -> <date> | C22: =('!LB29953..Ta'!F61/60)/'!LB29953..Ta'!Q3 -> 5.936969697 | D22: ='!LB29953..Ta'!N20/'!LB29953..Ta'!Q3 -> 0 | E22: =SUM('!LB29953..Ta'!L20:Q20)/'!LB29953..Ta'!Q3 -> 4.363636364 | F22: ='!LB29953..Ta'!Q16 -> 0
A23: 21 | B23: ='!LB30953..Ta'!B2:C2 -> <date> | C23: =('!LB30953..Ta'!F59/60)/'!LB30953..Ta'!Q3 -> 1.993081761 | D23: ='!LB30953..Ta'!N20/'!LB30953..Ta'!Q3 -> 0.7358490566 | E23: =SUM('!LB30953..Ta'!L20:Q20)/'!LB30953..Ta'!Q3 -> 3.377358491 | F23: ='!LB30953..Ta'!Q16 -> 0.2006713745
A24: 22 | B24: ='!LC01B13..Ta'!B2:C2 -> <date> | C24: =('!LC01B13..Ta'!F60/60)/'!LC01B13..Ta'!Q3 -> 2.207716049 | D24: ='!LC01B13..Ta'!N20/'!LC01B13..Ta'!Q3 -> 0.7222222222 | E24: =SUM('!LC01B13..Ta'!L20:Q20)/'!LC01B13..Ta'!Q3 -> 5.166666667 | F24: ='!LC01B13..Ta'!Q16 -> 0.1829646123
A25: 23 | B25: ='!LC02953..Ta'!B2:C2 -> <date> | C25: =('!LC02953..Ta'!F67/60)/'!LC02953..Ta'!Q3 -> 2.181420765 | D25: ='!LC02953..Ta'!N20/'!LC02953..Ta'!Q3 -> 0.6393442623 | E25: =SUM('!LC02953..Ta'!L20:Q20)/'!LC02953..Ta'!Q3 -> 4.606557377 | F25: ='!LC02953..Ta'!Q16 -> 0.2183933511
A26: 24 | B26: ='!LC03A33..Ta'!B2:C2 -> <date> | C26: =('!LC03A33..Ta'!F59/60)/'!LC03A33..Ta'!Q3 -> 2.121383648 | D26: ='!LC03A33..Ta'!N20/'!LC03A33..Ta'!Q3 -> 0.7358490566 | E26: =SUM('!LC03A33..Ta'!L20:Q20)/'!LC03A33..Ta'!Q3 -> 3.377358491 | F26: ='!LC03A33..Ta'!Q16 -> 0.1727043443
A27: 25 | B27: ='!LC05A33..Ta'!B2:C2 -> <date> | C27: =('!LC05A33..Ta'!F48/60)/'!LC05A33..Ta'!Q3 -> 9.400793651 | D27: ='!LC05A33..Ta'!N20/'!LC05A33..Ta'!Q3 -> 0 | E27: =SUM('!LC05A33..Ta'!L20:Q20)/'!LC05A33..Ta'!Q3 -> 2.976190476 | F27: ='!LC05A33..Ta'!Q16 -> 0
A28: 26 | B28: ='!LC07A03..Ta'!B2:C2 -> <date> | C28: =('!LC07A03..Ta'!F69/60)/'!LC07A03..Ta'!Q3 -> 2.036772487 | D28: ='!LC07A03..Ta'!N20/'!LC07A03..Ta'!Q3 -> 0.619047619 | E28: =SUM('!LC07A03..Ta'!L20:Q20)/'!LC07A03..Ta'!Q3 -> 2.73015873 | F28: ='!LC07A03..Ta'!Q16 -> 0.2698287051
A29: 27 | B29: ='!LC08A53..Ta'!B2:C2 -> <date> | C29: =('!LC08A53..Ta'!F59/60)/'!LC08A53..Ta'!Q3 -> 1.991823899 | D29: ='!LC08A53..Ta'!N20/'!LC08A53..Ta'!Q3 -> 0.7547169811 | E29: =SUM('!LC08A53..Ta'!L20:Q20)/'!LC08A53..Ta'!Q3 -> 3.396226415 | F29: ='!LC08A53..Ta'!Q16 -> 0.2056724494
A30: 28 | B30: ='!LC09A33..Ta'!B2:C2 -> <date> | C30: =('!LC09A33..Ta'!F63/60)/'!LC09A33..Ta'!Q3 -> 2.033040936 | D30: ='!LC09A33..Ta'!N20/'!LC09A33..Ta'!Q3 -> 0.6842105263 | E30: =SUM('!LC09A33..Ta'!L20:Q20)/'!LC09A33..Ta'!Q3 -> 4.912280702 | F30: ='!LC09A33..Ta'!Q16 -> 0.181499641
A31: 29 | B31: ='!LC10923..Ta'!B2:C2 -> <date> | C31: =('!LC10923..Ta'!F64/60)/'!LC10923..Ta'!Q3 -> 2.020402299 | D31: ='!LC10923..Ta'!N20/'!LC10923..Ta'!Q3 -> 0.6724137931 | E31: =SUM('!LC10923..Ta'!L20:Q20)/'!LC10923..Ta'!Q3 -> 4.827586207 | F31: ='!LC10923..Ta'!Q16 -> 0.2068323682
A32: 30 | B32: ='!LC11C03..Ta'!B2:C2 -> <date> | C32: =('!LC11C03..Ta'!F74/60)/'!LC11C03..Ta'!Q3 -> 5.560784314 | D32: ='!LC11C03..Ta'!N20/'!LC11C03..Ta'!Q3 -> 0.4852941176 | E32: =SUM('!LC11C03..Ta'!L20:Q20)/'!LC11C03..Ta'!Q3 -> 2.617647059 | F32: ='!LC11C03..Ta'!Q16 -> 0.2569060668
B33: ='!LC12A2T.ayl'!B2:C2 -> <date> | C33: =('!LC12A2T.ayl'!F86/60)/'!LC12A2T.ayl'!Q3 -> 4.321666667 | D33: ='!LC12A2T.ayl'!N20/'!LC12A2T.ayl'!Q3 -> 0.4875 | E33: =SUM('!LC12A2T.ayl'!L20:Q20)/'!LC12A2T.ayl'!Q3 -> 3.6 | F33: ='!LC12A2T.ayl'!Q16 -> 0.2034066684
B34: ='!LC13A4T.ayl'!B2:C2 -> <date> | C34: =('!LC13A4T.ayl'!F91/60)/'!LC13A4T.ayl'!Q3 -> 4.672156863 | D34: ='!LC13A4T.ayl'!N20/'!LC13A4T.ayl'!Q3 -> 0.01176470588 | E34: =SUM('!LC13A4T.ayl'!L20:Q20)/'!LC13A4T.ayl'!Q3 -> 2.952941176 | F34: ='!LC13A4T.ayl'!Q16 -> 0.01439719447

Sheet Start
F1: Use Folder 51 | H1: Auto Clean Up | J1: Correct sequence
F2: FALSE | H2: TRUE | J2: 122
A4: Working with Folder | G4: Process All/Or Pick A number: ALL or an integer
A5: F:\Possum Chapter\Raw Data\Taylor\phase 2 var\ | G5: ALL
A6: Filenames:
A7: !LB29953..Ta | G7: Paint Cells
A8: !LB30953..Ta | G8: FALSE
A9: !LC01B13..Ta
A10: !LC03A33..Ta
A11: !LC05A33..Ta
A12: !LC02953..Ta
A13: !LB09A43..Ta
A14: !LB10A53..Ta
A15: !LB11A03..Ta
A16: !LB12A13..Ta
A17: !LB13A23..Ta
A18: !LB14B13..Ta
A19: !LB15A23..Ta
A20: !LB16A13..Ta
A21: !LB17A03..Ta
A22: !LB18A03..Ta
A23: !LB19C53..Ta
A24: !LB20A13..Ta
A25: !LB21B03..Ta
A26: !LB22A43..Ta
A27: !LB23A43..Ta
A28: !LB24A03..Ta
A29: !LB28B03..Ta
A30: !LB25953..Ta
A31: !LB26943..Ta
A32: !LC12A2T.ayl
A33: !LC13A4T.ayl
A34: !LC09A33..Ta
A35: !LC11C03..Ta
A36: !LC10923..Ta
A37: !LC07A03..Ta
A38: !LC08A53..Ta

Sheet !LB09A43..Ta
A1: Report for:!LB09A43..Ta
A2: Date: | B2: <date>
A3: Hen: | B3: <hen> | F3: Correct Sequence | G3: =Start!J2 -> 122 | P3: Total Sequences in Data | Q3: =4994-COUNTBLANK(L7:L5000) -> 185 | V3: Total Sequences in Block Data | W3: =COUNTA(L7:L37) -> 31 | AA3: Total Sequences in Block Data | AB3: =COUNTA(L38:L68) -> 31 | AF3: Total Sequences in Block Data | AG3: =COUNTA(L69:L98) -> 30 | AK3: Total Sequences in Block Data | AL3: =COUNTA(L99:L129) -> 31 | AP3: Total Sequences in Block Data | AQ3: =COUNTA(L130:L160) -> 31 | AU3: Total Sequences in Block Data | AV3: =COUNTA(L161:L191) -> 31
P4: Total Sequences in Summary | Q4: =SUM(O7:O14) -> 185 | V4: Total Sequences in Block Summary | W4: =SUM(U7:U14) -> 31 | AA4: Total Sequences in Block Summary | AB4: =SUM(Z7:Z14) -> 31 | AF4: Total Sequences in Block Summary | AG4: =SUM(AE7:AE14) -> 30 | AK4: Total Sequences in Block Summary | AL4: =SUM(AJ7:AJ14) -> 31 | AP4: Total Sequences in Block Summary | AQ4: =SUM(AO7:AO14) -> 31 | AU4: Total Sequences in Block Summary | AV4: =SUM(AT7:AT14) -> 31
T5: Block 1 | Y5: Block 2 | AD5: Block 3 | AI5: Block 4 | AN5: Block 5 | AS5: Block 6
A6: Sequence Component 1 | B6: Time 1 | C6: Sequence Component 2 | D6: Time 2 | E6: Sequence Component 3 | F6: Time 3 | G6: Sequence Component 4 | H6: Time 4 | I6: Sequence Component 5 | J6: Time 5 | K6: Correct? 0=No 1=Yes | L6: Sequence | N6: Frequency | P6: Relative Frequency | Q6: Variability | T6: Frequency | V6: Relative Frequency | W6: Variability | Y6: Frequency | AA6: Relative Frequency | AB6: Variability | AD6: Frequency | AF6: Relative Frequency | AG6: Variability | AI6: Frequency | AK6: Relative Frequency | AL6: Variability | AN6: Frequency | AP6: Relative Frequency | AQ6: Variability | AS6: Frequency | AU6: Relative Frequency | AV6: Variability
A7: 11 | B7: 22 | C7: 12 | D7: 32 | E7: 14 | F7: 37 | K7: 0 | L7: 111 | N7: 111 | O7: =COUNTIF($L$7:$L$500,N7) -> 39 | P7: =O7/$Q$4 -> 0.2108108108 | Q7: =IF(P7=0,0,(P7*((LOG(P7))/LOG(2)))) -> -0.473476705 | T7: =N7 -> 111 | U7: =COUNTIF(L7:L37,T7) -> 14 | V7: =U7/(W4-U10) -> 0.4516129032 | W7: =IF(V7=0,0,(V7*((LOG(V7))/LOG(2)))) -> -0.5179283689 | Y7: =N7 -> 111 | Z7: =COUNTIF(L38:L68,Y7) -> 6 | AA7: =Z7/(AB4-Z10) -> 0.1935483871 | AB7: =IF(AA7=0,0,(AA7*((LOG(AA7))/LOG(2)))) -> -0.4585613825 | AD7: =N7 -> 111 | AE7: =COUNTIF(L69:L98,AD7) -> 6 | AF7: =AE7/(AG4-AE10) -> 0.2 | AG7: =IF(AF7=0,0,(AF7*((LOG(AF7))/LOG(2)))) -> -0.464385619 | AI7: =N7 -> 111 | AJ7: =COUNTIF(L99:L129,AI7) -> 6 | AK7: =AJ7/(AL4-AJ10) -> 0.2 | AL7: =IF(AK7=0,0,(AK7*((LOG(AK7))/LOG(2)))) -> -0.464385619 | AN7: =N7 -> 111 | AO7: =COUNTIF(L130:L160,AN7) -> 1 | AP7: =AO7/(AQ4-AO10) -> 0.03225806452 | AQ7: =IF(AP7=0,0,(AP7*((LOG(AP7))/LOG(2)))) -> -0.1598127842 | AS7: =N7 -> 111 | AT7: =COUNTIF(L161:L191,AS7) -> 6 | AU7: =AT7/(AV4-AT10) -> 0.1935483871 | AV7: =IF(AU7=0,0,(AU7*((LOG(AU7))/LOG(2)))) -> -0.4585613825
A8: 11 | B8: 138 | C8: 12 | D8: 140 | E8: 14 | F8: 143 | K8: 0 | L8: 111 | N8: 112 | O8: =COUNTIF($L$7:$L$500,N8) -> 4 | P8: =O8/$Q$4 -> 0.02162162162 | Q8: =IF(P8=0,0,(P8*((LOG(P8))/LOG(2)))) -> -0.119597437 | T8: =N8 -> 112 | U8: =COUNTIF(L7:L37,T8) -> 0 | V8: =U8/(W4-U10) -> 0 | W8: =IF(V8=0,0,(V8*((LOG(V8))/LOG(2)))) -> 0 | Y8: =N8 -> 112 | Z8: =COUNTIF(L38:L68,Y8) -> 0 | AA8: =Z8/(AB4-Z10) -> 0 | AB8: =IF(AA8=0,0,(AA8*((LOG(AA8))/LOG(2)))) -> 0 | AD8: =N8 -> 112 | AE8: =COUNTIF(L69:L98,AD8) -> 1 | AF8: =AE8/(AG4-AE10) -> 0.03333333333 | AG8: =IF(AF8=0,0,(AF8*((LOG(AF8))/LOG(2)))) -> -0.1635630199 | AI8: =N8 -> 112 | AJ8: =COUNTIF(L99:L129,AI8) -> 0 | AK8: =AJ8/(AL4-AJ10) -> 0 | AL8: =IF(AK8=0,0,(AK8*((LOG(AK8))/LOG(2)))) -> 0 | AN8: =N8 -> 112 | AO8: =COUNTIF(L130:L160,AN8) -> 2 | AP8: =AO8/(AQ4-AO10) -> 0.06451612903 | AQ8: =IF(AP8=0,0,(AP8*((LOG(AP8))/LOG(2)))) -> -0.2551094394 | AS8: =N8 -> 112 | AT8: =COUNTIF(L161:L191,AS8) -> 1 | AU8: =AT8/(AV4-AT10) -> 0.03225806452 | AV8: =IF(AU8=0,0,(AU8*((LOG(AU8))/LOG(2)))) -> -0.1598127842
A9: 11 | B9: 252 | C9: 12 | D9: 257 | E9: 14 | F9: 262 | K9: 0 | L9: 111 | N9: 121 | O9: =COUNTIF($L$7:$L$500,N9) -> 1 | P9: =O9/$Q$4 -> 0.005405405405 | Q9: =IF(P9=0,0,(P9*((LOG(P9))/LOG(2)))) -> -0.04071017006 | T9: =N9 -> 121 | U9: =COUNTIF(L7:L37,T9) -> 0 | V9: =U9/(W4-U10) -> 0 | W9: =IF(V9=0,0,(V9*((LOG(V9))/LOG(2)))) -> 0 | Y9: =N9 -> 121 | Z9: =COUNTIF(L38:L68,Y9) -> 0 | AA9: =Z9/(AB4-Z10) -> 0 | AB9: =IF(AA9=0,0,(AA9*((LOG(AA9))/LOG(2)))) -> 0 | AD9: =N9 -> 121 | AE9: =COUNTIF(L69:L98,AD9) -> 1 | AF9: =AE9/(AG4-AE10) -> 0.03333333333 | AG9: =IF(AF9=0,0,(AF9*((LOG(AF9))/LOG(2)))) -> -0.1635630199 | AI9: =N9 -> 121 | AJ9: =COUNTIF(L99:L129,AI9) -> 0 | AK9: =AJ9/(AL4-AJ10) -> 0 | AL9: =IF(AK9=0,0,(AK9*((LOG(AK9))/LOG(2)))) -> 0 | AN9: =N9 -> 121 | AO9: =COUNTIF(L130:L160,AN9) -> 0 | AP9: =AO9/(AQ4-AO10) -> 0 | AQ9: =IF(AP9=0,0,(AP9*((LOG(AP9))/LOG(2)))) -> 0 | AS9: =N9 -> 121 | AT9: =COUNTIF(L161:L191,AS9) -> 0 | AU9: =AT9/(AV4-AT10) -> 0 | AV9: =IF(AU9=0,0,(AU9*((LOG(AU9))/LOG(2)))) -> 0
A10: 11 | B10: 367 | C10: 12 | D10: 371 | E10: 14 | F10: 381 | K10: 0 | L10: 111 | N10: 122 | O10: =COUNTIF($L$7:$L$500,N10) -> 1 | P10: =O10/$Q$4 -> 0.005405405405 | Q10: =IF(P10=0,0,(P10*((LOG(P10))/LOG(2)))) -> -0.04071017006 | T10: =N10 -> 122 | U10: =COUNTIF(L7:L37,T10) -> 0 | Y10: =N10 -> 122 | Z10: =COUNTIF(L38:L68,Y10) -> 0 | AD10: =N10 -> 122 | AE10: =COUNTIF(L69:L98,AD10) -> 0 | AI10: =N10 -> 122 | AJ10: =COUNTIF(L99:L129,AI10) -> 1 | AN10: =N10 -> 122 | AO10: =COUNTIF(L130:L160,AN10) -> 0 | AS10: =N10 -> 122 | AT10: =COUNTIF(L161:L191,AS10) -> 0
A11: 22 | B11: 477 | C11: 14 | D11: 482 | E11: 14 | F11: 484 | K11: 0 | L11: 211 | N11: 211 | O11: =COUNTIF($L$7:$L$500,N11) -> 57 | P11: =O11/$Q$4 -> 0.3081081081 | Q11: =IF(P11=0,0,(P11*((LOG(P11))/LOG(2)))) -> -0.5233189862 | T11: =N11 -> 211 | U11: =COUNTIF(L7:L37,T11) -> 16 | V11: =U11/(W4-U10) -> 0.5161290323 | W11: =IF(V11=0,0,(V11*((LOG(V11))/LOG(2)))) -> -0.4924884183 | Y11: =N11 -> 211 | Z11: =COUNTIF(L38:L68,Y11) -> 12 | AA11: =Z11/(AB4-Z10) -> 0.3870967742 | AB11: =IF(AA11=0,0,(AA11*((LOG(AA11))/LOG(2)))) -> -0.5300259908 | AD11: =N11 -> 211 | AE11: =COUNTIF(L69:L98,AD11) -> 9 | AF11: =AE11/(AG4-AE10) -> 0.3 | AG11: =IF(AF11=0,0,(AF11*((LOG(AF11))/LOG(2)))) -> -0.5210896782 | AI11: =N11 -> 211 | AJ11: =COUNTIF(L99:L129,AI11) -> 6 | AK11: =AJ11/(AL4-AJ10) -> 0.2 | AL11: =IF(AK11=0,0,(AK11*((LOG(AK11))/LOG(2)))) -> -0.464385619 | AN11: =N11 -> 211 | AO11: =COUNTIF(L130:L160,AN11) -> 5 | AP11: =AO11/(AQ4-AO10) -> 0.1612903226 | AQ11: =IF(AP11=0,0,(AP11*((LOG(AP11))/LOG(2)))) -> -0.4245593896 | AS11: =N11 -> 211 | AT11: =COUNTIF(L161:L191,AS11) -> 9 | AU11: =AT11/(AV4-AT10) -> 0.2903225806 | AV11: =IF(AU11=0,0,(AU11*((LOG(AU11))/LOG(2)))) -> -0.518014251
A12: 11 | B12: 587 | C12: 12 | D12: 593 | E12: 14 | F12: 598 | K12: 0 | L12: 111 | N12: 212 | O12: =COUNTIF($L$7:$L$500,N12) -> 0 | P12: =O12/$Q$4 -> 0 | Q12: =IF(P12=0,0,(P12*((LOG(P12))/LOG(2)))) -> 0 | T12: =N12 -> 212 | U12: =COUNTIF(L7:L37,T12) -> 0 | V12: =U12/(W4-U10) -> 0 | W12: =IF(V12=0,0,(V12*((LOG(V12))/LOG(2)))) -> 0 | Y12: =N12 -> 212 | Z12: =COUNTIF(L38:L68,Y12) -> 0 | AA12: =Z12/(AB4-Z10) -> 0 | AB12: =IF(AA12=0,0,(AA12*((LOG(AA12))/LOG(2)))) -> 0 | AD12: =N12 -> 212 | AE12: =COUNTIF(L69:L98,AD12) -> 0 | AF12: =AE12/(AG4-AE10) -> 0 | AG12: =IF(AF12=0,0,(AF12*((LOG(AF12))/LOG(2)))) -> 0 | AI12: =N12 -> 212 | AJ12: =COUNTIF(L99:L129,AI12) -> 0 | AK12: =AJ12/(AL4-AJ10) -> 0 | AL12: =IF(AK12=0,0,(AK12*((LOG(AK12))/LOG(2)))) -> 0 | AN12: =N12 -> 212 | AO12: =COUNTIF(L130:L160,AN12) -> 0 | AP12: =AO12/(AQ4-AO10) -> 0 | AQ12: =IF(AP12=0,0,(AP12*((LOG(AP12))/LOG(2)))) -> 0 | AS12: =N12 -> 212 | AT12: =COUNTIF(L161:L191,AS12) -> 0 | AU12: =AT12/(AV4-AT10) -> 0 | AV12: =IF(AU12=0,0,(AU12*((LOG(AU12))/LOG(2)))) -> 0
A13: 11 | B13: 704 | C13: 12 | D13: 707 | E13: 14 | F13: 717 | K13: 0 | L13: 111 | N13: 221 | O13: =COUNTIF($L$7:$L$500,N13) -> 26 | P13: =O13/$Q$4 -> 0.1405405405 | Q13: =IF(P13=0,0,(P13*((LOG(P13))/LOG(2)))) -> -0.3978620827 | T13: =N13 -> 221 | U13: =COUNTIF(L7:L37,T13) -> 1 | V13: =U13/(W4-U10) -> 0.03225806452 | W13: =IF(V13=0,0,(V13*((LOG(V13))/LOG(2)))) -> -0.1598127842 | Y13: =N13 -> 221 | Z13: =COUNTIF(L38:L68,Y13) -> 4 | AA13: =Z13/(AB4-Z10) -> 0.1290322581 | AB13: =IF(AA13=0,0,(AA13*((LOG(AA13))/LOG(2)))) -> -0.3811866207 | AD13: =N13 -> 221 | AE13: =COUNTIF(L69:L98,AD13) -> 2 | AF13: =AE13/(AG4-AE10) -> 0.06666666667 | AG13: =IF(AF13=0,0,(AF13*((LOG(AF13))/LOG(2)))) -> -0.260459373 | AI13: =N13 -> 221 | AJ13: =COUNTIF(L99:L129,AI13) -> 4 | AK13: =AJ13/(AL4-AJ10) -> 0.1333333333 | AL13: =IF(AK13=0,0,(AK13*((LOG(AK13))/LOG(2)))) -> -0.3875854127 | AN13: =N13 -> 221 | AO13: =COUNTIF(L130:L160,AN13) -> 8 | AP13: =AO13/(AQ4-AO10) -> 0.2580645161 | AQ13: =IF(AP13=0,0,(AP13*((LOG(AP13))/LOG(2)))) -> -0.5043087253 | AS13: =N13 -> 221 | AT13: =COUNTIF(L161:L191,AS13) -> 7 | AU13: =AT13/(AV4-AT10) -> 0.2258064516 | AV13: =IF(AU13=0,0,(AU13*((LOG(AU13))/LOG(2)))) -> -0.4847706361
A14: 11 | B14: 834 | C14: 12 | D14: 838 | E14: 14 | F14: 843 | K14: 0 | L14: 111 | N14: 222 | O14: =COUNTIF($L$7:$L$500,N14) -> 57 | P14: =O14/$Q$4 -> 0.3081081081 | Q14: =IF(P14=0,0,(P14*((LOG(P14))/LOG(2)))) -> -0.5233189862 | T14: =N14 -> 222 | U14: =COUNTIF(L7:L37,T14) -> 0 | V14: =U14/(W4-U10) -> 0 | W14: =IF(V14=0,0,(V14*((LOG(V14))/LOG(2)))) -> 0 | Y14: =N14 -> 222 | Z14: =COUNTIF(L38:L68,Y14) -> 9 | AA14: =Z14/(AB4-Z10) -> 0.2903225806 | AB14: =IF(AA14=0,0,(AA14*((LOG(AA14))/LOG(2)))) -> -0.518014251 | AD14: =N14 -> 222 | AE14: =COUNTIF(L69:L98,AD14) -> 11 | AF14: =AE14/(AG4-AE10) -> 0.3666666667 | AG14: =IF(AF14=0,0,(AF14*((LOG(AF14))/LOG(2)))) -> -0.5307349582 | AI14: =N14 -> 222 | AJ14: =COUNTIF(L99:L129,AI14) -> 14 | AK14: =AJ14/(AL4-AJ10) -> 0.4666666667 | AL14: =IF(AK14=0,0,(AK14*((LOG(AK14))/LOG(2)))) -> -0.5131166477 | AN14: =N14 -> 222 | AO14: =COUNTIF(L130:L160,AN14) -> 15 | AP14: =AO14/(AQ4-AO10) -> 0.4838709677 | AQ14: =IF(AP14=0,0,(AP14*((LOG(AP14))/LOG(2)))) -> -0.5067608297 | AS14: =N14 -> 222 | AT14: =COUNTIF(L161:L191,AS14) -> 8 | AU14: =AT14/(AV4-AT10) -> 0.2580645161 | AV14: =IF(AU14=0,0,(AU14*((LOG(AU14))/LOG(2)))) -> -0.5043087253
A15: 22 | B15: 939 | C15: 14 | D15: 951 | E15: 14 | F15: 955 | K15: 0 | L15: 211 | P15: =SUM(P7:P14) -> 1 | Q15: =-SUM(Q7:Q14) -> 2.118994537 | V15: =SUM(V7:V14) -> 1 | W15: =-SUM(W7:W14) -> 1.170229571 | AA15: =SUM(AA7:AA14) -> 1 | AB15: =-SUM(AB7:AB14) -> 1.887788245 | AF15: =SUM(AF7:AF14) -> 1 | AG15: =-SUM(AG7:AG14) -> 2.103795668 | AK15: =SUM(AK7:AK14) -> 1 | AL15: =-SUM(AL7:AL14) -> 1.829473298 | AP15: =SUM(AP7:AP14) -> 1 | AQ15: =-SUM(AQ7:AQ14) -> 1.850551168 | AU15: =SUM(AU7:AU14) -> 1 | AV15: =-SUM(AV7:AV14) -> 2.125467779
A16: 11 | B16: 1072 | C16: 12 | D16: 1077 | E16: 14 | F16: 1081 | K16: 0 | L16: 111 | P16: U= | Q16: =Q15/(LOG(Q4)/LOG(2)) -> 0.2813553593 | V16: U1= | W16: =W15/(LOG(W4)/LOG(2)) -> 0.2362097701 | AA16: U2= | AB16: =AB15/(LOG(AB4)/LOG(2)) -> 0.3810483329 | AF16: U3= | AG16: =AG15/(LOG(AG4)/LOG(2)) -> 0.4287431373 | AK16: U4= | AL16: =AL15/(LOG(AL4)/LOG(2)) -> 0.3692775142 | AP16: U5= | AQ16: =AQ15/(LOG(AQ4)/LOG(2)) -> 0.373532063 | AU16: U6= | AV16: =AV15/(LOG(AV4)/LOG(2)) -> 0.4290237298
A17: 11 | B17: 1194 | C17: 12 | D17: 1199 | E17: 14 | F17: 1205 | K17: 0 | L17: 111
A18: 22 | B18: 1301 | C18: 14 | D18: 1313 | E18: 14 | F18: 1318 | K18: 0 | L18: 211
A19: 22 | B19: 1415 | C19: 14 | D19: 1438 | E19: 14 | F19: 1442 | K19: 0 | L19: 211 | N19: Total Target Seq
A20: 22 | B20: 1539 | C20: 14 | D20: 1550 | E20: 14 | F20: 1558 | K20: 0 | L20: 211 | N20: =COUNTIF(L7:L191,G3) -> 1 | P20: 31 | Q20: 31 | R20: 30 | S20: 31 | T20: 31 | U20: 31
A21: 22 | B21: 1657 | C21: 14 | D21: 1672 | E21: 14 | F21: 1676 | K21: 0 | L21: 211 | P21: % of reinforcement given in 6 equal intervals based on number of trials
A22: 22 | B22: 1773 | C22: 14 | D22: 1786 | E22: 14 | F22: 1791 | K22: 0 | L22: 211 | P22: %_1 | Q22: %_2 | R22: %_3 | S22: %_4 | T22: %_5 | U22: %_6
A23: 22 | B23: 1887 | C23: 14 | D23: 1898 | E23: 14 | F23: 1902 | K23: 0 | L23: 211 | O23: target sequence | P23: =$G$3 -> 122 | Q23: =$G$3 -> 122 | R23: =$G$3 -> 122 | S23: =$G$3 -> 122 | T23: =$G$3 -> 122 | U23: =$G$3 -> 122
A24: 22 | B24: 2000 | C24: 23 | D24: 2003 | E24: 14 | F24: 2020 | K24: 0 | L24: 221 | O24: total reinforcement | P24: =U10 -> 0 | Q24: =Z10 -> 0 | R24: =AE10 -> 0 | S24: =AJ10 -> 1 | T24: =AO10 -> 0 | U24: =AT10 -> 0
A25: 11 | B25: 2148 | C25: 12 | D25: 2151 | E25: 14 | F25: 2161 | K25: 0 | L25: 111 | O25: % target
A26: 11 | B26: 2266 | C26: 12 | D26: 2269 | E26: 14 | F26: 2275 | K26: 0 | L26: 111 | O26: CCRF
A27: 11 | B27: 2378 | C27: 12 | D27: 2381 | E27: 14 | F27: 2386 | K27: 0 | L27: 111 | O27: % CCRf
A28: 11 | B28: 2499 | C28: 12 | D28: 2502 | E28: 14 | F28: 2507 | K28: 0 | L28: 111 | O28: average response rate | P28: =F37/P20 -> 113.6774194 | Q28: =(F68-F37)/Q20 -> 113.0322581 | R28: =(F98-F68)/R20 -> 140.1333333 | S28: =(F129-F98)/S20 -> 123.1612903 | T28: =(F160-F129)/T20 -> 145.0967742 | U28: =(F191-F160)/U20 -> 141
A29: 22 | B29: 2604 | C29: 14 | D29: 2618 | E29: 14 | F29: 2628 | K29: 0 | L29: 211
A30: 22 | B30: 2741 | C30: 14 | D30: 2745 | E30: 14 | F30: 2749 | K30: 0 | L30: 211
A31: 22 | B31: 2847 | C31: 14 | D31: 2857 | E31: 14 | F31: 2860 | K31: 0 | L31: 211
A32: 11 | B32: 2965 | C32: 12 | D32: 2969 | E32: 14 | F32: 2975 | K32: 0 | L32: 111
A33: 22 | B33: 3071 | C33: 14 | D33: 3080 | E33: 14 | F33: 3084 | K33: 0 | L33: 211
A34: 22 | B34: 3185 | C34: 14 | D34: 3192 | E34: 14 | F34: 3202 | K34: 0 | L34: 211
A35: 22 | B35: 3297 | C35: 14 | D35: 3308 | E35: 14 | F35: 3311 | K35: 0 | L35: 211
A36: 22 | B36: 3409 | C36: 14 | D36: 3416 | E36: 14 | F36: 3419 | K36: 0 | L36: 211
A37: 22 | B37: 3514 | C37: 14 | D37: 3521 | E37: 14 | F37: 3524 | K37: 0 | L37: 211
A38: 22 | B38: 3618 | C38: 14 | D38: 3628 | E38: 14 | F38: 3631 | K38: 0 | L38: 211
A39: 22 | B39: 3727 | C39: 23 | D39: 3741 | E39: 23 | F39: 3744 | K39: 0 | L39: 222
A40: 22 | B40: 3841 | C40: 14 | D40: 3848 | E40: 14 | F40: 3851 | K40: 0 | L40: 211
A41: 22 | B41: 3946 | C41: 14 | D41: 3954 | E41: 14 | F41: 3960 | K41: 0 | L41: 211
A42: 11 | B42: 4071 | C42: 12 | D42: 4074 | E42: 14 | F42: 4080 | K42: 0 | L42: 111
A43: 22 | B43: 4177 | C43: 23 | D43: 4184 | E43: 14 | F43: 4193 | K43: 0 | L43: 221
A44: 22 | B44: 4285 | C44: 23 | D44: 4288 | E44: 14 | F44: 4298 | K44: 0 | L44: 221
A45: 22 | B45: 4395 | C45: 23 | D45: 4407 | E45: 23 | F45: 4411 | K45: 0 | L45: 222
A46: 11 | B46: 4520 | C46: 12 | D46: 4525 | E46: 14 | F46: 4530 | K46: 0 | L46: 111
A47: 22 | B47: 4626 | C47: 23 | D47: 4632 | E47: 23 | F47: 4641 | K47: 0 | L47: 222
A48: 22 | B48: 4739 | C48: 14 | D48: 4749 | E48: 14 | F48: 4753 | K48: 0 | L48: 211
A49: 22 | B49: 4849 | C49: 23 | D49: 4863 | E49: 23 | F49: 4865 | K49: 0 | L49: 222
A50: 22 | B50: 4961 | C50: 14 | D50: 4972 | E50: 14 | F50: 4981 | K50: 0 | L50: 211
A51: 22 | B51: 5079 | C51: 23 | D51: 5082 | E51: 23 | F51: 5085 | K51: 0 | L51: 222
A52: 22 | B52: 5182 | C52: 14 | D52: 5198 | E52: 14 | F52: 5205 | K52: 0 | L52: 211
A53: 22 | B53: 5301 | C53: 14 | D53: 5312 | E53: 14 | F53: 5316 | K53: 0 | L53: 211
A54: 22 | B54: 5414 | C54: 23 | D54: 5420 | E54: 23 | F54: 5425 | K54: 0 | L54: 222
A55: 22 | B55: 5520 | C55: 14 | D55: 5530 | E55: 14 | F55: 5534 | K55: 0 | L55: 211
A56: 22 | B56: 5634 | C56: 23 | D56: 5637 | E56: 23 | F56: 5653 | K56: 0 | L56: 222
A57: 11 | B57: 5757 | C57: 12 | D57: 5759 | E57: 14 | F57: 5763 | K57: 0 | L57: 111
A58: 22 | B58: 5861 | C58: 23 | D58: 5872 | E58: 23 | F58: 5884 | K58: 0 | L58: 222
A59: 22 | B59: 5982 | C59: 14 | D59: 5995 | E59: 14 | F59: 6000 | K59: 0 | L59: 211
A60: 22 | B60: 6094 | C60: 23 | D60: 6097 | E60: 14 | F60: 6104 | K60: 0 | L60: 221
A61: 22 | B61: 6201 | C61: 14 | D61: 6223 | E61: 14 | F61: 6228 | K61: 0 | L61: 211
A62: 22 | B62: 6326 | C62: 23 | D62: 6330 | E62: 23 | F62: 6338 | K62: 0 | L62: 222
A63: 22 | B63: 6436 | C63: 14 | D63: 6447 | E63: 14 | F63: 6450 | K63: 0 | L63: 211
A64: 11 | B64: 6564 | C64: 12 | D64: 6567 | E64: 14 | F64: 6571 | K64: 0 | L64: 111
A65: 11 | B65: 6681 | C65: 12 | D65: 6686 | E65: 14 | F65: 6690 | K65: 0 | L65: 111
A66: 22 | B66: 6787 | C66: 14 | D66: 6793 | E66: 14 | F66: 6796 | K66: 0 | L66: 211
A67: 11 | B67: 6907 | C67: 12 | D67: 6911 | E67: 14 | F67: 6919 | K67: 0 | L67: 111
A68: 22 | B68: 7013 | C68: 23 | D68: 7015 | E68: 14 | F68: 7028 | K68: 0 | L68: 221
A69: 22 | B69: 7124 | C69: 23 | D69: 7130 | E69: 23 | F69: 7133 | K69: 0 | L69: 222
A70: 22 | B70: 7246 | C70: 23 | D70: 7253 | E70: 23 | F70: 7260 | K70: 0 | L70: 222
A71: 22 | B71: 7356 | C71: 14 | D71: 7367 | E71: 14 | F71: 7371 | K71: 0 | L71: 211
A72: 22 | B72: 7468 | C72: 23 | D72: 7481 | E72: 23 | F72: 7488 | K72: 0 | L72: 222
A73: 11 | B73: 7593 | C73: 12 | D73: 7598 | E73: 14 | F73: 7604 | K73: 0 | L73: 111
A74: 22 | B74: 7700 | C74: 14 | D74: 7713 | E74: 14 | F74: 7724 | K74: 0 | L74: 211
A75: 11 | B75: 7831 | C75: 12 | D75: 7834 | E75: 14 | F75: 7843 | K75: 0 | L75: 111
A76: 22 | B76: 7940 | C76: 23 | D76: 7943 | E76: 23 | F76: 7948 | K76: 0 | L76: 222
A77: 11 | B77: 8082 | C77: 12 | D77: 8089 | E77: 14 | F77: 8099 | K77: 0 | L77: 111
A78: 22 | B78: 8199 | C78: 23 | D78: 8207 | E78: 23 | F78: 8213 | K78: 0 | L78: 222
A79: 22 | B79: 8309 | C79: 14 | D79: 8320 | E79: 14 | F79: 8324 | K79: 0 | L79: 211
A80: 11 | B80: 8430 | C80: 12 | D80: 8436 | E80: 14 | F80: 8440 | K80: 0 | L80: 111
A81: 22 | B81: 8537 | C81: 14 | D81: 8553 | E81: 14 | F81: 8560 | K81: 0 | L81: 211
A82: 22 | B82: 8661 | C82: 14 | D82: 8675 | E82: 14 | F82: 8679 | K82: 0 | L82: 211
A83: 22 | B83: 8777 | C83: 23 | D83: 8784 | E83: 23 | F83: 8789 | K83: 0 | L83: 222
A84: 22 | B84: 8888 | C84: 14 | D84: 8902 | E84: 14 | F84: 8907 | K84: 0 | L84: 211
A85: 22 | B85: 9005 | C85: 23 | D85: 9008 | E85: 23 | F85: 9016 | K85: 0 | L85: 222
A86: 22 | B86: 9121 | C86: 14 | D86: 9140 | E86: 14 | F86: 9143 | K86: 0 | L86: 211
A87: 22 | B87: 9285 | C87: 14 | D87: 9295 | E87: 14 | F87: 9299 | K87: 0 | L87: 211
A88: 22 | B88: 9396 | C88: 14 | D88: 9405 | E88: 14 | F88: 9412 | K88: 0 | L88: 211
A89: 22 | B89: 9509 | C89: 23 | D89: 9513 | E89: 14 | F89: 9525 | K89: 0 | L89: 221
A90: 22 | B90: 9621 | C90: 23 | D90: 9625 | E90: 14 | F90: 9633 | K90: 0 | L90: 221
A91: 11 | B91: 10098 | C91: 12 | D91: 10106 | E91: 23 | F91: 10127 | K91: 0 | L91: 112
A92: 22 | B92: 10269 | C92: 23 | D92: 10272 | E92: 23 | F92: 10280 | K92: 0 | L92: 222
A93: 22 | B93: 10376 | C93: 23 | D93: 10394 | E93: 23 | F93: 10399 | K93: 0 | L93: 222
A94: 22 | B94: 10500 | C94: 23 | D94: 10505 | E94: 23 | F94: 10509 | K94: 0 | L94: 222
A95: 22 | B95: 10669 | C95: 23 | D95: 10690 | E95: 23 | F95: 10693 | K95: 0 | L95: 222
A96: 11 | B96: 10810 | C96: 12 | D96: 10815 | E96: 14 | F96: 10820 | K96: 0 | L96: 111
A97: 11 | B97: 10955 | C97: 21 | D97: 10973 | E97: 12 | F97: 10989 | K97: 0 | L97: 121
A98: 11 | B98: 11221 | C98: 12 | D98: 11227 | E98: 14 | F98: 11232 | K98: 0 | L98: 111
A99: 11 | B99: 11344 | C99: 12 | D99: 11347 | E99: 14 | F99: 11352 | K99: 0 | L99: 111
A100: 22 | B100: 11517 | C100: 23 | D100: 11581 | E100: 23 | F100: 11589 | K100: 0 | L100: 222
A101: 22 | B101: 11697 | C101: 14 | D101: 11709 | E101: 14 | F101: 11714 | K101: 0 | L101: 211
A102: 11 | B102: 11983 | C102: 21 | D102: 11992 | E102: 21 | F102: 11995 | K102: 0 | L102: 122
A103: 22 | B103: 12095 | C103: 14 | D103: 12101 | E103: 14 | F103: 12105 | K103: 0 | L103: 211
A104: 22 | B104: 12201 | C104: 23 | D104: 12204 | E104: 23 | F104: 12209 | K104: 0 | L104: 222
A105: 11 | B105: 12326 | C105: 12 | D105: 12329 | E105: 14 | F105: 12333 | K105: 0 | L105: 111
A106: 22 | B106: 12431 | C106: 23 | D106: 12437 | E106: 14 | F106: 12452 | K106: 0 | L106: 221
A107: 22 | B107: 12548 | C107: 14 | D107: 12560 | E107: 14 | F107: 12564 | K107: 0 | L107: 211
A108: 22 | B108: 12663 | C108: 23 | D108: 12667 | E108: 14 | F108: 12678 | K108: 0 | L108: 221
A109: 22 | B109: 12774 | C109: 23 | D109: 12778 | E109: 14 | F109: 12789 | K109: 0 | L109: 221
A110: 22 | B110: 12886 | C110: 23 | D110: 12889 | E110: 23 | F110: 12921 | K110: 0 | L110: 222
A111: 22 | B111: 13030 | C111: 14 | D111: 13041 | E111: 14 | F111: 13045 | K111: 0 | L111: 211
A112: 22 | B112: 13141 | C112: 23 | D112: 13145 | E112: 14 | F112: 13155 | K112: 0 | L112: 221
A113: 22 | B113: 13256 | C113: 23 | D113: 13259 | E113: 23 | F113: 13264 | K113: 0 | L113: 222
A114: 11 | B114: 13375 | C114: 12 | D114: 13379 | E114: 14 | F114: 13387 | K114: 0 | L114: 111
A115: 22 | B115: 13485 | C115: 23 | D115: 13488 | E115: 23 | F115: 13493 | K115: 0 | L115: 222
A116: 22 | B116: 13591 | C116: 23 | D116: 13595 | E116: 23 | F116: 13599 | K116: 0 | L116: 222
A117: 11 | B117: 13703 | C117: 12 | D117: 13705 | E117: 14 | F117: 13710 | K117: 0 | L117: 111
A118: 22 | B118: 13807 | C118: 23 | D118: 13813 | E118: 23 | F118: 13816 | K118: 0 | L118: 222
A119: 22 | B119: 13915 | C119: 23 | D119: 13918 | E119: 23 | F119: 13925 | K119: 0 | L119: 222
A120: 22 | B120: 14022 | C120: 23 | D120: 14028 | E120: 23 | F120: 14034 | K120: 0 | L120: 222
A121: 22 | B121: 14131 | C121: 23 | D121: 14136 | E121: 23 | F121: 14140 | K121: 0 | L121: 222
A122: 22 | B122: 14237 | C122: 14 | D122: 14253 | E122: 14 | F122: 14257 | K122: 0 | L122: 211
A123: 22 | B123: 14354 | C123: 14 | D123: 14370 | E123: 14 | F123: 14374 | K123: 0 | L123: 211
A124: 22 | B124: 14471 | C124: 23 | D124: 14473 | E124: 23 | F124: 14478 | K124: 0 | L124: 222
A125: 22 | B125: 14578 | C125: 23 | D125: 14600 | E125: 23 | F125: 14604 | K125: 0 | L125: 222
A126: 22 | B126: 14702 | C126: 23 | D126: 14705 | E126: 23 | F126: 14714 | K126: 0 | L126: 222
A127: 11 | B127: 14817 | C127: 12 | D127: 14822 | E127: 14 | F127: 14826 | K127: 0 | L127: 111
A128: 22 | B128: 14926 | C128: 23 | D128: 14929 | E128: 23 | F128: 14933 | K128: 0 | L128: 222
A129: 11 | B129: 15038 | C129: 12 | D129: 15042 | E129: 14 | F129: 15050 | K129: 0 | L129: 111
A130: 22 | B130: 15152 | C130: 14 | D130: 15160 | E130: 14 | F130: 15164 | K130: 0 | L130: 211
A131: 22 | B131: 15262 | C131: 23 | D131: 15265 | E131: 14 | F131: 15275 | K131: 0 | L131: 221
A132: 22 | B132: 15372 | C132: 23 | D132: 15375 | E132: 23 | F132: 15380 | K132: 0 | L132: 222
A133: 22 | B133: 15485 | C133: 14 | D133: 15493 | E133: 14 | F133: 15496 | K133: 0 | L133: 211
A134: 22 | B134: 15597 | C134: 23 | D134: 15600 | E134: 14 | F134: 15608 | K134: 0 | L134: 221
A135: 22 | B135: 15722 | C135: 23 | D135: 15727 | E135: 23 | F135: 15735 | K135: 0 | L135: 222
A136: 11 | B136: 15853 | C136: 12 | D136: 15857 | E136: 23 | F136: 15860 | K136: 0 | L136: 112
A137: 22 | B137: 15974 | C137: 14 | D137: 15986 | E137: 14 | F137: 15995 | K137: 0 | L137: 211
A138: 11 | B138: 16115 | C138: 12 | D138: 16122 | E138: 14 | F138: 16127 | K138: 0 | L138: 111
A139: 22 | B139: 16226 | C139: 23 | D139: 16232 | E139: 23 | F139: 16243 | K139: 0 | L139: 222
A140: 22 | B140: 16342 | C140: 23 | D140: 16349 | E140: 14 | F140: 16359 | K140: 0 | L140: 221
A141: 22 | B141: 16456 | C141: 23 | D141: 16460 | E141: 14 | F141: 16470 | K141: 0 | L141: 221
A142: 22 | B142: 16569 | C142: 23 | D142: 16572 | E142: 14 | F142: 16582 | K142: 0 | L142: 221
A143: 22 | B143: 16693 | C143: 23 | D143: 16696 | E143: 23 | F143: 16702 | K143: 0 | L143: 222
A144: 22 | B144: 16800 | C144: 23 | D144: 16805 | E144: 14 | F144: 16815 | K144: 0 | L144: 221
A145: 22 | B145: 16912 | C145: 23 | D145: 16915 | E145: 23 | F145: 16921 | K145: 0 | L145: 222
A146: 22 | B146: 17016 | C146: 23 | D146: 17018 | E146: 14 | F146: 17032 | K146: 0 | L146: 221
A147: 22 | B147: 17131 | C147: 23 | D147: 17135 | E147: 23 | F147: 17139 | K147: 0 | L147: 222
A148: 22 | B148: 17391 | C148: 23 | D148: 17398 | E148: 23 | F148: 17402 | K148: 0 | L148: 222
A149: 22 | B149: 17495 | C149: 23 | D149: 17504 | E149: 23 | F149: 17508 | K149: 0 | L149: 222
A150: 22 | B150: 17609 | C150: 23 | D150: 17612 | E150: 23 | F150: 17616 | K150: 0 | L150: 222
A151: 22 | B151: 17716 | C151: 23 | D151: 17718 | E151: 23 | F151: 17723 | K151: 0 | L151: 222
A152: 11 | B152: 17832 | C152: 12 | D152: 17835 | E152: 23 | F152: 17838 | K152: 0 | L152: 112
A153: 22 | B153: 17937 | C153: 23 | D153: 17942 | E153: 23 | F153: 17947 | K153: 0 | L153: 222
A154: 22 | B154: 18050 | C154: 23 | D154: 18054 | E154: 23 | F154: 18061 | K154: 0 | L154: 222
A155: 22 | B155: 18161 | C155: 23 | D155: 18166 | E155: 23 | F155: 18170 | K155: 0 | L155: 222
A156: 22 | B156: 18268 | C156: 14 | D156: 18282 | E156: 14 | F156: 18286 | K156: 0 | L156: 211
A157: 22 | B157: 18383 | C157: 23 | D157: 18390 | E157: 23 | F157: 18395 | K157: 0 | L157: 222
A158: 22 | B158: 18496 | C158: 14 | D158: 18512 | E158: 14 | F158: 18517 | K158: 0 | L158: 211
A159: 22 | B159: 18611 | C159: 23 | D159: 18613 | E159: 14 | F159: 18629 | K159: 0 | L159: 221
A160: 22 | B160: 19538 | C160: 23 | D160: 19542 | E160: 23 | F160: 19548 | K160: 0 | L160: 222
A161: 22 | B161: 19663 | C161: 14 | D161: 19675 | E161: 14 | F161: 19680 | K161: 0 | L161: 211
A162: 22 | B162: 19777 | C162: 14 | D162: 19804 | E162: 14 | F162: 19810 | K162: 0 | L162: 211
A163: 22 | B163: 19955 | C163: 23 | D163: 19969 | E163: 23 | F163: 19971 | K163: 0 | L163: 222
A164: 22 | B164: 20067 | C164: 23 | D164: 20071 | E164: 23 | F164: 20084 | K164: 0 | L164: 222
A165: 22 | B165: 20551 | C165: 14 | D165: 20561 | E165: 14 | F165: 20565 | K165: 0 | L165: 211
A166: 11 | B166: 20677 | C166: 12 | D166: 20682 | E166: 14 | F166: 20687 | K166: 0 | L166: 111
A167: 22 | B167: 20837 | C167: 23 | D167: 20855 | E167: 23 | F167: 20863 | K167: 0 | L167: 222
A168: 11 | B168: 20972 | C168: 12 | D168: 20976 | E168: 14 | F168: 20980 | K168: 0 | L168: 111
A169: 22 | B169: 21079 | C169: 14 | D169: 21106 | E169: 14 | F169: 21110 | K169: 0 | L169: 211
A170: 22 | B170: 21213 | C170: 14 | D170: 21240 | E170: 14 | F170: 21243 | K170: 0 | L170: 211
A171: 22 | B171: 21342 | C171: 14 | D171: 21363 | E171: 14 | F171: 21367 | K171: 0 | L171: 211
A172: 22 | B172: 21466 | C172: 23 | D172: 21472 | E172: 14 | F172: 21488 | K172: 0 | L172: 221
A173: 11 | B173: 21610 | C173: 12 | D173: 21614 | E173: 14 | F173: 21623 | K173: 0 | L173: 111
A174: 22 | B174: 21752 | C174: 14 | D174: 21771 | E174: 14 | F174: 21776 | K174: 0 | L174: 211
A175: 22 | B175: 21880 | C175: 23 | D175: 21883 | E175: 23 | F175: 21886 | K175: 0 | L175: 222
A176: 11 | B176: 22000 | C176: 12 | D176: 22003 | E176: 14 | F176: 22008 | K176: 0 | L176: 111
A177: 11 | B177: 22117 | C177: 12 | D177: 22120 | E177: 14 | F177: 22125 | K177: 0 | L177: 111
A178: 22 | B178: 22222 | C178: 23 | D178: 22228 | E178: 14 | F178: 22239 | K178: 0 | L178: 221
A179: 22 | B179: 22357 | C179: 23 | D179: 22362 | E179: 14 | F179: 22373 | K179: 0 | L179: 221
A180: 22 | B180: 22469 | C180: 23 | D180: 22473 | E180: 23 | F180: 22496 | K180: 0 | L180: 222
A181: 22 | B181: 22590 | C181: 14 | D181: 22604 | E181: 14 | F181: 22607 | K181: 0 | L181: 211
A182: 22 | B182: 22704 | C182: 23 | D182: 22719 | E182: 14 | F182: 22723 | K182: 0 | L182: 221
A183: 22 | B183: 22820 | C183: 23 | D183: 22825 | E183: 14 | F183: 22840 | K183: 0 | L183: 221
A184: 11 | B184: 23048 | C184: 12 | D184: 23053 | E184: 23 | F184: 23062 | K184: 0 | L184: 112
A185: 11 | B185: 23168 | C185: 12 | D185: 23171 | E185: 14 | F185: 23177 | K185: 0 | L185: 111
A186: 22 | B186: 23277 | C186: 23 | D186: 23281 | E186: 14 | F186: 23309 | K186: 0 | L186: 221
A187: 22 | B187: 23406 | C187: 23 | D187: 23410 | E187: 14 | F187: 23428 | K187: 0 | L187: 221
A188: 22 | B188: 23527 | C188: 23 | D188: 23531 | E188: 23 | F188: 23535 | K188: 0 | L188: 222
A189: 22 | B189: 23653 | C189: 23 | D189: 23657 | E189: 23 | F189: 23661 | K189: 0 | L189: 222
A190: 22 | B190: 23756 | C190: 14 | D190: 23771 | E190: 14 | F190: 23776 | K190: 0 | L190: 211
A191: 22 | B191: 23908 | C191: 23 | D191: 23915 | E191: 23 | F191: 23919 | L191: 222

Sheet !LB10A53..Ta
A1: Report for:!LB10A53..Ta
A2: Date: | B2: <date>
A3: Hen: | B3: <hen> | F3: Correct Sequence | G3: =Start!J2 -> 122 | P3: Total Sequences in Data | Q3: =4994-COUNTBLANK(L7:L5000) -> 186 | V3: Total Sequences in Block Data | W3: =COUNTA(L7:L37) -> 31 | AA3: Total Sequences in Block Data | AB3: =COUNTA(L38:L68) -> 31 | AF3: Total Sequences in Block Data | AG3: =COUNTA(L69:L99) -> 31 | AK3: Total Sequences in Block Data | AL3: =COUNTA(L100:L130) -> 31 | AP3: Total Sequences in Block Data | AQ3: =COUNTA(L131:L161) -> 31 | AU3: Total Sequences in Block Data | AV3: =COUNTA(L162:L192) -> 31
P4: Total Sequences in Summary | Q4: =SUM(O7:O14) -> 186 | V4: Total Sequences in Block Summary | W4: =SUM(U7:U14) -> 31 | AA4: Total Sequences in Block Summary | AB4: =SUM(Z7:Z14) -> 31 | AF4: Total Sequences in Block Summary | AG4: =SUM(AE7:AE14) -> 31 | AK4: Total Sequences in Block Summary | AL4: =SUM(AJ7:AJ14) -> 31 | AP4: Total Sequences in Block Summary | AQ4: =SUM(AO7:AO14) -> 31 | AU4: Total Sequences in Block Summary | AV4: =SUM(AT7:AT14) -> 31
T5: Block 1 | Y5: Block 2 | AD5: Block 3 | AI5: Block 4 | AN5: Block 5 | AS5: Block 6
A6: Sequence Component 1 | B6: Time 1 | C6: Sequence Component 2 | D6: Time 2 | E6: Sequence Component 3 | F6: Time 3 | G6: Sequence Component 4 | H6: Time 4 | I6: Sequence Component 5 | J6: Time 5 | K6: Correct? 0=No 1=Yes | L6: Sequence | N6: Frequency | P6: Relative Frequency | Q6: Variability | T6: Frequency | V6: Relative Frequency | W6: Variability | Y6: Frequency | AA6: Relative Frequency | AB6: Variability | AD6: Frequency | AF6: Relative Frequency | AG6: Variability | AI6: Frequency | AK6: Relative Frequency | AL6: Variability | AN6: Frequency | AP6: Relative Frequency | AQ6: Variability | AS6: Frequency | AU6: Relative Frequency | AV6: Variability
A7: 22 | B7: 4 | C7: 14 | D7: 15 | E7: 14 | F7: 18 | K7: 0 | L7: 211 | N7: 111 | O7: =COUNTIF($L$7:$L$500,N7) -> 36 | P7: =O7/$Q$4 -> 0.1935483871 | Q7: =IF(P7=0,0,(P7*((LOG(P7))/LOG(2)))) -> -0.4585613825 | T7: =N7 -> 111 | U7: =COUNTIF(L7:L37,T7) -> 6 | V7: =U7/(W4-U10) -> 0.1935483871 | W7: =IF(V7=0,0,(V7*((LOG(V7))/LOG(2)))) -> -0.4585613825 | Y7: =N7 -> 111 | Z7: =COUNTIF(L38:L68,Y7) -> 14 | AA7: =Z7/(AB4-Z10) -> 0.4516129032 | AB7: =IF(AA7=0,0,(AA7*((LOG(AA7))/LOG(2)))) -> -0.5179283689 | AD7: =N7 -> 111 | AE7: =COUNTIF(L69:L99,AD7) -> 3 | AF7: =AE7/(AG4-AE10) -> 0.1034482759 | AG7: =IF(AF7=0,0,(AF7*((LOG(AF7))/LOG(2)))) -> -0.3385881201 | AI7: =N7 -> 111 | AJ7: =COUNTIF(L100:L130,AI7) -> 2 | AK7: =AJ7/(AL4-AJ10) -> 0.06666666667 | AL7: =IF(AK7=0,0,(AK7*((LOG(AK7))/LOG(2)))) -> -0.260459373 | AN7: =N7 -> 111 | AO7: =COUNTIF(L131:L161,AN7) -> 2 | AP7: =AO7/(AQ4-AO10) -> 0.06451612903 | AQ7: =IF(AP7=0,0,(AP7*((LOG(AP7))/LOG(2)))) -> -0.2551094394 | AS7: =N7 -> 111 | AT7: =COUNTIF(L162:L192,AS7) -> 9 | AU7: =AT7/(AV4-AT10) -> 0.2903225806 | AV7: =IF(AU7=0,0,(AU7*((LOG(AU7))/LOG(2)))) -> -0.518014251
A8: 22 | B8: 117 | C8: 14 | D8: 125 | E8: 14 | F8: 128 | K8: 0 | L8: 211 | N8: 112 | O8: =COUNTIF($L$7:$L$500,N8) -> 1 | P8: =O8/$Q$4 -> 0.005376344086 | Q8: =IF(P8=0,0,(P8*((LOG(P8))/LOG(2)))) -> -0.04053311189 | T8: =N8 -> 112 | U8: =COUNTIF(L7:L37,T8) -> 1 | V8: =U8/(W4-U10) -> 0.03225806452 | W8: =IF(V8=0,0,(V8*((LOG(V8))/LOG(2)))) -> -0.1598127842 | Y8: =N8 -> 112 | Z8: =COUNTIF(L38:L68,Y8) -> 0 | AA8: =Z8/(AB4-Z10) -> 0 | AB8: =IF(AA8=0,0,(AA8*((LOG(AA8))/LOG(2)))) -> 0 | AD8: =N8 -> 112 | AE8: =COUNTIF(L69:L99,AD8) -> 0 | AF8: =AE8/(AG4-AE10) -> 0 | AG8: =IF(AF8=0,0,(AF8*((LOG(AF8))/LOG(2)))) -> 0 | AI8: =N8 -> 112 | AJ8: =COUNTIF(L100:L130,AI8) -> 0 | AK8: =AJ8/(AL4-AJ10) -> 0 | AL8: =IF(AK8=0,0,(AK8*((LOG(AK8))/LOG(2)))) -> 0 | AN8: =N8 -> 112 | AO8: =COUNTIF(L131:L161,AN8) -> 0 | AP8: =AO8/(AQ4-AO10) -> 0 | AQ8: =IF(AP8=0,0,(AP8*((LOG(AP8))/LOG(2)))) -> 0 | AS8: =N8 -> 112 | AT8: =COUNTIF(L162:L192,AS8) -> 0 | AU8: =AT8/(AV4-AT10) -> 0 | AV8: =IF(AU8=0,0,(AU8*((LOG(AU8))/LOG(2)))) -> 0
A9: 22 | B9: 226 | C9: 23 | D9: 232 | E9: 14 | F9: 239 | K9: 0 | L9: 221 | N9: 121 | O9: =COUNTIF($L$7:$L$500,N9) -> 2 | P9: =O9/$Q$4 -> 0.01075268817 | Q9: =IF(P9=0,0,(P9*((LOG(P9))/LOG(2)))) -> -0.0703135356 | T9: =N9 -> 121 | U9: =COUNTIF(L7:L37,T9) -> 0 | V9: =U9/(W4-U10) -> 0 | W9: =IF(V9=0,0,(V9*((LOG(V9))/LOG(2)))) -> 0 | Y9: =N9 -> 121 | Z9: =COUNTIF(L38:L68,Y9) -> 0 | AA9: =Z9/(AB4-Z10) -> 0 | AB9: =IF(AA9=0,0,(AA9*((LOG(AA9))/LOG(2)))) -> 0 | AD9: =N9 -> 121 | AE9: =COUNTIF(L69:L99,AD9) -> 0 | AF9: =AE9/(AG4-AE10) -> 0 | AG9: =IF(AF9=0,0,(AF9*((LOG(AF9))/LOG(2)))) -> 0 | AI9: =N9 -> 121 | AJ9: =COUNTIF(L100:L130,AI9) -> 0 | AK9: =AJ9/(AL4-AJ10) -> 0 | AL9: =IF(AK9=0,0,(AK9*((LOG(AK9))/LOG(2)))) -> 0 | AN9: =N9 -> 121 | AO9: =COUNTIF(L131:L161,AN9) -> 1 | AP9: =AO9/(AQ4-AO10) -> 0.03225806452 | AQ9: =IF(AP9=0,0,(AP9*((LOG(AP9))/LOG(2)))) -> -0.1598127842 | AS9: =N9 -> 121 | AT9: =COUNTIF(L162:L192,AS9) -> 1 | AU9: =AT9/(AV4-AT10) -> 0.03225806452 | AV9: =IF(AU9=0,0,(AU9*((LOG(AU9))/LOG(2)))) -> -0.1598127842
A10: 22 | B10: 339 | C10: 14 | D10: 346 | E10: 14 | F10: 349 | K10: 0 | L10: 211 | N10: 122 | O10: =COUNTIF($L$7:$L$500,N10) -> 3 | P10: =O10/$Q$4 -> 0.01612903226 | Q10: =IF(P10=0,0,(P10*((LOG(P10))/LOG(2)))) -> -0.09603542436 | T10: =N10 -> 122 | U10: =COUNTIF(L7:L37,T10) -> 0 | Y10: =N10 -> 122 | Z10: =COUNTIF(L38:L68,Y10) -> 0 | AD10: =N10 -> 122 | AE10: =COUNTIF(L69:L99,AD10) -> 2 | AI10: =N10 -> 122 | AJ10: =COUNTIF(L100:L130,AI10) -> 1 | AN10: =N10 -> 122 | AO10: =COUNTIF(L131:L161,AN10) -> 0 | AS10: =N10 -> 122 | AT10: =COUNTIF(L162:L192,AS10) -> 0
A11: 11 | B11: 479 | C11: 12 | D11: 489 | E11: 14 | F11: 503 | K11: 0 | L11: 111 | N11: 211 | O11: =COUNTIF($L$7:$L$500,N11) -> 25 | P11: =O11/$Q$4 -> 0.1344086022 | Q11: =IF(P11=0,0,(P11*((LOG(P11))/LOG(2)))) -> -0.3891535781 | T11: =N11 -> 211 | U11: =COUNTIF(L7:L37,T11) -> 8 | V11: =U11/(W4-U10) -> 0.2580645161 | W11: =IF(V11=0,0,(V11*((LOG(V11))/LOG(2)))) -> -0.5043087253 | Y11: =N11 -> 211 | Z11: =COUNTIF(L38:L68,Y11) -> 7 | AA11: =Z11/(AB4-Z10) -> 0.2258064516 | AB11: =IF(AA11=0,0,(AA11*((LOG(AA11))/LOG(2)))) -> -0.4847706361 | AD11: =N11 -> 211 | AE11: =COUNTIF(L69:L99,AD11) -> 4 | AF11: =AE11/(AG4-AE10) -> 0.1379310345 | AG11: =IF(AF11=0,0,(AF11*((LOG(AF11))/LOG(2)))) -> -0.3942042752 | AI11: =N11 -> 211 | AJ11: =COUNTIF(L100:L130,AI11) -> 1 | AK11: =AJ11/(AL4-AJ10) -> 0.03333333333 | AL11: =IF(AK11=0,0,(AK11*((LOG(AK11))/LOG(2)))) -> -0.1635630199 | AN11: =N11 -> 211 | AO11: =COUNTIF(L131:L161,AN11) -> 2 | AP11: =AO11/(AQ4-AO10) -> 0.06451612903 | AQ11: =IF(AP11=0,0,(AP11*((LOG(AP11))/LOG(2)))) -> -0.2551094394 | AS11: =N11 -> 211 | AT11: =COUNTIF(L162:L192,AS11) -> 3 | AU11: =AT11/(AV4-AT10) -> 0.09677419355 | AV11: =IF(AU11=0,0,(AU11*((LOG(AU11))/LOG(2)))) -> -0.3260548848
A12: 22 | B12: 599 | C12: 14 | D12: 618 | E12: 14 | F12: 638 | K12: 0 | L12: 211 | N12: 212 | O12: =COUNTIF($L$7:$L$500,N12) -> 0 | P12: =O12/$Q$4 -> 0 | Q12: =IF(P12=0,0,(P12*((LOG(P12))/LOG(2)))) -> 0 | T12: =N12 -> 212 | U12: =COUNTIF(L7:L37,T12) -> 0 | V12: =U12/(W4-U10) -> 0 | W12: =IF(V12=0,0,(V12*((LOG(V12))/LOG(2)))) -> 0 | Y12: =N12 -> 212 | Z12: =COUNTIF(L38:L68,Y12) -> 0 | AA12: =Z12/(AB4-Z10) -> 0 | AB12: =IF(AA12=0,0,(AA12*((LOG(AA12))/LOG(2)))) -> 0 | AD12: =N12 -> 212 | AE12: =COUNTIF(L69:L99,AD12) -> 0 | AF12: =AE12/(AG4-AE10) -> 0 | AG12: =IF(AF12=0,0,(AF12*((LOG(AF12))/LOG(2)))) -> 0 | AI12: =N12 -> 212 | AJ12: =COUNTIF(L100:L130,AI12) -> 0 | AK12: =AJ12/(AL4-AJ10) -> 0 | AL12: =IF(AK12=0,0,(AK12*((LOG(AK12))/LOG(2)))) -> 0 | AN12: =N12 -> 212 | AO12: =COUNTIF(L131:L161,AN12) -> 0 | AP12: =AO12/(AQ4-AO10) -> 0 | AQ12: =IF(AP12=0,0,(AP12*((LOG(AP12))/LOG(2)))) -> 0 | AS12: =N12 -> 212 | AT12: =COUNTIF(L162:L192,AS12) -> 0 | AU12: =AT12/(AV4-AT10) -> 0 | AV12: =IF(AU12=0,0,(AU12*((LOG(AU12))/LOG(2)))) -> 0
A13: 22 | B13: 737 | C13: 23 | D13: 741 | E13: 14 | F13: 751 | K13: 0 | L13: 221 | N13: 221 | O13: =COUNTIF($L$7:$L$500,N13) -> 27 | P13: =O13/$Q$4 -> 0.1451612903 | Q13: =IF(P13=0,0,(P13*((LOG(P13))/LOG(2)))) -> -0.4041684158 | T13: =N13 -> 221 | U13: =COUNTIF(L7:L37,T13) -> 8 | V13: =U13/(W4-U10) -> 0.2580645161 | W13: =IF(V13=0,0,(V13*((LOG(V13))/LOG(2)))) -> -0.5043087253 | Y13: =N13 -> 221 | Z13: =COUNTIF(L38:L68,Y13) -> 2 | AA13: =Z13/(AB4-Z10) -> 0.06451612903 | AB13: =IF(AA13=0,0,(AA13*((LOG(AA13))/LOG(2)))) -> -0.2551094394 | AD13: =N13 -> 221 | AE13: =COUNTIF(L69:L99,AD13) -> 9 | AF13: =AE13/(AG4-AE10) -> 0.3103448276 | AG13: =IF(AF13=0,0,(AF13*((LOG(AF13))/LOG(2)))) -> -0.5238794463 | AI13: =N13 -> 221 | AJ13: =COUNTIF(L100:L130,AI13) -> 2 | AK13: =AJ13/(AL4-AJ10) -> 0.06666666667 | AL13: =IF(AK13=0,0,(AK13*((LOG(AK13))/LOG(2)))) -> -0.260459373 | AN13: =N13 -> 221 | AO13: =COUNTIF(L131:L161,AN13) -> 5 | AP13: =AO13/(AQ4-AO10) -> 0.1612903226 | AQ13: =IF(AP13=0,0,(AP13*((LOG(AP13))/LOG(2)))) -> -0.4245593896 | AS13: =N13 -> 221 | AT13: =COUNTIF(L162:L192,AS13) -> 1 | AU13: =AT13/(AV4-AT10) -> 0.03225806452 | AV13: =IF(AU13=0,0,(AU13*((LOG(AU13))/LOG(2)))) -> -0.1598127842
A14: 22 | B14: 862 | C14: 23 | D14: 869 | E14: 23 | F14: 875 | K14: 0 | L14: 222 | N14: 222 | O14: =COUNTIF($L$7:$L$500,N14) -> 92 | P14: =O14/$Q$4 -> 0.4946236559 | Q14: =IF(P14=0,0,(P14*((LOG(P14))/LOG(2)))) -> -0.5023382294 | T14: =N14 -> 222 | U14: =COUNTIF(L7:L37,T14) -> 8 | V14: =U14/(W4-U10) -> 0.2580645161 | W14: =IF(V14=0,0,(V14*((LOG(V14))/LOG(2)))) -> -0.5043087253 | Y14: =N14 -> 222 | Z14: =COUNTIF(L38:L68,Y14) -> 8 | AA14: =Z14/(AB4-Z10) -> 0.2580645161 | AB14: =IF(AA14=0,0,(AA14*((LOG(AA14))/LOG(2)))) -> -0.5043087253 | AD14: =N14 -> 222 | AE14: =COUNTIF(L69:L99,AD14) -> 13 | AF14: =AE14/(AG4-AE10) -> 0.4482758621 | AG14: =IF(AF14=0,0,(AF14*((LOG(AF14))/LOG(2)))) -> -0.5188978138 | AI14: =N14 -> 222 | AJ14: =COUNTIF(L100:L130,AI14) -> 25 | AK14: =AJ14/(AL4-AJ10) -> 0.8333333333 | AL14: =IF(AK14=0,0,(AK14*((LOG(AK14))/LOG(2)))) -> -0.2191953382 | AN14: =N14 -> 222 | AO14: =COUNTIF(L131:L161,AN14) -> 21 | AP14: =AO14/(AQ4-AO10) -> 0.6774193548 | AQ14: =IF(AP14=0,0,(AP14*((LOG(AP14))/LOG(2)))) -> -0.3806276335 | AS14: =N14 -> 222 | AT14: =COUNTIF(L162:L192,AS14) -> 17 | AU14: =AT14/(AV4-AT10) -> 0.5483870968 | AV14: =IF(AU14=0,0,(AU14*((LOG(AU14))/LOG(2)))) -> -0.4753054508
A15: 11 | B15: 985 | C15: 12 | D15: 989 | E15: 14 | F15: 997 | K15: 0 | L15: 111 | P15: =SUM(P7:P14) -> 1 | Q15: =-SUM(Q7:Q14) -> 1.961103678 | V15: =SUM(V7:V14) -> 1 | W15: =-SUM(W7:W14) -> 2.131300343 | AA15: =SUM(AA7:AA14) -> 1 | AB15: =-SUM(AB7:AB14) -> 1.76211717 | AF15: =SUM(AF7:AF14) -> 1 | AG15: =-SUM(AG7:AG14) -> 1.775569655 | AK15: =SUM(AK7:AK14) -> 1 | AL15: =-SUM(AL7:AL14) -> 0.9036771041 | AP15: =SUM(AP7:AP14) -> 1 | AQ15: =-SUM(AQ7:AQ14) -> 1.475218686 | AU15: =SUM(AU7:AU14) -> 1 | AV15: =-SUM(AV7:AV14) -> 1.639000155
A16: 22 | B16: 1092 | C16: 23 | D16: 1095 | E16: 14 | F16: 1111 | K16: 0 | L16: 221 | P16: U= | Q16: =Q15/(LOG(Q4)/LOG(2)) -> 0.2601223461 | V16: U1= | W16: =W15/(LOG(W4)/LOG(2)) -> 0.4302010274 | AA16: U2= | AB16: =AB15/(LOG(AB4)/LOG(2)) -> 0.3556817411 | AF16: U3= | AG16: =AG15/(LOG(AG4)/LOG(2)) -> 0.3583971131 | AK16: U4= | AL16: =AL15/(LOG(AL4)/LOG(2)) -> 0.182406398 | AP16: U5= | AQ16: =AQ15/(LOG(AQ4)/LOG(2)) -> 0.2977715443 | AU16: U6= | AV16: =AV15/(LOG(AV4)/LOG(2)) -> 0.3308306842
A17: 11 | B17: 1222 | C17: 12 | D17: 1226 | E17: 14 | F17: 1229 | K17: 0 | L17: 111
A18: 22 | B18: 1324 | C18: 23 | D18: 1348 | E18: 23 | F18: 1352 | K18: 0 | L18: 222
A19: 22 | B19: 1450 | C19: 23 | D19: 1467 | E19: 23 | F19: 1471 | K19: 0 | L19: 222 | N19: Total Target Seq
A20: 22 | B20: 1569 | C20: 14 | D20: 1584 | E20: 14 | F20: 1588 | K20: 0 | L20: 211 | N20: =COUNTIF(L7:L192,G3) -> 3 | P20: 31 | Q20: 31 | R20: 31 | S20: 31 | T20: 31 | U20: 31
A21: 22 | B21: 1683 | C21: 23 | D21: 1687 | E21: 14 | F21: 1705 | K21: 0 | L21: 221 | P21: % of reinforcement given in 6 equal intervals based on number of trials
A22: 11 | B22: 1811 | C22: 12 | D22: 1825 | E22: 23 | F22: 1863 | K22: 0 | L22: 112 | P22: %_1 | Q22: %_2 | R22: %_3 | S22: %_4 | T22: %_5 | U22: %_6
A23: 22 | B23: 1969 | C23: 14 | D23: 1978 | E23: 14 | F23: 1982 | K23: 0 | L23: 211 | O23: target sequence | P23: =$G$3 -> 122 | Q23: =$G$3 -> 122 | R23: =$G$3 -> 122 | S23: =$G$3 -> 122 | T23: =$G$3 -> 122 | U23: =$G$3 -> 122
A24: 22 | B24: 2079 | C24: 14 | D24: 2101 | E24: 14 | F24: 2110 | K24: 0 | L24: 211 | O24: total reinforcement | P24: =U10 -> 0 | Q24: =Z10 -> 0 | R24: =AE10 -> 2 | S24: =AJ10 -> 1 | T24: =AO10 -> 0 | U24: =AT10 -> 0
A25: 11 | B25: 2240 | C25: 12 | D25: 2243 | E25: 14 | F25: 2248 | K25: 0 | L25: 111 | O25: % target
A26: 22 | B26: 2346 | C26: 23 | D26: 2353 | E26: 14 | F26: 2371 | K26: 0 | L26: 221 | O26: CCRF
A27: 22 | B27: 2470 | C27: 23 | D27: 2473 | E27: 23 | F27: 2480 | K27: 0 | L27: 222 | O27: % CCRf
A28: 22 | B28: 2585 | C28: 23 | D28: 2597 | E28: 23 | F28: 2600 | K28: 0 | L28: 222 | O28: average response rate | P28: =F37/P20 -> 119.0322581 | Q28: =(F68-F37)/Q20 -> 124.9032258 | R28: =(F99-F68)/R20 -> 121.2258065 | S28: =(F130-F99)/S20 -> 116.3225806 | T28: =(F161-F130)/T20 -> 129.0322581 | U28: =(F192-F161)/U20 -> 162.4516129
A29: 22 | B29: 2698 | C29: 23 | D29: 2701 | E29: 14 | F29: 2714 | K29: 0 | L29: 221
A30: 22 | B30: 2838 | C30: 23 | D30: 2842 | E30: 23 | F30: 2856 | K30: 0 | L30: 222
A31: 11 | B31: 2976 | C31: 12 | D31: 2980 | E31: 14 | F31: 2986 | K31: 0 | L31: 111
A32: 11 | B32: 3100 | C32: 12 | D32: 3104 | E32: 14 | F32: 3109 | K32: 0 | L32: 111
A33: 22 | B33: 3208 | C33: 23 | D33: 3215 | E33: 14 | F33: 3229 | K33: 0 | L33: 221
A34: 22 | B34: 3325 | C34: 23 | D34: 3329 | E34: 23 | F34: 3336 | K34: 0 | L34: 222
A35: 22 | B35: 3437 | C35: 23 | D35: 3440 | E35: 14 | F35: 3456 | K35: 0 | L35: 221
A36: 22 | B36: 3553 | C36: 23 | D36: 3570 | E36: 23 | F36: 3574 | K36: 0 | L36: 222
A37: 22 | B37: 3679 | C37: 14 | D37: 3687 | E37: 14 | F37: 3690 | K37: 0 | L37: 211
A38: 11 | B38: 3807 | C38: 12 | D38: 3812 | E38: 14 | F38: 3821 | K38: 0 | L38: 111
A39: 22 | B39: 3922 | C39: 23 | D39: 3928 | E39: 23 | F39: 3937 | K39: 0 | L39: 222
A40: 22 | B40: 4034 | C40: 23 | D40: 4037 | E40: 23 | F40: 4039 | K40: 0 | L40: 222
A41: 22 | B41: 4136 | C41: 14 | D41: 4152 | E41: 14 | F41: 4154 | K41: 0 | L41: 211
A42: 11 | B42: 4276 | C42: 12 | D42: 4280 | E42: 14 | F42: 4285 | K42: 0 | L42: 111
A43: 22 | B43: 4386 | C43: 23 | D43: 4389 | E43: 23 | F43: 4392 | K43: 0 | L43: 222
A44: 22 | B44: 4493 | C44: 14 | D44: 4501 | E44: 14 | F44: 4511 | K44: 0 | L44: 211
A45: 22 | B45: 4623 | C45: 14 | D45: 4638 | E45: 14 | F45: 4642 | K45: 0 | L45: 211
A46: 22 | B46: 4739 | C46: 14 | D46: 4750 | E46: 14 | F46: 4753 | K46: 0 | L46: 211
A47: 22 | B47: 4854 | C47: 23 | D47: 4858 | E47: 23 | F47: 4862 | K47: 0 | L47: 222
A48: 22 | B48: 4991 | C48: 23 | D48: 4995 | E48: 23 | F48: 4998 | K48: 0 | L48: 222
A49: 11 | B49: 5113 | C49: 12 | D49: 5116 | E49: 14 | F49: 5120 | K49: 0 | L49: 111
A50: 11 | B50: 5281 | C50: 12 | D50: 5283 | E50: 14 | F50: 5291 | K50: 0 | L50: 111
A51: 22 | B51: 5389 | C51: 23 | D51: 5413 | E51: 14 | F51: 5415 | K51: 0 | L51: 221
A52: 22 | B52: 5521 | C52: 23 | D52: 5528 | E52: 23 | F52: 5532 | K52: 0 | L52: 222
A53: 22 | B53: 5629 | C53: 14 | D53: 5643 | E53: 14 | F53: 5651 | K53: 0 | L53: 211
A54: 11 | B54: 5825 | C54: 12 | D54: 5833 | E54: 14 | F54: 5837 | K54: 0 | L54: 111
A55: 11 | B55: 5961 | C55: 12 | D55: 5969 | E55: 14 | F55: 5981 | K55: 0 | L55: 111
A56: 22 | B56: 6094 | C56: 23 | D56: 6098 | E56: 14 | F56: 6105 | K56: 0 | L56: 221
A57: 11 | B57: 6232 | C57: 12 | D57: 6235 | E57: 14 | F57: 6239 | K57: 0 | L57: 111
A58: 11 | B58: 6350 | C58: 12 | D58: 6353 | E58: 14 | F58: 6361 | K58: 0 | L58: 111
A59: 22 | B59: 6460 | C59: 23 | D59: 6463 | E59: 23 | F59: 6468 | K59: 0 | L59: 222
A60: 22 | B60: 6566 | C60: 23 | D60: 6571 | E60: 23 | F60: 6577 | K60: 0 | L60: 222
A61: 22 | B61: 6714 | C61: 14 | D61: 6726 | E61: 14 | F61: 6729 | K61: 0 | L61: 211
A62: 11 | B62: 6833 | C62: 12 | D62: 6836 | E62: 14 | F62: 6839 | K62: 0 | L62: 111
A63: 22 | B63: 6938 | C63: 14 | D63: 6947 | E63: 14 | F63: 6957 | K63: 0 | L63: 211
A64: 11 | B64: 7068 | C64: 12 | D64: 7076 | E64: 14 | F64: 7084 | K64: 0 | L64: 111
A65: 11 | B65: 7195 | C65: 12 | D65: 7198 | E65: 14 | F65: 7203 | K65: 0 | L65: 111
A66: 11 | B66: 7319 | C66: 12 | D66: 7321 | E66: 14 | F66: 7326 | K66: 0 | L66: 111
A67: 11 | B67: 7432 | C67: 12 | D67: 7435 | E67: 14 | F67: 7438 | K67: 0 | L67: 111
A68: 11 | B68: 7553 | C68: 12 | D68: 7558 | E68: 14 | F68: 7562 | K68: 0 | L68: 111
A69: 22 | B69: 7661 | C69: 23 | D69: 7667 | E69: 14 | F69: 7683 | K69: 0 | L69: 221
A70: 22 | B70: 7780 | C70: 23 | D70: 7783 | E70: 23 | F70: 7788 | K70: 0 | L70: 222
A71: 22 | B71: 7887 | C71: 23 | D71: 7890 | E71: 14 | F71: 7900 | K71: 0 | L71: 221
A72: 22 | B72: 8006 | C72: 23 | D72: 8013 | E72: 14 | F72: 8025 | K72: 0 | L72: 221
A73: 22 | B73: 8123 | C73: 23 | D73: 8127 | E73: 23 | F73: 8133 | K73: 0 | L73: 222
A74: 22 | B74: 8232 | C74: 23 | D74: 8241 | E74: 23 | F74: 8247 | K74: 0 | L74: 222
A75: 22 | B75: 8350 | C75: 23 | D75: 8359 | E75: 23 | F75: 8363 | K75: 0 | L75: 222
A76: 11 | B76: 8501 | C76: 12 | D76: 8507 | E76: 14 | F76: 8517 | K76: 0 | L76: 111
A77: 22 | B77: 8651 | C77: 14 | D77: 8665 | E77: 14 | F77: 8668 | K77: 0 | L77: 211
A78: 11 | B78: 8770 | C78: 21 | D78: 8783 | E78: 21 | F78: 8788 | K78: 0 | L78: 122
A79: 22 | B79: 8952 | C79: 14 | D79: 8963 | E79: 14 | F79: 8966 | K79: 0 | L79: 211
A80: 22 | B80: 9070 | C80: 14 | D80: 9085 | E80: 14 | F80: 9088 | K80: 0 | L80: 211
A81: 22 | B81: 9190 | C81: 23 | D81: 9193 | E81: 14 | F81: 9217 | K81: 0 | L81: 221
A82: 22 | B82: 9317 | C82: 23 | D82: 9321 | E82: 23 | F82: 9324 | K82: 0 | L82: 222
A83: 22 | B83: 9422 | C83: 23 | D83: 9428 | E83: 14 | F83: 9437 | K83: 0 | L83: 221
A84: 22 | B84: 9534 | C84: 23 | D84: 9548 | E84: 23 | F84: 9553 | K84: 0 | L84: 222
A85: 11 | B85: 9662 | C85: 12 | D85: 9666 | E85: 14 | F85: 9669 | K85: 0 | L85: 111
A86: 22 | B86: 9766 | C86: 23 | D86: 9772 | E86: 23 | F86: 9786 | K86: 0 | L86: 222
A87: 22 | B87: 9890 | C87: 23 | D87: 9912 | E87: 23 | F87: 9916 | K87: 0 | L87: 222
A88: 22 | B88: 10018 | C88: 23 | D88: 10040 | E88: 23 | F88: 10046 | K88: 0 | L88: 222
A89: 11 | B89: 10156 | C89: 21 | D89: 10167 | E89: 21 | F89: 10176 | K89: 0 | L89: 122
A90: 22 | B90: 10290 | C90: 23 | D90: 10295 | E90: 14 | F90: 10301 | K90: 0 | L90: 221
A91: 22 | B91: 10400 | C91: 23 | D91: 10403 | E91: 14 | F91: 10415 | K91: 0 | L91: 221
A92: 22 | B92: 10519 | C92: 23 | D92: 10528 | E92: 23 | F92: 10531 | K92: 0 | L92: 222
A93: 22 | B93: 10636 | C93: 23 | D93: 10638 | E93: 23 | F93: 10643 | K93: 0 | L93: 222
A94: 22 | B94: 10743 | C94: 14 | D94: 10757 | E94: 14 | F94: 10761 | K94: 0 | L94: 211
A95: 22 | B95: 10858 | C95: 23 | D95: 10862 | E95: 14 | F95: 10870 | K95: 0 | L95: 221
A96: 22 | B96: 10971 | C96: 23 | D96: 10975 | E96: 23 | F96: 10980 | K96: 0 | L96: 222
A97: 11 | B97: 11096 | C97: 12 | D97: 11101 | E97: 14 | F97: 11104 | K97: 0 | L97: 111
A98: 22 | B98: 11206 | C98: 23 | D98: 11209 | E98: 23 | F98: 11212 | K98: 0 | L98: 222
A99: 22 | B99: 11310 | C99: 23 | D99: 11313 | E99: 14 | F99: 11320 | K99: 0 | L99: 221
A100: 22 | B100: 11420 | C100: 23 | D100: 11422 | E100: 14 | F100: 11435 | K100: 0 | L100: 221
A101: 22 | B101: 11542 | C101: 23 | D101: 11546 | E101: 23 | F101: 11552 | K101: 0 | L101: 222
A102: 22 | B102: 11649 | C102: 23 | D102: 11653 | E102: 23 | F102: 11656 | K102: 0 | L102: 222
A103: 22 | B103: 11754 | C103: 14 | D103: 11767 | E103: 14 | F103: 11772 | K103: 0 | L103: 211
A104: 22 | B104: 11874 | C104: 23 | D104: 11876 | E104: 23 | F104: 11879 | K104: 0 | L104: 222
A105: 22 | B105: 11981 | C105: 23 | D105: 11984 | E105: 23 | F105: 11993 | K105: 0 | L105: 222
A106: 22 | B106: 12092 | C106: 23 | D106: 12096 | E106: 23 | F106: 12101 | K106: 0 | L106: 222
A107: 11 | B107: 12204 | C107: 21 | D107: 12218 | E107: 21 | F107: 12223 | K107: 0 | L107: 122
A108: 22 | B108: 12381 | C108: 23 | D108: 12384 | E108: 23 | F108: 12389 | K108: 0 | L108: 222
A109: 22 | B109: 12492 | C109: 23 | D109: 12495 | E109: 23 | F109: 12503 | K109: 0 | L109: 222
A110: 22 | B110: 12613 | C110: 23 | D110: 12628 | E110: 23 | F110: 12631 | K110: 0 | L110: 222
A111: 11 | B111: 12734 | C111: 12 | D111: 12737 | E111: 14 | F111: 12740 | K111: 0 | L111: 111
A112: 22 | B112: 12837 | C112: 23 | D112: 12841 | E112: 23 | F112: 12844 | K112: 0 | L112: 222
A113: 22 | B113: 12942 | C113: 23 | D113: 12948 | E113: 23 | F113: 12953 | K113: 0 | L113: 222
A114: 22 | B114: 13055 | C114: 23 | D114: 13058 | E114: 23 | F114: 13065 | K114: 0 | L114: 222
A115: 22 | B115: 13180 | C115: 23 | D115: 13199 | E115: 23 | F115: 13204 | K115: 0 | L115: 222
A116: 11 | B116: 13311 | C116: 12 | D116: 13313 | E116: 14 | F116: 13316 | K116: 0 | L116: 111
A117: 22 | B117: 13432 | C117: 23 | D117: 13437 | E117: 23 | F117: 13441 | K117: 0 | L117: 222
A118: 22 | B118: 13540 | C118: 23 | D118: 13543 | E118: 23 | F118: 13560 | K118: 0 | L118: 222
A119: 22 | B119: 13685 | C119: 23 | D119: 13696 | E119: 23 | F119: 13701 | K119: 0 | L119: 222
A120: 22 | B120: 13796 | C120: 23 | D120: 13800 | E120: 14 | F120: 13810 | K120: 0 | L120: 221
A121: 22 | B121: 13909 | C121: 23 | D121: 13913 | E121: 23 | F121: 13915 | K121: 0 | L121: 222
A122: 22 | B122: 14017 | C122: 23 | D122: 14022 | E122: 23 | F122: 14027 | K122: 0 | L122: 222
A123: 22 | B123: 14125 | C123: 23 | D123: 14135 | E123: 23 | F123: 14141 | K123: 0 | L123: 222
A124: 22 | B124: 14239 | C124: 23 | D124: 14242 | E124: 23 | F124: 14245 | K124: 0 | L124: 222
A125: 22 | B125: 14341 | C125: 23 | D125: 14344 | E125: 23 | F125: 14347 | K125: 0 | L125: 222
A126: 22 | B126: 14443 | C126: 23 | D126: 14447 | E126: 23 | F126: 14450 | K126: 0 | L126: 222
A127: 22 | B127: 14553 | C127: 23 | D127: 14557 | E127: 23 | F127: 14562 | K127: 0 | L127: 222
A128: 22 | B128: 14662 | C128: 23 | D128: 14670 | E128: 23 | F128: 14690 | K128: 0 | L128: 222
A129: 22 | B129: 14798 | C129: 23 | D129: 14801 | E129: 23 | F129: 14807 | K129: 0 | L129: 222
A130: 22 | B130: 14915 | C130: 23 | D130: 14919 | E130: 23 | F130: 14926 | K130: 0 | L130: 222
A131: 22 | B131: 15040 | C131: 23 | D131: 15045 | E131: 23 | F131: 15049 | K131: 0 | L131: 222
A132: 22 | B132: 15145 | C132: 23 | D132: 15148 | E132: 23 | F132: 15153 | K132: 0 | L132: 222
A133: 22 | B133: 15253 | C133: 23 | D133: 15258 | E133: 23 | F133: 15260 | K133: 0 | L133: 222
A134: 22 | B134: 15366 | C134: 23 | D134: 15371 | E134: 23 | F134: 15376 | K134: 0 | L134: 222
A135: 22 | B135: 15472 | C135: 23 | D135: 15476 | E135: 14 | F135: 15488 | K135: 0 | L135: 221
A136: 22 | B136: 15599 | C136: 23 | D136: 15608 | E136: 23 | F136: 15613 | K136: 0 | L136: 222
A137: 22 | B137: 15710 | C137: 23 | D137: 15729 | E137: 23 | F137: 15742 | K137: 0 | L137: 222
A138: 22 | B138: 15838 | C138: 23 | D138: 15850 | E138: 14 | F138: 15852 | K138: 0 | L138: 221
A139: 22 | B139: 15979 | C139: 23 | D139: 15984 | E139: 23 | F139: 16001 | K139: 0 | L139: 222
A140: 22 | B140: 16120 | C140: 23 | D140: 16124 | E140: 23 | F140: 16133 | K140: 0 | L140: 222
A141: 22 | B141: 16231 | C141: 23 | D141: 16234 | E141: 23 | F141: 16253 | K141: 0 | L141: 222
A142: 11 | B142: 16399 | C142: 12 | D142: 16402 | E142: 14 | F142: 16407 | K142: 0 | L142: 111
A143: 22 | B143: 16529 | C143: 23 | D143: 16536 | E143: 23 | F143: 16540 | K143: 0 | L143: 222
A144: 22 | B144: 16639 | C144: 23 | D144: 16643 | E144: 14 | F144: 16649 | K144: 0 | L144: 221
A145: 22 | B145: 16752 | C145: 23 | D145: 16755 | E145: 14 | F145: 16769 | K145: 0 | L145: 221
A146: 11 | B146: 16904 | C146: 12 | D146: 16909 | E146: 14 | F146: 16919 | K146: 0 | L146: 111
A147: 22 | B147: 17016 | C147: 14 | D147: 17038 | E147: 14 | F147: 17041 | K147: 0 | L147: 211
A148: 22 | B148: 17148 | C148: 23 | D148: 17155 | E148: 23 | F148: 17158 | K148: 0 | L148: 222
A149: 22 | B149: 17255 | C149: 23 | D149: 17266 | E149: 23 | F149: 17269 | K149: 0 | L149: 222
A150: 22 | B150: 17467 | C150: 23 | D150: 17471 | E150: 23 | F150: 17478 | K150: 0 | L150: 222
A151: 22 | B151: 17588 | C151: 23 | D151: 17591 | E151: 23 | F151: 17600 | K151: 0 | L151: 222
A152: 22 | B152: 17698 | C152: 23 | D152: 17702 | E152: 14 | F152: 17722 | K152: 0 | L152: 221
A153: 22 | B153: 17822 | C153: 23 | D153: 17825 | E153: 23 | F153: 17828 | K153: 0 | L153: 222
A154: 11 | B154: 18041 | C154: 21 | D154: 18046 | E154: 12 | F154: 18054 | K154: 0 | L154: 121
A155: 22 | B155: 18217 | C155: 23 | D155: 18225 | E155: 23 | F155: 18228 | K155: 0 | L155: 222
A156: 22 | B156: 18347 | C156: 23 | D156: 18350 | E156: 23 | F156: 18353 | K156: 0 | L156: 222
A157: 22 | B157: 18452 | C157: 23 | D157: 18456 | E157: 23 | F157: 18459 | K157: 0 | L157: 222
A158: 22 | B158: 18557 | C158: 23 | D158: 18564 | E158: 23 | F158: 18567 | K158: 0 | L158: 222
A159: 22 | B159: 18671 | C159: 14 | D159: 18684 | E159: 14 | F159: 18686 | K159: 0 | L159: 211
A160: 22 | B160: 18805 | C160: 23 | D160: 18811 | E160: 23 | F160: 18819 | K160: 0 | L160: 222
A161: 22 | B161: 18918 | C161: 23 | D161: 18922 | E161: 23 | F161: 18926 | K161: 0 | L161: 222
A162: 11 | B162: 19034 | C162: 12 | D162: 19038 | E162: 14 | F162: 19043 | K162: 0 | L162: 111
A163: 22 | B163: 19158 | C163: 23 | D163: 19160 | E163: 23 | F163: 19165 | K163: 0 | L163: 222
A164: 22 | B164: 19272 | C164: 23 | D164: 19276 | E164: 23 | F164: 19281 | K164: 0 | L164: 222
A165: 22 | B165: 19405 | C165: 23 | D165: 19413 | E165: 23 | F165: 19434 | K165: 0 | L165: 222
A166: 22 | B166: 19530 | C166: 14 | D166: 19540 | E166: 14 | F166: 19545 | K166: 0 | L166: 211
A167: 22 | B167: 19647 | C167: 23 | D167: 19654 | E167: 23 | F167: 19661 | K167: 0 | L167: 222
A168: 22 | B168: 19762 | C168: 23 | D168: 19765 | E168: 23 | F168: 19769 | K168: 0 | L168: 222
A169: 22 | B169: 19874 | C169: 23 | D169: 19877 | E169: 23 | F169: 19887 | K169: 0 | L169: 222
A170: 22 | B170: 19983 | C170: 23 | D170: 19994 | E170: 23 | F170: 20002 | K170: 0 | L170: 222
A171: 22 | B171: 20114 | C171: 23 | D171: 20124 | E171: 23 | F171: 20130 | K171: 0 | L171: 222
A172: 22 | B172: 20231 | C172: 23 | D172: 20235 | E172: 23 | F172: 20248 | K172: 0 | L172: 222
A173: 11 | B173: 20352 | C173: 21 | D173: 20357 | E173: 12 | F173: 20359 | K173: 0 | L173: 121
A174: 11 | B174: 20543 | C174: 12 | D174: 20551 | E174: 14 | F174: 20558 | K174: 0 | L174: 111
A175: 22 | B175: 20667 | C175: 23 | D175: 20670 | E175: 23 | F175: 20675 | K175: 0 | L175: 222
A176: 22 | B176: 20775 | C176: 23 | D176: 20777 | E176: 23 | F176: 20781 | K176: 0 | L176: 222
A177: 22 | B177: 20882 | C177: 23 | D177: 20885 | E177: 23 | F177: 20889 | K177: 0 | L177: 222
A178: 11 | B178: 20993 | C178: 12 | D178: 20996 | E178: 14 | F178: 20999 | K178: 0 | L178: 111
A179: 22 | B179: 21978 | C179: 23 | D179: 21983 | E179: 23 | F179: 21994 | K179: 0 | L179: 222
A180: 22 | B180: 22091 | C180: 23 | D180: 22111 | E180: 23 | F180: 22124 | K180: 0 | L180: 222
A181: 11 | B181: 22244 | C181: 12 | D181: 22247 | E181: 14 | F181: 22251 | K181: 0 | L181: 111
A182: 22 | B182: 22355 | C182: 23 | D182: 22370 | E182: 23 | F182: 22378 | K182: 0 | L182: 222
A183: 11 | B183: 22481 | C183: 12 | D183: 22491 | E183: 14 | F183: 22496 | K183: 0 | L183: 111
A184: 11 | B184: 22618 | C184: 12 | D184: 22626 | E184: 14 | F184: 22636 | K184: 0 | L184: 111
A185: 22 | B185: 22735 | C185: 23 | D185: 22739 | E185: 14 | F185: 22749 | K185: 0 | L185: 221
A186: 22 | B186: 22873 | C186: 23 | D186: 22876 | E186: 23 | F186: 22885 | K186: 0 | L186: 222
A187: 22 | B187: 22983 | C187: 14 | D187: 22993 | E187: 14 | F187: 22997 | K187: 0 | L187: 211
A188: 22 | B188: 23103 | C188: 23 | D188: 23123 | E188: 23 | F188: 23129 | K188: 0 | L188: 222
A189: 11 | B189: 23237 | C189: 12 | D189: 23240 | E189: 14 | F189: 23244 | K189: 0 | L189: 111
A190: 22 | B190: 23400 | C190: 14 | D190: 23409 | E190: 14 | F190: 23413 | K190: 0 | L190: 211
A191: 11 | B191: 23839 | C191: 12 | D191: 23842 | E191: 14 | F191: 23848 | K191: 0 | L191: 111
A192: 11 | B192: 23955 | C192: 12 | D192: 23959 | E192: 14 | F192: 23962 | L192: 111

Sheet !LB11A03..Ta
A1: Report for:!LB11A03..Ta
A2: Date: | B2: <date>
A3: Hen: | B3: <hen> | F3: Correct Sequence | G3: =Start!J2 -> 122 | P3: Total Sequences in Data | Q3: =4994-COUNTBLANK(L7:L5000) -> 101 | V3: Total Sequences in Block Data | W3: =COUNTA(L7:L23) -> 17 | AA3: Total Sequences in Block Data | AB3: =COUNTA(L24:L40) -> 17 | AF3: Total Sequences in Block Data | AG3: =COUNTA(L41:L56) -> 16 | AK3: Total Sequences in Block Data | AL3: =COUNTA(L57:L73) -> 17 | AP3: Total Sequences in Block Data | AQ3: =COUNTA(L74:L90) -> 17 | AU3: Total Sequences in Block Data | AV3: =COUNTA(L91:L107) -> 17
P4: Total Sequences in Summary | Q4: =SUM(O7:O14) -> 101 | V4: Total Sequences in Block Summary | W4: =SUM(U7:U14) -> 17 | AA4: Total Sequences in Block Summary | AB4: =SUM(Z7:Z14) -> 17 | AF4: Total Sequences in Block Summary | AG4: =SUM(AE7:AE14) -> 16 | AK4: Total Sequences in Block Summary | AL4: =SUM(AJ7:AJ14) -> 17 | AP4: Total Sequences in Block Summary | AQ4: =SUM(AO7:AO14) -> 17 | AU4: Total Sequences in Block Summary | AV4: =SUM(AT7:AT14) -> 17
T5: Block 1 | Y5: Block 2 | AD5: Block 3 | AI5: Block 4 | AN5: Block 5 | AS5: Block 6
A6: Sequence Component 1 | B6: Time 1 | C6: Sequence Component 2 | D6: Time 2 | E6: Sequence Component 3 | F6: Time 3 | G6: Sequence Component 4 | H6: Time 4 | I6: Sequence Component 5 | J6: Time 5 | K6: Correct? 0=No 1=Yes | L6: Sequence | N6: Frequency | P6: Relative Frequency | Q6: Variability | T6: Frequency | V6: Relative Frequency | W6: Variability | Y6: Frequency | AA6: Relative Frequency | AB6: Variability | AD6: Frequency | AF6: Relative Frequency | AG6: Variability | AI6: Frequency | AK6: Relative Frequency | AL6: Variability | AN6: Frequency | AP6: Relative Frequency | AQ6: Variability | AS6: Frequency | AU6: Relative Frequency | AV6: Variability
A7: 22 | B7: 98 | C7: 23 | D7: 101 | E7: 23 | F7: 106 | K7: 0 | L7: 222 | N7: 111 | O7: =COUNTIF($L$7:$L$500,N7) -> 26 | P7: =O7/$Q$4 -> 0.2574257426 | Q7: =IF(P7=0,0,(P7*((LOG(P7))/LOG(2)))) -> -0.5039808503 | T7: =N7 -> 111 | U7: =COUNTIF(L7:L23,T7) -> 7 | V7: =U7/(W4-U10) -> 0.4117647059 | W7: =IF(V7=0,0,(V7*((LOG(V7))/LOG(2)))) -> -0.5271032608 | Y7: =N7 -> 111 | Z7: =COUNTIF(L24:L40,Y7) -> 6 | AA7: =Z7/(AB4-Z10) -> 0.375 | AB7: =IF(AA7=0,0,(AA7*((LOG(AA7))/LOG(2)))) -> -0.5306390622 | AD7: =N7 -> 111 | AE7: =COUNTIF(L41:L56,AD7) -> 4 | AF7: =AE7/(AG4-AE10) -> 0.3076923077 | AG7: =IF(AF7=0,0,(AF7*((LOG(AF7))/LOG(2)))) -> -0.523212221 | AI7: =N7 -> 111 | AJ7: =COUNTIF(L57:L73,AI7) -> 3 | AK7: =AJ7/(AL4-AJ10) -> 0.1875 | AL7: =IF(AK7=0,0,(AK7*((LOG(AK7))/LOG(2)))) -> -0.4528195311 | AN7: =N7 -> 111 | AO7: =COUNTIF(L74:L90,AN7) -> 4 | AP7: =AO7/(AQ4-AO10) -> 0.2352941176 | AQ7: =IF(AP7=0,0,(AP7*((LOG(AP7))/LOG(2)))) -> -0.4911677274 | AS7: =N7 -> 111 | AT7: =COUNTIF(L91:L107,AS7) -> 2 | AU7: =AT7/(AV4-AT10) -> 0.125 | AV7: =IF(AU7=0,0,(AU7*((LOG(AU7))/LOG(2)))) -> -0.375
A8: 22 | B8: 216 | C8: 23 | D8: 223 | E8: 23 | F8: 240 | K8: 0 | L8: 222 | N8: 112 | O8: =COUNTIF($L$7:$L$500,N8) -> 0 | P8: =O8/$Q$4 -> 0 | Q8: =IF(P8=0,0,(P8*((LOG(P8))/LOG(2)))) -> 0 | T8: =N8 -> 112 | U8: =COUNTIF(L7:L23,T8) -> 0 | V8: =U8/(W4-U10) -> 0 | W8: =IF(V8=0,0,(V8*((LOG(V8))/LOG(2)))) -> 0 | Y8: =N8 -> 112 | Z8: =COUNTIF(L24:L40,Y8) -> 0 | AA8: =Z8/(AB4-Z10) -> 0 | AB8: =IF(AA8=0,0,(AA8*((LOG(AA8))/LOG(2)))) -> 0 | AD8: =N8 -> 112 | AE8: =COUNTIF(L41:L56,AD8) -> 0 | AF8: =AE8/(AG4-AE10) -> 0 | AG8: =IF(AF8=0,0,(AF8*((LOG(AF8))/LOG(2)))) -> 0 | AI8: =N8 -> 112 | AJ8: =COUNTIF(L57:L73,AI8) -> 0 | AK8: =AJ8/(AL4-AJ10) -> 0 | AL8: =IF(AK8=0,0,(AK8*((LOG(AK8))/LOG(2)))) -> 0 | AN8: =N8 -> 112 | AO8: =COUNTIF(L74:L90,AN8) -> 0 | AP8: =AO8/(AQ4-AO10) -> 0 | AQ8: =IF(AP8=0,0,(AP8*((LOG(AP8))/LOG(2)))) -> 0 | AS8: =N8 -> 112 | AT8: =COUNTIF(L91:L107,AS8) -> 0 | AU8: =AT8/(AV4-AT10) -> 0 | AV8: =IF(AU8=0,0,(AU8*((LOG(AU8))/LOG(2)))) -> 0
A9: 11 | B9: 347 | C9: 12 | D9: 351 | E9: 14 | F9: 353 | K9: 0 | L9: 111 | N9: 121 | O9: =COUNTIF($L$7:$L$500,N9) -> 0 | P9: =O9/$Q$4 -> 0 | Q9: =IF(P9=0,0,(P9*((LOG(P9))/LOG(2)))) -> 0 | T9: =N9 -> 121 | U9: =COUNTIF(L7:L23,T9) -> 0 | V9: =U9/(W4-U10) -> 0 | W9: =IF(V9=0,0,(V9*((LOG(V9))/LOG(2)))) -> 0 | Y9: =N9 -> 121 | Z9: =COUNTIF(L24:L40,Y9) -> 0 | AA9: =Z9/(AB4-Z10) -> 0 | AB9: =IF(AA9=0,0,(AA9*((LOG(AA9))/LOG(2)))) -> 0 | AD9: =N9 -> 121 | AE9: =COUNTIF(L41:L56,AD9) -> 0 | AF9: =AE9/(AG4-AE10) -> 0 | AG9: =IF(AF9=0,0,(AF9*((LOG(AF9))/LOG(2)))) -> 0 | AI9: =N9 -> 121 | AJ9: =COUNTIF(L57:L73,AI9) -> 0 | AK9: =AJ9/(AL4-AJ10) -> 0 | AL9: =IF(AK9=0,0,(AK9*((LOG(AK9))/LOG(2)))) -> 0 | AN9: =N9 -> 121 | AO9: =COUNTIF(L74:L90,AN9) -> 0 | AP9: =AO9/(AQ4-AO10) -> 0 | AQ9: =IF(AP9=0,0,(AP9*((LOG(AP9))/LOG(2)))) -> 0 | AS9: =N9 -> 121 | AT9: =COUNTIF(L91:L107,AS9) -> 0 | AU9: =AT9/(AV4-AT10) -> 0 | AV9: =IF(AU9=0,0,(AU9*((LOG(AU9))/LOG(2)))) -> 0
A10: 11 | B10: 467 | C10: 12 | D10: 471 | E10: 14 | F10: 474 | K10: 0 | L10: 111 | N10: 122 | O10: =COUNTIF($L$7:$L$500,N10) -> 6 | P10: =O10/$Q$4 -> 0.05940594059 | Q10: =IF(P10=0,0,(P10*((LOG(P10))/LOG(2)))) -> -0.2419751871 | T10: =N10 -> 122 | U10: =COUNTIF(L7:L23,T10) -> 0 | Y10: =N10 -> 122 | Z10: =COUNTIF(L24:L40,Y10) -> 1 | AD10: =N10 -> 122 | AE10: =COUNTIF(L41:L56,AD10) -> 3 | AI10: =N10 -> 122 | AJ10: =COUNTIF(L57:L73,AI10) -> 1 | AN10: =N10 -> 122 | AO10: =COUNTIF(L74:L90,AN10) -> 0 | AS10: =N10 -> 122 | AT10: =COUNTIF(L91:L107,AS10) -> 1
A11: 11 | B11: 586 | C11: 12 | D11: 590 | E11: 14 | F11: 594 | K11: 0 | L11: 111 | N11: 211 | O11: =COUNTIF($L$7:$L$500,N11) -> 15 | P11: =O11/$Q$4 -> 0.1485148515 | Q11: =IF(P11=0,0,(P11*((LOG(P11))/LOG(2)))) -> -0.4086120129 | T11: =N11 -> 211 | U11: =COUNTIF(L7:L23,T11) -> 5 | V11: =U11/(W4-U10) -> 0.2941176471 | W11: =IF(V11=0,0,(V11*((LOG(V11))/LOG(2)))) -> -0.5192749254 | Y11: =N11 -> 211 | Z11: =COUNTIF(L24:L40,Y11) -> 2 | AA11: =Z11/(AB4-Z10) -> 0.125 | AB11: =IF(AA11=0,0,(AA11*((LOG(AA11))/LOG(2)))) -> -0.375 | AD11: =N11 -> 211 | AE11: =COUNTIF(L41:L56,AD11) -> 4 | AF11: =AE11/(AG4-AE10) -> 0.3076923077 | AG11: =IF(AF11=0,0,(AF11*((LOG(AF11))/LOG(2)))) -> -0.523212221 | AI11: =N11 -> 211 | AJ11: =COUNTIF(L57:L73,AI11) -> 2 | AK11: =AJ11/(AL4-AJ10) -> 0.125 | AL11: =IF(AK11=0,0,(AK11*((LOG(AK11))/LOG(2)))) -> -0.375 | AN11: =N11 -> 211 | AO11: =COUNTIF(L74:L90,AN11) -> 1 | AP11: =AO11/(AQ4-AO10) -> 0.05882352941 | AQ11: =IF(AP11=0,0,(AP11*((LOG(AP11))/LOG(2)))) -> -0.2404389907 | AS11: =N11 -> 211 | AT11: =COUNTIF(L91:L107,AS11) -> 1 | AU11: =AT11/(AV4-AT10) -> 0.0625 | AV11: =IF(AU11=0,0,(AU11*((LOG(AU11))/LOG(2)))) -> -0.25
A12: 22 | B12: 693 | C12: 14 | D12: 731 | E12: 14 | F12: 741 | K12: 0 | L12: 211 | N12: 212 | O12: =COUNTIF($L$7:$L$500,N12) -> 1 | P12: =O12/$Q$4 -> 0.009900990099 | Q12: =IF(P12=0,0,(P12*((LOG(P12))/LOG(2)))) -> -0.06592288597 | T12: =N12 -> 212 | U12: =COUNTIF(L7:L23,T12) -> 0 | V12: =U12/(W4-U10) -> 0 | W12: =IF(V12=0,0,(V12*((LOG(V12))/LOG(2)))) -> 0 | Y12: =N12 -> 212 | Z12: =COUNTIF(L24:L40,Y12) -> 0 | AA12: =Z12/(AB4-Z10) -> 0 | AB12: =IF(AA12=0,0,(AA12*((LOG(AA12))/LOG(2)))) -> 0 | AD12: =N12 -> 212 | AE12: =COUNTIF(L41:L56,AD12) -> 0 | AF12: =AE12/(AG4-AE10) -> 0 | AG12: =IF(AF12=0,0,(AF12*((LOG(AF12))/LOG(2)))) -> 0 | AI12: =N12 -> 212 | AJ12: =COUNTIF(L57:L73,AI12) -> 1 | AK12: =AJ12/(AL4-AJ10) -> 0.0625 | AL12: =IF(AK12=0,0,(AK12*((LOG(AK12))/LOG(2)))) -> -0.25 | AN12: =N12 -> 212 | AO12: =COUNTIF(L74:L90,AN12) -> 0 | AP12: =AO12/(AQ4-AO10) -> 0 | AQ12: =IF(AP12=0,0,(AP12*((LOG(AP12))/LOG(2)))) -> 0 | AS12: =N12 -> 212 | AT12: =COUNTIF(L91:L107,AS12) -> 0 | AU12: =AT12/(AV4-AT10) -> 0 | AV12: =IF(AU12=0,0,(AU12*((LOG(AU12))/LOG(2)))) -> 0
A13: 22 | B13: 854 | C13: 23 | D13: 858 | E13: 23 | F13: 869 | K13: 0 | L13: 222 | N13: 221 | O13: =COUNTIF($L$7:$L$500,N13) -> 0 | P13: =O13/$Q$4 -> 0 | Q13: =IF(P13=0,0,(P13*((LOG(P13))/LOG(2)))) -> 0 | T13: =N13 -> 221 | U13: =COUNTIF(L7:L23,T13) -> 0 | V13: =U13/(W4-U10) -> 0 | W13: =IF(V13=0,0,(V13*((LOG(V13))/LOG(2)))) -> 0 | Y13: =N13 -> 221 | Z13: =COUNTIF(L24:L40,Y13) -> 0 | AA13: =Z13/(AB4-Z10) -> 0 | AB13: =IF(AA13=0,0,(AA13*((LOG(AA13))/LOG(2)))) -> 0 | AD13: =N13 -> 221 | AE13: =COUNTIF(L41:L56,AD13) -> 0 | AF13: =AE13/(AG4-AE10) -> 0 | AG13: =IF(AF13=0,0,(AF13*((LOG(AF13))/LOG(2)))) -> 0 | AI13: =N13 -> 221 | AJ13: =COUNTIF(L57:L73,AI13) -> 0 | AK13: =AJ13/(AL4-AJ10) -> 0 | AL13: =IF(AK13=0,0,(AK13*((LOG(AK13))/LOG(2)))) -> 0 | AN13: =N13 -> 221 | AO13: =COUNTIF(L74:L90,AN13) -> 0 | AP13: =AO13/(AQ4-AO10) -> 0 | AQ13: =IF(AP13=0,0,(AP13*((LOG(AP13))/LOG(2)))) -> 0 | AS13: =N13 -> 221 | AT13: =COUNTIF(L91:L107,AS13) -> 0 | AU13: =AT13/(AV4-AT10) -> 0 | AV13: =IF(AU13=0,0,(AU13*((LOG(AU13))/LOG(2)))) -> 0
A14: 22 | B14: 970 | C14: 14 | D14: 983 | E14: 14 | F14: 992 | K14: 0 | L14: 211 | N14: 222 | O14: =COUNTIF($L$7:$L$500,N14) -> 53 | P14: =O14/$Q$4 -> 0.5247524752 | Q14: =IF(P14=0,0,(P14*((LOG(P14))/LOG(2)))) -> -0.4881725197 | T14: =N14 -> 222 | U14: =COUNTIF(L7:L23,T14) -> 5 | V14: =U14/(W4-U10) -> 0.2941176471 | W14: =IF(V14=0,0,(V14*((LOG(V14))/LOG(2)))) -> -0.5192749254 | Y14: =N14 -> 222 | Z14: =COUNTIF(L24:L40,Y14) -> 8 | AA14: =Z14/(AB4-Z10) -> 0.5 | AB14: =IF(AA14=0,0,(AA14*((LOG(AA14))/LOG(2)))) -> -0.5 | AD14: =N14 -> 222 | AE14: =COUNTIF(L41:L56,AD14) -> 5 | AF14: =AE14/(AG4-AE10) -> 0.3846153846 | AG14: =IF(AF14=0,0,(AF14*((LOG(AF14))/LOG(2)))) -> -0.5301967782 | AI14: =N14 -> 222 | AJ14: =COUNTIF(L57:L73,AI14) -> 10 | AK14: =AJ14/(AL4-AJ10) -> 0.625 | AL14: =IF(AK14=0,0,(AK14*((LOG(AK14))/LOG(2)))) -> -0.4237949407 | AN14: =N14 -> 222 | AO14: =COUNTIF(L74:L90,AN14) -> 12 | AP14: =AO14/(AQ4-AO10) -> 0.7058823529 | AQ14: =IF(AP14=0,0,(AP14*((LOG(AP14))/LOG(2)))) -> -0.3547061227 | AS14: =N14 -> 222 | AT14: =COUNTIF(L91:L107,AS14) -> 13 | AU14: =AT14/(AV4-AT10) -> 0.8125 | AV14: =IF(AU14=0,0,(AU14*((LOG(AU14))/LOG(2)))) -> -0.243392729
A15: 22 | B15: 1093 | C15: 14 | D15: 1139 | E15: 14 | F15: 1145 | K15: 0 | L15: 211 | P15: =SUM(P7:P14) -> 1 | Q15: =-SUM(Q7:Q14) -> 1.708663456 | V15: =SUM(V7:V14) -> 1 | W15: =-SUM(W7:W14) -> 1.565653112 | AA15: =SUM(AA7:AA14) -> 1 | AB15: =-SUM(AB7:AB14) -> 1.405639062 | AF15: =SUM(AF7:AF14) -> 1 | AG15: =-SUM(AG7:AG14) -> 1.57662122 | AK15: =SUM(AK7:AK14) -> 1 | AL15: =-SUM(AL7:AL14) -> 1.501614472 | AP15: =SUM(AP7:AP14) -> 1 | AQ15: =-SUM(AQ7:AQ14) -> 1.086312841 | AU15: =SUM(AU7:AU14) -> 1 | AV15: =-SUM(AV7:AV14) -> 0.868392729
A16: 11 | B16: 1276 | C16: 12 | D16: 1282 | E16: 14 | F16: 1286 | K16: 0 | L16: 111 | P16: U= | Q16: =Q15/(LOG(Q4)/LOG(2)) -> 0.2566249901 | V16: U1= | W16: =W15/(LOG(W4)/LOG(2)) -> 0.3830378825 | AA16: U2= | AB16: =AB15/(LOG(AB4)/LOG(2)) -> 0.3438903586 | AF16: U3= | AG16: =AG15/(LOG(AG4)/LOG(2)) -> 0.394155305 | AK16: U4= | AL16: =AL15/(LOG(AL4)/LOG(2)) -> 0.3673707946 | AP16: U5= | AQ16: =AQ15/(LOG(AQ4)/LOG(2)) -> 0.2657670254 | AU16: U6= | AV16: =AV15/(LOG(AV4)/LOG(2)) -> 0.2124527519
A17: 11 | B17: 1405 | C17: 12 | D17: 1409 | E17: 14 | F17: 1415 | K17: 0 | L17: 111
A18: 22 | B18: 1619 | C18: 14 | D18: 1628 | E18: 14 | F18: 1632 | K18: 0 | L18: 211
A19: 22 | B19: 1756 | C19: 23 | D19: 1761 | E19: 23 | F19: 1766 | K19: 0 | L19: 222 | N19: Total Target Seq
A20: 11 | B20: 1925 | C20: 12 | D20: 1929 | E20: 14 | F20: 1934 | K20: 0 | L20: 111 | N20: =COUNTIF(L7:L107,G3) -> 6 | P20: 17 | Q20: 17 | R20: 16 | S20: 17 | T20: 17 | U20: 17
A21: 22 | B21: 2179 | C21: 23 | D21: 2190 | E21: 23 | F21: 2196 | K21: 0 | L21: 222 | P21: % of reinforcement given in 6 equal intervals based on number of trials
A22: 11 | B22: 2375 | C22: 12 | D22: 2379 | E22: 14 | F22: 2385 | K22: 0 | L22: 111 | P22: %_1 | Q22: %_2 | R22: %_3 | S22: %_4 | T22: %_5 | U22: %_6
A23: 22 | B23: 2606 | C23: 14 | D23: 2618 | E23: 14 | F23: 2622 | K23: 0 | L23: 211 | O23: target sequence | P23: =$G$3 -> 122 | Q23: =$G$3 -> 122 | R23: =$G$3 -> 122 | S23: =$G$3 -> 122 | T23: =$G$3 -> 122 | U23: =$G$3 -> 122
A24: 11 | B24: 2738 | C24: 12 | D24: 2741 | E24: 14 | F24: 2744 | K24: 0 | L24: 111 | O24: total reinforcement | P24: =U10 -> 0 | Q24: =Z10 -> 1 | R24: =AE10 -> 3 | S24: =AJ10 -> 1 | T24: =AO10 -> 0 | U24: =AT10 -> 1
A25: 22 | B25: 2883 | C25: 14 | D25: 2910 | E25: 14 | F25: 2913 | K25: 0 | L25: 211 | O25: % target
A26: 11 | B26: 3041 | C26: 12 | D26: 3050 | E26: 14 | F26: 3055 | K26: 0 | L26: 111 | O26: CCRF
A27: 11 | B27: 3188 | C27: 12 | D27: 3193 | E27: 14 | F27: 3196 | K27: 0 | L27: 111 | O27: % CCRf
A28: 22 | B28: 3298 | C28: 23 | D28: 3323 | E28: 23 | F28: 3333 | K28: 0 | L28: 222 | O28: average response rate | P28: =F23/P20 -> 154.2352941 | Q28: =(F40-F23)/Q20 -> 150.2941176 | R28: =(F56-F40)/R20 -> 151.875 | S28: =(F73-F56)/S20 -> 147.8823529 | T28: =(F90-F73)/T20 -> 134.0588235 | U28: =(F107-F90)/U20 -> 163.2352941
A29: 22 | B29: 3461 | C29: 23 | D29: 3470 | E29: 23 | F29: 3474 | K29: 0 | L29: 222
A30: 22 | B30: 3621 | C30: 23 | D30: 3624 | E30: 23 | F30: 3629 | K30: 0 | L30: 222
A31: 22 | B31: 3766 | C31: 23 | D31: 3778 | E31: 23 | F31: 3781 | K31: 0 | L31: 222
A32: 11 | B32: 3916 | C32: 21 | D32: 3943 | E32: 21 | F32: 3950 | K32: 0 | L32: 122
A33: 22 | B33: 4184 | C33: 23 | D33: 4187 | E33: 23 | F33: 4201 | K33: 0 | L33: 222
A34: 22 | B34: 4301 | C34: 23 | D34: 4305 | E34: 23 | F34: 4309 | K34: 0 | L34: 222
A35: 11 | B35: 4418 | C35: 12 | D35: 4423 | E35: 14 | F35: 4427 | K35: 0 | L35: 111
A36: 11 | B36: 4551 | C36: 12 | D36: 4554 | E36: 14 | F36: 4558 | K36: 0 | L36: 111
A37: 22 | B37: 4657 | C37: 23 | D37: 4664 | E37: 23 | F37: 4671 | K37: 0 | L37: 222
A38: 11 | B38: 4799 | C38: 12 | D38: 4802 | E38: 14 | F38: 4807 | K38: 0 | L38: 111
A39: 22 | B39: 4985 | C39: 14 | D39: 4996 | E39: 14 | F39: 5004 | K39: 0 | L39: 211
A40: 22 | B40: 5165 | C40: 23 | D40: 5169 | E40: 23 | F40: 5177 | K40: 0 | L40: 222
A41: 22 | B41: 5284 | C41: 14 | D41: 5294 | E41: 14 | F41: 5300 | K41: 0 | L41: 211
A42: 22 | B42: 5424 | C42: 23 | D42: 5432 | E42: 23 | F42: 5440 | K42: 0 | L42: 222
A43: 11 | B43: 5546 | C43: 12 | D43: 5554 | E43: 14 | F43: 5557 | K43: 0 | L43: 111
A44: 22 | B44: 5679 | C44: 14 | D44: 5697 | E44: 14 | F44: 5700 | K44: 0 | L44: 211
A45: 22 | B45: 5799 | C45: 23 | D45: 5817 | E45: 23 | F45: 5823 | K45: 0 | L45: 222
A46: 22 | B46: 5949 | C46: 23 | D46: 5966 | E46: 23 | F46: 5971 | K46: 0 | L46: 222
A47: 11 | B47: 6094 | C47: 12 | D47: 6098 | E47: 14 | F47: 6105 | K47: 0 | L47: 111
A48: 22 | B48: 6216 | C48: 14 | D48: 6227 | E48: 14 | F48: 6230 | K48: 0 | L48: 211
A49: 11 | B49: 6480 | C49: 21 | D49: 6497 | E49: 21 | F49: 6502 | K49: 0 | L49: 122
A50: 11 | B50: 6709 | C50: 12 | D50: 6713 | E50: 14 | F50: 6717 | K50: 0 | L50: 111
A51: 11 | B51: 6852 | C51: 21 | D51: 6862 | E51: 21 | F51: 6866 | K51: 0 | L51: 122
A52: 11 | B52: 7045 | C52: 21 | D52: 7061 | E52: 21 | F52: 7065 | K52: 0 | L52: 122
A53: 22 | B53: 7241 | C53: 14 | D53: 7256 | E53: 14 | F53: 7262 | K53: 0 | L53: 211
A54: 22 | B54: 7361 | C54: 23 | D54: 7364 | E54: 23 | F54: 7373 | K54: 0 | L54: 222
A55: 11 | B55: 7482 | C55: 12 | D55: 7486 | E55: 14 | F55: 7492 | K55: 0 | L55: 111
A56: 22 | B56: 7587 | C56: 23 | D56: 7603 | E56: 23 | F56: 7607 | K56: 0 | L56: 222
A57: 22 | B57: 7771 | C57: 23 | D57: 7775 | E57: 23 | F57: 7779 | K57: 0 | L57: 222
A58: 22 | B58: 7899 | C58: 23 | D58: 7930 | E58: 23 | F58: 7939 | K58: 0 | L58: 222
A59: 22 | B59: 8071 | C59: 23 | D59: 8075 | E59: 23 | F59: 8080 | K59: 0 | L59: 222
A60: 11 | B60: 8201 | C60: 12 | D60: 8204 | E60: 14 | F60: 8207 | K60: 0 | L60: 111
A61: 22 | B61: 8306 | C61: 23 | D61: 8320 | E61: 23 | F61: 8324 | K61: 0 | L61: 222
A62: 11 | B62: 8437 | C62: 12 | D62: 8442 | E62: 14 | F62: 8450 | K62: 0 | L62: 111
A63: 11 | B63: 8566 | C63: 12 | D63: 8569 | E63: 14 | F63: 8573 | K63: 0 | L63: 111
A64: 22 | B64: 8739 | C64: 14 | D64: 8756 | E64: 14 | F64: 8760 | K64: 0 | L64: 211
A65: 22 | B65: 8884 | C65: 23 | D65: 8888 | E65: 23 | F65: 8893 | K65: 0 | L65: 222
A66: 11 | B66: 9002 | C66: 21 | D66: 9011 | E66: 21 | F66: 9017 | K66: 0 | L66: 122
A67: 22 | B67: 9197 | C67: 14 | D67: 9215 | E67: 14 | F67: 9219 | K67: 0 | L67: 211
A68: 22 | B68: 9320 | C68: 23 | D68: 9327 | E68: 23 | F68: 9332 | K68: 0 | L68: 222
A69: 22 | B69: 9570 | C69: 14 | D69: 9578 | E69: 23 | F69: 9591 | K69: 0 | L69: 212
A70: 22 | B70: 9738 | C70: 23 | D70: 9742 | E70: 23 | F70: 9747 | K70: 0 | L70: 222
A71: 22 | B71: 9842 | C71: 23 | D71: 9864 | E71: 23 | F71: 9868 | K71: 0 | L71: 222
A72: 22 | B72: 9987 | C72: 23 | D72: 9991 | E72: 23 | F72: 9997 | K72: 0 | L72: 222
A73: 22 | B73: 10107 | C73: 23 | D73: 10117 | E73: 23 | F73: 10121 | K73: 0 | L73: 222
A74: 22 | B74: 10220 | C74: 23 | D74: 10228 | E74: 23 | F74: 10232 | K74: 0 | L74: 222
A75: 22 | B75: 10339 | C75: 23 | D75: 10352 | E75: 23 | F75: 10364 | K75: 0 | L75: 222
A76: 22 | B76: 10477 | C76: 23 | D76: 10481 | E76: 23 | F76: 10485 | K76: 0 | L76: 222
A77: 22 | B77: 10596 | C77: 23 | D77: 10602 | E77: 23 | F77: 10606 | K77: 0 | L77: 222
A78: 11 | B78: 10727 | C78: 12 | D78: 10729 | E78: 14 | F78: 10734 | K78: 0 | L78: 111
A79: 22 | B79: 10864 | C79: 23 | D79: 10870 | E79: 23 | F79: 10890 | K79: 0 | L79: 222
A80: 22 | B80: 10994 | C80: 23 | D80: 11019 | E80: 23 | F80: 11022 | K80: 0 | L80: 222
A81: 11 | B81: 11144 | C81: 12 | D81: 11150 | E81: 14 | F81: 11162 | K81: 0 | L81: 111
A82: 11 | B82: 11293 | C82: 12 | D82: 11300 | E82: 14 | F82: 11313 | K82: 0 | L82: 111
A83: 22 | B83: 11429 | C83: 23 | D83: 11433 | E83: 23 | F83: 11438 | K83: 0 | L83: 222
A84: 22 | B84: 11555 | C84: 23 | D84: 11559 | E84: 23 | F84: 11565 | K84: 0 | L84: 222
A85: 22 | B85: 11680 | C85: 23 | D85: 11689 | E85: 23 | F85: 11694 | K85: 0 | L85: 222
A86: 22 | B86: 11813 | C86: 23 | D86: 11817 | E86: 23 | F86: 11822 | K86: 0 | L86: 222
A87: 22 | B87: 11947 | C87: 14 | D87: 11974 | E87: 14 | F87: 11986 | K87: 0 | L87: 211
A88: 22 | B88: 12102 | C88: 23 | D88: 12107 | E88: 23 | F88: 12111 | K88: 0 | L88: 222
A89: 11 | B89: 12240 | C89: 12 | D89: 12244 | E89: 14 | F89: 12247 | K89: 0 | L89: 111
A90: 22 | B90: 12390 | C90: 23 | D90: 12395 | E90: 23 | F90: 12400 | K90: 0 | L90: 222
A91: 22 | B91: 12525 | C91: 23 | D91: 12530 | E91: 23 | F91: 12534 | K91: 0 | L91: 222
A92: 22 | B92: 12668 | C92: 23 | D92: 12673 | E92: 23 | F92: 12675 | K92: 0 | L92: 222
A93: 22 | B93: 12778 | C93: 23 | D93: 12794 | E93: 23 | F93: 12807 | K93: 0 | L93: 222
A94: 22 | B94: 12933 | C94: 23 | D94: 12938 | E94: 23 | F94: 12942 | K94: 0 | L94: 222
A95: 22 | B95: 13129 | C95: 23 | D95: 13150 | E95: 23 | F95: 13156 | K95: 0 | L95: 222
A96: 11 | B96: 13277 | C96: 21 | D96: 13291 | E96: 21 | F96: 13296 | K96: 0 | L96: 122
A97: 22 | B97: 13873 | C97: 23 | D97: 13878 | E97: 23 | F97: 13883 | K97: 0 | L97: 222
A98: 22 | B98: 13999 | C98: 23 | D98: 14002 | E98: 23 | F98: 14007 | K98: 0 | L98: 222
A99: 22 | B99: 14118 | C99: 14 | D99: 14129 | E99: 14 | F99: 14132 | K99: 0 | L99: 211
A100: 22 | B100: 14266 | C100: 23 | D100: 14270 | E100: 23 | F100: 14276 | K100: 0 | L100: 222
A101: 22 | B101: 14391 | C101: 23 | D101: 14395 | E101: 23 | F101: 14408 | K101: 0 | L101: 222
A102: 11 | B102: 14533 | C102: 12 | D102: 14537 | E102: 14 | F102: 14540 | K102: 0 | L102: 111
A103: 22 | B103: 14661 | C103: 23 | D103: 14666 | E103: 23 | F103: 14669 | K103: 0 | L103: 222
A104: 11 | B104: 14787 | C104: 12 | D104: 14791 | E104: 14 | F104: 14796 | K104: 0 | L104: 111
A105: 22 | B105: 14904 | C105: 23 | D105: 14912 | E105: 23 | F105: 14917 | K105: 0 | L105: 222
A106: 22 | B106: 15022 | C106: 23 | D106: 15048 | E106: 23 | F106: 15052 | K106: 0 | L106: 222
A107: 22 | B107: 15154 | C107: 23 | D107: 15172 | E107: 23 | F107: 15175 | K107: 0 | L107: 222

Sheet !LB12A13..Ta
A1: Report for:!LB12A13..Ta
A2: Date: | B2: <date>
A3: Hen: | B3: <hen> | F3: Correct Sequence | G3: =Start!J2 -> 122 | P3: Total Sequences in Data | Q3: =4994-COUNTBLANK(L7:L5000) -> 148 | V3: Total Sequences in Block Data | W3: =COUNTA(L7:L31) -> 25 | AA3: Total Sequences in Block Data | AB3: =COUNTA(L32:L55) -> 24 | AF3: Total Sequences in Block Data | AG3: =COUNTA(L56:L80) -> 25 | AK3: Total Sequences in Block Data | AL3: =COUNTA(L81:L105) -> 25 | AP3: Total Sequences in Block Data | AQ3: =COUNTA(L106:L129) -> 24 | AU3: Total Sequences in Block Data | AV3: =COUNTA(L130:L154) -> 25
P4: Total Sequences in Summary | Q4: =SUM(O7:O14) -> 148 | V4: Total Sequences in Block Summary | W4: =SUM(U7:U14) -> 25 | AA4: Total Sequences in Block Summary | AB4: =SUM(Z7:Z14) -> 24 | AF4: Total Sequences in Block Summary | AG4: =SUM(AE7:AE14) -> 25 | AK4: Total Sequences in Block Summary | AL4: =SUM(AJ7:AJ14) -> 25 | AP4: Total Sequences in Block Summary | AQ4: =SUM(AO7:AO14) -> 24 | AU4: Total Sequences in Block Summary | AV4: =SUM(AT7:AT14) -> 25
T5: Block 1 | Y5: Block 2 | AD5: Block 3 | AI5: Block 4 | AN5: Block 5 | AS5: Block 6
A6: Sequence Component 1 | B6: Time 1 | C6: Sequence Component 2 | D6: Time 2 | E6: Sequence Component 3 | F6: Time 3 | G6: Sequence Component 4 | H6: Time 4 | I6: Sequence Component 5 | J6: Time 5 | K6: Correct? 0=No 1=Yes | L6: Sequence | N6: Frequency | P6: Relative Frequency | Q6: Variability | T6: Frequency | V6: Relative Frequency | W6: Variability | Y6: Frequency | AA6: Relative Frequency | AB6: Variability | AD6: Frequency | AF6: Relative Frequency | AG6: Variability | AI6: Frequency | AK6: Relative Frequency | AL6: Variability | AN6: Frequency | AP6: Relative Frequency | AQ6: Variability | AS6: Frequency | AU6: Relative Frequency | AV6: Variability
A7: 22 | B7: 881 | C7: 23 | D7: 886 | E7: 23 | F7: 891 | K7: 0 | L7: 222 | N7: 111 | O7: =COUNTIF($L$7:$L$500,N7) -> 16 | P7: =O7/$Q$4 -> 0.1081081081 | Q7: =IF(P7=0,0,(P7*((LOG(P7))/LOG(2)))) -> -0.3469679314 | T7: =N7 -> 111 | U7: =COUNTIF(L7:L31,T7) -> 0 | V7: =U7/(W4-U10) -> 0 | W7: =IF(V7=0,0,(V7*((LOG(V7))/LOG(2)))) -> 0 | Y7: =N7 -> 111 | Z7: =COUNTIF(L32:L55,Y7) -> 0 | AA7: =Z7/(AB4-Z10) -> 0 | AB7: =IF(AA7=0,0,(AA7*((LOG(AA7))/LOG(2)))) -> 0 | AD7: =N7 -> 111 | AE7: =COUNTIF(L56:L80,AD7) -> 5 | AF7: =AE7/(AG4-AE10) -> 0.2083333333 | AG7: =IF(AF7=0,0,(AF7*((LOG(AF7))/LOG(2)))) -> -0.4714655012 | AI7: =N7 -> 111 | AJ7: =COUNTIF(L81:L105,AI7) -> 5 | AK7: =AJ7/(AL4-AJ10) -> 0.2173913043 | AL7: =IF(AK7=0,0,(AK7*((LOG(AK7))/LOG(2)))) -> -0.4786160568 | AN7: =N7 -> 111 | AO7: =COUNTIF(L106:L129,AN7) -> 3 | AP7: =AO7/(AQ4-AO10) -> 0.15 | AQ7: =IF(AP7=0,0,(AP7*((LOG(AP7))/LOG(2)))) -> -0.4105448391 | AS7: =N7 -> 111 | AT7: =COUNTIF(L130:L154,AS7) -> 3 | AU7: =AT7/(AV4-AT10) -> 0.1428571429 | AV7: =IF(AU7=0,0,(AU7*((LOG(AU7))/LOG(2)))) -> -0.4010507032
A8: 22 | B8: 1026 | C8: 23 | D8: 1031 | E8: 23 | F8: 1036 | K8: 0 | L8: 222 | N8: 112 | O8: =COUNTIF($L$7:$L$500,N8) -> 0 | P8: =O8/$Q$4 -> 0 | Q8: =IF(P8=0,0,(P8*((LOG(P8))/LOG(2)))) -> 0 | T8: =N8 -> 112 | U8: =COUNTIF(L7:L31,T8) -> 0 | V8: =U8/(W4-U10) -> 0 | W8: =IF(V8=0,0,(V8*((LOG(V8))/LOG(2)))) -> 0 | Y8: =N8 -> 112 | Z8: =COUNTIF(L32:L55,Y8) -> 0 | AA8: =Z8/(AB4-Z10) -> 0 | AB8: =IF(AA8=0,0,(AA8*((LOG(AA8))/LOG(2)))) -> 0 | AD8: =N8 -> 112 | AE8: =COUNTIF(L56:L80,AD8) -> 0 | AF8: =AE8/(AG4-AE10) -> 0 | AG8: =IF(AF8=0,0,(AF8*((LOG(AF8))/LOG(2)))) -> 0 | AI8: =N8 -> 112 | AJ8: =COUNTIF(L81:L105,AI8) -> 0 | AK8: =AJ8/(AL4-AJ10) -> 0 | AL8: =IF(AK8=0,0,(AK8*((LOG(AK8))/LOG(2)))) -> 0 | AN8: =N8 -> 112 | AO8: =COUNTIF(L106:L129,AN8) -> 0 | AP8: =AO8/(AQ4-AO10) -> 0 | AQ8: =IF(AP8=0,0,(AP8*((LOG(AP8))/LOG(2)))) -> 0 | AS8: =N8 -> 112 | AT8: =COUNTIF(L130:L154,AS8) -> 0 | AU8: =AT8/(AV4-AT10) -> 0 | AV8: =IF(AU8=0,0,(AU8*((LOG(AU8))/LOG(2)))) -> 0
A9: 22 | B9: 1225 | C9: 23 | D9: 1229 | E9: 23 | F9: 1234 | K9: 0 | L9: 222 | N9: 121 | O9: =COUNTIF($L$7:$L$500,N9) -> 0 | P9: =O9/$Q$4 -> 0 | Q9: =IF(P9=0,0,(P9*((LOG(P9))/LOG(2)))) -> 0 | T9: =N9 -> 121 | U9: =COUNTIF(L7:L31,T9) -> 0 | V9: =U9/(W4-U10) -> 0 | W9: =IF(V9=0,0,(V9*((LOG(V9))/LOG(2)))) -> 0 | Y9: =N9 -> 121 | Z9: =COUNTIF(L32:L55,Y9) -> 0 | AA9: =Z9/(AB4-Z10) -> 0 | AB9: =IF(AA9=0,0,(AA9*((LOG(AA9))/LOG(2)))) -> 0 | AD9: =N9 -> 121 | AE9: =COUNTIF(L56:L80,AD9) -> 0 | AF9: =AE9/(AG4-AE10) -> 0 | AG9: =IF(AF9=0,0,(AF9*((LOG(AF9))/LOG(2)))) -> 0 | AI9: =N9 -> 121 | AJ9: =COUNTIF(L81:L105,AI9) -> 0 | AK9: =AJ9/(AL4-AJ10) -> 0 | AL9: =IF(AK9=0,0,(AK9*((LOG(AK9))/LOG(2)))) -> 0 | AN9: =N9 -> 121 | AO9: =COUNTIF(L106:L129,AN9) -> 0 | AP9: =AO9/(AQ4-AO10) -> 0 | AQ9: =IF(AP9=0,0,(AP9*((LOG(AP9))/LOG(2)))) -> 0 | AS9: =N9 -> 121 | AT9: =COUNTIF(L130:L154,AS9) -> 0 | AU9: =AT9/(AV4-AT10) -> 0 | AV9: =IF(AU9=0,0,(AU9*((LOG(AU9))/LOG(2)))) -> 0
A10: 22 | B10: 1443 | C10: 23 | D10: 1447 | E10: 23 | F10: 1450 | K10: 0 | L10: 222 | N10: 122 | O10: =COUNTIF($L$7:$L$500,N10) -> 12 | P10: =O10/$Q$4 -> 0.08108108108 | Q10: =IF(P10=0,0,(P10*((LOG(P10))/LOG(2)))) -> -0.2938776377 | T10: =N10 -> 122 | U10: =COUNTIF(L7:L31,T10) -> 1 | Y10: =N10 -> 122 | Z10: =COUNTIF(L32:L55,Y10) -> 0 | AD10: =N10 -> 122 | AE10: =COUNTIF(L56:L80,AD10) -> 1 | AI10: =N10 -> 122 | AJ10: =COUNTIF(L81:L105,AI10) -> 2 | AN10: =N10 -> 122 | AO10: =COUNTIF(L106:L129,AN10) -> 4 | AS10: =N10 -> 122 | AT10: =COUNTIF(L130:L154,AS10) -> 4
A11: 22 | B11: 1593 | C11: 23 | D11: 1597 | E11: 23 | F11: 1601 | K11: 0 | L11: 222 | N11: 211 | O11: =COUNTIF($L$7:$L$500,N11) -> 6 | P11: =O11/$Q$4 -> 0.04054054054 | Q11: =IF(P11=0,0,(P11*((LOG(P11))/LOG(2)))) -> -0.1874793594 | T11: =N11 -> 211 | U11: =COUNTIF(L7:L31,T11) -> 3 | V11: =U11/(W4-U10) -> 0.125 | W11: =IF(V11=0,0,(V11*((LOG(V11))/LOG(2)))) -> -0.375 | Y11: =N11 -> 211 | Z11: =COUNTIF(L32:L55,Y11) -> 0 | AA11: =Z11/(AB4-Z10) -> 0 | AB11: =IF(AA11=0,0,(AA11*((LOG(AA11))/LOG(2)))) -> 0 | AD11: =N11 -> 211 | AE11: =COUNTIF(L56:L80,AD11) -> 2 | AF11: =AE11/(AG4-AE10) -> 0.08333333333 | AG11: =IF(AF11=0,0,(AF11*((LOG(AF11))/LOG(2)))) -> -0.2987468751 | AI11: =N11 -> 211 | AJ11: =COUNTIF(L81:L105,AI11) -> 0 | AK11: =AJ11/(AL4-AJ10) -> 0 | AL11: =IF(AK11=0,0,(AK11*((LOG(AK11))/LOG(2)))) -> 0 | AN11: =N11 -> 211 | AO11: =COUNTIF(L106:L129,AN11) -> 1 | AP11: =AO11/(AQ4-AO10) -> 0.05 | AQ11: =IF(AP11=0,0,(AP11*((LOG(AP11))/LOG(2)))) -> -0.2160964047 | AS11: =N11 -> 211 | AT11: =COUNTIF(L130:L154,AS11) -> 0 | AU11: =AT11/(AV4-AT10) -> 0 | AV11: =IF(AU11=0,0,(AU11*((LOG(AU11))/LOG(2)))) -> 0
A12: 22 | B12: 2127 | C12: 23 | D12: 2135 | E12: 23 | F12: 2141 | K12: 0 | L12: 222 | N12: 212 | O12: =COUNTIF($L$7:$L$500,N12) -> 2 | P12: =O12/$Q$4 -> 0.01351351351 | Q12: =IF(P12=0,0,(P12*((LOG(P12))/LOG(2)))) -> -0.08391153197 | T12: =N12 -> 212 | U12: =COUNTIF(L7:L31,T12) -> 0 | V12: =U12/(W4-U10) -> 0 | W12: =IF(V12=0,0,(V12*((LOG(V12))/LOG(2)))) -> 0 | Y12: =N12 -> 212 | Z12: =COUNTIF(L32:L55,Y12) -> 0 | AA12: =Z12/(AB4-Z10) -> 0 | AB12: =IF(AA12=0,0,(AA12*((LOG(AA12))/LOG(2)))) -> 0 | AD12: =N12 -> 212 | AE12: =COUNTIF(L56:L80,AD12) -> 0 | AF12: =AE12/(AG4-AE10) -> 0 | AG12: =IF(AF12=0,0,(AF12*((LOG(AF12))/LOG(2)))) -> 0 | AI12: =N12 -> 212 | AJ12: =COUNTIF(L81:L105,AI12) -> 2 | AK12: =AJ12/(AL4-AJ10) -> 0.08695652174 | AL12: =IF(AK12=0,0,(AK12*((LOG(AK12))/LOG(2)))) -> -0.3063966918 | AN12: =N12 -> 212 | AO12: =COUNTIF(L106:L129,AN12) -> 0 | AP12: =AO12/(AQ4-AO10) -> 0 | AQ12: =IF(AP12=0,0,(AP12*((LOG(AP12))/LOG(2)))) -> 0 | AS12: =N12 -> 212 | AT12: =COUNTIF(L130:L154,AS12) -> 0 | AU12: =AT12/(AV4-AT10) -> 0 | AV12: =IF(AU12=0,0,(AU12*((LOG(AU12))/LOG(2)))) -> 0
A13: 22 | B13: 2240 | C13: 23 | D13: 2262 | E13: 23 | F13: 2268 | K13: 0 | L13: 222 | N13: 221 | O13: =COUNTIF($L$7:$L$500,N13) -> 7 | P13: =O13/$Q$4 -> 0.0472972973 | Q13: =IF(P13=0,0,(P13*((LOG(P13))/LOG(2)))) -> -0.2082073588 | T13: =N13 -> 221 | U13: =COUNTIF(L7:L31,T13) -> 2 | V13: =U13/(W4-U10) -> 0.08333333333 | W13: =IF(V13=0,0,(V13*((LOG(V13))/LOG(2)))) -> -0.2987468751 | Y13: =N13 -> 221 | Z13: =COUNTIF(L32:L55,Y13) -> 2 | AA13: =Z13/(AB4-Z10) -> 0.08333333333 | AB13: =IF(AA13=0,0,(AA13*((LOG(AA13))/LOG(2)))) -> -0.2987468751 | AD13: =N13 -> 221 | AE13: =COUNTIF(L56:L80,AD13) -> 0 | AF13: =AE13/(AG4-AE10) -> 0 | AG13: =IF(AF13=0,0,(AF13*((LOG(AF13))/LOG(2)))) -> 0 | AI13: =N13 -> 221 | AJ13: =COUNTIF(L81:L105,AI13) -> 1 | AK13: =AJ13/(AL4-AJ10) -> 0.04347826087 | AL13: =IF(AK13=0,0,(AK13*((LOG(AK13))/LOG(2)))) -> -0.1966766068 | AN13: =N13 -> 221 | AO13: =COUNTIF(L106:L129,AN13) -> 2 | AP13: =AO13/(AQ4-AO10) -> 0.1 | AQ13: =IF(AP13=0,0,(AP13*((LOG(AP13))/LOG(2)))) -> -0.3321928095 | AS13: =N13 -> 221 | AT13: =COUNTIF(L130:L154,AS13) -> 0 | AU13: =AT13/(AV4-AT10) -> 0 | AV13: =IF(AU13=0,0,(AU13*((LOG(AU13))/LOG(2)))) -> 0
A14: 22 | B14: 2380 | C14: 23 | D14: 2384 | E14: 23 | F14: 2389 | K14: 0 | L14: 222 | N14: 222 | O14: =COUNTIF($L$7:$L$500,N14) -> 105 | P14: =O14/$Q$4 -> 0.7094594595 | Q14: =IF(P14=0,0,(P14*((LOG(P14))/LOG(2)))) -> -0.3513298921 | T14: =N14 -> 222 | U14: =COUNTIF(L7:L31,T14) -> 19 | V14: =U14/(W4-U10) -> 0.7916666667 | W14: =IF(V14=0,0,(V14*((LOG(V14))/LOG(2)))) -> -0.2668193649 | Y14: =N14 -> 222 | Z14: =COUNTIF(L32:L55,Y14) -> 22 | AA14: =Z14/(AB4-Z10) -> 0.9166666667 | AB14: =IF(AA14=0,0,(AA14*((LOG(AA14))/LOG(2)))) -> -0.1150699752 | AD14: =N14 -> 222 | AE14: =COUNTIF(L56:L80,AD14) -> 17 | AF14: =AE14/(AG4-AE10) -> 0.7083333333 | AG14: =IF(AF14=0,0,(AF14*((LOG(AF14))/LOG(2)))) -> -0.3523955921 | AI14: =N14 -> 222 | AJ14: =COUNTIF(L81:L105,AI14) -> 15 | AK14: =AJ14/(AL4-AJ10) -> 0.652173913 | AL14: =IF(AK14=0,0,(AK14*((LOG(AK14))/LOG(2)))) -> -0.4021769742 | AN14: =N14 -> 222 | AO14: =COUNTIF(L106:L129,AN14) -> 14 | AP14: =AO14/(AQ4-AO10) -> 0.7 | AQ14: =IF(AP14=0,0,(AP14*((LOG(AP14))/LOG(2)))) -> -0.360201221 | AS14: =N14 -> 222 | AT14: =COUNTIF(L130:L154,AS14) -> 18 | AU14: =AT14/(AV4-AT10) -> 0.8571428571 | AV14: =IF(AU14=0,0,(AU14*((LOG(AU14))/LOG(2)))) -> -0.1906220754
A15: 22 | B15: 2521 | C15: 23 | D15: 2525 | E15: 23 | F15: 2530 | K15: 0 | L15: 222 | P15: =SUM(P7:P14) -> 1 | Q15: =-SUM(Q7:Q14) -> 1.471773711 | V15: =SUM(V7:V14) -> 1 | W15: =-SUM(W7:W14) -> 0.94056624 | AA15: =SUM(AA7:AA14) -> 1 | AB15: =-SUM(AB7:AB14) -> 0.4138168503 | AF15: =SUM(AF7:AF14) -> 1 | AG15: =-SUM(AG7:AG14) -> 1.122607968 | AK15: =SUM(AK7:AK14) -> 1 | AL15: =-SUM(AL7:AL14) -> 1.38386633 | AP15: =SUM(AP7:AP14) -> 1 | AQ15: =-SUM(AQ7:AQ14) -> 1.319035274 | AU15: =SUM(AU7:AU14) -> 1 | AV15: =-SUM(AV7:AV14) -> 0.5916727786
A16: 22 | B16: 2640 | C16: 23 | D16: 2648 | E16: 23 | F16: 2651 | K16: 0 | L16: 222 | P16: U= | Q16: =Q15/(LOG(Q4)/LOG(2)) -> 0.2041449798 | V16: U1= | W16: =W15/(LOG(W4)/LOG(2)) -> 0.2025399154 | AA16: U2= | AB16: =AB15/(LOG(AB4)/LOG(2)) -> 0.09025523115 | AF16: U3= | AG16: =AG15/(LOG(AG4)/LOG(2)) -> 0.2417404679 | AK16: U4= | AL16: =AL15/(LOG(AL4)/LOG(2)) -> 0.2979993938 | AP16: U5= | AQ16: =AQ15/(LOG(AQ4)/LOG(2)) -> 0.2876872546 | AU16: U6= | AV16: =AV15/(LOG(AV4)/LOG(2)) -> 0.1274097979
A17: 22 | B17: 2753 | C17: 23 | D17: 2769 | E17: 14 | F17: 2777 | K17: 0 | L17: 221
A18: 22 | B18: 2876 | C18: 14 | D18: 2889 | E18: 14 | F18: 2894 | K18: 0 | L18: 211
A19: 22 | B19: 2993 | C19: 23 | D19: 3002 | E19: 23 | F19: 3006 | K19: 0 | L19: 222 | N19: Total Target Seq
A20: 22 | B20: 3298 | C20: 23 | D20: 3302 | E20: 23 | F20: 3307 | K20: 0 | L20: 222 | N20: =COUNTIF(L7:L154,G3) -> 12 | P20: 25 | Q20: 24 | R20: 25 | S20: 25 | T20: 24 | U20: 25
A21: 22 | B21: 3411 | C21: 14 | D21: 3422 | E21: 14 | F21: 3425 | K21: 0 | L21: 211 | P21: % of reinforcement given in 6 equal intervals based on number of trials
A22: 11 | B22: 3587 | C22: 21 | D22: 3600 | E22: 21 | F22: 3604 | K22: 0 | L22: 122 | P22: %_1 | Q22: %_2 | R22: %_3 | S22: %_4 | T22: %_5 | U22: %_6
A23: 22 | B23: 3790 | C23: 23 | D23: 3794 | E23: 23 | F23: 3798 | K23: 0 | L23: 222 | O23: target sequence | P23: =$G$3 -> 122 | Q23: =$G$3 -> 122 | R23: =$G$3 -> 122 | S23: =$G$3 -> 122 | T23: =$G$3 -> 122 | U23: =$G$3 -> 122
A24: 22 | B24: 3904 | C24: 23 | D24: 3907 | E24: 23 | F24: 3911 | K24: 0 | L24: 222 | O24: total reinforcement | P24: =U10 -> 1 | Q24: =Z10 -> 0 | R24: =AE10 -> 1 | S24: =AJ10 -> 2 | T24: =AO10 -> 4 | U24: =AT10 -> 4
A25: 22 | B25: 4015 | C25: 23 | D25: 4019 | E25: 23 | F25: 4023 | K25: 0 | L25: 222 | O25: % target
A26: 22 | B26: 4122 | C26: 14 | D26: 4131 | E26: 14 | F26: 4139 | K26: 0 | L26: 211 | O26: CCRF
A27: 22 | B27: 4235 | C27: 23 | D27: 4239 | E27: 23 | F27: 4244 | K27: 0 | L27: 222 | O27: % CCRf
A28: 22 | B28: 4343 | C28: 23 | D28: 4346 | E28: 23 | F28: 4350 | K28: 0 | L28: 222 | O28: average response rate | P28: =F31/P20 -> 187.96 | Q28: =(F55-F31)/Q20 -> 133 | R28: =(F80-F55)/R20 -> 135.6 | S28: =(F105-F80)/S20 -> 146.52 | T28: =(F129-F105)/T20 -> 142 | U28: =(F154-F129)/U20 -> 189.44
A29: 22 | B29: 4448 | C29: 23 | D29: 4453 | E29: 23 | F29: 4458 | K29: 0 | L29: 222
A30: 22 | B30: 4579 | C30: 23 | D30: 4585 | E30: 23 | F30: 4589 | K30: 0 | L30: 222
A31: 22 | B31: 4681 | C31: 23 | D31: 4690 | E31: 14 | F31: 4699 | K31: 0 | L31: 221
A32: 22 | B32: 4893 | C32: 23 | D32: 4897 | E32: 23 | F32: 4904 | K32: 0 | L32: 222
A33: 22 | B33: 5029 | C33: 23 | D33: 5038 | E33: 23 | F33: 5045 | K33: 0 | L33: 222
A34: 22 | B34: 5151 | C34: 23 | D34: 5155 | E34: 14 | F34: 5167 | K34: 0 | L34: 221
A35: 22 | B35: 5270 | C35: 23 | D35: 5280 | E35: 14 | F35: 5289 | K35: 0 | L35: 221
A36: 22 | B36: 5401 | C36: 23 | D36: 5407 | E36: 23 | F36: 5411 | K36: 0 | L36: 222
A37: 22 | B37: 5515 | C37: 23 | D37: 5519 | E37: 23 | F37: 5523 | K37: 0 | L37: 222
A38: 22 | B38: 5641 | C38: 23 | D38: 5644 | E38: 23 | F38: 5648 | K38: 0 | L38: 222
A39: 22 | B39: 5755 | C39: 23 | D39: 5778 | E39: 23 | F39: 5782 | K39: 0 | L39: 222
A40: 22 | B40: 5883 | C40: 23 | D40: 5909 | E40: 23 | F40: 5914 | K40: 0 | L40: 222
A41: 22 | B41: 6011 | C41: 23 | D41: 6019 | E41: 23 | F41: 6024 | K41: 0 | L41: 222
A42: 22 | B42: 6120 | C42: 23 | D42: 6124 | E42: 23 | F42: 6127 | K42: 0 | L42: 222
A43: 22 | B43: 6262 | C43: 23 | D43: 6268 | E43: 23 | F43: 6273 | K43: 0 | L43: 222
A44: 22 | B44: 6404 | C44: 23 | D44: 6407 | E44: 23 | F44: 6412 | K44: 0 | L44: 222
A45: 22 | B45: 6515 | C45: 23 | D45: 6531 | E45: 23 | F45: 6536 | K45: 0 | L45: 222
A46: 22 | B46: 6653 | C46: 23 | D46: 6656 | E46: 23 | F46: 6666 | K46: 0 | L46: 222
A47: 22 | B47: 6786 | C47: 23 | D47: 6790 | E47: 23 | F47: 6796 | K47: 0 | L47: 222
A48: 22 | B48: 6914 | C48: 23 | D48: 6921 | E48: 23 | F48: 6926 | K48: 0 | L48: 222
A49: 22 | B49: 7071 | C49: 23 | D49: 7076 | E49: 23 | F49: 7086 | K49: 0 | L49: 222
A50: 22 | B50: 7222 | C50: 23 | D50: 7225 | E50: 23 | F50: 7230 | K50: 0 | L50: 222
A51: 22 | B51: 7363 | C51: 23 | D51: 7368 | E51: 23 | F51: 7373 | K51: 0 | L51: 222
A52: 22 | B52: 7478 | C52: 23 | D52: 7509 | E52: 23 | F52: 7514 | K52: 0 | L52: 222
A53: 22 | B53: 7630 | C53: 23 | D53: 7632 | E53: 23 | F53: 7640 | K53: 0 | L53: 222
A54: 22 | B54: 7758 | C54: 23 | D54: 7764 | E54: 23 | F54: 7768 | K54: 0 | L54: 222
A55: 22 | B55: 7868 | C55: 23 | D55: 7882 | E55: 23 | F55: 7891 | K55: 0 | L55: 222
A56: 22 | B56: 8005 | C56: 14 | D56: 8017 | E56: 14 | F56: 8021 | K56: 0 | L56: 211
A57: 22 | B57: 8120 | C57: 23 | D57: 8123 | E57: 23 | F57: 8131 | K57: 0 | L57: 222
A58: 22 | B58: 8243 | C58: 23 | D58: 8253 | E58: 23 | F58: 8257 | K58: 0 | L58: 222
A59: 11 | B59: 8364 | C59: 21 | D59: 8379 | E59: 21 | F59: 8383 | K59: 0 | L59: 122
A60: 22 | B60: 8604 | C60: 23 | D60: 8607 | E60: 23 | F60: 8612 | K60: 0 | L60: 222
A61: 22 | B61: 8726 | C61: 23 | D61: 8729 | E61: 23 | F61: 8733 | K61: 0 | L61: 222
A62: 22 | B62: 8853 | C62: 23 | D62: 8856 | E62: 23 | F62: 8860 | K62: 0 | L62: 222
A63: 22 | B63: 8975 | C63: 23 | D63: 8978 | E63: 23 | F63: 8984 | K63: 0 | L63: 222
A64: 22 | B64: 9098 | C64: 23 | D64: 9102 | E64: 23 | F64: 9106 | K64: 0 | L64: 222
A65: 22 | B65: 9229 | C65: 23 | D65: 9233 | E65: 23 | F65: 9242 | K65: 0 | L65: 222
A66: 22 | B66: 9353 | C66: 23 | D66: 9355 | E66: 23 | F66: 9359 | K66: 0 | L66: 222
A67: 22 | B67: 9487 | C67: 23 | D67: 9491 | E67: 23 | F67: 9503 | K67: 0 | L67: 222
A68: 11 | B68: 9625 | C68: 12 | D68: 9628 | E68: 14 | F68: 9634 | K68: 0 | L68: 111
A69: 22 | B69: 9784 | C69: 23 | D69: 9789 | E69: 23 | F69: 9800 | K69: 0 | L69: 222
A70: 11 | B70: 9912 | C70: 12 | D70: 9915 | E70: 14 | F70: 9922 | K70: 0 | L70: 111
A71: 22 | B71: 10057 | C71: 23 | D71: 10061 | E71: 23 | F71: 10065 | K71: 0 | L71: 222
A72: 11 | B72: 10182 | C72: 12 | D72: 10190 | E72: 14 | F72: 10194 | K72: 0 | L72: 111
A73: 22 | B73: 10306 | C73: 23 | D73: 10310 | E73: 23 | F73: 10314 | K73: 0 | L73: 222
A74: 22 | B74: 10481 | C74: 23 | D74: 10485 | E74: 23 | F74: 10494 | K74: 0 | L74: 222
A75: 22 | B75: 10621 | C75: 23 | D75: 10625 | E75: 23 | F75: 10629 | K75: 0 | L75: 222
A76: 22 | B76: 10729 | C76: 14 | D76: 10758 | E76: 14 | F76: 10763 | K76: 0 | L76: 211
A77: 11 | B77: 10873 | C77: 12 | D77: 10878 | E77: 14 | F77: 10881 | K77: 0 | L77: 111
A78: 22 | B78: 11009 | C78: 23 | D78: 11012 | E78: 23 | F78: 11016 | K78: 0 | L78: 222
A79: 22 | B79: 11144 | C79: 23 | D79: 11148 | E79: 23 | F79: 11153 | K79: 0 | L79: 222
A80: 11 | B80: 11266 | C80: 12 | D80: 11272 | E80: 14 | F80: 11281 | K80: 0 | L80: 111
A81: 11 | B81: 11398 | C81: 12 | D81: 11401 | E81: 14 | F81: 11406 | K81: 0 | L81: 111
A82: 11 | B82: 11526 | C82: 12 | D82: 11528 | E82: 14 | F82: 11537 | K82: 0 | L82: 111
A83: 22 | B83: 11664 | C83: 23 | D83: 11667 | E83: 23 | F83: 11695 | K83: 0 | L83: 222
A84: 22 | B84: 11793 | C84: 14 | D84: 11801 | E84: 23 | F84: 11815 | K84: 0 | L84: 212
A85: 22 | B85: 11912 | C85: 23 | D85: 11920 | E85: 23 | F85: 11923 | K85: 0 | L85: 222
A86: 11 | B86: 12061 | C86: 21 | D86: 12075 | E86: 21 | F86: 12080 | K86: 0 | L86: 122
A87: 22 | B87: 12409 | C87: 23 | D87: 12412 | E87: 23 | F87: 12417 | K87: 0 | L87: 222
A88: 22 | B88: 12537 | C88: 23 | D88: 12540 | E88: 23 | F88: 12544 | K88: 0 | L88: 222
A89: 22 | B89: 12666 | C89: 23 | D89: 12672 | E89: 23 | F89: 12677 | K89: 0 | L89: 222
A90: 22 | B90: 12823 | C90: 23 | D90: 12828 | E90: 23 | F90: 12837 | K90: 0 | L90: 222
A91: 22 | B91: 12966 | C91: 23 | D91: 12971 | E91: 23 | F91: 12978 | K91: 0 | L91: 222
A92: 11 | B92: 13099 | C92: 12 | D92: 13102 | E92: 14 | F92: 13108 | K92: 0 | L92: 111
A93: 11 | B93: 13216 | C93: 12 | D93: 13219 | E93: 14 | F93: 13225 | K93: 0 | L93: 111
A94: 22 | B94: 13337 | C94: 23 | D94: 13346 | E94: 23 | F94: 13351 | K94: 0 | L94: 222
A95: 22 | B95: 13449 | C95: 14 | D95: 13456 | E95: 23 | F95: 13468 | K95: 0 | L95: 212
A96: 22 | B96: 13570 | C96: 23 | D96: 13591 | E96: 23 | F96: 13597 | K96: 0 | L96: 222
A97: 22 | B97: 13726 | C97: 23 | D97: 13730 | E97: 23 | F97: 13735 | K97: 0 | L97: 222
A98: 22 | B98: 13894 | C98: 23 | D98: 13899 | E98: 23 | F98: 13906 | K98: 0 | L98: 222
A99: 11 | B99: 14029 | C99: 12 | D99: 14032 | E99: 14 | F99: 14037 | K99: 0 | L99: 111
A100: 22 | B100: 14138 | C100: 23 | D100: 14153 | E100: 23 | F100: 14158 | K100: 0 | L100: 222
A101: 11 | B101: 14259 | C101: 21 | D101: 14292 | E101: 21 | F101: 14296 | K101: 0 | L101: 122
A102: 22 | B102: 14516 | C102: 23 | D102: 14520 | E102: 23 | F102: 14531 | K102: 0 | L102: 222
A103: 22 | B103: 14659 | C103: 23 | D103: 14663 | E103: 23 | F103: 14666 | K103: 0 | L103: 222
A104: 22 | B104: 14783 | C104: 23 | D104: 14787 | E104: 14 | F104: 14813 | K104: 0 | L104: 221
A105: 22 | B105: 14935 | C105: 23 | D105: 14939 | E105: 23 | F105: 14944 | K105: 0 | L105: 222
A106: 22 | B106: 15052 | C106: 23 | D106: 15067 | E106: 23 | F106: 15072 | K106: 0 | L106: 222
A107: 11 | B107: 15187 | C107: 21 | D107: 15202 | E107: 21 | F107: 15206 | K107: 0 | L107: 122
A108: 22 | B108: 15473 | C108: 23 | D108: 15477 | E108: 23 | F108: 15484 | K108: 0 | L108: 222
A109: 11 | B109: 15584 | C109: 21 | D109: 15597 | E109: 21 | F109: 15600 | K109: 0 | L109: 122
A110: 11 | B110: 15759 | C110: 12 | D110: 15766 | E110: 14 | F110: 15770 | K110: 0 | L110: 111
A111: 11 | B111: 15868 | C111: 21 | D111: 15882 | E111: 21 | F111: 15886 | K111: 0 | L111: 122
A112: 11 | B112: 16071 | C112: 21 | D112: 16083 | E112: 21 | F112: 16088 | K112: 0 | L112: 122
A113: 11 | B113: 16285 | C113: 12 | D113: 16293 | E113: 14 | F113: 16303 | K113: 0 | L113: 111
A114: 22 | B114: 16413 | C114: 23 | D114: 16416 | E114: 23 | F114: 16424 | K114: 0 | L114: 222
A115: 22 | B115: 16529 | C115: 23 | D115: 16532 | E115: 23 | F115: 16537 | K115: 0 | L115: 222
A116: 22 | B116: 16659 | C116: 23 | D116: 16663 | E116: 23 | F116: 16672 | K116: 0 | L116: 222
A117: 22 | B117: 16783 | C117: 23 | D117: 16786 | E117: 14 | F117: 16803 | K117: 0 | L117: 221
A118: 22 | B118: 16904 | C118: 23 | D118: 16909 | E118: 23 | F118: 16915 | K118: 0 | L118: 222
A119: 22 | B119: 17027 | C119: 23 | D119: 17030 | E119: 14 | F119: 17050 | K119: 0 | L119: 221
A120: 22 | B120: 17183 | C120: 23 | D120: 17188 | E120: 23 | F120: 17194 | K120: 0 | L120: 222
A121: 22 | B121: 17322 | C121: 23 | D121: 17326 | E121: 23 | F121: 17345 | K121: 0 | L121: 222
A122: 11 | B122: 17458 | C122: 12 | D122: 17462 | E122: 14 | F122: 17467 | K122: 0 | L122: 111
A123: 22 | B123: 17568 | C123: 23 | D123: 17592 | E123: 23 | F123: 17596 | K123: 0 | L123: 222
A124: 22 | B124: 17704 | C124: 23 | D124: 17708 | E124: 23 | F124: 17712 | K124: 0 | L124: 222
A125: 22 | B125: 17830 | C125: 23 | D125: 17834 | E125: 23 | F125: 17838 | K125: 0 | L125: 222
A126: 22 | B126: 17941 | C126: 14 | D126: 17951 | E126: 14 | F126: 17954 | K126: 0 | L126: 211
A127: 22 | B127: 18073 | C127: 23 | D127: 18077 | E127: 23 | F127: 18081 | K127: 0 | L127: 222
A128: 22 | B128: 18184 | C128: 23 | D128: 18187 | E128: 23 | F128: 18191 | K128: 0 | L128: 222
A129: 22 | B129: 18342 | C129: 23 | D129: 18346 | E129: 23 | F129: 18352 | K129: 0 | L129: 222
A130: 22 | B130: 18484 | C130: 23 | D130: 18489 | E130: 23 | F130: 18493 | K130: 0 | L130: 222
A131: 22 | B131: 18594 | C131: 23 | D131: 18610 | E131: 23 | F131: 18616 | K131: 0 | L131: 222
A132: 22 | B132: 18742 | C132: 23 | D132: 18745 | E132: 23 | F132: 18750 | K132: 0 | L132: 222
A133: 22 | B133: 18849 | C133: 23 | D133: 18852 | E133: 23 | F133: 18856 | K133: 0 | L133: 222
A134: 22 | B134: 18979 | C134: 23 | D134: 18983 | E134: 23 | F134: 18989 | K134: 0 | L134: 222
A135: 11 | B135: 19111 | C135: 21 | D135: 19124 | E135: 21 | F135: 19128 | K135: 0 | L135: 122
A136: 22 | B136: 19318 | C136: 23 | D136: 19321 | E136: 23 | F136: 19325 | K136: 0 | L136: 222
A137: 11 | B137: 19435 | C137: 12 | D137: 19438 | E137: 14 | F137: 19442 | K137: 0 | L137: 111
A138: 22 | B138: 19553 | C138: 23 | D138: 19576 | E138: 23 | F138: 19580 | K138: 0 | L138: 222
A139: 22 | B139: 19685 | C139: 23 | D139: 19688 | E139: 23 | F139: 19692 | K139: 0 | L139: 222
A140: 22 | B140: 19789 | C140: 23 | D140: 19810 | E140: 23 | F140: 19814 | K140: 0 | L140: 222
A141: 22 | B141: 19921 | C141: 23 | D141: 19932 | E141: 23 | F141: 19935 | K141: 0 | L141: 222
A142: 22 | B142: 20054 | C142: 23 | D142: 20057 | E142: 23 | F142: 20065 | K142: 0 | L142: 222
A143: 22 | B143: 20182 | C143: 23 | D143: 20186 | E143: 23 | F143: 20192 | K143: 0 | L143: 222
A144: 11 | B144: 20299 | C144: 21 | D144: 20313 | E144: 21 | F144: 20317 | K144: 0 | L144: 122
A145: 22 | B145: 21972 | C145: 23 | D145: 21977 | E145: 23 | F145: 21993 | K145: 0 | L145: 222
A146: 22 | B146: 22108 | C146: 23 | D146: 22113 | E146: 23 | F146: 22119 | K146: 0 | L146: 222
A147: 11 | B147: 22238 | C147: 12 | D147: 22242 | E147: 14 | F147: 22248 | K147: 0 | L147: 111
A148: 22 | B148: 22365 | C148: 23 | D148: 22370 | E148: 23 | F148: 22375 | K148: 0 | L148: 222
A149: 11 | B149: 22471 | C149: 21 | D149: 22485 | E149: 21 | F149: 22488 | K149: 0 | L149: 122
A150: 22 | B150: 22586 | C150: 23 | D150: 22589 | E150: 23 | F150: 22593 | K150: 0 | L150: 222
A151: 11 | B151: 22701 | C151: 12 | D151: 22706 | E151: 14 | F151: 22709 | K151: 0 | L151: 111
A152: 22 | B152: 22829 | C152: 23 | D152: 22833 | E152: 23 | F152: 22842 | K152: 0 | L152: 222
A153: 22 | B153: 22950 | C153: 23 | D153: 22954 | E153: 23 | F153: 22960 | K153: 0 | L153: 222
A154: 11 | B154: 23070 | C154: 21 | D154: 23083 | E154: 21 | F154: 23088 | K154: 0 | L154: 122

Sheet !LB13A23..Ta
A1: Report for:!LB13A23..Ta
A2: Date: | B2: <date>
A3: Hen: | B3: <hen> | F3: Correct Sequence | G3: =Start!J2 -> 122 | P3: Total Sequences in Data | Q3: =4994-COUNTBLANK(L7:L5000) -> 108 | V3: Total Sequences in Block Data | W3: =COUNTA(L7:L24) -> 18 | AA3: Total Sequences in Block Data | AB3: =COUNTA(L25:L42) -> 18 | AF3: Total Sequences in Block Data | AG3: =COUNTA(L43:L60) -> 18 | AK3: Total Sequences in Block Data | AL3: =COUNTA(L61:L78) -> 18 | AP3: Total Sequences in Block Data | AQ3: =COUNTA(L79:L96) -> 18 | AU3: Total Sequences in Block Data | AV3: =COUNTA(L97:L114) -> 18
P4: Total Sequences in Summary | Q4: =SUM(O7:O14) -> 108 | V4: Total Sequences in Block Summary | W4: =SUM(U7:U14) -> 18 | AA4: Total Sequences in Block Summary | AB4: =SUM(Z7:Z14) -> 18 | AF4: Total Sequences in Block Summary | AG4: =SUM(AE7:AE14) -> 18 | AK4: Total Sequences in Block Summary | AL4: =SUM(AJ7:AJ14) -> 18 | AP4: Total Sequences in Block Summary | AQ4: =SUM(AO7:AO14) -> 18 | AU4: Total Sequences in Block Summary | AV4: =SUM(AT7:AT14) -> 18
T5: Block 1 | Y5: Block 2 | AD5: Block 3 | AI5: Block 4 | AN5: Block 5 | AS5: Block 6
A6: Sequence Component 1 | B6: Time 1 | C6: Sequence Component 2 | D6: Time 2 | E6: Sequence Component 3 | F6: Time 3 | G6: Sequence Component 4 | H6: Time 4 | I6: Sequence Component 5 | J6: Time 5 | K6: Correct? 0=No 1=Yes | L6: Sequence | N6: Frequency | P6: Relative Frequency | Q6: Variability | T6: Frequency | V6: Relative Frequency | W6: Variability | Y6: Frequency | AA6: Relative Frequency | AB6: Variability | AD6: Frequency | AF6: Relative Frequency | AG6: Variability | AI6: Frequency | AK6: Relative Frequency | AL6: Variability | AN6: Frequency | AP6: Relative Frequency | AQ6: Variability | AS6: Frequency | AU6: Relative Frequency | AV6: Variability
A7: 22 | B7: 24 | C7: 23 | D7: 29 | E7: 23 | F7: 33 | K7: 0 | L7: 222 | N7: 111 | O7: =COUNTIF($L$7:$L$500,N7) -> 12 | P7: =O7/$Q$4 -> 0.1111111111 | Q7: =IF(P7=0,0,(P7*((LOG(P7))/LOG(2)))) -> -0.352213889 | T7: =N7 -> 111 | U7: =COUNTIF(L7:L24,T7) -> 0 | V7: =U7/(W4-U10) -> 0 | W7: =IF(V7=0,0,(V7*((LOG(V7))/LOG(2)))) -> 0 | Y7: =N7 -> 111 | Z7: =COUNTIF(L25:L42,Y7) -> 1 | AA7: =Z7/(AB4-Z10) -> 0.09090909091 | AB7: =IF(AA7=0,0,(AA7*((LOG(AA7))/LOG(2)))) -> -0.3144937835 | AD7: =N7 -> 111 | AE7: =COUNTIF(L43:L60,AD7) -> 2 | AF7: =AE7/(AG4-AE10) -> 0.1428571429 | AG7: =IF(AF7=0,0,(AF7*((LOG(AF7))/LOG(2)))) -> -0.4010507032 | AI7: =N7 -> 111 | AJ7: =COUNTIF(L61:L78,AI7) -> 4 | AK7: =AJ7/(AL4-AJ10) -> 0.25 | AL7: =IF(AK7=0,0,(AK7*((LOG(AK7))/LOG(2)))) -> -0.5 | AN7: =N7 -> 111 | AO7: =COUNTIF(L79:L96,AN7) -> 2 | AP7: =AO7/(AQ4-AO10) -> 0.1818181818 | AQ7: =IF(AP7=0,0,(AP7*((LOG(AP7))/LOG(2)))) -> -0.4471693852 | AS7: =N7 -> 111 | AT7: =COUNTIF(L97:L114,AS7) -> 3 | AU7: =AT7/(AV4-AT10) -> 0.25 | AV7: =IF(AU7=0,0,(AU7*((LOG(AU7))/LOG(2)))) -> -0.5
A8: 22 | B8: 130 | C8: 14 | D8: 146 | E8: 14 | F8: 149 | K8: 0 | L8: 211 | N8: 112 | O8: =COUNTIF($L$7:$L$500,N8) -> 10 | P8: =O8/$Q$4 -> 0.09259259259 | Q8: =IF(P8=0,0,(P8*((LOG(P8))/LOG(2)))) -> -0.3178666118 | T8: =N8 -> 112 | U8: =COUNTIF(L7:L24,T8) -> 0 | V8: =U8/(W4-U10) -> 0 | W8: =IF(V8=0,0,(V8*((LOG(V8))/LOG(2)))) -> 0 | Y8: =N8 -> 112 | Z8: =COUNTIF(L25:L42,Y8) -> 1 | AA8: =Z8/(AB4-Z10) -> 0.09090909091 | AB8: =IF(AA8=0,0,(AA8*((LOG(AA8))/LOG(2)))) -> -0.3144937835 | AD8: =N8 -> 112 | AE8: =COUNTIF(L43:L60,AD8) -> 3 | AF8: =AE8/(AG4-AE10) -> 0.2142857143 | AG8: =IF(AF8=0,0,(AF8*((LOG(AF8))/LOG(2)))) -> -0.4762269474 | AI8: =N8 -> 112 | AJ8: =COUNTIF(L61:L78,AI8) -> 0 | AK8: =AJ8/(AL4-AJ10) -> 0 | AL8: =IF(AK8=0,0,(AK8*((LOG(AK8))/LOG(2)))) -> 0 | AN8: =N8 -> 112 | AO8: =COUNTIF(L79:L96,AN8) -> 3 | AP8: =AO8/(AQ4-AO10) -> 0.2727272727 | AQ8: =IF(AP8=0,0,(AP8*((LOG(AP8))/LOG(2)))) -> -0.5112188503 | AS8: =N8 -> 112 | AT8: =COUNTIF(L97:L114,AS8) -> 3 | AU8: =AT8/(AV4-AT10) -> 0.25 | AV8: =IF(AU8=0,0,(AU8*((LOG(AU8))/LOG(2)))) -> -0.5
A9: 22 | B9: 242 | C9: 23 | D9: 254 | E9: 23 | F9: 258 | K9: 0 | L9: 222 | N9: 121 | O9: =COUNTIF($L$7:$L$500,N9) -> 2 | P9: =O9/$Q$4 -> 0.01851851852 | Q9: =IF(P9=0,0,(P9*((LOG(P9))/LOG(2)))) -> -0.1065719908 | T9: =N9 -> 121 | U9: =COUNTIF(L7:L24,T9) -> 0 | V9: =U9/(W4-U10) -> 0 | W9: =IF(V9=0,0,(V9*((LOG(V9))/LOG(2)))) -> 0 | Y9: =N9 -> 121 | Z9: =COUNTIF(L25:L42,Y9) -> 0 | AA9: =Z9/(AB4-Z10) -> 0 | AB9: =IF(AA9=0,0,(AA9*((LOG(AA9))/LOG(2)))) -> 0 | AD9: =N9 -> 121 | AE9: =COUNTIF(L43:L60,AD9) -> 1 | AF9: =AE9/(AG4-AE10) -> 0.07142857143 | AG9: =IF(AF9=0,0,(AF9*((LOG(AF9))/LOG(2)))) -> -0.271953923 | AI9: =N9 -> 121 | AJ9: =COUNTIF(L61:L78,AI9) -> 0 | AK9: =AJ9/(AL4-AJ10) -> 0 | AL9: =IF(AK9=0,0,(AK9*((LOG(AK9))/LOG(2)))) -> 0 | AN9: =N9 -> 121 | AO9: =COUNTIF(L79:L96,AN9) -> 0 | AP9: =AO9/(AQ4-AO10) -> 0 | AQ9: =IF(AP9=0,0,(AP9*((LOG(AP9))/LOG(2)))) -> 0 | AS9: =N9 -> 121 | AT9: =COUNTIF(L97:L114,AS9) -> 1 | AU9: =AT9/(AV4-AT10) -> 0.08333333333 | AV9: =IF(AU9=0,0,(AU9*((LOG(AU9))/LOG(2)))) -> -0.2987468751
A10: 22 | B10: 378 | C10: 23 | D10: 384 | E10: 23 | F10: 389 | K10: 0 | L10: 222 | N10: 122 | O10: =COUNTIF($L$7:$L$500,N10) -> 29 | P10: =O10/$Q$4 -> 0.2685185185 | Q10: =IF(P10=0,0,(P10*((LOG(P10))/LOG(2)))) -> -0.509354525 | T10: =N10 -> 122 | U10: =COUNTIF(L7:L24,T10) -> 3 | Y10: =N10 -> 122 | Z10: =COUNTIF(L25:L42,Y10) -> 7 | AD10: =N10 -> 122 | AE10: =COUNTIF(L43:L60,AD10) -> 4 | AI10: =N10 -> 122 | AJ10: =COUNTIF(L61:L78,AI10) -> 2 | AN10: =N10 -> 122 | AO10: =COUNTIF(L79:L96,AN10) -> 7 | AS10: =N10 -> 122 | AT10: =COUNTIF(L97:L114,AS10) -> 6
A11: 22 | B11: 503 | C11: 23 | D11: 509 | E11: 23 | F11: 514 | K11: 0 | L11: 222 | N11: 211 | O11: =COUNTIF($L$7:$L$500,N11) -> 9 | P11: =O11/$Q$4 -> 0.08333333333 | Q11: =IF(P11=0,0,(P11*((LOG(P11))/LOG(2)))) -> -0.2987468751 | T11: =N11 -> 211 | U11: =COUNTIF(L7:L24,T11) -> 4 | V11: =U11/(W4-U10) -> 0.2666666667 | W11: =IF(V11=0,0,(V11*((LOG(V11))/LOG(2)))) -> -0.5085041588 | Y11: =N11 -> 211 | Z11: =COUNTIF(L25:L42,Y11) -> 1 | AA11: =Z11/(AB4-Z10) -> 0.09090909091 | AB11: =IF(AA11=0,0,(AA11*((LOG(AA11))/LOG(2)))) -> -0.3144937835 | AD11: =N11 -> 211 | AE11: =COUNTIF(L43:L60,AD11) -> 3 | AF11: =AE11/(AG4-AE10) -> 0.2142857143 | AG11: =IF(AF11=0,0,(AF11*((LOG(AF11))/LOG(2)))) -> -0.4762269474 | AI11: =N11 -> 211 | AJ11: =COUNTIF(L61:L78,AI11) -> 1 | AK11: =AJ11/(AL4-AJ10) -> 0.0625 | AL11: =IF(AK11=0,0,(AK11*((LOG(AK11))/LOG(2)))) -> -0.25 | AN11: =N11 -> 211 | AO11: =COUNTIF(L79:L96,AN11) -> 0 | AP11: =AO11/(AQ4-AO10) -> 0 | AQ11: =IF(AP11=0,0,(AP11*((LOG(AP11))/LOG(2)))) -> 0 | AS11: =N11 -> 211 | AT11: =COUNTIF(L97:L114,AS11) -> 0 | AU11: =AT11/(AV4-AT10) -> 0 | AV11: =IF(AU11=0,0,(AU11*((LOG(AU11))/LOG(2)))) -> 0
A12: 22 | B12: 644 | C12: 23 | D12: 650 | E12: 23 | F12: 655 | K12: 0 | L12: 222 | N12: 212 | O12: =COUNTIF($L$7:$L$500,N12) -> 4 | P12: =O12/$Q$4 -> 0.03703703704 | Q12: =IF(P12=0,0,(P12*((LOG(P12))/LOG(2)))) -> -0.1761069445 | T12: =N12 -> 212 | U12: =COUNTIF(L7:L24,T12) -> 0 | V12: =U12/(W4-U10) -> 0 | W12: =IF(V12=0,0,(V12*((LOG(V12))/LOG(2)))) -> 0 | Y12: =N12 -> 212 | Z12: =COUNTIF(L25:L42,Y12) -> 0 | AA12: =Z12/(AB4-Z10) -> 0 | AB12: =IF(AA12=0,0,(AA12*((LOG(AA12))/LOG(2)))) -> 0 | AD12: =N12 -> 212 | AE12: =COUNTIF(L43:L60,AD12) -> 0 | AF12: =AE12/(AG4-AE10) -> 0 | AG12: =IF(AF12=0,0,(AF12*((LOG(AF12))/LOG(2)))) -> 0 | AI12: =N12 -> 212 | AJ12: =COUNTIF(L61:L78,AI12) -> 1 | AK12: =AJ12/(AL4-AJ10) -> 0.0625 | AL12: =IF(AK12=0,0,(AK12*((LOG(AK12))/LOG(2)))) -> -0.25 | AN12: =N12 -> 212 | AO12: =COUNTIF(L79:L96,AN12) -> 2 | AP12: =AO12/(AQ4-AO10) -> 0.1818181818 | AQ12: =IF(AP12=0,0,(AP12*((LOG(AP12))/LOG(2)))) -> -0.4471693852 | AS12: =N12 -> 212 | AT12: =COUNTIF(L97:L114,AS12) -> 1 | AU12: =AT12/(AV4-AT10) -> 0.08333333333 | AV12: =IF(AU12=0,0,(AU12*((LOG(AU12))/LOG(2)))) -> -0.2987468751
A13: 22 | B13: 784 | C13: 23 | D13: 790 | E13: 23 | F13: 796 | K13: 0 | L13: 222 | N13: 221 | O13: =COUNTIF($L$7:$L$500,N13) -> 0 | P13: =O13/$Q$4 -> 0 | Q13: =IF(P13=0,0,(P13*((LOG(P13))/LOG(2)))) -> 0 | T13: =N13 -> 221 | U13: =COUNTIF(L7:L24,T13) -> 0 | V13: =U13/(W4-U10) -> 0 | W13: =IF(V13=0,0,(V13*((LOG(V13))/LOG(2)))) -> 0 | Y13: =N13 -> 221 | Z13: =COUNTIF(L25:L42,Y13) -> 0 | AA13: =Z13/(AB4-Z10) -> 0 | AB13: =IF(AA13=0,0,(AA13*((LOG(AA13))/LOG(2)))) -> 0 | AD13: =N13 -> 221 | AE13: =COUNTIF(L43:L60,AD13) -> 0 | AF13: =AE13/(AG4-AE10) -> 0 | AG13: =IF(AF13=0,0,(AF13*((LOG(AF13))/LOG(2)))) -> 0 | AI13: =N13 -> 221 | AJ13: =COUNTIF(L61:L78,AI13) -> 0 | AK13: =AJ13/(AL4-AJ10) -> 0 | AL13: =IF(AK13=0,0,(AK13*((LOG(AK13))/LOG(2)))) -> 0 | AN13: =N13 -> 221 | AO13: =COUNTIF(L79:L96,AN13) -> 0 | AP13: =AO13/(AQ4-AO10) -> 0 | AQ13: =IF(AP13=0,0,(AP13*((LOG(AP13))/LOG(2)))) -> 0 | AS13: =N13 -> 221 | AT13: =COUNTIF(L97:L114,AS13) -> 0 | AU13: =AT13/(AV4-AT10) -> 0 | AV13: =IF(AU13=0,0,(AU13*((LOG(AU13))/LOG(2)))) -> 0
A14: 11 | B14: 894 | C14: 21 | D14: 911 | E14: 21 | F14: 915 | K14: 0 | L14: 122 | N14: 222 | O14: =COUNTIF($L$7:$L$500,N14) -> 42 | P14: =O14/$Q$4 -> 0.3888888889 | Q14: =IF(P14=0,0,(P14*((LOG(P14))/LOG(2)))) -> -0.5298883642 | T14: =N14 -> 222 | U14: =COUNTIF(L7:L24,T14) -> 11 | V14: =U14/(W4-U10) -> 0.7333333333 | W14: =IF(V14=0,0,(V14*((LOG(V14))/LOG(2)))) -> -0.3281365831 | Y14: =N14 -> 222 | Z14: =COUNTIF(L25:L42,Y14) -> 8 | AA14: =Z14/(AB4-Z10) -> 0.7272727273 | AB14: =IF(AA14=0,0,(AA14*((LOG(AA14))/LOG(2)))) -> -0.3341320863 | AD14: =N14 -> 222 | AE14: =COUNTIF(L43:L60,AD14) -> 5 | AF14: =AE14/(AG4-AE10) -> 0.3571428571 | AG14: =IF(AF14=0,0,(AF14*((LOG(AF14))/LOG(2)))) -> -0.5305095811 | AI14: =N14 -> 222 | AJ14: =COUNTIF(L61:L78,AI14) -> 10 | AK14: =AJ14/(AL4-AJ10) -> 0.625 | AL14: =IF(AK14=0,0,(AK14*((LOG(AK14))/LOG(2)))) -> -0.4237949407 | AN14: =N14 -> 222 | AO14: =COUNTIF(L79:L96,AN14) -> 4 | AP14: =AO14/(AQ4-AO10) -> 0.3636363636 | AQ14: =IF(AP14=0,0,(AP14*((LOG(AP14))/LOG(2)))) -> -0.5307024068 | AS14: =N14 -> 222 | AT14: =COUNTIF(L97:L114,AS14) -> 4 | AU14: =AT14/(AV4-AT10) -> 0.3333333333 | AV14: =IF(AU14=0,0,(AU14*((LOG(AU14))/LOG(2)))) -> -0.5283208336
A15: 11 | B15: 1047 | C15: 21 | D15: 1056 | E15: 21 | F15: 1064 | K15: 0 | L15: 122 | P15: =SUM(P7:P14) -> 1 | Q15: =-SUM(Q7:Q14) -> 2.2907492 | V15: =SUM(V7:V14) -> 1 | W15: =-SUM(W7:W14) -> 0.8366407419 | AA15: =SUM(AA7:AA14) -> 1 | AB15: =-SUM(AB7:AB14) -> 1.277613437 | AF15: =SUM(AF7:AF14) -> 1 | AG15: =-SUM(AG7:AG14) -> 2.155968102 | AK15: =SUM(AK7:AK14) -> 1 | AL15: =-SUM(AL7:AL14) -> 1.423794941 | AP15: =SUM(AP7:AP14) -> 1 | AQ15: =-SUM(AQ7:AQ14) -> 1.936260028 | AU15: =SUM(AU7:AU14) -> 1 | AV15: =-SUM(AV7:AV14) -> 2.125814584
A16: 22 | B16: 1179 | C16: 23 | D16: 1184 | E16: 23 | F16: 1186 | K16: 0 | L16: 222 | P16: U= | Q16: =Q15/(LOG(Q4)/LOG(2)) -> 0.3391247004 | V16: U1= | W16: =W15/(LOG(W4)/LOG(2)) -> 0.20063688 | AA16: U2= | AB16: =AB15/(LOG(AB4)/LOG(2)) -> 0.3063876296 | AF16: U3= | AG16: =AG15/(LOG(AG4)/LOG(2)) -> 0.5170280284 | AK16: U4= | AL16: =AL15/(LOG(AL4)/LOG(2)) -> 0.3414437766 | AP16: U5= | AQ16: =AQ15/(LOG(AQ4)/LOG(2)) -> 0.4643392931 | AU16: U6= | AV16: =AV15/(LOG(AV4)/LOG(2)) -> 0.5097968388
A17: 22 | B17: 1293 | C17: 23 | D17: 1296 | E17: 23 | F17: 1300 | K17: 0 | L17: 222
A18: 22 | B18: 1432 | C18: 23 | D18: 1437 | E18: 23 | F18: 1443 | K18: 0 | L18: 222
A19: 22 | B19: 1562 | C19: 14 | D19: 1569 | E19: 14 | F19: 1577 | K19: 0 | L19: 211 | N19: Total Target Seq
A20: 22 | B20: 1685 | C20: 14 | D20: 1703 | E20: 14 | F20: 1707 | K20: 0 | L20: 211 | N20: =COUNTIF(L7:L114,G3) -> 29 | P20: 18 | Q20: 18 | R20: 18 | S20: 18 | T20: 18 | U20: 18
A21: 22 | B21: 1828 | C21: 23 | D21: 1831 | E21: 23 | F21: 1835 | K21: 0 | L21: 222 | P21: % of reinforcement given in 6 equal intervals based on number of trials
A22: 22 | B22: 1944 | C22: 23 | D22: 1958 | E22: 23 | F22: 1963 | K22: 0 | L22: 222 | P22: %_1 | Q22: %_2 | R22: %_3 | S22: %_4 | T22: %_5 | U22: %_6
A23: 11 | B23: 2075 | C23: 21 | D23: 2085 | E23: 21 | F23: 2090 | K23: 0 | L23: 122 | O23: target sequence | P23: =$G$3 -> 122 | Q23: =$G$3 -> 122 | R23: =$G$3 -> 122 | S23: =$G$3 -> 122 | T23: =$G$3 -> 122 | U23: =$G$3 -> 122
A24: 22 | B24: 2185 | C24: 14 | D24: 2210 | E24: 14 | F24: 2214 | K24: 0 | L24: 211 | O24: total reinforcement | P24: =U10 -> 3 | Q24: =Z10 -> 7 | R24: =AE10 -> 4 | S24: =AJ10 -> 2 | T24: =AO10 -> 7 | U24: =AT10 -> 6
A25: 22 | B25: 2336 | C25: 23 | D25: 2338 | E25: 23 | F25: 2342 | K25: 0 | L25: 222 | O25: % target
A26: 11 | B26: 2469 | C26: 21 | D26: 2483 | E26: 21 | F26: 2487 | K26: 0 | L26: 122 | O26: CCRF
A27: 22 | B27: 2604 | C27: 23 | D27: 2607 | E27: 23 | F27: 2613 | K27: 0 | L27: 222 | O27: % CCRf
A28: 11 | B28: 2715 | C28: 21 | D28: 2729 | E28: 21 | F28: 2733 | K28: 0 | L28: 122 | O28: average response rate | P28: =F24/P20 -> 123 | Q28: =(F42-F24)/Q20 -> 135.8888889 | R28: =(F60-F42)/R20 -> 153.8333333 | S28: =(F78-F60)/S20 -> 372.6666667 | T28: =(F96-F78)/T20 -> 185.8888889 | U28: =(F114-F96)/U20 -> 327.1666667
A29: 22 | B29: 2883 | C29: 23 | D29: 2891 | E29: 23 | F29: 2898 | K29: 0 | L29: 222
A30: 11 | B30: 3049 | C30: 21 | D30: 3059 | E30: 21 | F30: 3062 | K30: 0 | L30: 122
A31: 22 | B31: 3179 | C31: 23 | D31: 3183 | E31: 23 | F31: 3188 | K31: 0 | L31: 222
A32: 22 | B32: 3325 | C32: 23 | D32: 3330 | E32: 23 | F32: 3335 | K32: 0 | L32: 222
A33: 11 | B33: 3437 | C33: 21 | D33: 3460 | E33: 21 | F33: 3464 | K33: 0 | L33: 122
A34: 22 | B34: 3595 | C34: 23 | D34: 3599 | E34: 23 | F34: 3607 | K34: 0 | L34: 222
A35: 22 | B35: 3733 | C35: 23 | D35: 3737 | E35: 23 | F35: 3742 | K35: 0 | L35: 222
A36: 11 | B36: 3848 | C36: 12 | D36: 3853 | E36: 14 | F36: 3862 | K36: 0 | L36: 111
A37: 11 | B37: 3961 | C37: 21 | D37: 3974 | E37: 21 | F37: 3990 | K37: 0 | L37: 122
A38: 11 | B38: 4084 | C38: 12 | D38: 4103 | E38: 23 | F38: 4115 | K38: 0 | L38: 112
A39: 22 | B39: 4216 | C39: 14 | D39: 4228 | E39: 14 | F39: 4236 | K39: 0 | L39: 211
A40: 11 | B40: 4361 | C40: 21 | D40: 4376 | E40: 21 | F40: 4381 | K40: 0 | L40: 122
A41: 11 | B41: 4501 | C41: 21 | D41: 4509 | E41: 21 | F41: 4516 | K41: 0 | L41: 122
A42: 22 | B42: 4651 | C42: 23 | D42: 4654 | E42: 23 | F42: 4660 | K42: 0 | L42: 222
A43: 11 | B43: 4787 | C43: 21 | D43: 4795 | E43: 12 | F43: 4805 | K43: 0 | L43: 121
A44: 22 | B44: 4966 | C44: 14 | D44: 4975 | E44: 14 | F44: 4980 | K44: 0 | L44: 211
A45: 22 | B45: 5106 | C45: 23 | D45: 5118 | E45: 23 | F45: 5122 | K45: 0 | L45: 222
A46: 11 | B46: 5240 | C46: 12 | D46: 5257 | E46: 23 | F46: 5271 | K46: 0 | L46: 112
A47: 11 | B47: 5376 | C47: 21 | D47: 5398 | E47: 21 | F47: 5403 | K47: 0 | L47: 122
A48: 22 | B48: 5583 | C48: 23 | D48: 5593 | E48: 23 | F48: 5596 | K48: 0 | L48: 222
A49: 22 | B49: 5718 | C49: 23 | D49: 5720 | E49: 23 | F49: 5724 | K49: 0 | L49: 222
A50: 11 | B50: 5845 | C50: 12 | D50: 5849 | E50: 14 | F50: 5859 | K50: 0 | L50: 111
A51: 11 | B51: 5994 | C51: 12 | D51: 6004 | E51: 23 | F51: 6021 | K51: 0 | L51: 112
A52: 22 | B52: 6187 | C52: 23 | D52: 6191 | E52: 23 | F52: 6195 | K52: 0 | L52: 222
A53: 11 | B53: 6322 | C53: 21 | D53: 6346 | E53: 21 | F53: 6350 | K53: 0 | L53: 122
A54: 11 | B54: 6449 | C54: 12 | D54: 6454 | E54: 14 | F54: 6475 | K54: 0 | L54: 111
A55: 22 | B55: 6632 | C55: 23 | D55: 6635 | E55: 23 | F55: 6643 | K55: 0 | L55: 222
A56: 22 | B56: 6780 | C56: 14 | D56: 6790 | E56: 14 | F56: 6794 | K56: 0 | L56: 211
A57: 11 | B57: 6930 | C57: 21 | D57: 6942 | E57: 21 | F57: 6946 | K57: 0 | L57: 122
A58: 11 | B58: 7070 | C58: 12 | D58: 7074 | E58: 23 | F58: 7091 | K58: 0 | L58: 112
A59: 11 | B59: 7298 | C59: 21 | D59: 7315 | E59: 21 | F59: 7319 | K59: 0 | L59: 122
A60: 22 | B60: 7414 | C60: 14 | D60: 7427 | E60: 14 | F60: 7429 | K60: 0 | L60: 211
A61: 11 | B61: 7626 | C61: 12 | D61: 7630 | E61: 14 | F61: 7634 | K61: 0 | L61: 111
A62: 11 | B62: 7766 | C62: 12 | D62: 7769 | E62: 14 | F62: 7773 | K62: 0 | L62: 111
A63: 22 | B63: 8251 | C63: 23 | D63: 8254 | E63: 23 | F63: 8258 | K63: 0 | L63: 222
A64: 22 | B64: 8909 | C64: 14 | D64: 8927 | E64: 23 | F64: 9337 | K64: 0 | L64: 212
A65: 22 | B65: 12359 | C65: 23 | D65: 12368 | E65: 23 | F65: 12380 | K65: 0 | L65: 222
A66: 22 | B66: 12502 | C66: 23 | D66: 12506 | E66: 23 | F66: 12509 | K66: 0 | L66: 222
A67: 22 | B67: 12631 | C67: 23 | D67: 12635 | E67: 23 | F67: 12640 | K67: 0 | L67: 222
A68: 22 | B68: 12744 | C68: 14 | D68: 12762 | E68: 14 | F68: 12767 | K68: 0 | L68: 211
A69: 22 | B69: 12872 | C69: 23 | D69: 12880 | E69: 23 | F69: 12889 | K69: 0 | L69: 222
A70: 11 | B70: 13002 | C70: 12 | D70: 13020 | E70: 14 | F70: 13026 | K70: 0 | L70: 111
A71: 22 | B71: 13135 | C71: 23 | D71: 13150 | E71: 23 | F71: 13154 | K71: 0 | L71: 222
A72: 11 | B72: 13274 | C72: 21 | D72: 13289 | E72: 21 | F72: 13294 | K72: 0 | L72: 122
A73: 22 | B73: 13402 | C73: 23 | D73: 13406 | E73: 23 | F73: 13412 | K73: 0 | L73: 222
A74: 22 | B74: 13588 | C74: 23 | D74: 13597 | E74: 23 | F74: 13603 | K74: 0 | L74: 222
A75: 11 | B75: 13704 | C75: 21 | D75: 13739 | E75: 21 | F75: 13744 | K75: 0 | L75: 122
A76: 11 | B76: 13868 | C76: 12 | D76: 13870 | E76: 14 | F76: 13873 | K76: 0 | L76: 111
A77: 22 | B77: 13977 | C77: 23 | D77: 14009 | E77: 23 | F77: 14018 | K77: 0 | L77: 222
A78: 22 | B78: 14124 | C78: 23 | D78: 14132 | E78: 23 | F78: 14137 | K78: 0 | L78: 222
A79: 11 | B79: 14245 | C79: 21 | D79: 14279 | E79: 21 | F79: 14283 | K79: 0 | L79: 122
A80: 11 | B80: 14434 | C80: 21 | D80: 14442 | E80: 21 | F80: 14451 | K80: 0 | L80: 122
A81: 11 | B81: 14563 | C81: 21 | D81: 14577 | E81: 21 | F81: 14581 | K81: 0 | L81: 122
A82: 22 | B82: 15175 | C82: 23 | D82: 15179 | E82: 23 | F82: 15183 | K82: 0 | L82: 222
A83: 11 | B83: 15280 | C83: 12 | D83: 15284 | E83: 23 | F83: 15296 | K83: 0 | L83: 112
A84: 11 | B84: 15416 | C84: 21 | D84: 15430 | E84: 21 | F84: 15434 | K84: 0 | L84: 122
A85: 11 | B85: 15526 | C85: 21 | D85: 15561 | E85: 21 | F85: 15565 | K85: 0 | L85: 122
A86: 11 | B86: 15658 | C86: 12 | D86: 15661 | E86: 14 | F86: 15672 | K86: 0 | L86: 111
A87: 22 | B87: 15916 | C87: 23 | D87: 15921 | E87: 23 | F87: 15926 | K87: 0 | L87: 222
A88: 11 | B88: 16125 | C88: 21 | D88: 16131 | E88: 21 | F88: 16134 | K88: 0 | L88: 122
A89: 22 | B89: 16250 | C89: 23 | D89: 16275 | E89: 23 | F89: 16280 | K89: 0 | L89: 222
A90: 11 | B90: 16377 | C90: 21 | D90: 16412 | E90: 21 | F90: 16419 | K90: 0 | L90: 122
A91: 22 | B91: 16519 | C91: 14 | D91: 16530 | E91: 23 | F91: 16544 | K91: 0 | L91: 212
A92: 11 | B92: 16706 | C92: 12 | D92: 16722 | E92: 23 | F92: 16735 | K92: 0 | L92: 112
A93: 11 | B93: 16834 | C93: 12 | D93: 16837 | E93: 14 | F93: 16841 | K93: 0 | L93: 111
A94: 11 | B94: 17015 | C94: 12 | D94: 17031 | E94: 23 | F94: 17041 | K94: 0 | L94: 112
A95: 22 | B95: 17139 | C95: 14 | D95: 17149 | E95: 23 | F95: 17163 | K95: 0 | L95: 212
A96: 22 | B96: 17470 | C96: 23 | D96: 17475 | E96: 23 | F96: 17483 | K96: 0 | L96: 222
A97: 11 | B97: 17660 | C97: 21 | D97: 17693 | E97: 21 | F97: 17697 | K97: 0 | L97: 122
A98: 11 | B98: 17860 | C98: 12 | D98: 17893 | E98: 14 | F98: 17898 | K98: 0 | L98: 111
A99: 11 | B99: 17999 | C99: 21 | D99: 18027 | E99: 21 | F99: 18036 | K99: 0 | L99: 122
A100: 11 | B100: 18167 | C100: 21 | D100: 18178 | E100: 12 | F100: 18188 | K100: 0 | L100: 121
A101: 11 | B101: 18330 | C101: 12 | D101: 18334 | E101: 23 | F101: 18344 | K101: 0 | L101: 112
A102: 11 | B102: 19808 | C102: 21 | D102: 19820 | E102: 21 | F102: 19824 | K102: 0 | L102: 122
A103: 11 | B103: 19923 | C103: 12 | D103: 19944 | E103: 14 | F103: 19951 | K103: 0 | L103: 111
A104: 11 | B104: 20215 | C104: 12 | D104: 20228 | E104: 23 | F104: 20242 | K104: 0 | L104: 112
A105: 22 | B105: 20355 | C105: 23 | D105: 20358 | E105: 23 | F105: 20361 | K105: 0 | L105: 222
A106: 22 | B106: 20551 | C106: 14 | D106: 20566 | E106: 23 | F106: 20574 | K106: 0 | L106: 212
A107: 11 | B107: 20679 | C107: 12 | D107: 20698 | E107: 14 | F107: 20702 | K107: 0 | L107: 111
A108: 11 | B108: 20893 | C108: 21 | D108: 20904 | E108: 21 | F108: 20909 | K108: 0 | L108: 122
A109: 11 | B109: 21016 | C109: 12 | D109: 21019 | E109: 23 | F109: 21048 | K109: 0 | L109: 112
A110: 22 | B110: 22285 | C110: 23 | D110: 22289 | E110: 23 | F110: 22294 | K110: 0 | L110: 222
A111: 22 | B111: 22419 | C111: 23 | D111: 22424 | E111: 23 | F111: 22430 | K111: 0 | L111: 222
A112: 11 | B112: 22545 | C112: 21 | D112: 22560 | E112: 21 | F112: 22562 | K112: 0 | L112: 122
A113: 22 | B113: 23234 | C113: 23 | D113: 23239 | E113: 23 | F113: 23243 | K113: 0 | L113: 222
A114: 11 | B114: 23355 | C114: 21 | D114: 23367 | E114: 21 | F114: 23372 | K114: 0 | L114: 122

Sheet !LB14B13..Ta
A1: Report for:!LB14B13..Ta
A2: Date: | B2: <date>
A3: Hen: | B3: <hen> | F3: Correct Sequence | G3: =Start!J2 -> 122 | P3: Total Sequences in Data | Q3: =4994-COUNTBLANK(L7:L5000) -> 140 | V3: Total Sequences in Block Data | W3: =COUNTA(L7:L29) -> 23 | AA3: Total Sequences in Block Data | AB3: =COUNTA(L30:L53) -> 24 | AF3: Total Sequences in Block Data | AG3: =COUNTA(L54:L76) -> 23 | AK3: Total Sequences in Block Data | AL3: =COUNTA(L77:L99) -> 23 | AP3: Total Sequences in Block Data | AQ3: =COUNTA(L100:L123) -> 24 | AU3: Total Sequences in Block Data | AV3: =COUNTA(L124:L146) -> 23
P4: Total Sequences in Summary | Q4: =SUM(O7:O14) -> 140 | V4: Total Sequences in Block Summary | W4: =SUM(U7:U14) -> 23 | AA4: Total Sequences in Block Summary | AB4: =SUM(Z7:Z14) -> 24 | AF4: Total Sequences in Block Summary | AG4: =SUM(AE7:AE14) -> 23 | AK4: Total Sequences in Block Summary | AL4: =SUM(AJ7:AJ14) -> 23 | AP4: Total Sequences in Block Summary | AQ4: =SUM(AO7:AO14) -> 24 | AU4: Total Sequences in Block Summary | AV4: =SUM(AT7:AT14) -> 23
T5: Block 1 | Y5: Block 2 | AD5: Block 3 | AI5: Block 4 | AN5: Block 5 | AS5: Block 6
A6: Sequence Component 1 | B6: Time 1 | C6: Sequence Component 2 | D6: Time 2 | E6: Sequence Component 3 | F6: Time 3 | G6: Sequence Component 4 | H6: Time 4 | I6: Sequence Component 5 | J6: Time 5 | K6: Correct? 0=No 1=Yes | L6: Sequence | N6: Frequency | P6: Relative Frequency | Q6: Variability | T6: Frequency | V6: Relative Frequency | W6: Variability | Y6: Frequency | AA6: Relative Frequency | AB6: Variability | AD6: Frequency | AF6: Relative Frequency | AG6: Variability | AI6: Frequency | AK6: Relative Frequency | AL6: Variability | AN6: Frequency | AP6: Relative Frequency | AQ6: Variability | AS6: Frequency | AU6: Relative Frequency | AV6: Variability
A7: 22 | B7: 84 | C7: 23 | D7: 89 | E7: 23 | F7: 95 | K7: 0 | L7: 222 | N7: 111 | O7: =COUNTIF($L$7:$L$500,N7) -> 10 | P7: =O7/$Q$4 -> 0.07142857143 | Q7: =IF(P7=0,0,(P7*((LOG(P7))/LOG(2)))) -> -0.271953923 | T7: =N7 -> 111 | U7: =COUNTIF(L7:L29,T7) -> 2 | V7: =U7/(W4-U10) -> 0.1052631579 | W7: =IF(V7=0,0,(V7*((LOG(V7))/LOG(2)))) -> -0.3418871067 | Y7: =N7 -> 111 | Z7: =COUNTIF(L30:L53,Y7) -> 3 | AA7: =Z7/(AB4-Z10) -> 0.1428571429 | AB7: =IF(AA7=0,0,(AA7*((LOG(AA7))/LOG(2)))) -> -0.4010507032 | AD7: =N7 -> 111 | AE7: =COUNTIF(L54:L76,AD7) -> 2 | AF7: =AE7/(AG4-AE10) -> 0.1176470588 | AG7: =IF(AF7=0,0,(AF7*((LOG(AF7))/LOG(2)))) -> -0.3632309225 | AI7: =N7 -> 111 | AJ7: =COUNTIF(L77:L99,AI7) -> 2 | AK7: =AJ7/(AL4-AJ10) -> 0.1111111111 | AL7: =IF(AK7=0,0,(AK7*((LOG(AK7))/LOG(2)))) -> -0.352213889 | AN7: =N7 -> 111 | AO7: =COUNTIF(L100:L123,AN7) -> 1 | AP7: =AO7/(AQ4-AO10) -> 0.07142857143 | AQ7: =IF(AP7=0,0,(AP7*((LOG(AP7))/LOG(2)))) -> -0.271953923 | AS7: =N7 -> 111 | AT7: =COUNTIF(L124:L146,AS7) -> 0 | AU7: =AT7/(AV4-AT10) -> 0 | AV7: =IF(AU7=0,0,(AU7*((LOG(AU7))/LOG(2)))) -> 0
A8: 22 | B8: 194 | C8: 14 | D8: 203 | E8: 23 | F8: 215 | K8: 0 | L8: 212 | N8: 112 | O8: =COUNTIF($L$7:$L$500,N8) -> 2 | P8: =O8/$Q$4 -> 0.01428571429 | Q8: =IF(P8=0,0,(P8*((LOG(P8))/LOG(2)))) -> -0.08756118596 | T8: =N8 -> 112 | U8: =COUNTIF(L7:L29,T8) -> 0 | V8: =U8/(W4-U10) -> 0 | W8: =IF(V8=0,0,(V8*((LOG(V8))/LOG(2)))) -> 0 | Y8: =N8 -> 112 | Z8: =COUNTIF(L30:L53,Y8) -> 1 | AA8: =Z8/(AB4-Z10) -> 0.04761904762 | AB8: =IF(AA8=0,0,(AA8*((LOG(AA8))/LOG(2)))) -> -0.2091579725 | AD8: =N8 -> 112 | AE8: =COUNTIF(L54:L76,AD8) -> 0 | AF8: =AE8/(AG4-AE10) -> 0 | AG8: =IF(AF8=0,0,(AF8*((LOG(AF8))/LOG(2)))) -> 0 | AI8: =N8 -> 112 | AJ8: =COUNTIF(L77:L99,AI8) -> 1 | AK8: =AJ8/(AL4-AJ10) -> 0.05555555556 | AL8: =IF(AK8=0,0,(AK8*((LOG(AK8))/LOG(2)))) -> -0.2316625001 | AN8: =N8 -> 112 | AO8: =COUNTIF(L100:L123,AN8) -> 0 | AP8: =AO8/(AQ4-AO10) -> 0 | AQ8: =IF(AP8=0,0,(AP8*((LOG(AP8))/LOG(2)))) -> 0 | AS8: =N8 -> 112 | AT8: =COUNTIF(L124:L146,AS8) -> 0 | AU8: =AT8/(AV4-AT10) -> 0 | AV8: =IF(AU8=0,0,(AU8*((LOG(AU8))/LOG(2)))) -> 0
A9: 22 | B9: 319 | C9: 23 | D9: 334 | E9: 23 | F9: 340 | K9: 0 | L9: 222 | N9: 121 | O9: =COUNTIF($L$7:$L$500,N9) -> 0 | P9: =O9/$Q$4 -> 0 | Q9: =IF(P9=0,0,(P9*((LOG(P9))/LOG(2)))) -> 0 | T9: =N9 -> 121 | U9: =COUNTIF(L7:L29,T9) -> 0 | V9: =U9/(W4-U10) -> 0 | W9: =IF(V9=0,0,(V9*((LOG(V9))/LOG(2)))) -> 0 | Y9: =N9 -> 121 | Z9: =COUNTIF(L30:L53,Y9) -> 0 | AA9: =Z9/(AB4-Z10) -> 0 | AB9: =IF(AA9=0,0,(AA9*((LOG(AA9))/LOG(2)))) -> 0 | AD9: =N9 -> 121 | AE9: =COUNTIF(L54:L76,AD9) -> 0 | AF9: =AE9/(AG4-AE10) -> 0 | AG9: =IF(AF9=0,0,(AF9*((LOG(AF9))/LOG(2)))) -> 0 | AI9: =N9 -> 121 | AJ9: =COUNTIF(L77:L99,AI9) -> 0 | AK9: =AJ9/(AL4-AJ10) -> 0 | AL9: =IF(AK9=0,0,(AK9*((LOG(AK9))/LOG(2)))) -> 0 | AN9: =N9 -> 121 | AO9: =COUNTIF(L100:L123,AN9) -> 0 | AP9: =AO9/(AQ4-AO10) -> 0 | AQ9: =IF(AP9=0,0,(AP9*((LOG(AP9))/LOG(2)))) -> 0 | AS9: =N9 -> 121 | AT9: =COUNTIF(L124:L146,AS9) -> 0 | AU9: =AT9/(AV4-AT10) -> 0 | AV9: =IF(AU9=0,0,(AU9*((LOG(AU9))/LOG(2)))) -> 0
A10: 22 | B10: 458 | C10: 23 | D10: 463 | E10: 23 | F10: 466 | K10: 0 | L10: 222 | N10: 122 | O10: =COUNTIF($L$7:$L$500,N10) -> 38 | P10: =O10/$Q$4 -> 0.2714285714 | Q10: =IF(P10=0,0,(P10*((LOG(P10))/LOG(2)))) -> -0.5106536367 | T10: =N10 -> 122 | U10: =COUNTIF(L7:L29,T10) -> 4 | Y10: =N10 -> 122 | Z10: =COUNTIF(L30:L53,Y10) -> 3 | AD10: =N10 -> 122 | AE10: =COUNTIF(L54:L76,AD10) -> 6 | AI10: =N10 -> 122 | AJ10: =COUNTIF(L77:L99,AI10) -> 5 | AN10: =N10 -> 122 | AO10: =COUNTIF(L100:L123,AN10) -> 10 | AS10: =N10 -> 122 | AT10: =COUNTIF(L124:L146,AS10) -> 10
A11: 11 | B11: 575 | C11: 21 | D11: 589 | E11: 21 | F11: 593 | K11: 0 | L11: 122 | N11: 211 | O11: =COUNTIF($L$7:$L$500,N11) -> 2 | P11: =O11/$Q$4 -> 0.01428571429 | Q11: =IF(P11=0,0,(P11*((LOG(P11))/LOG(2)))) -> -0.08756118596 | T11: =N11 -> 211 | U11: =COUNTIF(L7:L29,T11) -> 1 | V11: =U11/(W4-U10) -> 0.05263157895 | W11: =IF(V11=0,0,(V11*((LOG(V11))/LOG(2)))) -> -0.2235751323 | Y11: =N11 -> 211 | Z11: =COUNTIF(L30:L53,Y11) -> 0 | AA11: =Z11/(AB4-Z10) -> 0 | AB11: =IF(AA11=0,0,(AA11*((LOG(AA11))/LOG(2)))) -> 0 | AD11: =N11 -> 211 | AE11: =COUNTIF(L54:L76,AD11) -> 0 | AF11: =AE11/(AG4-AE10) -> 0 | AG11: =IF(AF11=0,0,(AF11*((LOG(AF11))/LOG(2)))) -> 0 | AI11: =N11 -> 211 | AJ11: =COUNTIF(L77:L99,AI11) -> 1 | AK11: =AJ11/(AL4-AJ10) -> 0.05555555556 | AL11: =IF(AK11=0,0,(AK11*((LOG(AK11))/LOG(2)))) -> -0.2316625001 | AN11: =N11 -> 211 | AO11: =COUNTIF(L100:L123,AN11) -> 0 | AP11: =AO11/(AQ4-AO10) -> 0 | AQ11: =IF(AP11=0,0,(AP11*((LOG(AP11))/LOG(2)))) -> 0 | AS11: =N11 -> 211 | AT11: =COUNTIF(L124:L146,AS11) -> 0 | AU11: =AT11/(AV4-AT10) -> 0 | AV11: =IF(AU11=0,0,(AU11*((LOG(AU11))/LOG(2)))) -> 0
A12: 22 | B12: 767 | C12: 23 | D12: 772 | E12: 23 | F12: 779 | K12: 0 | L12: 222 | N12: 212 | O12: =COUNTIF($L$7:$L$500,N12) -> 2 | P12: =O12/$Q$4 -> 0.01428571429 | Q12: =IF(P12=0,0,(P12*((LOG(P12))/LOG(2)))) -> -0.08756118596 | T12: =N12 -> 212 | U12: =COUNTIF(L7:L29,T12) -> 2 | V12: =U12/(W4-U10) -> 0.1052631579 | W12: =IF(V12=0,0,(V12*((LOG(V12))/LOG(2)))) -> -0.3418871067 | Y12: =N12 -> 212 | Z12: =COUNTIF(L30:L53,Y12) -> 0 | AA12: =Z12/(AB4-Z10) -> 0 | AB12: =IF(AA12=0,0,(AA12*((LOG(AA12))/LOG(2)))) -> 0 | AD12: =N12 -> 212 | AE12: =COUNTIF(L54:L76,AD12) -> 0 | AF12: =AE12/(AG4-AE10) -> 0 | AG12: =IF(AF12=0,0,(AF12*((LOG(AF12))/LOG(2)))) -> 0 | AI12: =N12 -> 212 | AJ12: =COUNTIF(L77:L99,AI12) -> 0 | AK12: =AJ12/(AL4-AJ10) -> 0 | AL12: =IF(AK12=0,0,(AK12*((LOG(AK12))/LOG(2)))) -> 0 | AN12: =N12 -> 212 | AO12: =COUNTIF(L100:L123,AN12) -> 0 | AP12: =AO12/(AQ4-AO10) -> 0 | AQ12: =IF(AP12=0,0,(AP12*((LOG(AP12))/LOG(2)))) -> 0 | AS12: =N12 -> 212 | AT12: =COUNTIF(L124:L146,AS12) -> 0 | AU12: =AT12/(AV4-AT10) -> 0 | AV12: =IF(AU12=0,0,(AU12*((LOG(AU12))/LOG(2)))) -> 0
A13: 22 | B13: 913 | C13: 23 | D13: 915 | E13: 23 | F13: 920 | K13: 0 | L13: 222 | N13: 221 | O13: =COUNTIF($L$7:$L$500,N13) -> 3 | P13: =O13/$Q$4 -> 0.02142857143 | Q13: =IF(P13=0,0,(P13*((LOG(P13))/LOG(2)))) -> -0.1188068682 | T13: =N13 -> 221 | U13: =COUNTIF(L7:L29,T13) -> 0 | V13: =U13/(W4-U10) -> 0 | W13: =IF(V13=0,0,(V13*((LOG(V13))/LOG(2)))) -> 0 | Y13: =N13 -> 221 | Z13: =COUNTIF(L30:L53,Y13) -> 1 | AA13: =Z13/(AB4-Z10) -> 0.04761904762 | AB13: =IF(AA13=0,0,(AA13*((LOG(AA13))/LOG(2)))) -> -0.2091579725 | AD13: =N13 -> 221 | AE13: =COUNTIF(L54:L76,AD13) -> 0 | AF13: =AE13/(AG4-AE10) -> 0 | AG13: =IF(AF13=0,0,(AF13*((LOG(AF13))/LOG(2)))) -> 0 | AI13: =N13 -> 221 | AJ13: =COUNTIF(L77:L99,AI13) -> 1 | AK13: =AJ13/(AL4-AJ10) -> 0.05555555556 | AL13: =IF(AK13=0,0,(AK13*((LOG(AK13))/LOG(2)))) -> -0.2316625001 | AN13: =N13 -> 221 | AO13: =COUNTIF(L100:L123,AN13) -> 0 | AP13: =AO13/(AQ4-AO10) -> 0 | AQ13: =IF(AP13=0,0,(AP13*((LOG(AP13))/LOG(2)))) -> 0 | AS13: =N13 -> 221 | AT13: =COUNTIF(L124:L146,AS13) -> 1 | AU13: =AT13/(AV4-AT10) -> 0.07692307692 | AV13: =IF(AU13=0,0,(AU13*((LOG(AU13))/LOG(2)))) -> -0.2846492091
A14: 22 | B14: 1022 | C14: 23 | D14: 1029 | E14: 23 | F14: 1032 | K14: 0 | L14: 222 | N14: 222 | O14: =COUNTIF($L$7:$L$500,N14) -> 83 | P14: =O14/$Q$4 -> 0.5928571429 | Q14: =IF(P14=0,0,(P14*((LOG(P14))/LOG(2)))) -> -0.4471586972 | T14: =N14 -> 222 | U14: =COUNTIF(L7:L29,T14) -> 14 | V14: =U14/(W4-U10) -> 0.7368421053 | W14: =IF(V14=0,0,(V14*((LOG(V14))/LOG(2)))) -> -0.3246324358 | Y14: =N14 -> 222 | Z14: =COUNTIF(L30:L53,Y14) -> 16 | AA14: =Z14/(AB4-Z10) -> 0.7619047619 | AB14: =IF(AA14=0,0,(AA14*((LOG(AA14))/LOG(2)))) -> -0.2989085126 | AD14: =N14 -> 222 | AE14: =COUNTIF(L54:L76,AD14) -> 15 | AF14: =AE14/(AG4-AE10) -> 0.8823529412 | AG14: =IF(AF14=0,0,(AF14*((LOG(AF14))/LOG(2)))) -> -0.159328452 | AI14: =N14 -> 222 | AJ14: =COUNTIF(L77:L99,AI14) -> 13 | AK14: =AJ14/(AL4-AJ10) -> 0.7222222222 | AL14: =IF(AK14=0,0,(AK14*((LOG(AK14))/LOG(2)))) -> -0.3390727046 | AN14: =N14 -> 222 | AO14: =COUNTIF(L100:L123,AN14) -> 13 | AP14: =AO14/(AQ4-AO10) -> 0.9285714286 | AQ14: =IF(AP14=0,0,(AP14*((LOG(AP14))/LOG(2)))) -> -0.09927840364 | AS14: =N14 -> 222 | AT14: =COUNTIF(L124:L146,AS14) -> 12 | AU14: =AT14/(AV4-AT10) -> 0.9230769231 | AV14: =IF(AU14=0,0,(AU14*((LOG(AU14))/LOG(2)))) -> -0.1065943545
A15: 22 | B15: 1133 | C15: 14 | D15: 1136 | E15: 23 | F15: 1145 | K15: 0 | L15: 212 | P15: =SUM(P7:P14) -> 1 | Q15: =-SUM(Q7:Q14) -> 1.611256683 | V15: =SUM(V7:V14) -> 1 | W15: =-SUM(W7:W14) -> 1.231981781 | AA15: =SUM(AA7:AA14) -> 1 | AB15: =-SUM(AB7:AB14) -> 1.118275161 | AF15: =SUM(AF7:AF14) -> 1 | AG15: =-SUM(AG7:AG14) -> 0.5225593745 | AK15: =SUM(AK7:AK14) -> 1 | AL15: =-SUM(AL7:AL14) -> 1.386274094 | AP15: =SUM(AP7:AP14) -> 1 | AQ15: =-SUM(AQ7:AQ14) -> 0.3712323266 | AU15: =SUM(AU7:AU14) -> 1 | AV15: =-SUM(AV7:AV14) -> 0.3912435636
A16: 11 | B16: 1244 | C16: 12 | D16: 1247 | E16: 14 | F16: 1250 | K16: 0 | L16: 111 | P16: U= | Q16: =Q15/(LOG(Q4)/LOG(2)) -> 0.2260054313 | V16: U1= | W16: =W15/(LOG(W4)/LOG(2)) -> 0.2723477192 | AA16: U2= | AB16: =AB15/(LOG(AB4)/LOG(2)) -> 0.2439006122 | AF16: U3= | AG16: =AG15/(LOG(AG4)/LOG(2)) -> 0.1155194468 | AK16: U4= | AL16: =AL15/(LOG(AL4)/LOG(2)) -> 0.3064563075 | AP16: U5= | AQ16: =AQ15/(LOG(AQ4)/LOG(2)) -> 0.08096736376 | AU16: U6= | AV16: =AV15/(LOG(AV4)/LOG(2)) -> 0.08649015255
A17: 22 | B17: 1410 | C17: 23 | D17: 1413 | E17: 23 | F17: 1421 | K17: 0 | L17: 222
A18: 11 | B18: 1517 | C18: 21 | D18: 1529 | E18: 21 | F18: 1532 | K18: 0 | L18: 122
A19: 22 | B19: 1677 | C19: 23 | D19: 1682 | E19: 23 | F19: 1690 | K19: 0 | L19: 222 | N19: Total Target Seq
A20: 11 | B20: 1799 | C20: 21 | D20: 1809 | E20: 21 | F20: 1813 | K20: 0 | L20: 122 | N20: =COUNTIF(L7:L146,G3) -> 38 | P20: 23 | Q20: 24 | R20: 23 | S20: 23 | T20: 24 | U20: 23
A21: 22 | B21: 1967 | C21: 23 | D21: 1970 | E21: 23 | F21: 1974 | K21: 0 | L21: 222 | P21: % of reinforcement given in 6 equal intervals based on number of trials
A22: 22 | B22: 2117 | C22: 23 | D22: 2121 | E22: 23 | F22: 2134 | K22: 0 | L22: 222 | P22: %_1 | Q22: %_2 | R22: %_3 | S22: %_4 | T22: %_5 | U22: %_6
A23: 22 | B23: 2252 | C23: 23 | D23: 2256 | E23: 23 | F23: 2263 | K23: 0 | L23: 222 | O23: target sequence | P23: =$G$3 -> 122 | Q23: =$G$3 -> 122 | R23: =$G$3 -> 122 | S23: =$G$3 -> 122 | T23: =$G$3 -> 122 | U23: =$G$3 -> 122
A24: 11 | B24: 2358 | C24: 12 | D24: 2361 | E24: 14 | F24: 2370 | K24: 0 | L24: 111 | O24: total reinforcement | P24: =U10 -> 4 | Q24: =Z10 -> 3 | R24: =AE10 -> 6 | S24: =AJ10 -> 5 | T24: =AO10 -> 10 | U24: =AT10 -> 10
A25: 22 | B25: 2480 | C25: 23 | D25: 2484 | E25: 23 | F25: 2488 | K25: 0 | L25: 222 | O25: % target
A26: 22 | B26: 2586 | C26: 14 | D26: 2595 | E26: 14 | F26: 2598 | K26: 0 | L26: 211 | O26: CCRF
A27: 22 | B27: 2716 | C27: 23 | D27: 2720 | E27: 23 | F27: 2725 | K27: 0 | L27: 222 | O27: % CCRf
A28: 11 | B28: 2822 | C28: 21 | D28: 2832 | E28: 21 | F28: 2835 | K28: 0 | L28: 122 | O28: average response rate | P28: =F29/P20 -> 129.6086957 | Q28: =(F53-F29)/Q20 -> 125.125 | R28: =(F76-F53)/R20 -> 139.6521739 | S28: =(F99-F76)/S20 -> 131.6521739 | T28: =(F123-F99)/T20 -> 143.3333333 | U28: =(F146-F123)/U20 -> 140.2608696
A29: 22 | B29: 2974 | C29: 23 | D29: 2977 | E29: 23 | F29: 2981 | K29: 0 | L29: 222
A30: 22 | B30: 3081 | C30: 23 | D30: 3098 | E30: 23 | F30: 3103 | K30: 0 | L30: 222
A31: 11 | B31: 3199 | C31: 12 | D31: 3209 | E31: 23 | F31: 3222 | K31: 0 | L31: 112
A32: 11 | B32: 3319 | C32: 12 | D32: 3322 | E32: 14 | F32: 3325 | K32: 0 | L32: 111
A33: 11 | B33: 3423 | C33: 21 | D33: 3433 | E33: 21 | F33: 3437 | K33: 0 | L33: 122
A34: 22 | B34: 3599 | C34: 23 | D34: 3602 | E34: 23 | F34: 3606 | K34: 0 | L34: 222
A35: 22 | B35: 3719 | C35: 23 | D35: 3725 | E35: 23 | F35: 3731 | K35: 0 | L35: 222
A36: 11 | B36: 3827 | C36: 12 | D36: 3830 | E36: 14 | F36: 3834 | K36: 0 | L36: 111
A37: 22 | B37: 3942 | C37: 23 | D37: 3946 | E37: 23 | F37: 3952 | K37: 0 | L37: 222
A38: 22 | B38: 4062 | C38: 23 | D38: 4066 | E38: 23 | F38: 4072 | K38: 0 | L38: 222
A39: 22 | B39: 4173 | C39: 23 | D39: 4177 | E39: 23 | F39: 4181 | K39: 0 | L39: 222
A40: 22 | B40: 4275 | C40: 23 | D40: 4278 | E40: 23 | F40: 4291 | K40: 0 | L40: 222
A41: 22 | B41: 4393 | C41: 23 | D41: 4397 | E41: 23 | F41: 4401 | K41: 0 | L41: 222
A42: 22 | B42: 4514 | C42: 23 | D42: 4517 | E42: 23 | F42: 4523 | K42: 0 | L42: 222
A43: 22 | B43: 4634 | C43: 23 | D43: 4638 | E43: 23 | F43: 4655 | K43: 0 | L43: 222
A44: 22 | B44: 4764 | C44: 23 | D44: 4768 | E44: 14 | F44: 4787 | K44: 0 | L44: 221
A45: 11 | B45: 4947 | C45: 12 | D45: 4960 | E45: 14 | F45: 4967 | K45: 0 | L45: 111
A46: 22 | B46: 5064 | C46: 23 | D46: 5067 | E46: 23 | F46: 5071 | K46: 0 | L46: 222
A47: 22 | B47: 5179 | C47: 23 | D47: 5183 | E47: 23 | F47: 5190 | K47: 0 | L47: 222
A48: 22 | B48: 5293 | C48: 23 | D48: 5297 | E48: 23 | F48: 5302 | K48: 0 | L48: 222
A49: 22 | B49: 5412 | C49: 23 | D49: 5416 | E49: 23 | F49: 5420 | K49: 0 | L49: 222
A50: 11 | B50: 5520 | C50: 21 | D50: 5529 | E50: 21 | F50: 5533 | K50: 0 | L50: 122
A51: 22 | B51: 5690 | C51: 23 | D51: 5694 | E51: 23 | F51: 5699 | K51: 0 | L51: 222
A52: 11 | B52: 5797 | C52: 21 | D52: 5805 | E52: 21 | F52: 5809 | K52: 0 | L52: 122
A53: 22 | B53: 5976 | C53: 23 | D53: 5979 | E53: 23 | F53: 5984 | K53: 0 | L53: 222
A54: 22 | B54: 6084 | C54: 23 | D54: 6088 | E54: 23 | F54: 6093 | K54: 0 | L54: 222
A55: 11 | B55: 6193 | C55: 21 | D55: 6201 | E55: 21 | F55: 6205 | K55: 0 | L55: 122
A56: 22 | B56: 6392 | C56: 23 | D56: 6402 | E56: 23 | F56: 6410 | K56: 0 | L56: 222
A57: 22 | B57: 6510 | C57: 23 | D57: 6513 | E57: 23 | F57: 6517 | K57: 0 | L57: 222
A58: 11 | B58: 6621 | C58: 21 | D58: 6631 | E58: 21 | F58: 6634 | K58: 0 | L58: 122
A59: 22 | B59: 7010 | C59: 23 | D59: 7014 | E59: 23 | F59: 7025 | K59: 0 | L59: 222
A60: 22 | B60: 7133 | C60: 23 | D60: 7137 | E60: 23 | F60: 7141 | K60: 0 | L60: 222
A61: 22 | B61: 7264 | C61: 23 | D61: 7269 | E61: 23 | F61: 7278 | K61: 0 | L61: 222
A62: 11 | B62: 7376 | C62: 21 | D62: 7383 | E62: 21 | F62: 7387 | K62: 0 | L62: 122
A63: 22 | B63: 7511 | C63: 23 | D63: 7515 | E63: 23 | F63: 7519 | K63: 0 | L63: 222
A64: 22 | B64: 7626 | C64: 23 | D64: 7633 | E64: 23 | F64: 7640 | K64: 0 | L64: 222
A65: 22 | B65: 7747 | C65: 23 | D65: 7751 | E65: 23 | F65: 7773 | K65: 0 | L65: 222
A66: 22 | B66: 7884 | C66: 23 | D66: 7887 | E66: 23 | F66: 7898 | K66: 0 | L66: 222
A67: 22 | B67: 8004 | C67: 23 | D67: 8007 | E67: 23 | F67: 8014 | K67: 0 | L67: 222
A68: 11 | B68: 8109 | C68: 21 | D68: 8119 | E68: 21 | F68: 8127 | K68: 0 | L68: 122
A69: 22 | B69: 8268 | C69: 23 | D69: 8272 | E69: 23 | F69: 8289 | K69: 0 | L69: 222
A70: 11 | B70: 8395 | C70: 12 | D70: 8399 | E70: 14 | F70: 8404 | K70: 0 | L70: 111
A71: 11 | B71: 8502 | C71: 21 | D71: 8516 | E71: 21 | F71: 8520 | K71: 0 | L71: 122
A72: 22 | B72: 8675 | C72: 23 | D72: 8679 | E72: 23 | F72: 8686 | K72: 0 | L72: 222
A73: 22 | B73: 8793 | C73: 23 | D73: 8798 | E73: 23 | F73: 8807 | K73: 0 | L73: 222
A74: 11 | B74: 8899 | C74: 21 | D74: 8907 | E74: 21 | F74: 8912 | K74: 0 | L74: 122
A75: 11 | B75: 9056 | C75: 12 | D75: 9072 | E75: 14 | F75: 9084 | K75: 0 | L75: 111
A76: 22 | B76: 9187 | C76: 23 | D76: 9191 | E76: 23 | F76: 9196 | K76: 0 | L76: 222
A77: 22 | B77: 9303 | C77: 23 | D77: 9308 | E77: 23 | F77: 9317 | K77: 0 | L77: 222
A78: 22 | B78: 9419 | C78: 23 | D78: 9422 | E78: 23 | F78: 9430 | K78: 0 | L78: 222
A79: 22 | B79: 9538 | C79: 23 | D79: 9543 | E79: 14 | F79: 9556 | K79: 0 | L79: 221
A80: 11 | B80: 9667 | C80: 21 | D80: 9680 | E80: 21 | F80: 9685 | K80: 0 | L80: 122
A81: 11 | B81: 9904 | C81: 12 | D81: 9908 | E81: 14 | F81: 9911 | K81: 0 | L81: 111
A82: 22 | B82: 10021 | C82: 23 | D82: 10025 | E82: 23 | F82: 10030 | K82: 0 | L82: 222
A83: 22 | B83: 10134 | C83: 23 | D83: 10137 | E83: 23 | F83: 10142 | K83: 0 | L83: 222
A84: 11 | B84: 10236 | C84: 21 | D84: 10243 | E84: 21 | F84: 10247 | K84: 0 | L84: 122
A85: 22 | B85: 10415 | C85: 23 | D85: 10419 | E85: 23 | F85: 10424 | K85: 0 | L85: 222
A86: 22 | B86: 10526 | C86: 23 | D86: 10534 | E86: 23 | F86: 10540 | K86: 0 | L86: 222
A87: 22 | B87: 10644 | C87: 23 | D87: 10647 | E87: 23 | F87: 10653 | K87: 0 | L87: 222
A88: 11 | B88: 10745 | C88: 12 | D88: 10748 | E88: 23 | F88: 10759 | K88: 0 | L88: 112
A89: 22 | B89: 10872 | C89: 14 | D89: 10888 | E89: 14 | F89: 10894 | K89: 0 | L89: 211
A90: 22 | B90: 11001 | C90: 23 | D90: 11005 | E90: 23 | F90: 11010 | K90: 0 | L90: 222
A91: 11 | B91: 11107 | C91: 21 | D91: 11118 | E91: 21 | F91: 11124 | K91: 0 | L91: 122
A92: 11 | B92: 11353 | C92: 12 | D92: 11358 | E92: 14 | F92: 11364 | K92: 0 | L92: 111
A93: 22 | B93: 11468 | C93: 23 | D93: 11472 | E93: 23 | F93: 11476 | K93: 0 | L93: 222
A94: 22 | B94: 11591 | C94: 23 | D94: 11597 | E94: 23 | F94: 11605 | K94: 0 | L94: 222
A95: 11 | B95: 11697 | C95: 21 | D95: 11705 | E95: 21 | F95: 11709 | K95: 0 | L95: 122
A96: 11 | B96: 11841 | C96: 21 | D96: 11850 | E96: 21 | F96: 11855 | K96: 0 | L96: 122
A97: 22 | B97: 11989 | C97: 23 | D97: 11993 | E97: 23 | F97: 11996 | K97: 0 | L97: 222
A98: 22 | B98: 12105 | C98: 23 | D98: 12109 | E98: 23 | F98: 12115 | K98: 0 | L98: 222
A99: 22 | B99: 12215 | C99: 23 | D99: 12220 | E99: 23 | F99: 12224 | K99: 0 | L99: 222
A100: 22 | B100: 12333 | C100: 23 | D100: 12337 | E100: 23 | F100: 12343 | K100: 0 | L100: 222
A101: 22 | B101: 12449 | C101: 23 | D101: 12456 | E101: 23 | F101: 12462 | K101: 0 | L101: 222
A102: 11 | B102: 12559 | C102: 21 | D102: 12570 | E102: 21 | F102: 12579 | K102: 0 | L102: 122
A103: 22 | B103: 12789 | C103: 23 | D103: 12793 | E103: 23 | F103: 12798 | K103: 0 | L103: 222
A104: 11 | B104: 12897 | C104: 21 | D104: 12909 | E104: 21 | F104: 12920 | K104: 0 | L104: 122
A105: 22 | B105: 13083 | C105: 23 | D105: 13091 | E105: 23 | F105: 13098 | K105: 0 | L105: 222
A106: 22 | B106: 13199 | C106: 23 | D106: 13202 | E106: 23 | F106: 13207 | K106: 0 | L106: 222
A107: 11 | B107: 13304 | C107: 21 | D107: 13316 | E107: 21 | F107: 13319 | K107: 0 | L107: 122
A108: 22 | B108: 13603 | C108: 23 | D108: 13613 | E108: 23 | F108: 13621 | K108: 0 | L108: 222
A109: 22 | B109: 13754 | C109: 23 | D109: 13758 | E109: 23 | F109: 13768 | K109: 0 | L109: 222
A110: 22 | B110: 13874 | C110: 23 | D110: 13877 | E110: 23 | F110: 13881 | K110: 0 | L110: 222
A111: 22 | B111: 13985 | C111: 23 | D111: 13989 | E111: 23 | F111: 13992 | K111: 0 | L111: 222
A112: 11 | B112: 14089 | C112: 21 | D112: 14097 | E112: 21 | F112: 14100 | K112: 0 | L112: 122
A113: 22 | B113: 14271 | C113: 23 | D113: 14275 | E113: 23 | F113: 14279 | K113: 0 | L113: 222
A114: 11 | B114: 14383 | C114: 21 | D114: 14394 | E114: 21 | F114: 14398 | K114: 0 | L114: 122
A115: 11 | B115: 14510 | C115: 21 | D115: 14521 | E115: 21 | F115: 14524 | K115: 0 | L115: 122
A116: 22 | B116: 14641 | C116: 23 | D116: 14644 | E116: 23 | F116: 14651 | K116: 0 | L116: 222
A117: 11 | B117: 14747 | C117: 21 | D117: 14759 | E117: 21 | F117: 14762 | K117: 0 | L117: 122
A118: 11 | B118: 14914 | C118: 21 | D118: 14927 | E118: 21 | F118: 14932 | K118: 0 | L118: 122
A119: 11 | B119: 15108 | C119: 21 | D119: 15117 | E119: 21 | F119: 15123 | K119: 0 | L119: 122
A120: 22 | B120: 15278 | C120: 23 | D120: 15282 | E120: 23 | F120: 15289 | K120: 0 | L120: 222
A121: 11 | B121: 15402 | C121: 12 | D121: 15407 | E121: 14 | F121: 15417 | K121: 0 | L121: 111
A122: 22 | B122: 15526 | C122: 23 | D122: 15532 | E122: 23 | F122: 15549 | K122: 0 | L122: 222
A123: 11 | B123: 15646 | C123: 21 | D123: 15659 | E123: 21 | F123: 15664 | K123: 0 | L123: 122
A124: 11 | B124: 15799 | C124: 21 | D124: 15818 | E124: 21 | F124: 15824 | K124: 0 | L124: 122
A125: 22 | B125: 16007 | C125: 23 | D125: 16012 | E125: 23 | F125: 16019 | K125: 0 | L125: 222
A126: 22 | B126: 16128 | C126: 23 | D126: 16136 | E126: 23 | F126: 16143 | K126: 0 | L126: 222
A127: 11 | B127: 16239 | C127: 21 | D127: 16248 | E127: 21 | F127: 16252 | K127: 0 | L127: 122
A128: 11 | B128: 16386 | C128: 21 | D128: 16399 | E128: 21 | F128: 16406 | K128: 0 | L128: 122
A129: 22 | B129: 16604 | C129: 23 | D129: 16609 | E129: 23 | F129: 16615 | K129: 0 | L129: 222
A130: 11 | B130: 16730 | C130: 21 | D130: 16739 | E130: 21 | F130: 16744 | K130: 0 | L130: 122
A131: 22 | B131: 16895 | C131: 23 | D131: 16900 | E131: 23 | F131: 16906 | K131: 0 | L131: 222
A132: 22 | B132: 17018 | C132: 23 | D132: 17028 | E132: 23 | F132: 17036 | K132: 0 | L132: 222
A133: 22 | B133: 17144 | C133: 23 | D133: 17148 | E133: 23 | F133: 17154 | K133: 0 | L133: 222
A134: 22 | B134: 17259 | C134: 23 | D134: 17263 | E134: 23 | F134: 17267 | K134: 0 | L134: 222
A135: 11 | B135: 17375 | C135: 21 | D135: 17384 | E135: 21 | F135: 17389 | K135: 0 | L135: 122
A136: 11 | B136: 17521 | C136: 21 | D136: 17531 | E136: 21 | F136: 17534 | K136: 0 | L136: 122
A137: 22 | B137: 17689 | C137: 23 | D137: 17692 | E137: 23 | F137: 17698 | K137: 0 | L137: 222
A138: 11 | B138: 17795 | C138: 21 | D138: 17804 | E138: 21 | F138: 17810 | K138: 0 | L138: 122
A139: 22 | B139: 17937 | C139: 23 | D139: 17946 | E139: 23 | F139: 17953 | K139: 0 | L139: 222
A140: 22 | B140: 18072 | C140: 23 | D140: 18075 | E140: 14 | F140: 18093 | K140: 0 | L140: 221
A141: 11 | B141: 18190 | C141: 21 | D141: 18202 | E141: 21 | F141: 18205 | K141: 0 | L141: 122
A142: 22 | B142: 18366 | C142: 23 | D142: 18369 | E142: 23 | F142: 18374 | K142: 0 | L142: 222
A143: 22 | B143: 18475 | C143: 23 | D143: 18479 | E143: 23 | F143: 18483 | K143: 0 | L143: 222
A144: 11 | B144: 18575 | C144: 21 | D144: 18592 | E144: 21 | F144: 18599 | K144: 0 | L144: 122
A145: 22 | B145: 18757 | C145: 23 | D145: 18761 | E145: 23 | F145: 18766 | K145: 0 | L145: 222
A146: 11 | B146: 18872 | C146: 21 | D146: 18884 | E146: 21 | F146: 18890 | K146: 1 | L146: 122

Sheet !LB15A23..Ta
A1: Report for:!LB15A23..Ta
A2: Date: | B2: <date>
A3: Hen: | B3: <hen> | F3: Correct Sequence | G3: =Start!J2 -> 122 | P3: Total Sequences in Data | Q3: =4994-COUNTBLANK(L7:L5000) -> 102 | V3: Total Sequences in Block Data | W3: =COUNTA(L7:L23) -> 17 | AA3: Total Sequences in Block Data | AB3: =COUNTA(L24:L40) -> 17 | AF3: Total Sequences in Block Data | AG3: =COUNTA(L41:L57) -> 17 | AK3: Total Sequences in Block Data | AL3: =COUNTA(L58:L74) -> 17 | AP3: Total Sequences in Block Data | AQ3: =COUNTA(L75:L91) -> 17 | AU3: Total Sequences in Block Data | AV3: =COUNTA(L92:L108) -> 17
P4: Total Sequences in Summary | Q4: =SUM(O7:O14) -> 102 | V4: Total Sequences in Block Summary | W4: =SUM(U7:U14) -> 17 | AA4: Total Sequences in Block Summary | AB4: =SUM(Z7:Z14) -> 17 | AF4: Total Sequences in Block Summary | AG4: =SUM(AE7:AE14) -> 17 | AK4: Total Sequences in Block Summary | AL4: =SUM(AJ7:AJ14) -> 17 | AP4: Total Sequences in Block Summary | AQ4: =SUM(AO7:AO14) -> 17 | AU4: Total Sequences in Block Summary | AV4: =SUM(AT7:AT14) -> 17
T5: Block 1 | Y5: Block 2 | AD5: Block 3 | AI5: Block 4 | AN5: Block 5 | AS5: Block 6
A6: Sequence Component 1 | B6: Time 1 | C6: Sequence Component 2 | D6: Time 2 | E6: Sequence Component 3 | F6: Time 3 | G6: Sequence Component 4 | H6: Time 4 | I6: Sequence Component 5 | J6: Time 5 | K6: Correct? 0=No 1=Yes | L6: Sequence | N6: Frequency | P6: Relative Frequency | Q6: Variability | T6: Frequency | V6: Relative Frequency | W6: Variability | Y6: Frequency | AA6: Relative Frequency | AB6: Variability | AD6: Frequency | AF6: Relative Frequency | AG6: Variability | AI6: Frequency | AK6: Relative Frequency | AL6: Variability | AN6: Frequency | AP6: Relative Frequency | AQ6: Variability | AS6: Frequency | AU6: Relative Frequency | AV6: Variability
A7: 22 | B7: 12 | C7: 23 | D7: 16 | E7: 23 | F7: 20 | K7: 0 | L7: 222 | N7: 111 | O7: =COUNTIF($L$7:$L$500,N7) -> 0 | P7: =O7/$Q$4 -> 0 | Q7: =IF(P7=0,0,(P7*((LOG(P7))/LOG(2)))) -> 0 | T7: =N7 -> 111 | U7: =COUNTIF(L7:L23,T7) -> 0 | V7: =U7/(W4-U10) -> 0 | W7: =IF(V7=0,0,(V7*((LOG(V7))/LOG(2)))) -> 0 | Y7: =N7 -> 111 | Z7: =COUNTIF(L24:L40,Y7) -> 0 | AA7: =Z7/(AB4-Z10) -> 0 | AB7: =IF(AA7=0,0,(AA7*((LOG(AA7))/LOG(2)))) -> 0 | AD7: =N7 -> 111 | AE7: =COUNTIF(L41:L57,AD7) -> 0 | AF7: =AE7/(AG4-AE10) -> 0 | AG7: =IF(AF7=0,0,(AF7*((LOG(AF7))/LOG(2)))) -> 0 | AI7: =N7 -> 111 | AJ7: =COUNTIF(L58:L74,AI7) -> 0 | AK7: =AJ7/(AL4-AJ10) -> 0 | AL7: =IF(AK7=0,0,(AK7*((LOG(AK7))/LOG(2)))) -> 0 | AN7: =N7 -> 111 | AO7: =COUNTIF(L75:L91,AN7) -> 0 | AP7: =AO7/(AQ4-AO10) -> 0 | AQ7: =IF(AP7=0,0,(AP7*((LOG(AP7))/LOG(2)))) -> 0 | AS7: =N7 -> 111 | AT7: =COUNTIF(L92:L108,AS7) -> 0 | AU7: =AT7/(AV4-AT10) -> 0 | AV7: =IF(AU7=0,0,(AU7*((LOG(AU7))/LOG(2)))) -> 0
A8: 22 | B8: 123 | C8: 23 | D8: 125 | E8: 23 | F8: 131 | K8: 0 | L8: 222 | N8: 112 | O8: =COUNTIF($L$7:$L$500,N8) -> 0 | P8: =O8/$Q$4 -> 0 | Q8: =IF(P8=0,0,(P8*((LOG(P8))/LOG(2)))) -> 0 | T8: =N8 -> 112 | U8: =COUNTIF(L7:L23,T8) -> 0 | V8: =U8/(W4-U10) -> 0 | W8: =IF(V8=0,0,(V8*((LOG(V8))/LOG(2)))) -> 0 | Y8: =N8 -> 112 | Z8: =COUNTIF(L24:L40,Y8) -> 0 | AA8: =Z8/(AB4-Z10) -> 0 | AB8: =IF(AA8=0,0,(AA8*((LOG(AA8))/LOG(2)))) -> 0 | AD8: =N8 -> 112 | AE8: =COUNTIF(L41:L57,AD8) -> 0 | AF8: =AE8/(AG4-AE10) -> 0 | AG8: =IF(AF8=0,0,(AF8*((LOG(AF8))/LOG(2)))) -> 0 | AI8: =N8 -> 112 | AJ8: =COUNTIF(L58:L74,AI8) -> 0 | AK8: =AJ8/(AL4-AJ10) -> 0 | AL8: =IF(AK8=0,0,(AK8*((LOG(AK8))/LOG(2)))) -> 0 | AN8: =N8 -> 112 | AO8: =COUNTIF(L75:L91,AN8) -> 0 | AP8: =AO8/(AQ4-AO10) -> 0 | AQ8: =IF(AP8=0,0,(AP8*((LOG(AP8))/LOG(2)))) -> 0 | AS8: =N8 -> 112 | AT8: =COUNTIF(L92:L108,AS8) -> 0 | AU8: =AT8/(AV4-AT10) -> 0 | AV8: =IF(AU8=0,0,(AU8*((LOG(AU8))/LOG(2)))) -> 0
A9: 22 | B9: 231 | C9: 23 | D9: 235 | E9: 23 | F9: 240 | K9: 0 | L9: 222 | N9: 121 | O9: =COUNTIF($L$7:$L$500,N9) -> 0 | P9: =O9/$Q$4 -> 0 | Q9: =IF(P9=0,0,(P9*((LOG(P9))/LOG(2)))) -> 0 | T9: =N9 -> 121 | U9: =COUNTIF(L7:L23,T9) -> 0 | V9: =U9/(W4-U10) -> 0 | W9: =IF(V9=0,0,(V9*((LOG(V9))/LOG(2)))) -> 0 | Y9: =N9 -> 121 | Z9: =COUNTIF(L24:L40,Y9) -> 0 | AA9: =Z9/(AB4-Z10) -> 0 | AB9: =IF(AA9=0,0,(AA9*((LOG(AA9))/LOG(2)))) -> 0 | AD9: =N9 -> 121 | AE9: =COUNTIF(L41:L57,AD9) -> 0 | AF9: =AE9/(AG4-AE10) -> 0 | AG9: =IF(AF9=0,0,(AF9*((LOG(AF9))/LOG(2)))) -> 0 | AI9: =N9 -> 121 | AJ9: =COUNTIF(L58:L74,AI9) -> 0 | AK9: =AJ9/(AL4-AJ10) -> 0 | AL9: =IF(AK9=0,0,(AK9*((LOG(AK9))/LOG(2)))) -> 0 | AN9: =N9 -> 121 | AO9: =COUNTIF(L75:L91,AN9) -> 0 | AP9: =AO9/(AQ4-AO10) -> 0 | AQ9: =IF(AP9=0,0,(AP9*((LOG(AP9))/LOG(2)))) -> 0 | AS9: =N9 -> 121 | AT9: =COUNTIF(L92:L108,AS9) -> 0 | AU9: =AT9/(AV4-AT10) -> 0 | AV9: =IF(AU9=0,0,(AU9*((LOG(AU9))/LOG(2)))) -> 0
A10: 22 | B10: 366 | C10: 23 | D10: 372 | E10: 23 | F10: 379 | K10: 0 | L10: 222 | N10: 122 | O10: =COUNTIF($L$7:$L$500,N10) -> 39 | P10: =O10/$Q$4 -> 0.3823529412 | Q10: =IF(P10=0,0,(P10*((LOG(P10))/LOG(2)))) -> -0.5303323706 | T10: =N10 -> 122 | U10: =COUNTIF(L7:L23,T10) -> 6 | Y10: =N10 -> 122 | Z10: =COUNTIF(L24:L40,Y10) -> 6 | AD10: =N10 -> 122 | AE10: =COUNTIF(L41:L57,AD10) -> 5 | AI10: =N10 -> 122 | AJ10: =COUNTIF(L58:L74,AI10) -> 4 | AN10: =N10 -> 122 | AO10: =COUNTIF(L75:L91,AN10) -> 9 | AS10: =N10 -> 122 | AT10: =COUNTIF(L92:L108,AS10) -> 9
A11: 22 | B11: 501 | C11: 23 | D11: 508 | E11: 23 | F11: 513 | K11: 0 | L11: 222 | N11: 211 | O11: =COUNTIF($L$7:$L$500,N11) -> 0 | P11: =O11/$Q$4 -> 0 | Q11: =IF(P11=0,0,(P11*((LOG(P11))/LOG(2)))) -> 0 | T11: =N11 -> 211 | U11: =COUNTIF(L7:L23,T11) -> 0 | V11: =U11/(W4-U10) -> 0 | W11: =IF(V11=0,0,(V11*((LOG(V11))/LOG(2)))) -> 0 | Y11: =N11 -> 211 | Z11: =COUNTIF(L24:L40,Y11) -> 0 | AA11: =Z11/(AB4-Z10) -> 0 | AB11: =IF(AA11=0,0,(AA11*((LOG(AA11))/LOG(2)))) -> 0 | AD11: =N11 -> 211 | AE11: =COUNTIF(L41:L57,AD11) -> 0 | AF11: =AE11/(AG4-AE10) -> 0 | AG11: =IF(AF11=0,0,(AF11*((LOG(AF11))/LOG(2)))) -> 0 | AI11: =N11 -> 211 | AJ11: =COUNTIF(L58:L74,AI11) -> 0 | AK11: =AJ11/(AL4-AJ10) -> 0 | AL11: =IF(AK11=0,0,(AK11*((LOG(AK11))/LOG(2)))) -> 0 | AN11: =N11 -> 211 | AO11: =COUNTIF(L75:L91,AN11) -> 0 | AP11: =AO11/(AQ4-AO10) -> 0 | AQ11: =IF(AP11=0,0,(AP11*((LOG(AP11))/LOG(2)))) -> 0 | AS11: =N11 -> 211 | AT11: =COUNTIF(L92:L108,AS11) -> 0 | AU11: =AT11/(AV4-AT10) -> 0 | AV11: =IF(AU11=0,0,(AU11*((LOG(AU11))/LOG(2)))) -> 0
A12: 11 | B12: 611 | C12: 21 | D12: 631 | E12: 21 | F12: 646 | K12: 0 | L12: 122 | N12: 212 | O12: =COUNTIF($L$7:$L$500,N12) -> 0 | P12: =O12/$Q$4 -> 0 | Q12: =IF(P12=0,0,(P12*((LOG(P12))/LOG(2)))) -> 0 | T12: =N12 -> 212 | U12: =COUNTIF(L7:L23,T12) -> 0 | V12: =U12/(W4-U10) -> 0 | W12: =IF(V12=0,0,(V12*((LOG(V12))/LOG(2)))) -> 0 | Y12: =N12 -> 212 | Z12: =COUNTIF(L24:L40,Y12) -> 0 | AA12: =Z12/(AB4-Z10) -> 0 | AB12: =IF(AA12=0,0,(AA12*((LOG(AA12))/LOG(2)))) -> 0 | AD12: =N12 -> 212 | AE12: =COUNTIF(L41:L57,AD12) -> 0 | AF12: =AE12/(AG4-AE10) -> 0 | AG12: =IF(AF12=0,0,(AF12*((LOG(AF12))/LOG(2)))) -> 0 | AI12: =N12 -> 212 | AJ12: =COUNTIF(L58:L74,AI12) -> 0 | AK12: =AJ12/(AL4-AJ10) -> 0 | AL12: =IF(AK12=0,0,(AK12*((LOG(AK12))/LOG(2)))) -> 0 | AN12: =N12 -> 212 | AO12: =COUNTIF(L75:L91,AN12) -> 0 | AP12: =AO12/(AQ4-AO10) -> 0 | AQ12: =IF(AP12=0,0,(AP12*((LOG(AP12))/LOG(2)))) -> 0 | AS12: =N12 -> 212 | AT12: =COUNTIF(L92:L108,AS12) -> 0 | AU12: =AT12/(AV4-AT10) -> 0 | AV12: =IF(AU12=0,0,(AU12*((LOG(AU12))/LOG(2)))) -> 0
A13: 11 | B13: 761 | C13: 21 | D13: 769 | E13: 21 | F13: 772 | K13: 0 | L13: 122 | N13: 221 | O13: =COUNTIF($L$7:$L$500,N13) -> 3 | P13: =O13/$Q$4 -> 0.02941176471 | Q13: =IF(P13=0,0,(P13*((LOG(P13))/LOG(2)))) -> -0.14963126 | T13: =N13 -> 221 | U13: =COUNTIF(L7:L23,T13) -> 0 | V13: =U13/(W4-U10) -> 0 | W13: =IF(V13=0,0,(V13*((LOG(V13))/LOG(2)))) -> 0 | Y13: =N13 -> 221 | Z13: =COUNTIF(L24:L40,Y13) -> 0 | AA13: =Z13/(AB4-Z10) -> 0 | AB13: =IF(AA13=0,0,(AA13*((LOG(AA13))/LOG(2)))) -> 0 | AD13: =N13 -> 221 | AE13: =COUNTIF(L41:L57,AD13) -> 0 | AF13: =AE13/(AG4-AE10) -> 0 | AG13: =IF(AF13=0,0,(AF13*((LOG(AF13))/LOG(2)))) -> 0 | AI13: =N13 -> 221 | AJ13: =COUNTIF(L58:L74,AI13) -> 2 | AK13: =AJ13/(AL4-AJ10) -> 0.1538461538 | AL13: =IF(AK13=0,0,(AK13*((LOG(AK13))/LOG(2)))) -> -0.4154522643 | AN13: =N13 -> 221 | AO13: =COUNTIF(L75:L91,AN13) -> 0 | AP13: =AO13/(AQ4-AO10) -> 0 | AQ13: =IF(AP13=0,0,(AP13*((LOG(AP13))/LOG(2)))) -> 0 | AS13: =N13 -> 221 | AT13: =COUNTIF(L92:L108,AS13) -> 1 | AU13: =AT13/(AV4-AT10) -> 0.125 | AV13: =IF(AU13=0,0,(AU13*((LOG(AU13))/LOG(2)))) -> -0.375
A14: 22 | B14: 886 | C14: 23 | D14: 889 | E14: 23 | F14: 893 | K14: 0 | L14: 222 | N14: 222 | O14: =COUNTIF($L$7:$L$500,N14) -> 60 | P14: =O14/$Q$4 -> 0.5882352941 | Q14: =IF(P14=0,0,(P14*((LOG(P14))/LOG(2)))) -> -0.4503145567 | T14: =N14 -> 222 | U14: =COUNTIF(L7:L23,T14) -> 11 | V14: =U14/(W4-U10) -> 1 | W14: =IF(V14=0,0,(V14*((LOG(V14))/LOG(2)))) -> 0 | Y14: =N14 -> 222 | Z14: =COUNTIF(L24:L40,Y14) -> 11 | AA14: =Z14/(AB4-Z10) -> 1 | AB14: =IF(AA14=0,0,(AA14*((LOG(AA14))/LOG(2)))) -> 0 | AD14: =N14 -> 222 | AE14: =COUNTIF(L41:L57,AD14) -> 12 | AF14: =AE14/(AG4-AE10) -> 1 | AG14: =IF(AF14=0,0,(AF14*((LOG(AF14))/LOG(2)))) -> 0 | AI14: =N14 -> 222 | AJ14: =COUNTIF(L58:L74,AI14) -> 11 | AK14: =AJ14/(AL4-AJ10) -> 0.8461538462 | AL14: =IF(AK14=0,0,(AK14*((LOG(AK14))/LOG(2)))) -> -0.2039299303 | AN14: =N14 -> 222 | AO14: =COUNTIF(L75:L91,AN14) -> 8 | AP14: =AO14/(AQ4-AO10) -> 1 | AQ14: =IF(AP14=0,0,(AP14*((LOG(AP14))/LOG(2)))) -> 0 | AS14: =N14 -> 222 | AT14: =COUNTIF(L92:L108,AS14) -> 7 | AU14: =AT14/(AV4-AT10) -> 0.875 | AV14: =IF(AU14=0,0,(AU14*((LOG(AU14))/LOG(2)))) -> -0.1685644432
A15: 22 | B15: 999 | C15: 23 | D15: 1003 | E15: 23 | F15: 1008 | K15: 0 | L15: 222 | P15: =SUM(P7:P14) -> 1 | Q15: =-SUM(Q7:Q14) -> 1.130278187 | V15: =SUM(V7:V14) -> 1 | W15: =-SUM(W7:W14) -> 0 | AA15: =SUM(AA7:AA14) -> 1 | AB15: =-SUM(AB7:AB14) -> 0 | AF15: =SUM(AF7:AF14) -> 1 | AG15: =-SUM(AG7:AG14) -> 0 | AK15: =SUM(AK7:AK14) -> 1 | AL15: =-SUM(AL7:AL14) -> 0.6193821947 | AP15: =SUM(AP7:AP14) -> 1 | AQ15: =-SUM(AQ7:AQ14) -> 0 | AU15: =SUM(AU7:AU14) -> 1 | AV15: =-SUM(AV7:AV14) -> 0.5435644432
A16: 11 | B16: 1112 | C16: 21 | D16: 1122 | E16: 21 | F16: 1127 | K16: 0 | L16: 122 | P16: U= | Q16: =Q15/(LOG(Q4)/LOG(2)) -> 0.1693954041 | V16: U1= | W16: =W15/(LOG(W4)/LOG(2)) -> 0 | AA16: U2= | AB16: =AB15/(LOG(AB4)/LOG(2)) -> 0 | AF16: U3= | AG16: =AG15/(LOG(AG4)/LOG(2)) -> 0 | AK16: U4= | AL16: =AL15/(LOG(AL4)/LOG(2)) -> 0.1515321897 | AP16: U5= | AQ16: =AQ15/(LOG(AQ4)/LOG(2)) -> 0 | AU16: U6= | AV16: =AV15/(LOG(AV4)/LOG(2)) -> 0.1329833357
A17: 22 | B17: 1231 | C17: 23 | D17: 1235 | E17: 23 | F17: 1244 | K17: 0 | L17: 222
A18: 11 | B18: 1343 | C18: 21 | D18: 1352 | E18: 21 | F18: 1359 | K18: 0 | L18: 122
A19: 22 | B19: 1513 | C19: 23 | D19: 1516 | E19: 23 | F19: 1521 | K19: 0 | L19: 222 | N19: Total Target Seq
A20: 11 | B20: 1617 | C20: 21 | D20: 1625 | E20: 21 | F20: 1629 | K20: 0 | L20: 122 | N20: =COUNTIF(L7:L108,G3) -> 39 | P20: 17 | Q20: 17 | R20: 17 | S20: 17 | T20: 17 | U20: 17
A21: 22 | B21: 1733 | C21: 23 | D21: 1736 | E21: 23 | F21: 1740 | K21: 0 | L21: 222 | P21: % of reinforcement given in 6 equal intervals based on number of trials
A22: 11 | B22: 1832 | C22: 21 | D22: 1840 | E22: 21 | F22: 1844 | K22: 0 | L22: 122 | P22: %_1 | Q22: %_2 | R22: %_3 | S22: %_4 | T22: %_5 | U22: %_6
A23: 22 | B23: 1948 | C23: 23 | D23: 1952 | E23: 23 | F23: 1956 | K23: 0 | L23: 222 | O23: target sequence | P23: =$G$3 -> 122 | Q23: =$G$3 -> 122 | R23: =$G$3 -> 122 | S23: =$G$3 -> 122 | T23: =$G$3 -> 122 | U23: =$G$3 -> 122
A24: 11 | B24: 2050 | C24: 21 | D24: 2058 | E24: 21 | F24: 2061 | K24: 0 | L24: 122 | O24: total reinforcement | P24: =U10 -> 6 | Q24: =Z10 -> 6 | R24: =AE10 -> 5 | S24: =AJ10 -> 4 | T24: =AO10 -> 9 | U24: =AT10 -> 9
A25: 22 | B25: 2178 | C25: 23 | D25: 2184 | E25: 23 | F25: 2191 | K25: 0 | L25: 222 | O25: % target
A26: 22 | B26: 2296 | C26: 23 | D26: 2298 | E26: 23 | F26: 2304 | K26: 0 | L26: 222 | O26: CCRF
A27: 11 | B27: 2397 | C27: 21 | D27: 2414 | E27: 21 | F27: 2418 | K27: 0 | L27: 122 | O27: % CCRf
A28: 11 | B28: 2555 | C28: 21 | D28: 2570 | E28: 21 | F28: 2582 | K28: 0 | L28: 122 | O28: average response rate | P28: =F23/P20 -> 115.0588235 | Q28: =(F40-F23)/Q20 -> 130.8823529 | R28: =(F57-F40)/R20 -> 123.9411765 | S28: =(F74-F57)/S20 -> 129.7647059 | T28: =(F91-F74)/T20 -> 119.4705882 | U28: =(F108-F91)/U20 -> 127.4117647
A29: 22 | B29: 2762 | C29: 23 | D29: 2765 | E29: 23 | F29: 2769 | K29: 0 | L29: 222
A30: 11 | B30: 2868 | C30: 21 | D30: 2877 | E30: 21 | F30: 2890 | K30: 0 | L30: 122
A31: 22 | B31: 3069 | C31: 23 | D31: 3072 | E31: 23 | F31: 3076 | K31: 0 | L31: 222
A32: 11 | B32: 3172 | C32: 21 | D32: 3181 | E32: 21 | F32: 3191 | K32: 0 | L32: 122
A33: 22 | B33: 3290 | C33: 23 | D33: 3295 | E33: 23 | F33: 3301 | K33: 0 | L33: 222
A34: 22 | B34: 3401 | C34: 23 | D34: 3409 | E34: 23 | F34: 3413 | K34: 0 | L34: 222
A35: 22 | B35: 3515 | C35: 23 | D35: 3519 | E35: 23 | F35: 3522 | K35: 0 | L35: 222
A36: 22 | B36: 3626 | C36: 23 | D36: 3633 | E36: 23 | F36: 3640 | K36: 0 | L36: 222
A37: 11 | B37: 3736 | C37: 21 | D37: 3746 | E37: 21 | F37: 3750 | K37: 0 | L37: 122
A38: 22 | B38: 3939 | C38: 23 | D38: 3946 | E38: 23 | F38: 3952 | K38: 0 | L38: 222
A39: 22 | B39: 4058 | C39: 23 | D39: 4063 | E39: 23 | F39: 4066 | K39: 0 | L39: 222
A40: 22 | B40: 4174 | C40: 23 | D40: 4176 | E40: 23 | F40: 4181 | K40: 0 | L40: 222
A41: 22 | B41: 4285 | C41: 23 | D41: 4289 | E41: 23 | F41: 4294 | K41: 0 | L41: 222
A42: 11 | B42: 4390 | C42: 21 | D42: 4399 | E42: 21 | F42: 4402 | K42: 0 | L42: 122
A43: 11 | B43: 4519 | C43: 21 | D43: 4529 | E43: 21 | F43: 4532 | K43: 0 | L43: 122
A44: 22 | B44: 4691 | C44: 23 | D44: 4704 | E44: 23 | F44: 4711 | K44: 0 | L44: 222
A45: 22 | B45: 4816 | C45: 23 | D45: 4819 | E45: 23 | F45: 4823 | K45: 0 | L45: 222
A46: 11 | B46: 4917 | C46: 21 | D46: 4929 | E46: 21 | F46: 4932 | K46: 0 | L46: 122
A47: 22 | B47: 5055 | C47: 23 | D47: 5058 | E47: 23 | F47: 5063 | K47: 0 | L47: 222
A48: 22 | B48: 5175 | C48: 23 | D48: 5178 | E48: 23 | F48: 5192 | K48: 0 | L48: 222
A49: 22 | B49: 5301 | C49: 23 | D49: 5304 | E49: 23 | F49: 5307 | K49: 0 | L49: 222
A50: 11 | B50: 5406 | C50: 21 | D50: 5417 | E50: 21 | F50: 5420 | K50: 0 | L50: 122
A51: 22 | B51: 5563 | C51: 23 | D51: 5566 | E51: 23 | F51: 5576 | K51: 0 | L51: 222
A52: 11 | B52: 5671 | C52: 21 | D52: 5678 | E52: 21 | F52: 5683 | K52: 0 | L52: 122
A53: 22 | B53: 5809 | C53: 23 | D53: 5812 | E53: 23 | F53: 5819 | K53: 0 | L53: 222
A54: 22 | B54: 5921 | C54: 23 | D54: 5928 | E54: 23 | F54: 5937 | K54: 0 | L54: 222
A55: 22 | B55: 6049 | C55: 23 | D55: 6052 | E55: 23 | F55: 6055 | K55: 0 | L55: 222
A56: 22 | B56: 6166 | C56: 23 | D56: 6170 | E56: 23 | F56: 6174 | K56: 0 | L56: 222
A57: 22 | B57: 6278 | C57: 23 | D57: 6283 | E57: 23 | F57: 6288 | K57: 0 | L57: 222
A58: 22 | B58: 6391 | C58: 23 | D58: 6394 | E58: 23 | F58: 6399 | K58: 0 | L58: 222
A59: 22 | B59: 6508 | C59: 23 | D59: 6511 | E59: 23 | F59: 6523 | K59: 0 | L59: 222
A60: 22 | B60: 6633 | C60: 23 | D60: 6636 | E60: 23 | F60: 6642 | K60: 0 | L60: 222
A61: 11 | B61: 6737 | C61: 21 | D61: 6743 | E61: 21 | F61: 6747 | K61: 0 | L61: 122
A62: 11 | B62: 6873 | C62: 21 | D62: 6886 | E62: 21 | F62: 6890 | K62: 0 | L62: 122
A63: 22 | B63: 7013 | C63: 23 | D63: 7017 | E63: 23 | F63: 7023 | K63: 0 | L63: 222
A64: 22 | B64: 7124 | C64: 23 | D64: 7136 | E64: 23 | F64: 7144 | K64: 0 | L64: 222
A65: 11 | B65: 7240 | C65: 21 | D65: 7247 | E65: 21 | F65: 7251 | K65: 0 | L65: 122
A66: 22 | B66: 7418 | C66: 23 | D66: 7421 | E66: 23 | F66: 7428 | K66: 0 | L66: 222
A67: 22 | B67: 7543 | C67: 23 | D67: 7553 | E67: 23 | F67: 7561 | K67: 0 | L67: 222
A68: 22 | B68: 7665 | C68: 23 | D68: 7668 | E68: 23 | F68: 7674 | K68: 0 | L68: 222
A69: 11 | B69: 7767 | C69: 21 | D69: 7780 | E69: 21 | F69: 7784 | K69: 0 | L69: 122
A70: 22 | B70: 7947 | C70: 23 | D70: 7951 | E70: 23 | F70: 7959 | K70: 0 | L70: 222
A71: 22 | B71: 8067 | C71: 23 | D71: 8078 | E71: 14 | F71: 8092 | K71: 0 | L71: 221
A72: 22 | B72: 8236 | C72: 23 | D72: 8240 | E72: 23 | F72: 8243 | K72: 0 | L72: 222
A73: 22 | B73: 8362 | C73: 23 | D73: 8367 | E73: 23 | F73: 8375 | K73: 0 | L73: 222
A74: 22 | B74: 8479 | C74: 23 | D74: 8482 | E74: 14 | F74: 8494 | K74: 0 | L74: 221
A75: 22 | B75: 8603 | C75: 23 | D75: 8608 | E75: 23 | F75: 8613 | K75: 0 | L75: 222
A76: 11 | B76: 8705 | C76: 21 | D76: 8718 | E76: 21 | F76: 8721 | K76: 0 | L76: 122
A77: 22 | B77: 8827 | C77: 23 | D77: 8832 | E77: 23 | F77: 8839 | K77: 0 | L77: 222
A78: 22 | B78: 8941 | C78: 23 | D78: 8944 | E78: 23 | F78: 8949 | K78: 0 | L78: 222
A79: 22 | B79: 9063 | C79: 23 | D79: 9067 | E79: 23 | F79: 9073 | K79: 0 | L79: 222
A80: 11 | B80: 9168 | C80: 21 | D80: 9178 | E80: 21 | F80: 9182 | K80: 0 | L80: 122
A81: 11 | B81: 9277 | C81: 21 | D81: 9290 | E81: 21 | F81: 9294 | K81: 0 | L81: 122
A82: 11 | B82: 9398 | C82: 21 | D82: 9410 | E82: 21 | F82: 9414 | K82: 0 | L82: 122
A83: 22 | B83: 9556 | C83: 23 | D83: 9561 | E83: 23 | F83: 9567 | K83: 0 | L83: 222
A84: 11 | B84: 9664 | C84: 21 | D84: 9677 | E84: 21 | F84: 9681 | K84: 0 | L84: 122
A85: 11 | B85: 9787 | C85: 21 | D85: 9799 | E85: 21 | F85: 9802 | K85: 0 | L85: 122
A86: 11 | B86: 9897 | C86: 21 | D86: 9912 | E86: 21 | F86: 9917 | K86: 0 | L86: 122
A87: 22 | B87: 10020 | C87: 23 | D87: 10024 | E87: 23 | F87: 10029 | K87: 0 | L87: 222
A88: 22 | B88: 10134 | C88: 23 | D88: 10137 | E88: 23 | F88: 10144 | K88: 0 | L88: 222
A89: 11 | B89: 10250 | C89: 21 | D89: 10262 | E89: 21 | F89: 10266 | K89: 0 | L89: 122
A90: 11 | B90: 10360 | C90: 21 | D90: 10368 | E90: 21 | F90: 10372 | K90: 0 | L90: 122
A91: 22 | B91: 10511 | C91: 23 | D91: 10518 | E91: 23 | F91: 10525 | K91: 0 | L91: 222
A92: 11 | B92: 10630 | C92: 21 | D92: 10640 | E92: 21 | F92: 10644 | K92: 0 | L92: 122
A93: 22 | B93: 10777 | C93: 23 | D93: 10783 | E93: 14 | F93: 10794 | K93: 0 | L93: 221
A94: 22 | B94: 10904 | C94: 23 | D94: 10909 | E94: 23 | F94: 10915 | K94: 0 | L94: 222
A95: 11 | B95: 11011 | C95: 21 | D95: 11020 | E95: 21 | F95: 11025 | K95: 0 | L95: 122
A96: 11 | B96: 11116 | C96: 21 | D96: 11126 | E96: 21 | F96: 11132 | K96: 0 | L96: 122
A97: 22 | B97: 11269 | C97: 23 | D97: 11272 | E97: 23 | F97: 11275 | K97: 0 | L97: 222
A98: 11 | B98: 11372 | C98: 21 | D98: 11383 | E98: 21 | F98: 11391 | K98: 0 | L98: 122
A99: 22 | B99: 11564 | C99: 23 | D99: 11567 | E99: 23 | F99: 11575 | K99: 0 | L99: 222
A100: 11 | B100: 11695 | C100: 21 | D100: 11705 | E100: 21 | F100: 11709 | K100: 0 | L100: 122
A101: 22 | B101: 11812 | C101: 23 | D101: 11816 | E101: 23 | F101: 11822 | K101: 0 | L101: 222
A102: 22 | B102: 11932 | C102: 23 | D102: 11935 | E102: 23 | F102: 11940 | K102: 0 | L102: 222
A103: 11 | B103: 12037 | C103: 21 | D103: 12048 | E103: 21 | F103: 12051 | K103: 0 | L103: 122
A104: 11 | B104: 12172 | C104: 21 | D104: 12182 | E104: 21 | F104: 12189 | K104: 0 | L104: 122
A105: 22 | B105: 12336 | C105: 23 | D105: 12339 | E105: 23 | F105: 12344 | K105: 0 | L105: 222
A106: 22 | B106: 12456 | C106: 23 | D106: 12460 | E106: 23 | F106: 12468 | K106: 0 | L106: 222
A107: 11 | B107: 12563 | C107: 21 | D107: 12576 | E107: 21 | F107: 12582 | K107: 0 | L107: 122
A108: 11 | B108: 12677 | C108: 21 | D108: 12687 | E108: 21 | F108: 12691 | K108: 1 | L108: 122

Sheet !LB16A13..Ta
A1: Report for:!LB16A13..Ta
A2: Date: | B2: <date>
A3: Hen: | B3: <hen> | F3: Correct Sequence | G3: =Start!J2 -> 122 | P3: Total Sequences in Data | Q3: =4994-COUNTBLANK(L7:L5000) -> 81 | V3: Total Sequences in Block Data | W3: =COUNTA(L7:L20) -> 14 | AA3: Total Sequences in Block Data | AB3: =COUNTA(L21:L33) -> 13 | AF3: Total Sequences in Block Data | AG3: =COUNTA(L34:L47) -> 14 | AK3: Total Sequences in Block Data | AL3: =COUNTA(L48:L60) -> 13 | AP3: Total Sequences in Block Data | AQ3: =COUNTA(L61:L74) -> 14 | AU3: Total Sequences in Block Data | AV3: =COUNTA(L75:L87) -> 13
P4: Total Sequences in Summary | Q4: =SUM(O7:O14) -> 81 | V4: Total Sequences in Block Summary | W4: =SUM(U7:U14) -> 14 | AA4: Total Sequences in Block Summary | AB4: =SUM(Z7:Z14) -> 13 | AF4: Total Sequences in Block Summary | AG4: =SUM(AE7:AE14) -> 14 | AK4: Total Sequences in Block Summary | AL4: =SUM(AJ7:AJ14) -> 13 | AP4: Total Sequences in Block Summary | AQ4: =SUM(AO7:AO14) -> 14 | AU4: Total Sequences in Block Summary | AV4: =SUM(AT7:AT14) -> 13
T5: Block 1 | Y5: Block 2 | AD5: Block 3 | AI5: Block 4 | AN5: Block 5 | AS5: Block 6
A6: Sequence Component 1 | B6: Time 1 | C6: Sequence Component 2 | D6: Time 2 | E6: Sequence Component 3 | F6: Time 3 | G6: Sequence Component 4 | H6: Time 4 | I6: Sequence Component 5 | J6: Time 5 | K6: Correct? 0=No 1=Yes | L6: Sequence | N6: Frequency | P6: Relative Frequency | Q6: Variability | T6: Frequency | V6: Relative Frequency | W6: Variability | Y6: Frequency | AA6: Relative Frequency | AB6: Variability | AD6: Frequency | AF6: Relative Frequency | AG6: Variability | AI6: Frequency | AK6: Relative Frequency | AL6: Variability | AN6: Frequency | AP6: Relative Frequency | AQ6: Variability | AS6: Frequency | AU6: Relative Frequency | AV6: Variability
A7: 22 | B7: 98 | C7: 23 | D7: 103 | E7: 23 | F7: 109 | K7: 0 | L7: 222 | N7: 111 | O7: =COUNTIF($L$7:$L$500,N7) -> 1 | P7: =O7/$Q$4 -> 0.01234567901 | Q7: =IF(P7=0,0,(P7*((LOG(P7))/LOG(2)))) -> -0.07826975312 | T7: =N7 -> 111 | U7: =COUNTIF(L7:L20,T7) -> 0 | V7: =U7/(W4-U10) -> 0 | W7: =IF(V7=0,0,(V7*((LOG(V7))/LOG(2)))) -> 0 | Y7: =N7 -> 111 | Z7: =COUNTIF(L21:L33,Y7) -> 0 | AA7: =Z7/(AB4-Z10) -> 0 | AB7: =IF(AA7=0,0,(AA7*((LOG(AA7))/LOG(2)))) -> 0 | AD7: =N7 -> 111 | AE7: =COUNTIF(L34:L47,AD7) -> 1 | AF7: =AE7/(AG4-AE10) -> 0.09090909091 | AG7: =IF(AF7=0,0,(AF7*((LOG(AF7))/LOG(2)))) -> -0.3144937835 | AI7: =N7 -> 111 | AJ7: =COUNTIF(L48:L60,AI7) -> 0 | AK7: =AJ7/(AL4-AJ10) -> 0 | AL7: =IF(AK7=0,0,(AK7*((LOG(AK7))/LOG(2)))) -> 0 | AN7: =N7 -> 111 | AO7: =COUNTIF(L61:L74,AN7) -> 0 | AP7: =AO7/(AQ4-AO10) -> 0 | AQ7: =IF(AP7=0,0,(AP7*((LOG(AP7))/LOG(2)))) -> 0 | AS7: =N7 -> 111 | AT7: =COUNTIF(L75:L87,AS7) -> 0 | AU7: =AT7/(AV4-AT10) -> 0 | AV7: =IF(AU7=0,0,(AU7*((LOG(AU7))/LOG(2)))) -> 0
A8: 22 | B8: 219 | C8: 23 | D8: 223 | E8: 23 | F8: 227 | K8: 0 | L8: 222 | N8: 112 | O8: =COUNTIF($L$7:$L$500,N8) -> 2 | P8: =O8/$Q$4 -> 0.02469135802 | Q8: =IF(P8=0,0,(P8*((LOG(P8))/LOG(2)))) -> -0.1318481482 | T8: =N8 -> 112 | U8: =COUNTIF(L7:L20,T8) -> 1 | V8: =U8/(W4-U10) -> 0.1111111111 | W8: =IF(V8=0,0,(V8*((LOG(V8))/LOG(2)))) -> -0.352213889 | Y8: =N8 -> 112 | Z8: =COUNTIF(L21:L33,Y8) -> 1 | AA8: =Z8/(AB4-Z10) -> 0.1666666667 | AB8: =IF(AA8=0,0,(AA8*((LOG(AA8))/LOG(2)))) -> -0.4308270835 | AD8: =N8 -> 112 | AE8: =COUNTIF(L34:L47,AD8) -> 0 | AF8: =AE8/(AG4-AE10) -> 0 | AG8: =IF(AF8=0,0,(AF8*((LOG(AF8))/LOG(2)))) -> 0 | AI8: =N8 -> 112 | AJ8: =COUNTIF(L48:L60,AI8) -> 0 | AK8: =AJ8/(AL4-AJ10) -> 0 | AL8: =IF(AK8=0,0,(AK8*((LOG(AK8))/LOG(2)))) -> 0 | AN8: =N8 -> 112 | AO8: =COUNTIF(L61:L74,AN8) -> 0 | AP8: =AO8/(AQ4-AO10) -> 0 | AQ8: =IF(AP8=0,0,(AP8*((LOG(AP8))/LOG(2)))) -> 0 | AS8: =N8 -> 112 | AT8: =COUNTIF(L75:L87,AS8) -> 0 | AU8: =AT8/(AV4-AT10) -> 0 | AV8: =IF(AU8=0,0,(AU8*((LOG(AU8))/LOG(2)))) -> 0
A9: 22 | B9: 335 | C9: 23 | D9: 339 | E9: 23 | F9: 344 | K9: 0 | L9: 222 | N9: 121 | O9: =COUNTIF($L$7:$L$500,N9) -> 1 | P9: =O9/$Q$4 -> 0.01234567901 | Q9: =IF(P9=0,0,(P9*((LOG(P9))/LOG(2)))) -> -0.07826975312 | T9: =N9 -> 121 | U9: =COUNTIF(L7:L20,T9) -> 0 | V9: =U9/(W4-U10) -> 0 | W9: =IF(V9=0,0,(V9*((LOG(V9))/LOG(2)))) -> 0 | Y9: =N9 -> 121 | Z9: =COUNTIF(L21:L33,Y9) -> 0 | AA9: =Z9/(AB4-Z10) -> 0 | AB9: =IF(AA9=0,0,(AA9*((LOG(AA9))/LOG(2)))) -> 0 | AD9: =N9 -> 121 | AE9: =COUNTIF(L34:L47,AD9) -> 0 | AF9: =AE9/(AG4-AE10) -> 0 | AG9: =IF(AF9=0,0,(AF9*((LOG(AF9))/LOG(2)))) -> 0 | AI9: =N9 -> 121 | AJ9: =COUNTIF(L48:L60,AI9) -> 0 | AK9: =AJ9/(AL4-AJ10) -> 0 | AL9: =IF(AK9=0,0,(AK9*((LOG(AK9))/LOG(2)))) -> 0 | AN9: =N9 -> 121 | AO9: =COUNTIF(L61:L74,AN9) -> 0 | AP9: =AO9/(AQ4-AO10) -> 0 | AQ9: =IF(AP9=0,0,(AP9*((LOG(AP9))/LOG(2)))) -> 0 | AS9: =N9 -> 121 | AT9: =COUNTIF(L75:L87,AS9) -> 1 | AU9: =AT9/(AV4-AT10) -> 0.1666666667 | AV9: =IF(AU9=0,0,(AU9*((LOG(AU9))/LOG(2)))) -> -0.4308270835
A10: 11 | B10: 452 | C10: 21 | D10: 461 | E10: 21 | F10: 467 | K10: 0 | L10: 122 | N10: 122 | O10: =COUNTIF($L$7:$L$500,N10) -> 38 | P10: =O10/$Q$4 -> 0.4691358025 | Q10: =IF(P10=0,0,(P10*((LOG(P10))/LOG(2)))) -> -0.5122599333 | T10: =N10 -> 122 | U10: =COUNTIF(L7:L20,T10) -> 5 | Y10: =N10 -> 122 | Z10: =COUNTIF(L21:L33,Y10) -> 7 | AD10: =N10 -> 122 | AE10: =COUNTIF(L34:L47,AD10) -> 3 | AI10: =N10 -> 122 | AJ10: =COUNTIF(L48:L60,AI10) -> 9 | AN10: =N10 -> 122 | AO10: =COUNTIF(L61:L74,AN10) -> 7 | AS10: =N10 -> 122 | AT10: =COUNTIF(L75:L87,AS10) -> 7
A11: 22 | B11: 617 | C11: 23 | D11: 621 | E11: 23 | F11: 626 | K11: 0 | L11: 222 | N11: 211 | O11: =COUNTIF($L$7:$L$500,N11) -> 0 | P11: =O11/$Q$4 -> 0 | Q11: =IF(P11=0,0,(P11*((LOG(P11))/LOG(2)))) -> 0 | T11: =N11 -> 211 | U11: =COUNTIF(L7:L20,T11) -> 0 | V11: =U11/(W4-U10) -> 0 | W11: =IF(V11=0,0,(V11*((LOG(V11))/LOG(2)))) -> 0 | Y11: =N11 -> 211 | Z11: =COUNTIF(L21:L33,Y11) -> 0 | AA11: =Z11/(AB4-Z10) -> 0 | AB11: =IF(AA11=0,0,(AA11*((LOG(AA11))/LOG(2)))) -> 0 | AD11: =N11 -> 211 | AE11: =COUNTIF(L34:L47,AD11) -> 0 | AF11: =AE11/(AG4-AE10) -> 0 | AG11: =IF(AF11=0,0,(AF11*((LOG(AF11))/LOG(2)))) -> 0 | AI11: =N11 -> 211 | AJ11: =COUNTIF(L48:L60,AI11) -> 0 | AK11: =AJ11/(AL4-AJ10) -> 0 | AL11: =IF(AK11=0,0,(AK11*((LOG(AK11))/LOG(2)))) -> 0 | AN11: =N11 -> 211 | AO11: =COUNTIF(L61:L74,AN11) -> 0 | AP11: =AO11/(AQ4-AO10) -> 0 | AQ11: =IF(AP11=0,0,(AP11*((LOG(AP11))/LOG(2)))) -> 0 | AS11: =N11 -> 211 | AT11: =COUNTIF(L75:L87,AS11) -> 0 | AU11: =AT11/(AV4-AT10) -> 0 | AV11: =IF(AU11=0,0,(AU11*((LOG(AU11))/LOG(2)))) -> 0
A12: 11 | B12: 719 | C12: 21 | D12: 731 | E12: 21 | F12: 735 | K12: 0 | L12: 122 | N12: 212 | O12: =COUNTIF($L$7:$L$500,N12) -> 0 | P12: =O12/$Q$4 -> 0 | Q12: =IF(P12=0,0,(P12*((LOG(P12))/LOG(2)))) -> 0 | T12: =N12 -> 212 | U12: =COUNTIF(L7:L20,T12) -> 0 | V12: =U12/(W4-U10) -> 0 | W12: =IF(V12=0,0,(V12*((LOG(V12))/LOG(2)))) -> 0 | Y12: =N12 -> 212 | Z12: =COUNTIF(L21:L33,Y12) -> 0 | AA12: =Z12/(AB4-Z10) -> 0 | AB12: =IF(AA12=0,0,(AA12*((LOG(AA12))/LOG(2)))) -> 0 | AD12: =N12 -> 212 | AE12: =COUNTIF(L34:L47,AD12) -> 0 | AF12: =AE12/(AG4-AE10) -> 0 | AG12: =IF(AF12=0,0,(AF12*((LOG(AF12))/LOG(2)))) -> 0 | AI12: =N12 -> 212 | AJ12: =COUNTIF(L48:L60,AI12) -> 0 | AK12: =AJ12/(AL4-AJ10) -> 0 | AL12: =IF(AK12=0,0,(AK12*((LOG(AK12))/LOG(2)))) -> 0 | AN12: =N12 -> 212 | AO12: =COUNTIF(L61:L74,AN12) -> 0 | AP12: =AO12/(AQ4-AO10) -> 0 | AQ12: =IF(AP12=0,0,(AP12*((LOG(AP12))/LOG(2)))) -> 0 | AS12: =N12 -> 212 | AT12: =COUNTIF(L75:L87,AS12) -> 0 | AU12: =AT12/(AV4-AT10) -> 0 | AV12: =IF(AU12=0,0,(AU12*((LOG(AU12))/LOG(2)))) -> 0
A13: 11 | B13: 844 | C13: 12 | D13: 849 | E13: 23 | F13: 856 | K13: 0 | L13: 112 | N13: 221 | O13: =COUNTIF($L$7:$L$500,N13) -> 2 | P13: =O13/$Q$4 -> 0.02469135802 | Q13: =IF(P13=0,0,(P13*((LOG(P13))/LOG(2)))) -> -0.1318481482 | T13: =N13 -> 221 | U13: =COUNTIF(L7:L20,T13) -> 0 | V13: =U13/(W4-U10) -> 0 | W13: =IF(V13=0,0,(V13*((LOG(V13))/LOG(2)))) -> 0 | Y13: =N13 -> 221 | Z13: =COUNTIF(L21:L33,Y13) -> 0 | AA13: =Z13/(AB4-Z10) -> 0 | AB13: =IF(AA13=0,0,(AA13*((LOG(AA13))/LOG(2)))) -> 0 | AD13: =N13 -> 221 | AE13: =COUNTIF(L34:L47,AD13) -> 2 | AF13: =AE13/(AG4-AE10) -> 0.1818181818 | AG13: =IF(AF13=0,0,(AF13*((LOG(AF13))/LOG(2)))) -> -0.4471693852 | AI13: =N13 -> 221 | AJ13: =COUNTIF(L48:L60,AI13) -> 0 | AK13: =AJ13/(AL4-AJ10) -> 0 | AL13: =IF(AK13=0,0,(AK13*((LOG(AK13))/LOG(2)))) -> 0 | AN13: =N13 -> 221 | AO13: =COUNTIF(L61:L74,AN13) -> 0 | AP13: =AO13/(AQ4-AO10) -> 0 | AQ13: =IF(AP13=0,0,(AP13*((LOG(AP13))/LOG(2)))) -> 0 | AS13: =N13 -> 221 | AT13: =COUNTIF(L75:L87,AS13) -> 0 | AU13: =AT13/(AV4-AT10) -> 0 | AV13: =IF(AU13=0,0,(AU13*((LOG(AU13))/LOG(2)))) -> 0
A14: 22 | B14: 958 | C14: 23 | D14: 963 | E14: 23 | F14: 976 | K14: 0 | L14: 222 | N14: 222 | O14: =COUNTIF($L$7:$L$500,N14) -> 37 | P14: =O14/$Q$4 -> 0.4567901235 | Q14: =IF(P14=0,0,(P14*((LOG(P14))/LOG(2)))) -> -0.5163540195 | T14: =N14 -> 222 | U14: =COUNTIF(L7:L20,T14) -> 8 | V14: =U14/(W4-U10) -> 0.8888888889 | W14: =IF(V14=0,0,(V14*((LOG(V14))/LOG(2)))) -> -0.1510444457 | Y14: =N14 -> 222 | Z14: =COUNTIF(L21:L33,Y14) -> 5 | AA14: =Z14/(AB4-Z10) -> 0.8333333333 | AB14: =IF(AA14=0,0,(AA14*((LOG(AA14))/LOG(2)))) -> -0.2191953382 | AD14: =N14 -> 222 | AE14: =COUNTIF(L34:L47,AD14) -> 8 | AF14: =AE14/(AG4-AE10) -> 0.7272727273 | AG14: =IF(AF14=0,0,(AF14*((LOG(AF14))/LOG(2)))) -> -0.3341320863 | AI14: =N14 -> 222 | AJ14: =COUNTIF(L48:L60,AI14) -> 4 | AK14: =AJ14/(AL4-AJ10) -> 1 | AL14: =IF(AK14=0,0,(AK14*((LOG(AK14))/LOG(2)))) -> 0 | AN14: =N14 -> 222 | AO14: =COUNTIF(L61:L74,AN14) -> 7 | AP14: =AO14/(AQ4-AO10) -> 1 | AQ14: =IF(AP14=0,0,(AP14*((LOG(AP14))/LOG(2)))) -> 0 | AS14: =N14 -> 222 | AT14: =COUNTIF(L75:L87,AS14) -> 5 | AU14: =AT14/(AV4-AT10) -> 0.8333333333 | AV14: =IF(AU14=0,0,(AU14*((LOG(AU14))/LOG(2)))) -> -0.2191953382
A15: 22 | B15: 1081 | C15: 23 | D15: 1083 | E15: 23 | F15: 1087 | K15: 0 | L15: 222 | P15: =SUM(P7:P14) -> 1 | Q15: =-SUM(Q7:Q14) -> 1.448849755 | V15: =SUM(V7:V14) -> 1 | W15: =-SUM(W7:W14) -> 0.5032583348 | AA15: =SUM(AA7:AA14) -> 1 | AB15: =-SUM(AB7:AB14) -> 0.6500224216 | AF15: =SUM(AF7:AF14) -> 1 | AG15: =-SUM(AG7:AG14) -> 1.095795255 | AK15: =SUM(AK7:AK14) -> 1 | AL15: =-SUM(AL7:AL14) -> 0 | AP15: =SUM(AP7:AP14) -> 1 | AQ15: =-SUM(AQ7:AQ14) -> 0 | AU15: =SUM(AU7:AU14) -> 1 | AV15: =-SUM(AV7:AV14) -> 0.6500224216
A16: 11 | B16: 1181 | C16: 21 | D16: 1193 | E16: 21 | F16: 1198 | K16: 0 | L16: 122 | P16: U= | Q16: =Q15/(LOG(Q4)/LOG(2)) -> 0.2285306048 | V16: U1= | W16: =W15/(LOG(W4)/LOG(2)) -> 0.1321805676 | AA16: U2= | AB16: =AB15/(LOG(AB4)/LOG(2)) -> 0.1756608596 | AF16: U3= | AG16: =AG15/(LOG(AG4)/LOG(2)) -> 0.2878101142 | AK16: U4= | AL16: =AL15/(LOG(AL4)/LOG(2)) -> 0 | AP16: U5= | AQ16: =AQ15/(LOG(AQ4)/LOG(2)) -> 0 | AU16: U6= | AV16: =AV15/(LOG(AV4)/LOG(2)) -> 0.1756608596
A17: 22 | B17: 1335 | C17: 23 | D17: 1341 | E17: 23 | F17: 1347 | K17: 0 | L17: 222
A18: 22 | B18: 1467 | C18: 23 | D18: 1472 | E18: 23 | F18: 1479 | K18: 0 | L18: 222
A19: 11 | B19: 1576 | C19: 21 | D19: 1590 | E19: 21 | F19: 1594 | K19: 0 | L19: 122 | N19: Total Target Seq
A20: 11 | B20: 1688 | C20: 21 | D20: 1700 | E20: 21 | F20: 1708 | K20: 0 | L20: 122 | N20: =COUNTIF(L7:L87,G3) -> 38 | P20: 14 | Q20: 13 | R20: 14 | S20: 13 | T20: 14 | U20: 13
A21: 11 | B21: 1800 | C21: 21 | D21: 1811 | E21: 21 | F21: 1815 | K21: 0 | L21: 122 | P21: % of reinforcement given in 6 equal intervals based on number of trials
A22: 22 | B22: 1942 | C22: 23 | D22: 1951 | E22: 23 | F22: 1960 | K22: 0 | L22: 222 | P22: %_1 | Q22: %_2 | R22: %_3 | S22: %_4 | T22: %_5 | U22: %_6
A23: 22 | B23: 2070 | C23: 23 | D23: 2074 | E23: 23 | F23: 2080 | K23: 0 | L23: 222 | O23: target sequence | P23: =$G$3 -> 122 | Q23: =$G$3 -> 122 | R23: =$G$3 -> 122 | S23: =$G$3 -> 122 | T23: =$G$3 -> 122 | U23: =$G$3 -> 122
A24: 11 | B24: 2179 | C24: 21 | D24: 2184 | E24: 21 | F24: 2193 | K24: 0 | L24: 122 | O24: total reinforcement | P24: =U10 -> 5 | Q24: =Z10 -> 7 | R24: =AE10 -> 3 | S24: =AJ10 -> 9 | T24: =AO10 -> 7 | U24: =AT10 -> 7
A25: 22 | B25: 2335 | C25: 23 | D25: 2340 | E25: 23 | F25: 2350 | K25: 0 | L25: 222 | O25: % target
A26: 22 | B26: 2463 | C26: 23 | D26: 2466 | E26: 23 | F26: 2472 | K26: 0 | L26: 222 | O26: CCRF
A27: 11 | B27: 2570 | C27: 21 | D27: 2582 | E27: 21 | F27: 2585 | K27: 0 | L27: 122 | O27: % CCRf
A28: 11 | B28: 2700 | C28: 21 | D28: 2711 | E28: 21 | F28: 2717 | K28: 0 | L28: 122 | O28: average response rate | P28: =F20/P20 -> 122 | Q28: =(F33-F20)/Q20 -> 124.6153846 | R28: =(F47-F33)/R20 -> 128.1428571 | S28: =(F60-F47)/S20 -> 132.2307692 | T28: =(F74-F60)/T20 -> 127.8571429 | U28: =(F87-F74)/U20 -> 139.8461538
A29: 11 | B29: 2822 | C29: 12 | D29: 2826 | E29: 23 | F29: 2842 | K29: 0 | L29: 112
A30: 11 | B30: 2934 | C30: 21 | D30: 2947 | E30: 21 | F30: 2950 | K30: 0 | L30: 122
A31: 22 | B31: 3066 | C31: 23 | D31: 3074 | E31: 23 | F31: 3086 | K31: 0 | L31: 222
A32: 11 | B32: 3184 | C32: 21 | D32: 3193 | E32: 21 | F32: 3197 | K32: 0 | L32: 122
A33: 11 | B33: 3314 | C33: 21 | D33: 3325 | E33: 21 | F33: 3328 | K33: 0 | L33: 122
A34: 22 | B34: 3432 | C34: 23 | D34: 3437 | E34: 23 | F34: 3443 | K34: 0 | L34: 222
A35: 22 | B35: 3547 | C35: 23 | D35: 3555 | E35: 23 | F35: 3565 | K35: 0 | L35: 222
A36: 22 | B36: 3672 | C36: 23 | D36: 3684 | E36: 23 | F36: 3691 | K36: 0 | L36: 222
A37: 22 | B37: 3798 | C37: 23 | D37: 3800 | E37: 23 | F37: 3807 | K37: 0 | L37: 222
A38: 11 | B38: 3904 | C38: 21 | D38: 3913 | E38: 21 | F38: 3916 | K38: 0 | L38: 122
A39: 22 | B39: 4022 | C39: 23 | D39: 4030 | E39: 23 | F39: 4035 | K39: 0 | L39: 222
A40: 22 | B40: 4139 | C40: 23 | D40: 4149 | E40: 14 | F40: 4162 | K40: 0 | L40: 221
A41: 11 | B41: 4274 | C41: 12 | D41: 4278 | E41: 14 | F41: 4283 | K41: 0 | L41: 111
A42: 22 | B42: 4390 | C42: 23 | D42: 4393 | E42: 23 | F42: 4399 | K42: 0 | L42: 222
A43: 11 | B43: 4497 | C43: 21 | D43: 4506 | E43: 21 | F43: 4510 | K43: 0 | L43: 122
A44: 11 | B44: 4621 | C44: 21 | D44: 4630 | E44: 21 | F44: 4633 | K44: 0 | L44: 122
A45: 22 | B45: 4854 | C45: 23 | D45: 4858 | E45: 23 | F45: 4861 | K45: 0 | L45: 222
A46: 22 | B46: 4984 | C46: 23 | D46: 4988 | E46: 14 | F46: 5009 | K46: 0 | L46: 221
A47: 22 | B47: 5113 | C47: 23 | D47: 5117 | E47: 23 | F47: 5122 | K47: 0 | L47: 222
A48: 22 | B48: 5222 | C48: 23 | D48: 5225 | E48: 23 | F48: 5230 | K48: 0 | L48: 222
A49: 11 | B49: 5328 | C49: 21 | D49: 5338 | E49: 21 | F49: 5342 | K49: 0 | L49: 122
A50: 11 | B50: 5459 | C50: 21 | D50: 5468 | E50: 21 | F50: 5472 | K50: 0 | L50: 122
A51: 22 | B51: 5623 | C51: 23 | D51: 5628 | E51: 23 | F51: 5632 | K51: 0 | L51: 222
A52: 11 | B52: 5730 | C52: 21 | D52: 5741 | E52: 21 | F52: 5744 | K52: 0 | L52: 122
A53: 11 | B53: 5852 | C53: 21 | D53: 5864 | E53: 21 | F53: 5870 | K53: 0 | L53: 122
A54: 22 | B54: 6024 | C54: 23 | D54: 6027 | E54: 23 | F54: 6043 | K54: 0 | L54: 222
A55: 11 | B55: 6140 | C55: 21 | D55: 6151 | E55: 21 | F55: 6159 | K55: 0 | L55: 122
A56: 22 | B56: 6290 | C56: 23 | D56: 6294 | E56: 23 | F56: 6299 | K56: 0 | L56: 222
A57: 11 | B57: 6402 | C57: 21 | D57: 6412 | E57: 21 | F57: 6429 | K57: 0 | L57: 122
A58: 11 | B58: 6554 | C58: 21 | D58: 6565 | E58: 21 | F58: 6574 | K58: 0 | L58: 122
A59: 11 | B59: 6670 | C59: 21 | D59: 6682 | E59: 21 | F59: 6685 | K59: 0 | L59: 122
A60: 11 | B60: 6826 | C60: 21 | D60: 6838 | E60: 21 | F60: 6841 | K60: 0 | L60: 122
A61: 11 | B61: 6936 | C61: 21 | D61: 6946 | E61: 21 | F61: 6952 | K61: 0 | L61: 122
A62: 11 | B62: 7083 | C62: 21 | D62: 7098 | E62: 21 | F62: 7103 | K62: 0 | L62: 122
A63: 11 | B63: 7199 | C63: 21 | D63: 7211 | E63: 21 | F63: 7215 | K63: 0 | L63: 122
A64: 22 | B64: 7358 | C64: 23 | D64: 7369 | E64: 23 | F64: 7375 | K64: 0 | L64: 222
A65: 22 | B65: 7484 | C65: 23 | D65: 7490 | E65: 23 | F65: 7498 | K65: 0 | L65: 222
A66: 11 | B66: 7595 | C66: 21 | D66: 7608 | E66: 21 | F66: 7611 | K66: 0 | L66: 122
A67: 22 | B67: 7756 | C67: 23 | D67: 7761 | E67: 23 | F67: 7766 | K67: 0 | L67: 222
A68: 22 | B68: 7868 | C68: 23 | D68: 7871 | E68: 23 | F68: 7876 | K68: 0 | L68: 222
A69: 11 | B69: 7972 | C69: 21 | D69: 7986 | E69: 21 | F69: 7991 | K69: 0 | L69: 122
A70: 22 | B70: 8120 | C70: 23 | D70: 8124 | E70: 23 | F70: 8131 | K70: 0 | L70: 222
A71: 22 | B71: 8236 | C71: 23 | D71: 8240 | E71: 23 | F71: 8245 | K71: 0 | L71: 222
A72: 11 | B72: 8348 | C72: 21 | D72: 8360 | E72: 21 | F72: 8369 | K72: 0 | L72: 122
A73: 22 | B73: 8513 | C73: 23 | D73: 8516 | E73: 23 | F73: 8524 | K73: 0 | L73: 222
A74: 11 | B74: 8620 | C74: 21 | D74: 8627 | E74: 21 | F74: 8631 | K74: 0 | L74: 122
A75: 11 | B75: 8753 | C75: 21 | D75: 8764 | E75: 21 | F75: 8767 | K75: 0 | L75: 122
A76: 22 | B76: 8934 | C76: 23 | D76: 8939 | E76: 23 | F76: 8944 | K76: 0 | L76: 222
A77: 11 | B77: 9040 | C77: 21 | D77: 9052 | E77: 21 | F77: 9055 | K77: 0 | L77: 122
A78: 11 | B78: 9190 | C78: 21 | D78: 9202 | E78: 21 | F78: 9209 | K78: 0 | L78: 122
A79: 11 | B79: 9377 | C79: 21 | D79: 9390 | E79: 21 | F79: 9394 | K79: 0 | L79: 122
A80: 11 | B80: 9516 | C80: 21 | D80: 9529 | E80: 21 | F80: 9533 | K80: 0 | L80: 122
A81: 22 | B81: 9641 | C81: 23 | D81: 9648 | E81: 23 | F81: 9653 | K81: 0 | L81: 222
A82: 22 | B82: 9793 | C82: 23 | D82: 9797 | E82: 23 | F82: 9805 | K82: 0 | L82: 222
A83: 11 | B83: 9902 | C83: 21 | D83: 9909 | E83: 21 | F83: 9913 | K83: 0 | L83: 122
A84: 22 | B84: 10027 | C84: 23 | D84: 10030 | E84: 23 | F84: 10040 | K84: 0 | L84: 222
A85: 22 | B85: 10153 | C85: 23 | D85: 10159 | E85: 23 | F85: 10164 | K85: 0 | L85: 222
A86: 11 | B86: 10261 | C86: 21 | D86: 10278 | E86: 12 | F86: 10302 | K86: 0 | L86: 121
A87: 11 | B87: 10429 | C87: 21 | D87: 10440 | E87: 21 | F87: 10449 | K87: 1 | L87: 122

Sheet !LB17A03..Ta
A1: Report for:!LB17A03..Ta
A2: Date: | B2: <date>
A3: Hen: | B3: <hen> | F3: Correct Sequence | G3: =Start!J2 -> 122 | P3: Total Sequences in Data | Q3: =4994-COUNTBLANK(L7:L5000) -> 76 | V3: Total Sequences in Block Data | W3: =COUNTA(L7:L19) -> 13 | AA3: Total Sequences in Block Data | AB3: =COUNTA(L20:L31) -> 12 | AF3: Total Sequences in Block Data | AG3: =COUNTA(L32:L44) -> 13 | AK3: Total Sequences in Block Data | AL3: =COUNTA(L45:L57) -> 13 | AP3: Total Sequences in Block Data | AQ3: =COUNTA(L58:L69) -> 12 | AU3: Total Sequences in Block Data | AV3: =COUNTA(L70:L82) -> 13
P4: Total Sequences in Summary | Q4: =SUM(O7:O14) -> 76 | V4: Total Sequences in Block Summary | W4: =SUM(U7:U14) -> 13 | AA4: Total Sequences in Block Summary | AB4: =SUM(Z7:Z14) -> 12 | AF4: Total Sequences in Block Summary | AG4: =SUM(AE7:AE14) -> 13 | AK4: Total Sequences in Block Summary | AL4: =SUM(AJ7:AJ14) -> 13 | AP4: Total Sequences in Block Summary | AQ4: =SUM(AO7:AO14) -> 12 | AU4: Total Sequences in Block Summary | AV4: =SUM(AT7:AT14) -> 13
T5: Block 1 | Y5: Block 2 | AD5: Block 3 | AI5: Block 4 | AN5: Block 5 | AS5: Block 6
A6: Sequence Component 1 | B6: Time 1 | C6: Sequence Component 2 | D6: Time 2 | E6: Sequence Component 3 | F6: Time 3 | G6: Sequence Component 4 | H6: Time 4 | I6: Sequence Component 5 | J6: Time 5 | K6: Correct? 0=No 1=Yes | L6: Sequence | N6: Frequency | P6: Relative Frequency | Q6: Variability | T6: Frequency | V6: Relative Frequency | W6: Variability | Y6: Frequency | AA6: Relative Frequency | AB6: Variability | AD6: Frequency | AF6: Relative Frequency | AG6: Variability | AI6: Frequency | AK6: Relative Frequency | AL6: Variability | AN6: Frequency | AP6: Relative Frequency | AQ6: Variability | AS6: Frequency | AU6: Relative Frequency | AV6: Variability
A7: 22 | B7: 21 | C7: 23 | D7: 24 | E7: 23 | F7: 28 | K7: 0 | L7: 222 | N7: 111 | O7: =COUNTIF($L$7:$L$500,N7) -> 1 | P7: =O7/$Q$4 -> 0.01315789474 | Q7: =IF(P7=0,0,(P7*((LOG(P7))/LOG(2)))) -> -0.08220957255 | T7: =N7 -> 111 | U7: =COUNTIF(L7:L19,T7) -> 0 | V7: =U7/(W4-U10) -> 0 | W7: =IF(V7=0,0,(V7*((LOG(V7))/LOG(2)))) -> 0 | Y7: =N7 -> 111 | Z7: =COUNTIF(L20:L31,Y7) -> 1 | AA7: =Z7/(AB4-Z10) -> 0.1666666667 | AB7: =IF(AA7=0,0,(AA7*((LOG(AA7))/LOG(2)))) -> -0.4308270835 | AD7: =N7 -> 111 | AE7: =COUNTIF(L32:L44,AD7) -> 0 | AF7: =AE7/(AG4-AE10) -> 0 | AG7: =IF(AF7=0,0,(AF7*((LOG(AF7))/LOG(2)))) -> 0 | AI7: =N7 -> 111 | AJ7: =COUNTIF(L45:L57,AI7) -> 0 | AK7: =AJ7/(AL4-AJ10) -> 0 | AL7: =IF(AK7=0,0,(AK7*((LOG(AK7))/LOG(2)))) -> 0 | AN7: =N7 -> 111 | AO7: =COUNTIF(L58:L69,AN7) -> 0 | AP7: =AO7/(AQ4-AO10) -> 0 | AQ7: =IF(AP7=0,0,(AP7*((LOG(AP7))/LOG(2)))) -> 0 | AS7: =N7 -> 111 | AT7: =COUNTIF(L70:L82,AS7) -> 0 | AU7: =AT7/(AV4-AT10) -> 0 | AV7: =IF(AU7=0,0,(AU7*((LOG(AU7))/LOG(2)))) -> 0
A8: 22 | B8: 131 | C8: 23 | D8: 138 | E8: 23 | F8: 142 | K8: 0 | L8: 222 | N8: 112 | O8: =COUNTIF($L$7:$L$500,N8) -> 1 | P8: =O8/$Q$4 -> 0.01315789474 | Q8: =IF(P8=0,0,(P8*((LOG(P8))/LOG(2)))) -> -0.08220957255 | T8: =N8 -> 112 | U8: =COUNTIF(L7:L19,T8) -> 0 | V8: =U8/(W4-U10) -> 0 | W8: =IF(V8=0,0,(V8*((LOG(V8))/LOG(2)))) -> 0 | Y8: =N8 -> 112 | Z8: =COUNTIF(L20:L31,Y8) -> 0 | AA8: =Z8/(AB4-Z10) -> 0 | AB8: =IF(AA8=0,0,(AA8*((LOG(AA8))/LOG(2)))) -> 0 | AD8: =N8 -> 112 | AE8: =COUNTIF(L32:L44,AD8) -> 0 | AF8: =AE8/(AG4-AE10) -> 0 | AG8: =IF(AF8=0,0,(AF8*((LOG(AF8))/LOG(2)))) -> 0 | AI8: =N8 -> 112 | AJ8: =COUNTIF(L45:L57,AI8) -> 0 | AK8: =AJ8/(AL4-AJ10) -> 0 | AL8: =IF(AK8=0,0,(AK8*((LOG(AK8))/LOG(2)))) -> 0 | AN8: =N8 -> 112 | AO8: =COUNTIF(L58:L69,AN8) -> 0 | AP8: =AO8/(AQ4-AO10) -> 0 | AQ8: =IF(AP8=0,0,(AP8*((LOG(AP8))/LOG(2)))) -> 0 | AS8: =N8 -> 112 | AT8: =COUNTIF(L70:L82,AS8) -> 1 | AU8: =AT8/(AV4-AT10) -> 0.25 | AV8: =IF(AU8=0,0,(AU8*((LOG(AU8))/LOG(2)))) -> -0.5
A9: 11 | B9: 237 | C9: 21 | D9: 254 | E9: 21 | F9: 260 | K9: 0 | L9: 122 | N9: 121 | O9: =COUNTIF($L$7:$L$500,N9) -> 0 | P9: =O9/$Q$4 -> 0 | Q9: =IF(P9=0,0,(P9*((LOG(P9))/LOG(2)))) -> 0 | T9: =N9 -> 121 | U9: =COUNTIF(L7:L19,T9) -> 0 | V9: =U9/(W4-U10) -> 0 | W9: =IF(V9=0,0,(V9*((LOG(V9))/LOG(2)))) -> 0 | Y9: =N9 -> 121 | Z9: =COUNTIF(L20:L31,Y9) -> 0 | AA9: =Z9/(AB4-Z10) -> 0 | AB9: =IF(AA9=0,0,(AA9*((LOG(AA9))/LOG(2)))) -> 0 | AD9: =N9 -> 121 | AE9: =COUNTIF(L32:L44,AD9) -> 0 | AF9: =AE9/(AG4-AE10) -> 0 | AG9: =IF(AF9=0,0,(AF9*((LOG(AF9))/LOG(2)))) -> 0 | AI9: =N9 -> 121 | AJ9: =COUNTIF(L45:L57,AI9) -> 0 | AK9: =AJ9/(AL4-AJ10) -> 0 | AL9: =IF(AK9=0,0,(AK9*((LOG(AK9))/LOG(2)))) -> 0 | AN9: =N9 -> 121 | AO9: =COUNTIF(L58:L69,AN9) -> 0 | AP9: =AO9/(AQ4-AO10) -> 0 | AQ9: =IF(AP9=0,0,(AP9*((LOG(AP9))/LOG(2)))) -> 0 | AS9: =N9 -> 121 | AT9: =COUNTIF(L70:L82,AS9) -> 0 | AU9: =AT9/(AV4-AT10) -> 0 | AV9: =IF(AU9=0,0,(AU9*((LOG(AU9))/LOG(2)))) -> 0
A10: 22 | B10: 356 | C10: 23 | D10: 359 | E10: 23 | F10: 363 | K10: 0 | L10: 222 | N10: 122 | O10: =COUNTIF($L$7:$L$500,N10) -> 39 | P10: =O10/$Q$4 -> 0.5131578947 | Q10: =IF(P10=0,0,(P10*((LOG(P10))/LOG(2)))) -> -0.4939274538 | T10: =N10 -> 122 | U10: =COUNTIF(L7:L19,T10) -> 5 | Y10: =N10 -> 122 | Z10: =COUNTIF(L20:L31,Y10) -> 6 | AD10: =N10 -> 122 | AE10: =COUNTIF(L32:L44,AD10) -> 7 | AI10: =N10 -> 122 | AJ10: =COUNTIF(L45:L57,AI10) -> 6 | AN10: =N10 -> 122 | AO10: =COUNTIF(L58:L69,AN10) -> 6 | AS10: =N10 -> 122 | AT10: =COUNTIF(L70:L82,AS10) -> 9
A11: 22 | B11: 472 | C11: 23 | D11: 478 | E11: 23 | F11: 484 | K11: 0 | L11: 222 | N11: 211 | O11: =COUNTIF($L$7:$L$500,N11) -> 0 | P11: =O11/$Q$4 -> 0 | Q11: =IF(P11=0,0,(P11*((LOG(P11))/LOG(2)))) -> 0 | T11: =N11 -> 211 | U11: =COUNTIF(L7:L19,T11) -> 0 | V11: =U11/(W4-U10) -> 0 | W11: =IF(V11=0,0,(V11*((LOG(V11))/LOG(2)))) -> 0 | Y11: =N11 -> 211 | Z11: =COUNTIF(L20:L31,Y11) -> 0 | AA11: =Z11/(AB4-Z10) -> 0 | AB11: =IF(AA11=0,0,(AA11*((LOG(AA11))/LOG(2)))) -> 0 | AD11: =N11 -> 211 | AE11: =COUNTIF(L32:L44,AD11) -> 0 | AF11: =AE11/(AG4-AE10) -> 0 | AG11: =IF(AF11=0,0,(AF11*((LOG(AF11))/LOG(2)))) -> 0 | AI11: =N11 -> 211 | AJ11: =COUNTIF(L45:L57,AI11) -> 0 | AK11: =AJ11/(AL4-AJ10) -> 0 | AL11: =IF(AK11=0,0,(AK11*((LOG(AK11))/LOG(2)))) -> 0 | AN11: =N11 -> 211 | AO11: =COUNTIF(L58:L69,AN11) -> 0 | AP11: =AO11/(AQ4-AO10) -> 0 | AQ11: =IF(AP11=0,0,(AP11*((LOG(AP11))/LOG(2)))) -> 0 | AS11: =N11 -> 211 | AT11: =COUNTIF(L70:L82,AS11) -> 0 | AU11: =AT11/(AV4-AT10) -> 0 | AV11: =IF(AU11=0,0,(AU11*((LOG(AU11))/LOG(2)))) -> 0
A12: 11 | B12: 581 | C12: 21 | D12: 594 | E12: 21 | F12: 597 | K12: 0 | L12: 122 | N12: 212 | O12: =COUNTIF($L$7:$L$500,N12) -> 0 | P12: =O12/$Q$4 -> 0 | Q12: =IF(P12=0,0,(P12*((LOG(P12))/LOG(2)))) -> 0 | T12: =N12 -> 212 | U12: =COUNTIF(L7:L19,T12) -> 0 | V12: =U12/(W4-U10) -> 0 | W12: =IF(V12=0,0,(V12*((LOG(V12))/LOG(2)))) -> 0 | Y12: =N12 -> 212 | Z12: =COUNTIF(L20:L31,Y12) -> 0 | AA12: =Z12/(AB4-Z10) -> 0 | AB12: =IF(AA12=0,0,(AA12*((LOG(AA12))/LOG(2)))) -> 0 | AD12: =N12 -> 212 | AE12: =COUNTIF(L32:L44,AD12) -> 0 | AF12: =AE12/(AG4-AE10) -> 0 | AG12: =IF(AF12=0,0,(AF12*((LOG(AF12))/LOG(2)))) -> 0 | AI12: =N12 -> 212 | AJ12: =COUNTIF(L45:L57,AI12) -> 0 | AK12: =AJ12/(AL4-AJ10) -> 0 | AL12: =IF(AK12=0,0,(AK12*((LOG(AK12))/LOG(2)))) -> 0 | AN12: =N12 -> 212 | AO12: =COUNTIF(L58:L69,AN12) -> 0 | AP12: =AO12/(AQ4-AO10) -> 0 | AQ12: =IF(AP12=0,0,(AP12*((LOG(AP12))/LOG(2)))) -> 0 | AS12: =N12 -> 212 | AT12: =COUNTIF(L70:L82,AS12) -> 0 | AU12: =AT12/(AV4-AT10) -> 0 | AV12: =IF(AU12=0,0,(AU12*((LOG(AU12))/LOG(2)))) -> 0
A13: 22 | B13: 700 | C13: 23 | D13: 703 | E13: 23 | F13: 709 | K13: 0 | L13: 222 | N13: 221 | O13: =COUNTIF($L$7:$L$500,N13) -> 1 | P13: =O13/$Q$4 -> 0.01315789474 | Q13: =IF(P13=0,0,(P13*((LOG(P13))/LOG(2)))) -> -0.08220957255 | T13: =N13 -> 221 | U13: =COUNTIF(L7:L19,T13) -> 0 | V13: =U13/(W4-U10) -> 0 | W13: =IF(V13=0,0,(V13*((LOG(V13))/LOG(2)))) -> 0 | Y13: =N13 -> 221 | Z13: =COUNTIF(L20:L31,Y13) -> 0 | AA13: =Z13/(AB4-Z10) -> 0 | AB13: =IF(AA13=0,0,(AA13*((LOG(AA13))/LOG(2)))) -> 0 | AD13: =N13 -> 221 | AE13: =COUNTIF(L32:L44,AD13) -> 0 | AF13: =AE13/(AG4-AE10) -> 0 | AG13: =IF(AF13=0,0,(AF13*((LOG(AF13))/LOG(2)))) -> 0 | AI13: =N13 -> 221 | AJ13: =COUNTIF(L45:L57,AI13) -> 0 | AK13: =AJ13/(AL4-AJ10) -> 0 | AL13: =IF(AK13=0,0,(AK13*((LOG(AK13))/LOG(2)))) -> 0 | AN13: =N13 -> 221 | AO13: =COUNTIF(L58:L69,AN13) -> 0 | AP13: =AO13/(AQ4-AO10) -> 0 | AQ13: =IF(AP13=0,0,(AP13*((LOG(AP13))/LOG(2)))) -> 0 | AS13: =N13 -> 221 | AT13: =COUNTIF(L70:L82,AS13) -> 1 | AU13: =AT13/(AV4-AT10) -> 0.25 | AV13: =IF(AU13=0,0,(AU13*((LOG(AU13))/LOG(2)))) -> -0.5
A14: 11 | B14: 805 | C14: 21 | D14: 816 | E14: 21 | F14: 819 | K14: 0 | L14: 122 | N14: 222 | O14: =COUNTIF($L$7:$L$500,N14) -> 34 | P14: =O14/$Q$4 -> 0.4473684211 | Q14: =IF(P14=0,0,(P14*((LOG(P14))/LOG(2)))) -> -0.5191552481 | T14: =N14 -> 222 | U14: =COUNTIF(L7:L19,T14) -> 8 | V14: =U14/(W4-U10) -> 1 | W14: =IF(V14=0,0,(V14*((LOG(V14))/LOG(2)))) -> 0 | Y14: =N14 -> 222 | Z14: =COUNTIF(L20:L31,Y14) -> 5 | AA14: =Z14/(AB4-Z10) -> 0.8333333333 | AB14: =IF(AA14=0,0,(AA14*((LOG(AA14))/LOG(2)))) -> -0.2191953382 | AD14: =N14 -> 222 | AE14: =COUNTIF(L32:L44,AD14) -> 6 | AF14: =AE14/(AG4-AE10) -> 1 | AG14: =IF(AF14=0,0,(AF14*((LOG(AF14))/LOG(2)))) -> 0 | AI14: =N14 -> 222 | AJ14: =COUNTIF(L45:L57,AI14) -> 7 | AK14: =AJ14/(AL4-AJ10) -> 1 | AL14: =IF(AK14=0,0,(AK14*((LOG(AK14))/LOG(2)))) -> 0 | AN14: =N14 -> 222 | AO14: =COUNTIF(L58:L69,AN14) -> 6 | AP14: =AO14/(AQ4-AO10) -> 1 | AQ14: =IF(AP14=0,0,(AP14*((LOG(AP14))/LOG(2)))) -> 0 | AS14: =N14 -> 222 | AT14: =COUNTIF(L70:L82,AS14) -> 2 | AU14: =AT14/(AV4-AT10) -> 0.5 | AV14: =IF(AU14=0,0,(AU14*((LOG(AU14))/LOG(2)))) -> -0.5
A15: 22 | B15: 940 | C15: 23 | D15: 944 | E15: 23 | F15: 950 | K15: 0 | L15: 222 | P15: =SUM(P7:P14) -> 1 | Q15: =-SUM(Q7:Q14) -> 1.25971142 | V15: =SUM(V7:V14) -> 1 | W15: =-SUM(W7:W14) -> 0 | AA15: =SUM(AA7:AA14) -> 1 | AB15: =-SUM(AB7:AB14) -> 0.6500224216 | AF15: =SUM(AF7:AF14) -> 1 | AG15: =-SUM(AG7:AG14) -> 0 | AK15: =SUM(AK7:AK14) -> 1 | AL15: =-SUM(AL7:AL14) -> 0 | AP15: =SUM(AP7:AP14) -> 1 | AQ15: =-SUM(AQ7:AQ14) -> 0 | AU15: =SUM(AU7:AU14) -> 1 | AV15: =-SUM(AV7:AV14) -> 1.5
A16: 22 | B16: 1052 | C16: 23 | D16: 1055 | E16: 23 | F16: 1060 | K16: 0 | L16: 222 | P16: U= | Q16: =Q15/(LOG(Q4)/LOG(2)) -> 0.2016206841 | V16: U1= | W16: =W15/(LOG(W4)/LOG(2)) -> 0 | AA16: U2= | AB16: =AB15/(LOG(AB4)/LOG(2)) -> 0.181319169 | AF16: U3= | AG16: =AG15/(LOG(AG4)/LOG(2)) -> 0 | AK16: U4= | AL16: =AL15/(LOG(AL4)/LOG(2)) -> 0 | AP16: U5= | AQ16: =AQ15/(LOG(AQ4)/LOG(2)) -> 0 | AU16: U6= | AV16: =AV15/(LOG(AV4)/LOG(2)) -> 0.4053572316
A17: 11 | B17: 1156 | C17: 21 | D17: 1167 | E17: 21 | F17: 1177 | K17: 0 | L17: 122
A18: 11 | B18: 1280 | C18: 21 | D18: 1290 | E18: 21 | F18: 1294 | K18: 0 | L18: 122
A19: 22 | B19: 1422 | C19: 23 | D19: 1425 | E19: 23 | F19: 1428 | K19: 0 | L19: 222 | N19: Total Target Seq
A20: 11 | B20: 1524 | C20: 21 | D20: 1532 | E20: 21 | F20: 1536 | K20: 0 | L20: 122 | N20: =COUNTIF(L7:L82,G3) -> 39 | P20: 13 | Q20: 12 | R20: 13 | S20: 13 | T20: 12 | U20: 13
A21: 22 | B21: 1644 | C21: 23 | D21: 1649 | E21: 23 | F21: 1656 | K21: 0 | L21: 222 | P21: % of reinforcement given in 6 equal intervals based on number of trials
A22: 11 | B22: 1773 | C22: 12 | D22: 1785 | E22: 14 | F22: 1790 | K22: 0 | L22: 111 | P22: %_1 | Q22: %_2 | R22: %_3 | S22: %_4 | T22: %_5 | U22: %_6
A23: 22 | B23: 1891 | C23: 23 | D23: 1895 | E23: 23 | F23: 1900 | K23: 0 | L23: 222 | O23: target sequence | P23: =$G$3 -> 122 | Q23: =$G$3 -> 122 | R23: =$G$3 -> 122 | S23: =$G$3 -> 122 | T23: =$G$3 -> 122 | U23: =$G$3 -> 122
A24: 11 | B24: 1992 | C24: 21 | D24: 2011 | E24: 21 | F24: 2015 | K24: 0 | L24: 122 | O24: total reinforcement | P24: =U10 -> 5 | Q24: =Z10 -> 6 | R24: =AE10 -> 7 | S24: =AJ10 -> 6 | T24: =AO10 -> 6 | U24: =AT10 -> 9
A25: 22 | B25: 2182 | C25: 23 | D25: 2186 | E25: 23 | F25: 2194 | K25: 0 | L25: 222 | O25: % target
A26: 11 | B26: 2287 | C26: 21 | D26: 2295 | E26: 21 | F26: 2301 | K26: 0 | L26: 122 | O26: CCRF
A27: 22 | B27: 2414 | C27: 23 | D27: 2417 | E27: 23 | F27: 2422 | K27: 0 | L27: 222 | O27: % CCRf
A28: 11 | B28: 2516 | C28: 21 | D28: 2527 | E28: 21 | F28: 2531 | K28: 0 | L28: 122 | O28: average response rate | P28: =F19/P20 -> 109.8461538 | Q28: =(F31-F19)/Q20 -> 125.5833333 | R28: =(F44-F31)/R20 -> 122.3846154 | S28: =(F57-F44)/S20 -> 125.6153846 | T28: =(F69-F57)/T20 -> 126.5 | U28: =(F82-F69)/U20 -> 138.8461538
A29: 22 | B29: 2658 | C29: 23 | D29: 2661 | E29: 23 | F29: 2663 | K29: 0 | L29: 222
A30: 11 | B30: 2761 | C30: 21 | D30: 2785 | E30: 21 | F30: 2796 | K30: 0 | L30: 122
A31: 11 | B31: 2915 | C31: 21 | D31: 2926 | E31: 21 | F31: 2935 | K31: 0 | L31: 122
A32: 22 | B32: 3046 | C32: 23 | D32: 3050 | E32: 23 | F32: 3058 | K32: 0 | L32: 222
A33: 11 | B33: 3155 | C33: 21 | D33: 3166 | E33: 21 | F33: 3169 | K33: 0 | L33: 122
A34: 22 | B34: 3286 | C34: 23 | D34: 3296 | E34: 23 | F34: 3301 | K34: 0 | L34: 222
A35: 22 | B35: 3418 | C35: 23 | D35: 3421 | E35: 23 | F35: 3426 | K35: 0 | L35: 222
A36: 22 | B36: 3527 | C36: 23 | D36: 3530 | E36: 23 | F36: 3538 | K36: 0 | L36: 222
A37: 22 | B37: 3660 | C37: 23 | D37: 3663 | E37: 23 | F37: 3668 | K37: 0 | L37: 222
A38: 11 | B38: 3762 | C38: 21 | D38: 3770 | E38: 21 | F38: 3776 | K38: 0 | L38: 122
A39: 11 | B39: 3874 | C39: 21 | D39: 3892 | E39: 21 | F39: 3894 | K39: 0 | L39: 122
A40: 11 | B40: 3992 | C40: 21 | D40: 4005 | E40: 21 | F40: 4008 | K40: 0 | L40: 122
A41: 11 | B41: 4112 | C41: 21 | D41: 4121 | E41: 21 | F41: 4126 | K41: 0 | L41: 122
A42: 22 | B42: 4293 | C42: 23 | D42: 4296 | E42: 23 | F42: 4301 | K42: 0 | L42: 222
A43: 11 | B43: 4396 | C43: 21 | D43: 4404 | E43: 21 | F43: 4407 | K43: 0 | L43: 122
A44: 11 | B44: 4506 | C44: 21 | D44: 4522 | E44: 21 | F44: 4526 | K44: 0 | L44: 122
A45: 22 | B45: 4632 | C45: 23 | D45: 4635 | E45: 23 | F45: 4641 | K45: 0 | L45: 222
A46: 11 | B46: 4736 | C46: 21 | D46: 4749 | E46: 21 | F46: 4754 | K46: 0 | L46: 122
A47: 11 | B47: 4850 | C47: 21 | D47: 4870 | E47: 21 | F47: 4876 | K47: 0 | L47: 122
A48: 11 | B48: 5044 | C48: 21 | D48: 5050 | E48: 21 | F48: 5053 | K48: 0 | L48: 122
A49: 22 | B49: 5184 | C49: 23 | D49: 5187 | E49: 23 | F49: 5193 | K49: 0 | L49: 222
A50: 22 | B50: 5298 | C50: 23 | D50: 5302 | E50: 23 | F50: 5321 | K50: 0 | L50: 222
A51: 11 | B51: 5420 | C51: 21 | D51: 5429 | E51: 21 | F51: 5433 | K51: 0 | L51: 122
A52: 22 | B52: 5573 | C52: 23 | D52: 5576 | E52: 23 | F52: 5585 | K52: 0 | L52: 222
A53: 22 | B53: 5692 | C53: 23 | D53: 5695 | E53: 23 | F53: 5701 | K53: 0 | L53: 222
A54: 11 | B54: 5794 | C54: 21 | D54: 5806 | E54: 21 | F54: 5811 | K54: 0 | L54: 122
A55: 22 | B55: 5914 | C55: 23 | D55: 5921 | E55: 23 | F55: 5927 | K55: 0 | L55: 222
A56: 11 | B56: 6022 | C56: 21 | D56: 6036 | E56: 21 | F56: 6041 | K56: 0 | L56: 122
A57: 22 | B57: 6146 | C57: 23 | D57: 6153 | E57: 23 | F57: 6159 | K57: 0 | L57: 222
A58: 22 | B58: 6263 | C58: 23 | D58: 6266 | E58: 23 | F58: 6272 | K58: 0 | L58: 222
A59: 11 | B59: 6369 | C59: 21 | D59: 6383 | E59: 21 | F59: 6388 | K59: 0 | L59: 122
A60: 11 | B60: 6491 | C60: 21 | D60: 6500 | E60: 21 | F60: 6504 | K60: 0 | L60: 122
A61: 22 | B61: 6622 | C61: 23 | D61: 6626 | E61: 23 | F61: 6631 | K61: 0 | L61: 222
A62: 22 | B62: 6742 | C62: 23 | D62: 6745 | E62: 23 | F62: 6751 | K62: 0 | L62: 222
A63: 11 | B63: 6848 | C63: 21 | D63: 6861 | E63: 21 | F63: 6870 | K63: 0 | L63: 122
A64: 11 | B64: 7002 | C64: 21 | D64: 7011 | E64: 21 | F64: 7014 | K64: 0 | L64: 122
A65: 22 | B65: 7171 | C65: 23 | D65: 7179 | E65: 23 | F65: 7184 | K65: 0 | L65: 222
A66: 22 | B66: 7293 | C66: 23 | D66: 7298 | E66: 23 | F66: 7305 | K66: 0 | L66: 222
A67: 11 | B67: 7403 | C67: 21 | D67: 7414 | E67: 21 | F67: 7419 | K67: 0 | L67: 122
A68: 22 | B68: 7556 | C68: 23 | D68: 7562 | E68: 23 | F68: 7569 | K68: 0 | L68: 222
A69: 11 | B69: 7664 | C69: 21 | D69: 7675 | E69: 21 | F69: 7677 | K69: 0 | L69: 122
A70: 11 | B70: 7794 | C70: 21 | D70: 7808 | E70: 21 | F70: 7812 | K70: 0 | L70: 122
A71: 22 | B71: 7950 | C71: 23 | D71: 7962 | E71: 23 | F71: 7966 | K71: 0 | L71: 222
A72: 11 | B72: 8068 | C72: 12 | D72: 8071 | E72: 23 | F72: 8081 | K72: 0 | L72: 112
A73: 22 | B73: 8194 | C73: 23 | D73: 8199 | E73: 23 | F73: 8203 | K73: 0 | L73: 222
A74: 22 | B74: 8311 | C74: 23 | D74: 8321 | E74: 14 | F74: 8336 | K74: 0 | L74: 221
A75: 11 | B75: 8432 | C75: 21 | D75: 8439 | E75: 21 | F75: 8447 | K75: 0 | L75: 122
A76: 11 | B76: 8607 | C76: 21 | D76: 8616 | E76: 21 | F76: 8619 | K76: 0 | L76: 122
A77: 11 | B77: 8796 | C77: 21 | D77: 8811 | E77: 21 | F77: 8817 | K77: 0 | L77: 122
A78: 11 | B78: 8914 | C78: 21 | D78: 8922 | E78: 21 | F78: 8926 | K78: 0 | L78: 122
A79: 11 | B79: 9020 | C79: 21 | D79: 9034 | E79: 21 | F79: 9038 | K79: 0 | L79: 122
A80: 11 | B80: 9185 | C80: 21 | D80: 9195 | E80: 21 | F80: 9199 | K80: 0 | L80: 122
A81: 11 | B81: 9309 | C81: 21 | D81: 9323 | E81: 21 | F81: 9330 | K81: 0 | L81: 122
A82: 11 | B82: 9469 | C82: 21 | D82: 9479 | E82: 21 | F82: 9482 | K82: 1 | L82: 122

Sheet !LB18A03..Ta
A1: Report for:!LB18A03..Ta
A2: Date: | B2: <date>
A3: Hen: | B3: <hen> | F3: Correct Sequence | G3: =Start!J2 -> 122 | P3: Total Sequences in Data | Q3: =4994-COUNTBLANK(L7:L5000) -> 57 | V3: Total Sequences in Block Data | W3: =COUNTA(L7:L16) -> 10 | AA3: Total Sequences in Block Data | AB3: =COUNTA(L17:L25) -> 9 | AF3: Total Sequences in Block Data | AG3: =COUNTA(L26:L35) -> 10 | AK3: Total Sequences in Block Data | AL3: =COUNTA(L36:L44) -> 9 | AP3: Total Sequences in Block Data | AQ3: =COUNTA(L45:L54) -> 10 | AU3: Total Sequences in Block Data | AV3: =COUNTA(L55:L63) -> 9
P4: Total Sequences in Summary | Q4: =SUM(O7:O14) -> 57 | V4: Total Sequences in Block Summary | W4: =SUM(U7:U14) -> 10 | AA4: Total Sequences in Block Summary | AB4: =SUM(Z7:Z14) -> 9 | AF4: Total Sequences in Block Summary | AG4: =SUM(AE7:AE14) -> 10 | AK4: Total Sequences in Block Summary | AL4: =SUM(AJ7:AJ14) -> 9 | AP4: Total Sequences in Block Summary | AQ4: =SUM(AO7:AO14) -> 10 | AU4: Total Sequences in Block Summary | AV4: =SUM(AT7:AT14) -> 9
T5: Block 1 | Y5: Block 2 | AD5: Block 3 | AI5: Block 4 | AN5: Block 5 | AS5: Block 6
A6: Sequence Component 1 | B6: Time 1 | C6: Sequence Component 2 | D6: Time 2 | E6: Sequence Component 3 | F6: Time 3 | G6: Sequence Component 4 | H6: Time 4 | I6: Sequence Component 5 | J6: Time 5 | K6: Correct? 0=No 1=Yes | L6: Sequence | N6: Frequency | P6: Relative Frequency | Q6: Variability | T6: Frequency | V6: Relative Frequency | W6: Variability | Y6: Frequency | AA6: Relative Frequency | AB6: Variability | AD6: Frequency | AF6: Relative Frequency | AG6: Variability | AI6: Frequency | AK6: Relative Frequency | AL6: Variability | AN6: Frequency | AP6: Relative Frequency | AQ6: Variability | AS6: Frequency | AU6: Relative Frequency | AV6: Variability
A7: 22 | B7: 11 | C7: 23 | D7: 28 | E7: 23 | F7: 32 | K7: 0 | L7: 222 | N7: 111 | O7: =COUNTIF($L$7:$L$500,N7) -> 1 | P7: =O7/$Q$4 -> 0.01754385965 | Q7: =IF(P7=0,0,(P7*((LOG(P7))/LOG(2)))) -> -0.1023314038 | T7: =N7 -> 111 | U7: =COUNTIF(L7:L16,T7) -> 0 | V7: =U7/(W4-U10) -> 0 | W7: =IF(V7=0,0,(V7*((LOG(V7))/LOG(2)))) -> 0 | Y7: =N7 -> 111 | Z7: =COUNTIF(L17:L25,Y7) -> 0 | AA7: =Z7/(AB4-Z10) -> 0 | AB7: =IF(AA7=0,0,(AA7*((LOG(AA7))/LOG(2)))) -> 0 | AD7: =N7 -> 111 | AE7: =COUNTIF(L26:L35,AD7) -> 1 | AF7: =AE7/(AG4-AE10) -> 0.3333333333 | AG7: =IF(AF7=0,0,(AF7*((LOG(AF7))/LOG(2)))) -> -0.5283208336 | AI7: =N7 -> 111 | AJ7: =COUNTIF(L36:L44,AI7) -> 0 | AK7: =AJ7/(AL4-AJ10) -> 0 | AL7: =IF(AK7=0,0,(AK7*((LOG(AK7))/LOG(2)))) -> 0 | AN7: =N7 -> 111 | AO7: =COUNTIF(L45:L54,AN7) -> 0 | AP7: =AO7/(AQ4-AO10) -> 0 | AQ7: =IF(AP7=0,0,(AP7*((LOG(AP7))/LOG(2)))) -> 0 | AS7: =N7 -> 111 | AT7: =COUNTIF(L55:L63,AS7) -> 0 | AU7: =AT7/(AV4-AT10) -> 0 | AV7: =IF(AU7=0,0,(AU7*((LOG(AU7))/LOG(2)))) -> 0
A8: 22 | B8: 141 | C8: 23 | D8: 150 | E8: 23 | F8: 158 | K8: 0 | L8: 222 | N8: 112 | O8: =COUNTIF($L$7:$L$500,N8) -> 0 | P8: =O8/$Q$4 -> 0 | Q8: =IF(P8=0,0,(P8*((LOG(P8))/LOG(2)))) -> 0 | T8: =N8 -> 112 | U8: =COUNTIF(L7:L16,T8) -> 0 | V8: =U8/(W4-U10) -> 0 | W8: =IF(V8=0,0,(V8*((LOG(V8))/LOG(2)))) -> 0 | Y8: =N8 -> 112 | Z8: =COUNTIF(L17:L25,Y8) -> 0 | AA8: =Z8/(AB4-Z10) -> 0 | AB8: =IF(AA8=0,0,(AA8*((LOG(AA8))/LOG(2)))) -> 0 | AD8: =N8 -> 112 | AE8: =COUNTIF(L26:L35,AD8) -> 0 | AF8: =AE8/(AG4-AE10) -> 0 | AG8: =IF(AF8=0,0,(AF8*((LOG(AF8))/LOG(2)))) -> 0 | AI8: =N8 -> 112 | AJ8: =COUNTIF(L36:L44,AI8) -> 0 | AK8: =AJ8/(AL4-AJ10) -> 0 | AL8: =IF(AK8=0,0,(AK8*((LOG(AK8))/LOG(2)))) -> 0 | AN8: =N8 -> 112 | AO8: =COUNTIF(L45:L54,AN8) -> 0 | AP8: =AO8/(AQ4-AO10) -> 0 | AQ8: =IF(AP8=0,0,(AP8*((LOG(AP8))/LOG(2)))) -> 0 | AS8: =N8 -> 112 | AT8: =COUNTIF(L55:L63,AS8) -> 0 | AU8: =AT8/(AV4-AT10) -> 0 | AV8: =IF(AU8=0,0,(AU8*((LOG(AU8))/LOG(2)))) -> 0
A9: 11 | B9: 253 | C9: 21 | D9: 269 | E9: 21 | F9: 278 | K9: 0 | L9: 122 | N9: 121 | O9: =COUNTIF($L$7:$L$500,N9) -> 0 | P9: =O9/$Q$4 -> 0 | Q9: =IF(P9=0,0,(P9*((LOG(P9))/LOG(2)))) -> 0 | T9: =N9 -> 121 | U9: =COUNTIF(L7:L16,T9) -> 0 | V9: =U9/(W4-U10) -> 0 | W9: =IF(V9=0,0,(V9*((LOG(V9))/LOG(2)))) -> 0 | Y9: =N9 -> 121 | Z9: =COUNTIF(L17:L25,Y9) -> 0 | AA9: =Z9/(AB4-Z10) -> 0 | AB9: =IF(AA9=0,0,(AA9*((LOG(AA9))/LOG(2)))) -> 0 | AD9: =N9 -> 121 | AE9: =COUNTIF(L26:L35,AD9) -> 0 | AF9: =AE9/(AG4-AE10) -> 0 | AG9: =IF(AF9=0,0,(AF9*((LOG(AF9))/LOG(2)))) -> 0 | AI9: =N9 -> 121 | AJ9: =COUNTIF(L36:L44,AI9) -> 0 | AK9: =AJ9/(AL4-AJ10) -> 0 | AL9: =IF(AK9=0,0,(AK9*((LOG(AK9))/LOG(2)))) -> 0 | AN9: =N9 -> 121 | AO9: =COUNTIF(L45:L54,AN9) -> 0 | AP9: =AO9/(AQ4-AO10) -> 0 | AQ9: =IF(AP9=0,0,(AP9*((LOG(AP9))/LOG(2)))) -> 0 | AS9: =N9 -> 121 | AT9: =COUNTIF(L55:L63,AS9) -> 0 | AU9: =AT9/(AV4-AT10) -> 0 | AV9: =IF(AU9=0,0,(AU9*((LOG(AU9))/LOG(2)))) -> 0
A10: 22 | B10: 379 | C10: 23 | D10: 382 | E10: 23 | F10: 387 | K10: 0 | L10: 222 | N10: 122 | O10: =COUNTIF($L$7:$L$500,N10) -> 39 | P10: =O10/$Q$4 -> 0.6842105263 | Q10: =IF(P10=0,0,(P10*((LOG(P10))/LOG(2)))) -> -0.3745969126 | T10: =N10 -> 122 | U10: =COUNTIF(L7:L16,T10) -> 5 | Y10: =N10 -> 122 | Z10: =COUNTIF(L17:L25,Y10) -> 6 | AD10: =N10 -> 122 | AE10: =COUNTIF(L26:L35,AD10) -> 7 | AI10: =N10 -> 122 | AJ10: =COUNTIF(L36:L44,AI10) -> 6 | AN10: =N10 -> 122 | AO10: =COUNTIF(L45:L54,AN10) -> 7 | AS10: =N10 -> 122 | AT10: =COUNTIF(L55:L63,AS10) -> 8
A11: 11 | B11: 483 | C11: 21 | D11: 497 | E11: 21 | F11: 503 | K11: 0 | L11: 122 | N11: 211 | O11: =COUNTIF($L$7:$L$500,N11) -> 0 | P11: =O11/$Q$4 -> 0 | Q11: =IF(P11=0,0,(P11*((LOG(P11))/LOG(2)))) -> 0 | T11: =N11 -> 211 | U11: =COUNTIF(L7:L16,T11) -> 0 | V11: =U11/(W4-U10) -> 0 | W11: =IF(V11=0,0,(V11*((LOG(V11))/LOG(2)))) -> 0 | Y11: =N11 -> 211 | Z11: =COUNTIF(L17:L25,Y11) -> 0 | AA11: =Z11/(AB4-Z10) -> 0 | AB11: =IF(AA11=0,0,(AA11*((LOG(AA11))/LOG(2)))) -> 0 | AD11: =N11 -> 211 | AE11: =COUNTIF(L26:L35,AD11) -> 0 | AF11: =AE11/(AG4-AE10) -> 0 | AG11: =IF(AF11=0,0,(AF11*((LOG(AF11))/LOG(2)))) -> 0 | AI11: =N11 -> 211 | AJ11: =COUNTIF(L36:L44,AI11) -> 0 | AK11: =AJ11/(AL4-AJ10) -> 0 | AL11: =IF(AK11=0,0,(AK11*((LOG(AK11))/LOG(2)))) -> 0 | AN11: =N11 -> 211 | AO11: =COUNTIF(L45:L54,AN11) -> 0 | AP11: =AO11/(AQ4-AO10) -> 0 | AQ11: =IF(AP11=0,0,(AP11*((LOG(AP11))/LOG(2)))) -> 0 | AS11: =N11 -> 211 | AT11: =COUNTIF(L55:L63,AS11) -> 0 | AU11: =AT11/(AV4-AT10) -> 0 | AV11: =IF(AU11=0,0,(AU11*((LOG(AU11))/LOG(2)))) -> 0
A12: 11 | B12: 595 | C12: 21 | D12: 608 | E12: 21 | F12: 613 | K12: 0 | L12: 122 | N12: 212 | O12: =COUNTIF($L$7:$L$500,N12) -> 0 | P12: =O12/$Q$4 -> 0 | Q12: =IF(P12=0,0,(P12*((LOG(P12))/LOG(2)))) -> 0 | T12: =N12 -> 212 | U12: =COUNTIF(L7:L16,T12) -> 0 | V12: =U12/(W4-U10) -> 0 | W12: =IF(V12=0,0,(V12*((LOG(V12))/LOG(2)))) -> 0 | Y12: =N12 -> 212 | Z12: =COUNTIF(L17:L25,Y12) -> 0 | AA12: =Z12/(AB4-Z10) -> 0 | AB12: =IF(AA12=0,0,(AA12*((LOG(AA12))/LOG(2)))) -> 0 | AD12: =N12 -> 212 | AE12: =COUNTIF(L26:L35,AD12) -> 0 | AF12: =AE12/(AG4-AE10) -> 0 | AG12: =IF(AF12=0,0,(AF12*((LOG(AF12))/LOG(2)))) -> 0 | AI12: =N12 -> 212 | AJ12: =COUNTIF(L36:L44,AI12) -> 0 | AK12: =AJ12/(AL4-AJ10) -> 0 | AL12: =IF(AK12=0,0,(AK12*((LOG(AK12))/LOG(2)))) -> 0 | AN12: =N12 -> 212 | AO12: =COUNTIF(L45:L54,AN12) -> 0 | AP12: =AO12/(AQ4-AO10) -> 0 | AQ12: =IF(AP12=0,0,(AP12*((LOG(AP12))/LOG(2)))) -> 0 | AS12: =N12 -> 212 | AT12: =COUNTIF(L55:L63,AS12) -> 0 | AU12: =AT12/(AV4-AT10) -> 0 | AV12: =IF(AU12=0,0,(AU12*((LOG(AU12))/LOG(2)))) -> 0
A13: 22 | B13: 709 | C13: 23 | D13: 713 | E13: 23 | F13: 721 | K13: 0 | L13: 222 | N13: 221 | O13: =COUNTIF($L$7:$L$500,N13) -> 0 | P13: =O13/$Q$4 -> 0 | Q13: =IF(P13=0,0,(P13*((LOG(P13))/LOG(2)))) -> 0 | T13: =N13 -> 221 | U13: =COUNTIF(L7:L16,T13) -> 0 | V13: =U13/(W4-U10) -> 0 | W13: =IF(V13=0,0,(V13*((LOG(V13))/LOG(2)))) -> 0 | Y13: =N13 -> 221 | Z13: =COUNTIF(L17:L25,Y13) -> 0 | AA13: =Z13/(AB4-Z10) -> 0 | AB13: =IF(AA13=0,0,(AA13*((LOG(AA13))/LOG(2)))) -> 0 | AD13: =N13 -> 221 | AE13: =COUNTIF(L26:L35,AD13) -> 0 | AF13: =AE13/(AG4-AE10) -> 0 | AG13: =IF(AF13=0,0,(AF13*((LOG(AF13))/LOG(2)))) -> 0 | AI13: =N13 -> 221 | AJ13: =COUNTIF(L36:L44,AI13) -> 0 | AK13: =AJ13/(AL4-AJ10) -> 0 | AL13: =IF(AK13=0,0,(AK13*((LOG(AK13))/LOG(2)))) -> 0 | AN13: =N13 -> 221 | AO13: =COUNTIF(L45:L54,AN13) -> 0 | AP13: =AO13/(AQ4-AO10) -> 0 | AQ13: =IF(AP13=0,0,(AP13*((LOG(AP13))/LOG(2)))) -> 0 | AS13: =N13 -> 221 | AT13: =COUNTIF(L55:L63,AS13) -> 0 | AU13: =AT13/(AV4-AT10) -> 0 | AV13: =IF(AU13=0,0,(AU13*((LOG(AU13))/LOG(2)))) -> 0
A14: 22 | B14: 826 | C14: 23 | D14: 831 | E14: 23 | F14: 836 | K14: 0 | L14: 222 | N14: 222 | O14: =COUNTIF($L$7:$L$500,N14) -> 17 | P14: =O14/$Q$4 -> 0.298245614 | Q14: =IF(P14=0,0,(P14*((LOG(P14))/LOG(2)))) -> -0.5205659989 | T14: =N14 -> 222 | U14: =COUNTIF(L7:L16,T14) -> 5 | V14: =U14/(W4-U10) -> 1 | W14: =IF(V14=0,0,(V14*((LOG(V14))/LOG(2)))) -> 0 | Y14: =N14 -> 222 | Z14: =COUNTIF(L17:L25,Y14) -> 3 | AA14: =Z14/(AB4-Z10) -> 1 | AB14: =IF(AA14=0,0,(AA14*((LOG(AA14))/LOG(2)))) -> 0 | AD14: =N14 -> 222 | AE14: =COUNTIF(L26:L35,AD14) -> 2 | AF14: =AE14/(AG4-AE10) -> 0.6666666667 | AG14: =IF(AF14=0,0,(AF14*((LOG(AF14))/LOG(2)))) -> -0.3899750005 | AI14: =N14 -> 222 | AJ14: =COUNTIF(L36:L44,AI14) -> 3 | AK14: =AJ14/(AL4-AJ10) -> 1 | AL14: =IF(AK14=0,0,(AK14*((LOG(AK14))/LOG(2)))) -> 0 | AN14: =N14 -> 222 | AO14: =COUNTIF(L45:L54,AN14) -> 3 | AP14: =AO14/(AQ4-AO10) -> 1 | AQ14: =IF(AP14=0,0,(AP14*((LOG(AP14))/LOG(2)))) -> 0 | AS14: =N14 -> 222 | AT14: =COUNTIF(L55:L63,AS14) -> 1 | AU14: =AT14/(AV4-AT10) -> 1 | AV14: =IF(AU14=0,0,(AU14*((LOG(AU14))/LOG(2)))) -> 0
A15: 11 | B15: 933 | C15: 21 | D15: 946 | E15: 21 | F15: 951 | K15: 0 | L15: 122 | P15: =SUM(P7:P14) -> 1 | Q15: =-SUM(Q7:Q14) -> 0.9974943153 | V15: =SUM(V7:V14) -> 1 | W15: =-SUM(W7:W14) -> 0 | AA15: =SUM(AA7:AA14) -> 1 | AB15: =-SUM(AB7:AB14) -> 0 | AF15: =SUM(AF7:AF14) -> 1 | AG15: =-SUM(AG7:AG14) -> 0.9182958341 | AK15: =SUM(AK7:AK14) -> 1 | AL15: =-SUM(AL7:AL14) -> 0 | AP15: =SUM(AP7:AP14) -> 1 | AQ15: =-SUM(AQ7:AQ14) -> 0 | AU15: =SUM(AU7:AU14) -> 1 | AV15: =-SUM(AV7:AV14) -> 0
A16: 11 | B16: 1044 | C16: 21 | D16: 1060 | E16: 21 | F16: 1071 | K16: 0 | L16: 122 | P16: U= | Q16: =Q15/(LOG(Q4)/LOG(2)) -> 0.171012022 | V16: U1= | W16: =W15/(LOG(W4)/LOG(2)) -> 0 | AA16: U2= | AB16: =AB15/(LOG(AB4)/LOG(2)) -> 0 | AF16: U3= | AG16: =AG15/(LOG(AG4)/LOG(2)) -> 0.2764345909 | AK16: U4= | AL16: =AL15/(LOG(AL4)/LOG(2)) -> 0 | AP16: U5= | AQ16: =AQ15/(LOG(AQ4)/LOG(2)) -> 0 | AU16: U6= | AV16: =AV15/(LOG(AV4)/LOG(2)) -> 0
A17: 11 | B17: 1163 | C17: 21 | D17: 1176 | E17: 21 | F17: 1190 | K17: 0 | L17: 122
A18: 22 | B18: 1320 | C18: 23 | D18: 1324 | E18: 23 | F18: 1329 | K18: 0 | L18: 222
A19: 11 | B19: 1421 | C19: 21 | D19: 1434 | E19: 21 | F19: 1439 | K19: 0 | L19: 122 | N19: Total Target Seq
A20: 22 | B20: 1541 | C20: 23 | D20: 1546 | E20: 23 | F20: 1552 | K20: 0 | L20: 222 | N20: =COUNTIF(L7:L63,G3) -> 39 | P20: 10 | Q20: 9 | R20: 10 | S20: 9 | T20: 10 | U20: 9
A21: 11 | B21: 1647 | C21: 21 | D21: 1662 | E21: 21 | F21: 1684 | K21: 0 | L21: 122 | P21: % of reinforcement given in 6 equal intervals based on number of trials
A22: 22 | B22: 1781 | C22: 23 | D22: 1788 | E22: 23 | F22: 1793 | K22: 0 | L22: 222 | P22: %_1 | Q22: %_2 | R22: %_3 | S22: %_4 | T22: %_5 | U22: %_6
A23: 11 | B23: 1885 | C23: 21 | D23: 1899 | E23: 21 | F23: 1902 | K23: 0 | L23: 122 | O23: target sequence | P23: =$G$3 -> 122 | Q23: =$G$3 -> 122 | R23: =$G$3 -> 122 | S23: =$G$3 -> 122 | T23: =$G$3 -> 122 | U23: =$G$3 -> 122
A24: 11 | B24: 2001 | C24: 21 | D24: 2014 | E24: 21 | F24: 2024 | K24: 0 | L24: 122 | O24: total reinforcement | P24: =U10 -> 5 | Q24: =Z10 -> 6 | R24: =AE10 -> 7 | S24: =AJ10 -> 6 | T24: =AO10 -> 7 | U24: =AT10 -> 8
A25: 11 | B25: 2118 | C25: 21 | D25: 2133 | E25: 21 | F25: 2140 | K25: 0 | L25: 122 | O25: % target
A26: 11 | B26: 2235 | C26: 21 | D26: 2243 | E26: 21 | F26: 2251 | K26: 0 | L26: 122 | O26: CCRF
A27: 11 | B27: 2346 | C27: 21 | D27: 2358 | E27: 21 | F27: 2362 | K27: 0 | L27: 122 | O27: % CCRf
A28: 11 | B28: 2454 | C28: 21 | D28: 2466 | E28: 21 | F28: 2497 | K28: 0 | L28: 122 | O28: average response rate | P28: =F16/P20 -> 107.1 | Q28: =(F25-F16)/Q20 -> 118.7777778 | R28: =(F35-F25)/R20 -> 120.3 | S28: =(F44-F35)/S20 -> 116.8888889 | T28: =(F54-F44)/T20 -> 120.1 | U28: =(F63-F54)/U20 -> 122.2222222
A29: 22 | B29: 2616 | C29: 23 | D29: 2619 | E29: 23 | F29: 2623 | K29: 0 | L29: 222
A30: 11 | B30: 2720 | C30: 21 | D30: 2735 | E30: 21 | F30: 2740 | K30: 0 | L30: 122
A31: 11 | B31: 2833 | C31: 21 | D31: 2847 | E31: 21 | F31: 2855 | K31: 0 | L31: 122
A32: 11 | B32: 2958 | C32: 12 | D32: 2975 | E32: 14 | F32: 2984 | K32: 0 | L32: 111
A33: 11 | B33: 3078 | C33: 21 | D33: 3092 | E33: 21 | F33: 3096 | K33: 0 | L33: 122
A34: 11 | B34: 3191 | C34: 21 | D34: 3198 | E34: 21 | F34: 3202 | K34: 0 | L34: 122
A35: 22 | B35: 3329 | C35: 23 | D35: 3332 | E35: 23 | F35: 3343 | K35: 0 | L35: 222
A36: 11 | B36: 3437 | C36: 21 | D36: 3448 | E36: 21 | F36: 3450 | K36: 0 | L36: 122
A37: 22 | B37: 3577 | C37: 23 | D37: 3586 | E37: 23 | F37: 3589 | K37: 0 | L37: 222
A38: 22 | B38: 3699 | C38: 23 | D38: 3702 | E38: 23 | F38: 3707 | K38: 0 | L38: 222
A39: 11 | B39: 3806 | C39: 21 | D39: 3815 | E39: 21 | F39: 3818 | K39: 0 | L39: 122
A40: 11 | B40: 3913 | C40: 21 | D40: 3920 | E40: 21 | F40: 3924 | K40: 0 | L40: 122
A41: 22 | B41: 4040 | C41: 23 | D41: 4046 | E41: 23 | F41: 4053 | K41: 0 | L41: 222
A42: 11 | B42: 4148 | C42: 21 | D42: 4161 | E42: 21 | F42: 4164 | K42: 0 | L42: 122
A43: 11 | B43: 4255 | C43: 21 | D43: 4268 | E43: 21 | F43: 4284 | K43: 0 | L43: 122
A44: 11 | B44: 4377 | C44: 21 | D44: 4389 | E44: 21 | F44: 4395 | K44: 0 | L44: 122
A45: 11 | B45: 4490 | C45: 21 | D45: 4502 | E45: 21 | F45: 4505 | K45: 0 | L45: 122
A46: 11 | B46: 4599 | C46: 21 | D46: 4611 | E46: 21 | F46: 4613 | K46: 0 | L46: 122
A47: 11 | B47: 4712 | C47: 21 | D47: 4720 | E47: 21 | F47: 4723 | K47: 0 | L47: 122
A48: 22 | B48: 4862 | C48: 23 | D48: 4865 | E48: 23 | F48: 4869 | K48: 0 | L48: 222
A49: 22 | B49: 4976 | C49: 23 | D49: 4979 | E49: 23 | F49: 4984 | K49: 0 | L49: 222
A50: 11 | B50: 5085 | C50: 21 | D50: 5098 | E50: 21 | F50: 5102 | K50: 0 | L50: 122
A51: 11 | B51: 5217 | C51: 21 | D51: 5231 | E51: 21 | F51: 5243 | K51: 0 | L51: 122
A52: 11 | B52: 5339 | C52: 21 | D52: 5355 | E52: 21 | F52: 5360 | K52: 0 | L52: 122
A53: 11 | B53: 5457 | C53: 21 | D53: 5466 | E53: 21 | F53: 5472 | K53: 0 | L53: 122
A54: 22 | B54: 5581 | C54: 23 | D54: 5588 | E54: 23 | F54: 5596 | K54: 0 | L54: 222
A55: 11 | B55: 5704 | C55: 21 | D55: 5712 | E55: 21 | F55: 5717 | K55: 0 | L55: 122
A56: 11 | B56: 5813 | C56: 21 | D56: 5826 | E56: 21 | F56: 5828 | K56: 0 | L56: 122
A57: 11 | B57: 5925 | C57: 21 | D57: 5938 | E57: 21 | F57: 5941 | K57: 0 | L57: 122
A58: 11 | B58: 6043 | C58: 21 | D58: 6050 | E58: 21 | F58: 6056 | K58: 0 | L58: 122
A59: 22 | B59: 6208 | C59: 23 | D59: 6216 | E59: 23 | F59: 6228 | K59: 0 | L59: 222
A60: 11 | B60: 6324 | C60: 21 | D60: 6336 | E60: 21 | F60: 6339 | K60: 0 | L60: 122
A61: 11 | B61: 6450 | C61: 21 | D61: 6458 | E61: 21 | F61: 6466 | K61: 0 | L61: 122
A62: 11 | B62: 6561 | C62: 21 | D62: 6575 | E62: 21 | F62: 6578 | K62: 0 | L62: 122
A63: 11 | B63: 6678 | C63: 21 | D63: 6693 | E63: 21 | F63: 6696 | K63: 1 | L63: 122

Sheet !LB19C53..Ta
A1: Report for:!LB19C53..Ta
A2: Date: | B2: <date>
A3: Hen: | B3: <hen> | F3: Correct Sequence | G3: =Start!J2 -> 122 | P3: Total Sequences in Data | Q3: =4994-COUNTBLANK(L7:L5000) -> 78 | V3: Total Sequences in Block Data | W3: =COUNTA(L7:L19) -> 13 | AA3: Total Sequences in Block Data | AB3: =COUNTA(L20:L32) -> 13 | AF3: Total Sequences in Block Data | AG3: =COUNTA(L33:L45) -> 13 | AK3: Total Sequences in Block Data | AL3: =COUNTA(L46:L58) -> 13 | AP3: Total Sequences in Block Data | AQ3: =COUNTA(L59:L71) -> 13 | AU3: Total Sequences in Block Data | AV3: =COUNTA(L72:L84) -> 13
P4: Total Sequences in Summary | Q4: =SUM(O7:O14) -> 78 | V4: Total Sequences in Block Summary | W4: =SUM(U7:U14) -> 13 | AA4: Total Sequences in Block Summary | AB4: =SUM(Z7:Z14) -> 13 | AF4: Total Sequences in Block Summary | AG4: =SUM(AE7:AE14) -> 13 | AK4: Total Sequences in Block Summary | AL4: =SUM(AJ7:AJ14) -> 13 | AP4: Total Sequences in Block Summary | AQ4: =SUM(AO7:AO14) -> 13 | AU4: Total Sequences in Block Summary | AV4: =SUM(AT7:AT14) -> 13
T5: Block 1 | Y5: Block 2 | AD5: Block 3 | AI5: Block 4 | AN5: Block 5 | AS5: Block 6
A6: Sequence Component 1 | B6: Time 1 | C6: Sequence Component 2 | D6: Time 2 | E6: Sequence Component 3 | F6: Time 3 | G6: Sequence Component 4 | H6: Time 4 | I6: Sequence Component 5 | J6: Time 5 | K6: Correct? 0=No 1=Yes | L6: Sequence | N6: Frequency | P6: Relative Frequency | Q6: Variability | T6: Frequency | V6: Relative Frequency | W6: Variability | Y6: Frequency | AA6: Relative Frequency | AB6: Variability | AD6: Frequency | AF6: Relative Frequency | AG6: Variability | AI6: Frequency | AK6: Relative Frequency | AL6: Variability | AN6: Frequency | AP6: Relative Frequency | AQ6: Variability | AS6: Frequency | AU6: Relative Frequency | AV6: Variability
A7: 22 | B7: 28 | C7: 23 | D7: 35 | E7: 23 | F7: 42 | K7: 0 | L7: 222 | N7: 111 | O7: =COUNTIF($L$7:$L$500,N7) -> 1 | P7: =O7/$Q$4 -> 0.01282051282 | Q7: =IF(P7=0,0,(P7*((LOG(P7))/LOG(2)))) -> -0.08058207973 | T7: =N7 -> 111 | U7: =COUNTIF(L7:L19,T7) -> 0 | V7: =U7/(W4-U10) -> 0 | W7: =IF(V7=0,0,(V7*((LOG(V7))/LOG(2)))) -> 0 | Y7: =N7 -> 111 | Z7: =COUNTIF(L20:L32,Y7) -> 0 | AA7: =Z7/(AB4-Z10) -> 0 | AB7: =IF(AA7=0,0,(AA7*((LOG(AA7))/LOG(2)))) -> 0 | AD7: =N7 -> 111 | AE7: =COUNTIF(L33:L45,AD7) -> 1 | AF7: =AE7/(AG4-AE10) -> 0.125 | AG7: =IF(AF7=0,0,(AF7*((LOG(AF7))/LOG(2)))) -> -0.375 | AI7: =N7 -> 111 | AJ7: =COUNTIF(L46:L58,AI7) -> 0 | AK7: =AJ7/(AL4-AJ10) -> 0 | AL7: =IF(AK7=0,0,(AK7*((LOG(AK7))/LOG(2)))) -> 0 | AN7: =N7 -> 111 | AO7: =COUNTIF(L59:L71,AN7) -> 0 | AP7: =AO7/(AQ4-AO10) -> 0 | AQ7: =IF(AP7=0,0,(AP7*((LOG(AP7))/LOG(2)))) -> 0 | AS7: =N7 -> 111 | AT7: =COUNTIF(L72:L84,AS7) -> 0 | AU7: =AT7/(AV4-AT10) -> 0 | AV7: =IF(AU7=0,0,(AU7*((LOG(AU7))/LOG(2)))) -> 0
A8: 22 | B8: 151 | C8: 23 | D8: 158 | E8: 23 | F8: 164 | K8: 0 | L8: 222 | N8: 112 | O8: =COUNTIF($L$7:$L$500,N8) -> 0 | P8: =O8/$Q$4 -> 0 | Q8: =IF(P8=0,0,(P8*((LOG(P8))/LOG(2)))) -> 0 | T8: =N8 -> 112 | U8: =COUNTIF(L7:L19,T8) -> 0 | V8: =U8/(W4-U10) -> 0 | W8: =IF(V8=0,0,(V8*((LOG(V8))/LOG(2)))) -> 0 | Y8: =N8 -> 112 | Z8: =COUNTIF(L20:L32,Y8) -> 0 | AA8: =Z8/(AB4-Z10) -> 0 | AB8: =IF(AA8=0,0,(AA8*((LOG(AA8))/LOG(2)))) -> 0 | AD8: =N8 -> 112 | AE8: =COUNTIF(L33:L45,AD8) -> 0 | AF8: =AE8/(AG4-AE10) -> 0 | AG8: =IF(AF8=0,0,(AF8*((LOG(AF8))/LOG(2)))) -> 0 | AI8: =N8 -> 112 | AJ8: =COUNTIF(L46:L58,AI8) -> 0 | AK8: =AJ8/(AL4-AJ10) -> 0 | AL8: =IF(AK8=0,0,(AK8*((LOG(AK8))/LOG(2)))) -> 0 | AN8: =N8 -> 112 | AO8: =COUNTIF(L59:L71,AN8) -> 0 | AP8: =AO8/(AQ4-AO10) -> 0 | AQ8: =IF(AP8=0,0,(AP8*((LOG(AP8))/LOG(2)))) -> 0 | AS8: =N8 -> 112 | AT8: =COUNTIF(L72:L84,AS8) -> 0 | AU8: =AT8/(AV4-AT10) -> 0 | AV8: =IF(AU8=0,0,(AU8*((LOG(AU8))/LOG(2)))) -> 0
A9: 22 | B9: 271 | C9: 23 | D9: 280 | E9: 23 | F9: 290 | K9: 0 | L9: 222 | N9: 121 | O9: =COUNTIF($L$7:$L$500,N9) -> 0 | P9: =O9/$Q$4 -> 0 | Q9: =IF(P9=0,0,(P9*((LOG(P9))/LOG(2)))) -> 0 | T9: =N9 -> 121 | U9: =COUNTIF(L7:L19,T9) -> 0 | V9: =U9/(W4-U10) -> 0 | W9: =IF(V9=0,0,(V9*((LOG(V9))/LOG(2)))) -> 0 | Y9: =N9 -> 121 | Z9: =COUNTIF(L20:L32,Y9) -> 0 | AA9: =Z9/(AB4-Z10) -> 0 | AB9: =IF(AA9=0,0,(AA9*((LOG(AA9))/LOG(2)))) -> 0 | AD9: =N9 -> 121 | AE9: =COUNTIF(L33:L45,AD9) -> 0 | AF9: =AE9/(AG4-AE10) -> 0 | AG9: =IF(AF9=0,0,(AF9*((LOG(AF9))/LOG(2)))) -> 0 | AI9: =N9 -> 121 | AJ9: =COUNTIF(L46:L58,AI9) -> 0 | AK9: =AJ9/(AL4-AJ10) -> 0 | AL9: =IF(AK9=0,0,(AK9*((LOG(AK9))/LOG(2)))) -> 0 | AN9: =N9 -> 121 | AO9: =COUNTIF(L59:L71,AN9) -> 0 | AP9: =AO9/(AQ4-AO10) -> 0 | AQ9: =IF(AP9=0,0,(AP9*((LOG(AP9))/LOG(2)))) -> 0 | AS9: =N9 -> 121 | AT9: =COUNTIF(L72:L84,AS9) -> 0 | AU9: =AT9/(AV4-AT10) -> 0 | AV9: =IF(AU9=0,0,(AU9*((LOG(AU9))/LOG(2)))) -> 0
A10: 22 | B10: 400 | C10: 23 | D10: 404 | E10: 23 | F10: 410 | K10: 0 | L10: 222 | N10: 122 | O10: =COUNTIF($L$7:$L$500,N10) -> 39 | P10: =O10/$Q$4 -> 0.5 | Q10: =IF(P10=0,0,(P10*((LOG(P10))/LOG(2)))) -> -0.5 | T10: =N10 -> 122 | U10: =COUNTIF(L7:L19,T10) -> 0 | Y10: =N10 -> 122 | Z10: =COUNTIF(L20:L32,Y10) -> 5 | AD10: =N10 -> 122 | AE10: =COUNTIF(L33:L45,AD10) -> 5 | AI10: =N10 -> 122 | AJ10: =COUNTIF(L46:L58,AI10) -> 10 | AN10: =N10 -> 122 | AO10: =COUNTIF(L59:L71,AN10) -> 9 | AS10: =N10 -> 122 | AT10: =COUNTIF(L72:L84,AS10) -> 10
A11: 22 | B11: 526 | C11: 23 | D11: 530 | E11: 23 | F11: 536 | K11: 0 | L11: 222 | N11: 211 | O11: =COUNTIF($L$7:$L$500,N11) -> 0 | P11: =O11/$Q$4 -> 0 | Q11: =IF(P11=0,0,(P11*((LOG(P11))/LOG(2)))) -> 0 | T11: =N11 -> 211 | U11: =COUNTIF(L7:L19,T11) -> 0 | V11: =U11/(W4-U10) -> 0 | W11: =IF(V11=0,0,(V11*((LOG(V11))/LOG(2)))) -> 0 | Y11: =N11 -> 211 | Z11: =COUNTIF(L20:L32,Y11) -> 0 | AA11: =Z11/(AB4-Z10) -> 0 | AB11: =IF(AA11=0,0,(AA11*((LOG(AA11))/LOG(2)))) -> 0 | AD11: =N11 -> 211 | AE11: =COUNTIF(L33:L45,AD11) -> 0 | AF11: =AE11/(AG4-AE10) -> 0 | AG11: =IF(AF11=0,0,(AF11*((LOG(AF11))/LOG(2)))) -> 0 | AI11: =N11 -> 211 | AJ11: =COUNTIF(L46:L58,AI11) -> 0 | AK11: =AJ11/(AL4-AJ10) -> 0 | AL11: =IF(AK11=0,0,(AK11*((LOG(AK11))/LOG(2)))) -> 0 | AN11: =N11 -> 211 | AO11: =COUNTIF(L59:L71,AN11) -> 0 | AP11: =AO11/(AQ4-AO10) -> 0 | AQ11: =IF(AP11=0,0,(AP11*((LOG(AP11))/LOG(2)))) -> 0 | AS11: =N11 -> 211 | AT11: =COUNTIF(L72:L84,AS11) -> 0 | AU11: =AT11/(AV4-AT10) -> 0 | AV11: =IF(AU11=0,0,(AU11*((LOG(AU11))/LOG(2)))) -> 0
A12: 22 | B12: 637 | C12: 23 | D12: 641 | E12: 23 | F12: 645 | K12: 0 | L12: 222 | N12: 212 | O12: =COUNTIF($L$7:$L$500,N12) -> 0 | P12: =O12/$Q$4 -> 0 | Q12: =IF(P12=0,0,(P12*((LOG(P12))/LOG(2)))) -> 0 | T12: =N12 -> 212 | U12: =COUNTIF(L7:L19,T12) -> 0 | V12: =U12/(W4-U10) -> 0 | W12: =IF(V12=0,0,(V12*((LOG(V12))/LOG(2)))) -> 0 | Y12: =N12 -> 212 | Z12: =COUNTIF(L20:L32,Y12) -> 0 | AA12: =Z12/(AB4-Z10) -> 0 | AB12: =IF(AA12=0,0,(AA12*((LOG(AA12))/LOG(2)))) -> 0 | AD12: =N12 -> 212 | AE12: =COUNTIF(L33:L45,AD12) -> 0 | AF12: =AE12/(AG4-AE10) -> 0 | AG12: =IF(AF12=0,0,(AF12*((LOG(AF12))/LOG(2)))) -> 0 | AI12: =N12 -> 212 | AJ12: =COUNTIF(L46:L58,AI12) -> 0 | AK12: =AJ12/(AL4-AJ10) -> 0 | AL12: =IF(AK12=0,0,(AK12*((LOG(AK12))/LOG(2)))) -> 0 | AN12: =N12 -> 212 | AO12: =COUNTIF(L59:L71,AN12) -> 0 | AP12: =AO12/(AQ4-AO10) -> 0 | AQ12: =IF(AP12=0,0,(AP12*((LOG(AP12))/LOG(2)))) -> 0 | AS12: =N12 -> 212 | AT12: =COUNTIF(L72:L84,AS12) -> 0 | AU12: =AT12/(AV4-AT10) -> 0 | AV12: =IF(AU12=0,0,(AU12*((LOG(AU12))/LOG(2)))) -> 0
A13: 22 | B13: 752 | C13: 23 | D13: 761 | E13: 23 | F13: 766 | K13: 0 | L13: 222 | N13: 221 | O13: =COUNTIF($L$7:$L$500,N13) -> 0 | P13: =O13/$Q$4 -> 0 | Q13: =IF(P13=0,0,(P13*((LOG(P13))/LOG(2)))) -> 0 | T13: =N13 -> 221 | U13: =COUNTIF(L7:L19,T13) -> 0 | V13: =U13/(W4-U10) -> 0 | W13: =IF(V13=0,0,(V13*((LOG(V13))/LOG(2)))) -> 0 | Y13: =N13 -> 221 | Z13: =COUNTIF(L20:L32,Y13) -> 0 | AA13: =Z13/(AB4-Z10) -> 0 | AB13: =IF(AA13=0,0,(AA13*((LOG(AA13))/LOG(2)))) -> 0 | AD13: =N13 -> 221 | AE13: =COUNTIF(L33:L45,AD13) -> 0 | AF13: =AE13/(AG4-AE10) -> 0 | AG13: =IF(AF13=0,0,(AF13*((LOG(AF13))/LOG(2)))) -> 0 | AI13: =N13 -> 221 | AJ13: =COUNTIF(L46:L58,AI13) -> 0 | AK13: =AJ13/(AL4-AJ10) -> 0 | AL13: =IF(AK13=0,0,(AK13*((LOG(AK13))/LOG(2)))) -> 0 | AN13: =N13 -> 221 | AO13: =COUNTIF(L59:L71,AN13) -> 0 | AP13: =AO13/(AQ4-AO10) -> 0 | AQ13: =IF(AP13=0,0,(AP13*((LOG(AP13))/LOG(2)))) -> 0 | AS13: =N13 -> 221 | AT13: =COUNTIF(L72:L84,AS13) -> 0 | AU13: =AT13/(AV4-AT10) -> 0 | AV13: =IF(AU13=0,0,(AU13*((LOG(AU13))/LOG(2)))) -> 0
A14: 22 | B14: 867 | C14: 23 | D14: 870 | E14: 23 | F14: 874 | K14: 0 | L14: 222 | N14: 222 | O14: =COUNTIF($L$7:$L$500,N14) -> 38 | P14: =O14/$Q$4 -> 0.4871794872 | Q14: =IF(P14=0,0,(P14*((LOG(P14))/LOG(2)))) -> -0.5054363949 | T14: =N14 -> 222 | U14: =COUNTIF(L7:L19,T14) -> 13 | V14: =U14/(W4-U10) -> 1 | W14: =IF(V14=0,0,(V14*((LOG(V14))/LOG(2)))) -> 0 | Y14: =N14 -> 222 | Z14: =COUNTIF(L20:L32,Y14) -> 8 | AA14: =Z14/(AB4-Z10) -> 1 | AB14: =IF(AA14=0,0,(AA14*((LOG(AA14))/LOG(2)))) -> 0 | AD14: =N14 -> 222 | AE14: =COUNTIF(L33:L45,AD14) -> 7 | AF14: =AE14/(AG4-AE10) -> 0.875 | AG14: =IF(AF14=0,0,(AF14*((LOG(AF14))/LOG(2)))) -> -0.1685644432 | AI14: =N14 -> 222 | AJ14: =COUNTIF(L46:L58,AI14) -> 3 | AK14: =AJ14/(AL4-AJ10) -> 1 | AL14: =IF(AK14=0,0,(AK14*((LOG(AK14))/LOG(2)))) -> 0 | AN14: =N14 -> 222 | AO14: =COUNTIF(L59:L71,AN14) -> 4 | AP14: =AO14/(AQ4-AO10) -> 1 | AQ14: =IF(AP14=0,0,(AP14*((LOG(AP14))/LOG(2)))) -> 0 | AS14: =N14 -> 222 | AT14: =COUNTIF(L72:L84,AS14) -> 3 | AU14: =AT14/(AV4-AT10) -> 1 | AV14: =IF(AU14=0,0,(AU14*((LOG(AU14))/LOG(2)))) -> 0
A15: 22 | B15: 979 | C15: 23 | D15: 985 | E15: 23 | F15: 996 | K15: 0 | L15: 222 | P15: =SUM(P7:P14) -> 1 | Q15: =-SUM(Q7:Q14) -> 1.086018475 | V15: =SUM(V7:V14) -> 1 | W15: =-SUM(W7:W14) -> 0 | AA15: =SUM(AA7:AA14) -> 1 | AB15: =-SUM(AB7:AB14) -> 0 | AF15: =SUM(AF7:AF14) -> 1 | AG15: =-SUM(AG7:AG14) -> 0.5435644432 | AK15: =SUM(AK7:AK14) -> 1 | AL15: =-SUM(AL7:AL14) -> 0 | AP15: =SUM(AP7:AP14) -> 1 | AQ15: =-SUM(AQ7:AQ14) -> 0 | AU15: =SUM(AU7:AU14) -> 1 | AV15: =-SUM(AV7:AV14) -> 0
A16: 22 | B16: 1110 | C16: 23 | D16: 1112 | E16: 23 | F16: 1118 | K16: 0 | L16: 222 | P16: U= | Q16: =Q15/(LOG(Q4)/LOG(2)) -> 0.1727842446 | V16: U1= | W16: =W15/(LOG(W4)/LOG(2)) -> 0 | AA16: U2= | AB16: =AB15/(LOG(AB4)/LOG(2)) -> 0 | AF16: U3= | AG16: =AG15/(LOG(AG4)/LOG(2)) -> 0.1468918519 | AK16: U4= | AL16: =AL15/(LOG(AL4)/LOG(2)) -> 0 | AP16: U5= | AQ16: =AQ15/(LOG(AQ4)/LOG(2)) -> 0 | AU16: U6= | AV16: =AV15/(LOG(AV4)/LOG(2)) -> 0
A17: 22 | B17: 1223 | C17: 23 | D17: 1230 | E17: 23 | F17: 1236 | K17: 0 | L17: 222
A18: 22 | B18: 1343 | C18: 23 | D18: 1347 | E18: 23 | F18: 1351 | K18: 0 | L18: 222
A19: 22 | B19: 1464 | C19: 23 | D19: 1468 | E19: 23 | F19: 1472 | K19: 0 | L19: 222 | N19: Total Target Seq
A20: 22 | B20: 1580 | C20: 23 | D20: 1585 | E20: 23 | F20: 1592 | K20: 0 | L20: 222 | N20: =COUNTIF(L7:L84,G3) -> 39 | P20: 13 | Q20: 13 | R20: 13 | S20: 13 | T20: 13 | U20: 13
A21: 22 | B21: 1710 | C21: 23 | D21: 1713 | E21: 23 | F21: 1723 | K21: 0 | L21: 222 | P21: % of reinforcement given in 6 equal intervals based on number of trials
A22: 22 | B22: 1835 | C22: 23 | D22: 1845 | E22: 23 | F22: 1851 | K22: 0 | L22: 222 | P22: %_1 | Q22: %_2 | R22: %_3 | S22: %_4 | T22: %_5 | U22: %_6
A23: 11 | B23: 1948 | C23: 21 | D23: 1965 | E23: 21 | F23: 1972 | K23: 0 | L23: 122 | O23: target sequence | P23: =$G$3 -> 122 | Q23: =$G$3 -> 122 | R23: =$G$3 -> 122 | S23: =$G$3 -> 122 | T23: =$G$3 -> 122 | U23: =$G$3 -> 122
A24: 22 | B24: 2133 | C24: 23 | D24: 2140 | E24: 23 | F24: 2147 | K24: 0 | L24: 222 | O24: total reinforcement | P24: =U10 -> 0 | Q24: =Z10 -> 5 | R24: =AE10 -> 5 | S24: =AJ10 -> 10 | T24: =AO10 -> 9 | U24: =AT10 -> 10
A25: 22 | B25: 2263 | C25: 23 | D25: 2271 | E25: 23 | F25: 2277 | K25: 0 | L25: 222 | O25: % target
A26: 22 | B26: 2380 | C26: 23 | D26: 2384 | E26: 23 | F26: 2387 | K26: 0 | L26: 222 | O26: CCRF
A27: 11 | B27: 2484 | C27: 21 | D27: 2493 | E27: 21 | F27: 2496 | K27: 0 | L27: 122 | O27: % CCRf
A28: 11 | B28: 2600 | C28: 21 | D28: 2615 | E28: 21 | F28: 2619 | K28: 0 | L28: 122 | O28: average response rate | P28: =F19/P20 -> 113.2307692 | Q28: =(F32-F19)/Q20 -> 125.9230769 | R28: =(F45-F32)/R20 -> 123.5384615 | S28: =(F58-F45)/S20 -> 124.2307692 | T28: =(F71-F58)/T20 -> 123.9230769 | U28: =(F84-F71)/U20 -> 127.1538462
A29: 22 | B29: 2740 | C29: 23 | D29: 2746 | E29: 23 | F29: 2752 | K29: 0 | L29: 222
A30: 22 | B30: 2861 | C30: 23 | D30: 2863 | E30: 23 | F30: 2874 | K30: 0 | L30: 222
A31: 11 | B31: 2972 | C31: 21 | D31: 2979 | E31: 21 | F31: 2983 | K31: 0 | L31: 122
A32: 11 | B32: 3094 | C32: 21 | D32: 3105 | E32: 21 | F32: 3109 | K32: 0 | L32: 122
A33: 22 | B33: 3247 | C33: 23 | D33: 3252 | E33: 23 | F33: 3265 | K33: 0 | L33: 222
A34: 11 | B34: 3360 | C34: 21 | D34: 3366 | E34: 21 | F34: 3381 | K34: 0 | L34: 122
A35: 22 | B35: 3515 | C35: 23 | D35: 3520 | E35: 23 | F35: 3526 | K35: 0 | L35: 222
A36: 22 | B36: 3632 | C36: 23 | D36: 3635 | E36: 23 | F36: 3644 | K36: 0 | L36: 222
A37: 22 | B37: 3746 | C37: 23 | D37: 3752 | E37: 23 | F37: 3761 | K37: 0 | L37: 222
A38: 22 | B38: 3871 | C38: 23 | D38: 3874 | E38: 23 | F38: 3881 | K38: 0 | L38: 222
A39: 11 | B39: 3979 | C39: 21 | D39: 3988 | E39: 21 | F39: 3995 | K39: 0 | L39: 122
A40: 11 | B40: 4111 | C40: 21 | D40: 4127 | E40: 21 | F40: 4130 | K40: 0 | L40: 122
A41: 11 | B41: 4254 | C41: 12 | D41: 4256 | E41: 14 | F41: 4259 | K41: 0 | L41: 111
A42: 11 | B42: 4355 | C42: 21 | D42: 4366 | E42: 21 | F42: 4370 | K42: 0 | L42: 122
A43: 11 | B43: 4462 | C43: 21 | D43: 4472 | E43: 21 | F43: 4476 | K43: 0 | L43: 122
A44: 22 | B44: 4578 | C44: 23 | D44: 4587 | E44: 23 | F44: 4596 | K44: 0 | L44: 222
A45: 22 | B45: 4704 | C45: 23 | D45: 4709 | E45: 23 | F45: 4715 | K45: 0 | L45: 222
A46: 22 | B46: 4820 | C46: 23 | D46: 4824 | E46: 23 | F46: 4830 | K46: 0 | L46: 222
A47: 11 | B47: 4927 | C47: 21 | D47: 4940 | E47: 21 | F47: 4948 | K47: 0 | L47: 122
A48: 11 | B48: 5041 | C48: 21 | D48: 5056 | E48: 21 | F48: 5060 | K48: 0 | L48: 122
A49: 11 | B49: 5161 | C49: 21 | D49: 5177 | E49: 21 | F49: 5182 | K49: 0 | L49: 122
A50: 11 | B50: 5276 | C50: 21 | D50: 5288 | E50: 21 | F50: 5292 | K50: 0 | L50: 122
A51: 11 | B51: 5425 | C51: 21 | D51: 5442 | E51: 21 | F51: 5447 | K51: 0 | L51: 122
A52: 11 | B52: 5554 | C52: 21 | D52: 5570 | E52: 21 | F52: 5574 | K52: 0 | L52: 122
A53: 11 | B53: 5670 | C53: 21 | D53: 5677 | E53: 21 | F53: 5701 | K53: 0 | L53: 122
A54: 11 | B54: 5814 | C54: 21 | D54: 5829 | E54: 21 | F54: 5833 | K54: 0 | L54: 122
A55: 11 | B55: 5967 | C55: 21 | D55: 5978 | E55: 21 | F55: 5982 | K55: 0 | L55: 122
A56: 22 | B56: 6100 | C56: 23 | D56: 6103 | E56: 23 | F56: 6107 | K56: 0 | L56: 222
A57: 11 | B57: 6201 | C57: 21 | D57: 6212 | E57: 21 | F57: 6218 | K57: 0 | L57: 122
A58: 22 | B58: 6321 | C58: 23 | D58: 6325 | E58: 23 | F58: 6330 | K58: 0 | L58: 222
A59: 11 | B59: 6426 | C59: 21 | D59: 6433 | E59: 21 | F59: 6437 | K59: 0 | L59: 122
A60: 22 | B60: 6543 | C60: 23 | D60: 6545 | E60: 23 | F60: 6551 | K60: 0 | L60: 222
A61: 11 | B61: 6648 | C61: 21 | D61: 6655 | E61: 21 | F61: 6661 | K61: 0 | L61: 122
A62: 22 | B62: 6770 | C62: 23 | D62: 6775 | E62: 23 | F62: 6787 | K62: 0 | L62: 222
A63: 11 | B63: 6882 | C63: 21 | D63: 6899 | E63: 21 | F63: 6910 | K63: 0 | L63: 122
A64: 22 | B64: 7070 | C64: 23 | D64: 7073 | E64: 23 | F64: 7078 | K64: 0 | L64: 222
A65: 22 | B65: 7198 | C65: 23 | D65: 7204 | E65: 23 | F65: 7215 | K65: 0 | L65: 222
A66: 11 | B66: 7310 | C66: 21 | D66: 7324 | E66: 21 | F66: 7329 | K66: 0 | L66: 122
A67: 11 | B67: 7424 | C67: 21 | D67: 7439 | E67: 21 | F67: 7443 | K67: 0 | L67: 122
A68: 11 | B68: 7536 | C68: 21 | D68: 7549 | E68: 21 | F68: 7553 | K68: 0 | L68: 122
A69: 11 | B69: 7675 | C69: 21 | D69: 7688 | E69: 21 | F69: 7701 | K69: 0 | L69: 122
A70: 11 | B70: 7805 | C70: 21 | D70: 7815 | E70: 21 | F70: 7818 | K70: 0 | L70: 122
A71: 11 | B71: 7919 | C71: 21 | D71: 7936 | E71: 21 | F71: 7941 | K71: 0 | L71: 122
A72: 11 | B72: 8038 | C72: 21 | D72: 8052 | E72: 21 | F72: 8058 | K72: 0 | L72: 122
A73: 11 | B73: 8173 | C73: 21 | D73: 8187 | E73: 21 | F73: 8198 | K73: 0 | L73: 122
A74: 22 | B74: 8350 | C74: 23 | D74: 8355 | E74: 23 | F74: 8362 | K74: 0 | L74: 222
A75: 11 | B75: 8459 | C75: 21 | D75: 8469 | E75: 21 | F75: 8473 | K75: 0 | L75: 122
A76: 11 | B76: 8578 | C76: 21 | D76: 8590 | E76: 21 | F76: 8604 | K76: 0 | L76: 122
A77: 11 | B77: 8729 | C77: 21 | D77: 8739 | E77: 21 | F77: 8742 | K77: 0 | L77: 122
A78: 11 | B78: 8848 | C78: 21 | D78: 8860 | E78: 21 | F78: 8864 | K78: 0 | L78: 122
A79: 11 | B79: 8989 | C79: 21 | D79: 9001 | E79: 21 | F79: 9004 | K79: 0 | L79: 122
A80: 11 | B80: 9102 | C80: 21 | D80: 9114 | E80: 21 | F80: 9117 | K80: 0 | L80: 122
A81: 22 | B81: 9237 | C81: 23 | D81: 9243 | E81: 23 | F81: 9252 | K81: 0 | L81: 222
A82: 22 | B82: 9359 | C82: 23 | D82: 9363 | E82: 23 | F82: 9374 | K82: 0 | L82: 222
A83: 11 | B83: 9469 | C83: 21 | D83: 9481 | E83: 21 | F83: 9484 | K83: 0 | L83: 122
A84: 11 | B84: 9579 | C84: 21 | D84: 9591 | E84: 21 | F84: 9594 | K84: 1 | L84: 122

Sheet !LB20A13..Ta
A1: Report for:!LB20A13..Ta
A2: Date: | B2: <date>
A3: Hen: | B3: <hen> | F3: Correct Sequence | G3: =Start!J2 -> 122 | P3: Total Sequences in Data | Q3: =4994-COUNTBLANK(L7:L5000) -> 126 | V3: Total Sequences in Block Data | W3: =COUNTA(L7:L27) -> 21 | AA3: Total Sequences in Block Data | AB3: =COUNTA(L28:L48) -> 21 | AF3: Total Sequences in Block Data | AG3: =COUNTA(L49:L69) -> 21 | AK3: Total Sequences in Block Data | AL3: =COUNTA(L70:L90) -> 21 | AP3: Total Sequences in Block Data | AQ3: =COUNTA(L91:L111) -> 21 | AU3: Total Sequences in Block Data | AV3: =COUNTA(L112:L132) -> 21
P4: Total Sequences in Summary | Q4: =SUM(O7:O14) -> 126 | V4: Total Sequences in Block Summary | W4: =SUM(U7:U14) -> 21 | AA4: Total Sequences in Block Summary | AB4: =SUM(Z7:Z14) -> 21 | AF4: Total Sequences in Block Summary | AG4: =SUM(AE7:AE14) -> 21 | AK4: Total Sequences in Block Summary | AL4: =SUM(AJ7:AJ14) -> 21 | AP4: Total Sequences in Block Summary | AQ4: =SUM(AO7:AO14) -> 21 | AU4: Total Sequences in Block Summary | AV4: =SUM(AT7:AT14) -> 21
T5: Block 1 | Y5: Block 2 | AD5: Block 3 | AI5: Block 4 | AN5: Block 5 | AS5: Block 6
A6: Sequence Component 1 | B6: Time 1 | C6: Sequence Component 2 | D6: Time 2 | E6: Sequence Component 3 | F6: Time 3 | G6: Sequence Component 4 | H6: Time 4 | I6: Sequence Component 5 | J6: Time 5 | K6: Correct? 0=No 1=Yes | L6: Sequence | N6: Frequency | P6: Relative Frequency | Q6: Variability | T6: Frequency | V6: Relative Frequency | W6: Variability | Y6: Frequency | AA6: Relative Frequency | AB6: Variability | AD6: Frequency | AF6: Relative Frequency | AG6: Variability | AI6: Frequency | AK6: Relative Frequency | AL6: Variability | AN6: Frequency | AP6: Relative Frequency | AQ6: Variability | AS6: Frequency | AU6: Relative Frequency | AV6: Variability
A7: 22 | B7: 16 | C7: 23 | D7: 19 | E7: 23 | F7: 23 | K7: 0 | L7: 222 | N7: 111 | O7: =COUNTIF($L$7:$L$500,N7) -> 0 | P7: =O7/$Q$4 -> 0 | Q7: =IF(P7=0,0,(P7*((LOG(P7))/LOG(2)))) -> 0 | T7: =N7 -> 111 | U7: =COUNTIF(L7:L27,T7) -> 0 | V7: =U7/(W4-U10) -> 0 | W7: =IF(V7=0,0,(V7*((LOG(V7))/LOG(2)))) -> 0 | Y7: =N7 -> 111 | Z7: =COUNTIF(L28:L48,Y7) -> 0 | AA7: =Z7/(AB4-Z10) -> 0 | AB7: =IF(AA7=0,0,(AA7*((LOG(AA7))/LOG(2)))) -> 0 | AD7: =N7 -> 111 | AE7: =COUNTIF(L49:L69,AD7) -> 0 | AF7: =AE7/(AG4-AE10) -> 0 | AG7: =IF(AF7=0,0,(AF7*((LOG(AF7))/LOG(2)))) -> 0 | AI7: =N7 -> 111 | AJ7: =COUNTIF(L70:L90,AI7) -> 0 | AK7: =AJ7/(AL4-AJ10) -> 0 | AL7: =IF(AK7=0,0,(AK7*((LOG(AK7))/LOG(2)))) -> 0 | AN7: =N7 -> 111 | AO7: =COUNTIF(L91:L111,AN7) -> 0 | AP7: =AO7/(AQ4-AO10) -> 0 | AQ7: =IF(AP7=0,0,(AP7*((LOG(AP7))/LOG(2)))) -> 0 | AS7: =N7 -> 111 | AT7: =COUNTIF(L112:L132,AS7) -> 0 | AU7: =AT7/(AV4-AT10) -> 0 | AV7: =IF(AU7=0,0,(AU7*((LOG(AU7))/LOG(2)))) -> 0
A8: 22 | B8: 126 | C8: 23 | D8: 135 | E8: 23 | F8: 145 | K8: 0 | L8: 222 | N8: 112 | O8: =COUNTIF($L$7:$L$500,N8) -> 5 | P8: =O8/$Q$4 -> 0.03968253968 | Q8: =IF(P8=0,0,(P8*((LOG(P8))/LOG(2)))) -> -0.1847361837 | T8: =N8 -> 112 | U8: =COUNTIF(L7:L27,T8) -> 0 | V8: =U8/(W4-U10) -> 0 | W8: =IF(V8=0,0,(V8*((LOG(V8))/LOG(2)))) -> 0 | Y8: =N8 -> 112 | Z8: =COUNTIF(L28:L48,Y8) -> 1 | AA8: =Z8/(AB4-Z10) -> 0.05 | AB8: =IF(AA8=0,0,(AA8*((LOG(AA8))/LOG(2)))) -> -0.2160964047 | AD8: =N8 -> 112 | AE8: =COUNTIF(L49:L69,AD8) -> 0 | AF8: =AE8/(AG4-AE10) -> 0 | AG8: =IF(AF8=0,0,(AF8*((LOG(AF8))/LOG(2)))) -> 0 | AI8: =N8 -> 112 | AJ8: =COUNTIF(L70:L90,AI8) -> 1 | AK8: =AJ8/(AL4-AJ10) -> 0.07692307692 | AL8: =IF(AK8=0,0,(AK8*((LOG(AK8))/LOG(2)))) -> -0.2846492091 | AN8: =N8 -> 112 | AO8: =COUNTIF(L91:L111,AN8) -> 3 | AP8: =AO8/(AQ4-AO10) -> 0.3333333333 | AQ8: =IF(AP8=0,0,(AP8*((LOG(AP8))/LOG(2)))) -> -0.5283208336 | AS8: =N8 -> 112 | AT8: =COUNTIF(L112:L132,AS8) -> 0 | AU8: =AT8/(AV4-AT10) -> 0 | AV8: =IF(AU8=0,0,(AU8*((LOG(AU8))/LOG(2)))) -> 0
A9: 22 | B9: 252 | C9: 23 | D9: 255 | E9: 23 | F9: 260 | K9: 0 | L9: 222 | N9: 121 | O9: =COUNTIF($L$7:$L$500,N9) -> 0 | P9: =O9/$Q$4 -> 0 | Q9: =IF(P9=0,0,(P9*((LOG(P9))/LOG(2)))) -> 0 | T9: =N9 -> 121 | U9: =COUNTIF(L7:L27,T9) -> 0 | V9: =U9/(W4-U10) -> 0 | W9: =IF(V9=0,0,(V9*((LOG(V9))/LOG(2)))) -> 0 | Y9: =N9 -> 121 | Z9: =COUNTIF(L28:L48,Y9) -> 0 | AA9: =Z9/(AB4-Z10) -> 0 | AB9: =IF(AA9=0,0,(AA9*((LOG(AA9))/LOG(2)))) -> 0 | AD9: =N9 -> 121 | AE9: =COUNTIF(L49:L69,AD9) -> 0 | AF9: =AE9/(AG4-AE10) -> 0 | AG9: =IF(AF9=0,0,(AF9*((LOG(AF9))/LOG(2)))) -> 0 | AI9: =N9 -> 121 | AJ9: =COUNTIF(L70:L90,AI9) -> 0 | AK9: =AJ9/(AL4-AJ10) -> 0 | AL9: =IF(AK9=0,0,(AK9*((LOG(AK9))/LOG(2)))) -> 0 | AN9: =N9 -> 121 | AO9: =COUNTIF(L91:L111,AN9) -> 0 | AP9: =AO9/(AQ4-AO10) -> 0 | AQ9: =IF(AP9=0,0,(AP9*((LOG(AP9))/LOG(2)))) -> 0 | AS9: =N9 -> 121 | AT9: =COUNTIF(L112:L132,AS9) -> 0 | AU9: =AT9/(AV4-AT10) -> 0 | AV9: =IF(AU9=0,0,(AU9*((LOG(AU9))/LOG(2)))) -> 0
A10: 22 | B10: 367 | C10: 23 | D10: 386 | E10: 23 | F10: 391 | K10: 0 | L10: 222 | N10: 122 | O10: =COUNTIF($L$7:$L$500,N10) -> 39 | P10: =O10/$Q$4 -> 0.3095238095 | Q10: =IF(P10=0,0,(P10*((LOG(P10))/LOG(2)))) -> -0.5236764324 | T10: =N10 -> 122 | U10: =COUNTIF(L7:L27,T10) -> 0 | Y10: =N10 -> 122 | Z10: =COUNTIF(L28:L48,Y10) -> 1 | AD10: =N10 -> 122 | AE10: =COUNTIF(L49:L69,AD10) -> 9 | AI10: =N10 -> 122 | AJ10: =COUNTIF(L70:L90,AI10) -> 8 | AN10: =N10 -> 122 | AO10: =COUNTIF(L91:L111,AN10) -> 12 | AS10: =N10 -> 122 | AT10: =COUNTIF(L112:L132,AS10) -> 9
A11: 22 | B11: 503 | C11: 23 | D11: 507 | E11: 23 | F11: 513 | K11: 0 | L11: 222 | N11: 211 | O11: =COUNTIF($L$7:$L$500,N11) -> 0 | P11: =O11/$Q$4 -> 0 | Q11: =IF(P11=0,0,(P11*((LOG(P11))/LOG(2)))) -> 0 | T11: =N11 -> 211 | U11: =COUNTIF(L7:L27,T11) -> 0 | V11: =U11/(W4-U10) -> 0 | W11: =IF(V11=0,0,(V11*((LOG(V11))/LOG(2)))) -> 0 | Y11: =N11 -> 211 | Z11: =COUNTIF(L28:L48,Y11) -> 0 | AA11: =Z11/(AB4-Z10) -> 0 | AB11: =IF(AA11=0,0,(AA11*((LOG(AA11))/LOG(2)))) -> 0 | AD11: =N11 -> 211 | AE11: =COUNTIF(L49:L69,AD11) -> 0 | AF11: =AE11/(AG4-AE10) -> 0 | AG11: =IF(AF11=0,0,(AF11*((LOG(AF11))/LOG(2)))) -> 0 | AI11: =N11 -> 211 | AJ11: =COUNTIF(L70:L90,AI11) -> 0 | AK11: =AJ11/(AL4-AJ10) -> 0 | AL11: =IF(AK11=0,0,(AK11*((LOG(AK11))/LOG(2)))) -> 0 | AN11: =N11 -> 211 | AO11: =COUNTIF(L91:L111,AN11) -> 0 | AP11: =AO11/(AQ4-AO10) -> 0 | AQ11: =IF(AP11=0,0,(AP11*((LOG(AP11))/LOG(2)))) -> 0 | AS11: =N11 -> 211 | AT11: =COUNTIF(L112:L132,AS11) -> 0 | AU11: =AT11/(AV4-AT10) -> 0 | AV11: =IF(AU11=0,0,(AU11*((LOG(AU11))/LOG(2)))) -> 0
A12: 22 | B12: 625 | C12: 23 | D12: 630 | E12: 23 | F12: 635 | K12: 0 | L12: 222 | N12: 212 | O12: =COUNTIF($L$7:$L$500,N12) -> 0 | P12: =O12/$Q$4 -> 0 | Q12: =IF(P12=0,0,(P12*((LOG(P12))/LOG(2)))) -> 0 | T12: =N12 -> 212 | U12: =COUNTIF(L7:L27,T12) -> 0 | V12: =U12/(W4-U10) -> 0 | W12: =IF(V12=0,0,(V12*((LOG(V12))/LOG(2)))) -> 0 | Y12: =N12 -> 212 | Z12: =COUNTIF(L28:L48,Y12) -> 0 | AA12: =Z12/(AB4-Z10) -> 0 | AB12: =IF(AA12=0,0,(AA12*((LOG(AA12))/LOG(2)))) -> 0 | AD12: =N12 -> 212 | AE12: =COUNTIF(L49:L69,AD12) -> 0 | AF12: =AE12/(AG4-AE10) -> 0 | AG12: =IF(AF12=0,0,(AF12*((LOG(AF12))/LOG(2)))) -> 0 | AI12: =N12 -> 212 | AJ12: =COUNTIF(L70:L90,AI12) -> 0 | AK12: =AJ12/(AL4-AJ10) -> 0 | AL12: =IF(AK12=0,0,(AK12*((LOG(AK12))/LOG(2)))) -> 0 | AN12: =N12 -> 212 | AO12: =COUNTIF(L91:L111,AN12) -> 0 | AP12: =AO12/(AQ4-AO10) -> 0 | AQ12: =IF(AP12=0,0,(AP12*((LOG(AP12))/LOG(2)))) -> 0 | AS12: =N12 -> 212 | AT12: =COUNTIF(L112:L132,AS12) -> 0 | AU12: =AT12/(AV4-AT10) -> 0 | AV12: =IF(AU12=0,0,(AU12*((LOG(AU12))/LOG(2)))) -> 0
A13: 22 | B13: 745 | C13: 23 | D13: 747 | E13: 23 | F13: 751 | K13: 0 | L13: 222 | N13: 221 | O13: =COUNTIF($L$7:$L$500,N13) -> 0 | P13: =O13/$Q$4 -> 0 | Q13: =IF(P13=0,0,(P13*((LOG(P13))/LOG(2)))) -> 0 | T13: =N13 -> 221 | U13: =COUNTIF(L7:L27,T13) -> 0 | V13: =U13/(W4-U10) -> 0 | W13: =IF(V13=0,0,(V13*((LOG(V13))/LOG(2)))) -> 0 | Y13: =N13 -> 221 | Z13: =COUNTIF(L28:L48,Y13) -> 0 | AA13: =Z13/(AB4-Z10) -> 0 | AB13: =IF(AA13=0,0,(AA13*((LOG(AA13))/LOG(2)))) -> 0 | AD13: =N13 -> 221 | AE13: =COUNTIF(L49:L69,AD13) -> 0 | AF13: =AE13/(AG4-AE10) -> 0 | AG13: =IF(AF13=0,0,(AF13*((LOG(AF13))/LOG(2)))) -> 0 | AI13: =N13 -> 221 | AJ13: =COUNTIF(L70:L90,AI13) -> 0 | AK13: =AJ13/(AL4-AJ10) -> 0 | AL13: =IF(AK13=0,0,(AK13*((LOG(AK13))/LOG(2)))) -> 0 | AN13: =N13 -> 221 | AO13: =COUNTIF(L91:L111,AN13) -> 0 | AP13: =AO13/(AQ4-AO10) -> 0 | AQ13: =IF(AP13=0,0,(AP13*((LOG(AP13))/LOG(2)))) -> 0 | AS13: =N13 -> 221 | AT13: =COUNTIF(L112:L132,AS13) -> 0 | AU13: =AT13/(AV4-AT10) -> 0 | AV13: =IF(AU13=0,0,(AU13*((LOG(AU13))/LOG(2)))) -> 0
A14: 22 | B14: 859 | C14: 23 | D14: 862 | E14: 23 | F14: 871 | K14: 0 | L14: 222 | N14: 222 | O14: =COUNTIF($L$7:$L$500,N14) -> 82 | P14: =O14/$Q$4 -> 0.6507936508 | Q14: =IF(P14=0,0,(P14*((LOG(P14))/LOG(2)))) -> -0.4033149948 | T14: =N14 -> 222 | U14: =COUNTIF(L7:L27,T14) -> 21 | V14: =U14/(W4-U10) -> 1 | W14: =IF(V14=0,0,(V14*((LOG(V14))/LOG(2)))) -> 0 | Y14: =N14 -> 222 | Z14: =COUNTIF(L28:L48,Y14) -> 19 | AA14: =Z14/(AB4-Z10) -> 0.95 | AB14: =IF(AA14=0,0,(AA14*((LOG(AA14))/LOG(2)))) -> -0.07030055237 | AD14: =N14 -> 222 | AE14: =COUNTIF(L49:L69,AD14) -> 12 | AF14: =AE14/(AG4-AE10) -> 1 | AG14: =IF(AF14=0,0,(AF14*((LOG(AF14))/LOG(2)))) -> 0 | AI14: =N14 -> 222 | AJ14: =COUNTIF(L70:L90,AI14) -> 12 | AK14: =AJ14/(AL4-AJ10) -> 0.9230769231 | AL14: =IF(AK14=0,0,(AK14*((LOG(AK14))/LOG(2)))) -> -0.1065943545 | AN14: =N14 -> 222 | AO14: =COUNTIF(L91:L111,AN14) -> 6 | AP14: =AO14/(AQ4-AO10) -> 0.6666666667 | AQ14: =IF(AP14=0,0,(AP14*((LOG(AP14))/LOG(2)))) -> -0.3899750005 | AS14: =N14 -> 222 | AT14: =COUNTIF(L112:L132,AS14) -> 12 | AU14: =AT14/(AV4-AT10) -> 1 | AV14: =IF(AU14=0,0,(AU14*((LOG(AU14))/LOG(2)))) -> 0
A15: 22 | B15: 981 | C15: 23 | D15: 989 | E15: 23 | F15: 999 | K15: 0 | L15: 222 | P15: =SUM(P7:P14) -> 1 | Q15: =-SUM(Q7:Q14) -> 1.111727611 | V15: =SUM(V7:V14) -> 1 | W15: =-SUM(W7:W14) -> 0 | AA15: =SUM(AA7:AA14) -> 1 | AB15: =-SUM(AB7:AB14) -> 0.2863969571 | AF15: =SUM(AF7:AF14) -> 1 | AG15: =-SUM(AG7:AG14) -> 0 | AK15: =SUM(AK7:AK14) -> 1 | AL15: =-SUM(AL7:AL14) -> 0.3912435636 | AP15: =SUM(AP7:AP14) -> 1 | AQ15: =-SUM(AQ7:AQ14) -> 0.9182958341 | AU15: =SUM(AU7:AU14) -> 1 | AV15: =-SUM(AV7:AV14) -> 0
A16: 22 | B16: 1106 | C16: 23 | D16: 1157 | E16: 23 | F16: 1163 | K16: 0 | L16: 222 | P16: U= | Q16: =Q15/(LOG(Q4)/LOG(2)) -> 0.159335389 | V16: U1= | W16: =W15/(LOG(W4)/LOG(2)) -> 0 | AA16: U2= | AB16: =AB15/(LOG(AB4)/LOG(2)) -> 0.06520406645 | AF16: U3= | AG16: =AG15/(LOG(AG4)/LOG(2)) -> 0 | AK16: U4= | AL16: =AL15/(LOG(AL4)/LOG(2)) -> 0.08907451943 | AP16: U5= | AQ16: =AQ15/(LOG(AQ4)/LOG(2)) -> 0.2090686409 | AU16: U6= | AV16: =AV15/(LOG(AV4)/LOG(2)) -> 0
A17: 22 | B17: 1282 | C17: 23 | D17: 1301 | E17: 23 | F17: 1307 | K17: 0 | L17: 222
A18: 22 | B18: 1430 | C18: 23 | D18: 1438 | E18: 23 | F18: 1444 | K18: 0 | L18: 222
A19: 22 | B19: 1566 | C19: 23 | D19: 1569 | E19: 23 | F19: 1573 | K19: 0 | L19: 222 | N19: Total Target Seq
A20: 22 | B20: 1680 | C20: 23 | D20: 1687 | E20: 23 | F20: 1693 | K20: 0 | L20: 222 | N20: =COUNTIF(L7:L132,G3) -> 39 | P20: 21 | Q20: 21 | R20: 21 | S20: 21 | T20: 21 | U20: 21
A21: 22 | B21: 1804 | C21: 23 | D21: 1808 | E21: 23 | F21: 1813 | K21: 0 | L21: 222 | P21: % of reinforcement given in 6 equal intervals based on number of trials
A22: 22 | B22: 1927 | C22: 23 | D22: 1931 | E22: 23 | F22: 1934 | K22: 0 | L22: 222 | P22: %_1 | Q22: %_2 | R22: %_3 | S22: %_4 | T22: %_5 | U22: %_6
A23: 22 | B23: 2045 | C23: 23 | D23: 2048 | E23: 23 | F23: 2052 | K23: 0 | L23: 222 | O23: target sequence | P23: =$G$3 -> 122 | Q23: =$G$3 -> 122 | R23: =$G$3 -> 122 | S23: =$G$3 -> 122 | T23: =$G$3 -> 122 | U23: =$G$3 -> 122
A24: 22 | B24: 2161 | C24: 23 | D24: 2164 | E24: 23 | F24: 2172 | K24: 0 | L24: 222 | O24: total reinforcement | P24: =U10 -> 0 | Q24: =Z10 -> 1 | R24: =AE10 -> 9 | S24: =AJ10 -> 8 | T24: =AO10 -> 12 | U24: =AT10 -> 9
A25: 22 | B25: 2280 | C25: 23 | D25: 2283 | E25: 23 | F25: 2289 | K25: 0 | L25: 222 | O25: % target
A26: 22 | B26: 2397 | C26: 23 | D26: 2402 | E26: 23 | F26: 2407 | K26: 0 | L26: 222 | O26: CCRF
A27: 22 | B27: 2527 | C27: 23 | D27: 2531 | E27: 23 | F27: 2537 | K27: 0 | L27: 222 | O27: % CCRf
A28: 22 | B28: 2638 | C28: 23 | D28: 2644 | E28: 23 | F28: 2648 | K28: 0 | L28: 222 | O28: average response rate | P28: =F27/P20 -> 120.8095238 | Q28: =(F48-F27)/Q20 -> 133 | R28: =(F69-F48)/R20 -> 131.1428571 | S28: =(F90-F69)/S20 -> 128.5714286 | T28: =(F111-F90)/T20 -> 137.5238095 | U28: =(F132-F111)/U20 -> 130.1428571
A29: 22 | B29: 2758 | C29: 23 | D29: 2761 | E29: 23 | F29: 2766 | K29: 0 | L29: 222
A30: 22 | B30: 2885 | C30: 23 | D30: 2889 | E30: 23 | F30: 2896 | K30: 0 | L30: 222
A31: 22 | B31: 3003 | C31: 23 | D31: 3008 | E31: 23 | F31: 3011 | K31: 0 | L31: 222
A32: 22 | B32: 3125 | C32: 23 | D32: 3129 | E32: 23 | F32: 3134 | K32: 0 | L32: 222
A33: 22 | B33: 3250 | C33: 23 | D33: 3253 | E33: 23 | F33: 3257 | K33: 0 | L33: 222
A34: 22 | B34: 3384 | C34: 23 | D34: 3388 | E34: 23 | F34: 3391 | K34: 0 | L34: 222
A35: 22 | B35: 3515 | C35: 23 | D35: 3517 | E35: 23 | F35: 3528 | K35: 0 | L35: 222
A36: 22 | B36: 3686 | C36: 23 | D36: 3689 | E36: 23 | F36: 3694 | K36: 0 | L36: 222
A37: 22 | B37: 3818 | C37: 23 | D37: 3820 | E37: 23 | F37: 3826 | K37: 0 | L37: 222
A38: 22 | B38: 3951 | C38: 23 | D38: 3959 | E38: 23 | F38: 3966 | K38: 0 | L38: 222
A39: 22 | B39: 4089 | C39: 23 | D39: 4091 | E39: 23 | F39: 4097 | K39: 0 | L39: 222
A40: 22 | B40: 4218 | C40: 23 | D40: 4225 | E40: 23 | F40: 4231 | K40: 0 | L40: 222
A41: 22 | B41: 4356 | C41: 23 | D41: 4360 | E41: 23 | F41: 4366 | K41: 0 | L41: 222
A42: 22 | B42: 4486 | C42: 23 | D42: 4489 | E42: 23 | F42: 4494 | K42: 0 | L42: 222
A43: 22 | B43: 4611 | C43: 23 | D43: 4617 | E43: 23 | F43: 4623 | K43: 0 | L43: 222
A44: 22 | B44: 4741 | C44: 23 | D44: 4743 | E44: 23 | F44: 4748 | K44: 0 | L44: 222
A45: 11 | B45: 4845 | C45: 12 | D45: 4851 | E45: 23 | F45: 4866 | K45: 0 | L45: 112
A46: 22 | B46: 5024 | C46: 23 | D46: 5038 | E46: 23 | F46: 5044 | K46: 0 | L46: 222
A47: 11 | B47: 5142 | C47: 21 | D47: 5151 | E47: 21 | F47: 5155 | K47: 0 | L47: 122
A48: 22 | B48: 5317 | C48: 23 | D48: 5324 | E48: 23 | F48: 5330 | K48: 0 | L48: 222
A49: 22 | B49: 5473 | C49: 23 | D49: 5476 | E49: 23 | F49: 5479 | K49: 0 | L49: 222
A50: 22 | B50: 5579 | C50: 23 | D50: 5582 | E50: 23 | F50: 5592 | K50: 0 | L50: 222
A51: 11 | B51: 5697 | C51: 21 | D51: 5708 | E51: 21 | F51: 5711 | K51: 0 | L51: 122
A52: 22 | B52: 5833 | C52: 23 | D52: 5838 | E52: 23 | F52: 5843 | K52: 0 | L52: 222
A53: 11 | B53: 5939 | C53: 21 | D53: 5951 | E53: 21 | F53: 5954 | K53: 0 | L53: 122
A54: 11 | B54: 6077 | C54: 21 | D54: 6090 | E54: 21 | F54: 6093 | K54: 0 | L54: 122
A55: 22 | B55: 6236 | C55: 23 | D55: 6239 | E55: 23 | F55: 6251 | K55: 0 | L55: 222
A56: 22 | B56: 6356 | C56: 23 | D56: 6366 | E56: 23 | F56: 6372 | K56: 0 | L56: 222
A57: 11 | B57: 6469 | C57: 21 | D57: 6480 | E57: 21 | F57: 6483 | K57: 0 | L57: 122
A58: 22 | B58: 6672 | C58: 23 | D58: 6680 | E58: 23 | F58: 6685 | K58: 0 | L58: 222
A59: 11 | B59: 6783 | C59: 21 | D59: 6794 | E59: 21 | F59: 6798 | K59: 0 | L59: 122
A60: 11 | B60: 6890 | C60: 21 | D60: 6906 | E60: 21 | F60: 6910 | K60: 0 | L60: 122
A61: 22 | B61: 7066 | C61: 23 | D61: 7072 | E61: 23 | F61: 7078 | K61: 0 | L61: 222
A62: 11 | B62: 7176 | C62: 21 | D62: 7192 | E62: 21 | F62: 7198 | K62: 0 | L62: 122
A63: 22 | B63: 7337 | C63: 23 | D63: 7340 | E63: 23 | F63: 7345 | K63: 0 | L63: 222
A64: 22 | B64: 7456 | C64: 23 | D64: 7459 | E64: 23 | F64: 7462 | K64: 0 | L64: 222
A65: 11 | B65: 7558 | C65: 21 | D65: 7565 | E65: 21 | F65: 7568 | K65: 0 | L65: 122
A66: 11 | B66: 7676 | C66: 21 | D66: 7688 | E66: 21 | F66: 7695 | K66: 0 | L66: 122
A67: 22 | B67: 7812 | C67: 23 | D67: 7819 | E67: 23 | F67: 7831 | K67: 0 | L67: 222
A68: 22 | B68: 7943 | C68: 23 | D68: 7951 | E68: 23 | F68: 7966 | K68: 0 | L68: 222
A69: 22 | B69: 8077 | C69: 23 | D69: 8081 | E69: 23 | F69: 8084 | K69: 0 | L69: 222
A70: 11 | B70: 8181 | C70: 21 | D70: 8197 | E70: 21 | F70: 8200 | K70: 0 | L70: 122
A71: 22 | B71: 8345 | C71: 23 | D71: 8349 | E71: 23 | F71: 8361 | K71: 0 | L71: 222
A72: 22 | B72: 8471 | C72: 23 | D72: 8474 | E72: 23 | F72: 8483 | K72: 0 | L72: 222
A73: 11 | B73: 8579 | C73: 21 | D73: 8592 | E73: 21 | F73: 8595 | K73: 0 | L73: 122
A74: 11 | B74: 8700 | C74: 21 | D74: 8712 | E74: 21 | F74: 8716 | K74: 0 | L74: 122
A75: 22 | B75: 8857 | C75: 23 | D75: 8863 | E75: 23 | F75: 8870 | K75: 0 | L75: 222
A76: 11 | B76: 8968 | C76: 21 | D76: 8986 | E76: 21 | F76: 8989 | K76: 0 | L76: 122
A77: 11 | B77: 9123 | C77: 21 | D77: 9143 | E77: 21 | F77: 9150 | K77: 0 | L77: 122
A78: 22 | B78: 9290 | C78: 23 | D78: 9295 | E78: 23 | F78: 9300 | K78: 0 | L78: 222
A79: 11 | B79: 9398 | C79: 21 | D79: 9408 | E79: 21 | F79: 9413 | K79: 0 | L79: 122
A80: 22 | B80: 9523 | C80: 23 | D80: 9534 | E80: 23 | F80: 9547 | K80: 0 | L80: 222
A81: 11 | B81: 9645 | C81: 21 | D81: 9653 | E81: 21 | F81: 9661 | K81: 0 | L81: 122
A82: 11 | B82: 9756 | C82: 12 | D82: 9759 | E82: 23 | F82: 9771 | K82: 0 | L82: 112
A83: 22 | B83: 9887 | C83: 23 | D83: 9892 | E83: 23 | F83: 9904 | K83: 0 | L83: 222
A84: 22 | B84: 10017 | C84: 23 | D84: 10020 | E84: 23 | F84: 10025 | K84: 0 | L84: 222
A85: 22 | B85: 10130 | C85: 23 | D85: 10132 | E85: 23 | F85: 10144 | K85: 0 | L85: 222
A86: 22 | B86: 10262 | C86: 23 | D86: 10264 | E86: 23 | F86: 10271 | K86: 0 | L86: 222
A87: 22 | B87: 10381 | C87: 23 | D87: 10385 | E87: 23 | F87: 10389 | K87: 0 | L87: 222
A88: 22 | B88: 10502 | C88: 23 | D88: 10507 | E88: 23 | F88: 10513 | K88: 0 | L88: 222
A89: 11 | B89: 10618 | C89: 21 | D89: 10624 | E89: 21 | F89: 10639 | K89: 0 | L89: 122
A90: 22 | B90: 10775 | C90: 23 | D90: 10778 | E90: 23 | F90: 10784 | K90: 0 | L90: 222
A91: 22 | B91: 10894 | C91: 23 | D91: 10899 | E91: 23 | F91: 10903 | K91: 0 | L91: 222
A92: 22 | B92: 11024 | C92: 23 | D92: 11030 | E92: 23 | F92: 11038 | K92: 0 | L92: 222
A93: 11 | B93: 11135 | C93: 21 | D93: 11145 | E93: 21 | F93: 11149 | K93: 0 | L93: 122
A94: 11 | B94: 11317 | C94: 21 | D94: 11328 | E94: 21 | F94: 11331 | K94: 0 | L94: 122
A95: 11 | B95: 11462 | C95: 21 | D95: 11479 | E95: 21 | F95: 11488 | K95: 0 | L95: 122
A96: 11 | B96: 11619 | C96: 21 | D96: 11632 | E96: 21 | F96: 11641 | K96: 0 | L96: 122
A97: 11 | B97: 11765 | C97: 21 | D97: 11775 | E97: 21 | F97: 11778 | K97: 0 | L97: 122
A98: 22 | B98: 11967 | C98: 23 | D98: 11975 | E98: 23 | F98: 11981 | K98: 0 | L98: 222
A99: 22 | B99: 12094 | C99: 23 | D99: 12100 | E99: 23 | F99: 12107 | K99: 0 | L99: 222
A100: 11 | B100: 12203 | C100: 12 | D100: 12215 | E100: 23 | F100: 12229 | K100: 0 | L100: 112
A101: 11 | B101: 12325 | C101: 21 | D101: 12337 | E101: 21 | F101: 12340 | K101: 0 | L101: 122
A102: 11 | B102: 12443 | C102: 21 | D102: 12460 | E102: 21 | F102: 12465 | K102: 0 | L102: 122
A103: 22 | B103: 12601 | C103: 23 | D103: 12604 | E103: 23 | F103: 12610 | K103: 0 | L103: 222
A104: 11 | B104: 12736 | C104: 21 | D104: 12747 | E104: 21 | F104: 12754 | K104: 0 | L104: 122
A105: 22 | B105: 12864 | C105: 23 | D105: 12876 | E105: 23 | F105: 12883 | K105: 0 | L105: 222
A106: 11 | B106: 12982 | C106: 21 | D106: 12992 | E106: 21 | F106: 12998 | K106: 0 | L106: 122
A107: 11 | B107: 13104 | C107: 21 | D107: 13114 | E107: 21 | F107: 13119 | K107: 0 | L107: 122
A108: 11 | B108: 13232 | C108: 21 | D108: 13247 | E108: 21 | F108: 13252 | K108: 0 | L108: 122
A109: 11 | B109: 13366 | C109: 12 | D109: 13368 | E109: 23 | F109: 13380 | K109: 0 | L109: 112
A110: 11 | B110: 13481 | C110: 21 | D110: 13490 | E110: 21 | F110: 13493 | K110: 0 | L110: 122
A111: 11 | B111: 13649 | C111: 12 | D111: 13653 | E111: 23 | F111: 13672 | K111: 0 | L111: 112
A112: 22 | B112: 13784 | C112: 23 | D112: 13787 | E112: 23 | F112: 13794 | K112: 0 | L112: 222
A113: 11 | B113: 13893 | C113: 21 | D113: 13907 | E113: 21 | F113: 13915 | K113: 0 | L113: 122
A114: 11 | B114: 14034 | C114: 21 | D114: 14046 | E114: 21 | F114: 14057 | K114: 0 | L114: 122
A115: 11 | B115: 14164 | C115: 21 | D115: 14179 | E115: 21 | F115: 14187 | K115: 0 | L115: 122
A116: 11 | B116: 14317 | C116: 21 | D116: 14329 | E116: 21 | F116: 14333 | K116: 0 | L116: 122
A117: 11 | B117: 14436 | C117: 21 | D117: 14447 | E117: 21 | F117: 14452 | K117: 0 | L117: 122
A118: 22 | B118: 14578 | C118: 23 | D118: 14581 | E118: 23 | F118: 14598 | K118: 0 | L118: 222
A119: 22 | B119: 14734 | C119: 23 | D119: 14745 | E119: 23 | F119: 14751 | K119: 0 | L119: 222
A120: 11 | B120: 14847 | C120: 21 | D120: 14865 | E120: 21 | F120: 14876 | K120: 0 | L120: 122
A121: 22 | B121: 15010 | C121: 23 | D121: 15014 | E121: 23 | F121: 15017 | K121: 0 | L121: 222
A122: 22 | B122: 15132 | C122: 23 | D122: 15139 | E122: 23 | F122: 15145 | K122: 0 | L122: 222
A123: 22 | B123: 15254 | C123: 23 | D123: 15257 | E123: 23 | F123: 15265 | K123: 0 | L123: 222
A124: 22 | B124: 15370 | C124: 23 | D124: 15380 | E124: 23 | F124: 15384 | K124: 0 | L124: 222
A125: 11 | B125: 15510 | C125: 21 | D125: 15527 | E125: 21 | F125: 15533 | K125: 0 | L125: 122
A126: 22 | B126: 15657 | C126: 23 | D126: 15662 | E126: 23 | F126: 15670 | K126: 0 | L126: 222
A127: 22 | B127: 15784 | C127: 23 | D127: 15791 | E127: 23 | F127: 15803 | K127: 0 | L127: 222
A128: 22 | B128: 15917 | C128: 23 | D128: 15923 | E128: 23 | F128: 15929 | K128: 0 | L128: 222
A129: 22 | B129: 16039 | C129: 23 | D129: 16048 | E129: 23 | F129: 16053 | K129: 0 | L129: 222
A130: 22 | B130: 16161 | C130: 23 | D130: 16163 | E130: 23 | F130: 16168 | K130: 0 | L130: 222
A131: 11 | B131: 16262 | C131: 21 | D131: 16272 | E131: 21 | F131: 16276 | K131: 0 | L131: 122
A132: 11 | B132: 16386 | C132: 21 | D132: 16401 | E132: 21 | F132: 16405 | K132: 1 | L132: 122

Sheet !LB21B03..Ta
A1: Report for:!LB21B03..Ta
A2: Date: | B2: <date>
A3: Hen: | B3: <hen> | F3: Correct Sequence | G3: =Start!J2 -> 122 | P3: Total Sequences in Data | Q3: =4994-COUNTBLANK(L7:L5000) -> 118 | V3: Total Sequences in Block Data | W3: =COUNTA(L7:L26) -> 20 | AA3: Total Sequences in Block Data | AB3: =COUNTA(L27:L45) -> 19 | AF3: Total Sequences in Block Data | AG3: =COUNTA(L46:L65) -> 20 | AK3: Total Sequences in Block Data | AL3: =COUNTA(L66:L85) -> 20 | AP3: Total Sequences in Block Data | AQ3: =COUNTA(L86:L104) -> 19 | AU3: Total Sequences in Block Data | AV3: =COUNTA(L105:L124) -> 20
P4: Total Sequences in Summary | Q4: =SUM(O7:O14) -> 118 | V4: Total Sequences in Block Summary | W4: =SUM(U7:U14) -> 20 | AA4: Total Sequences in Block Summary | AB4: =SUM(Z7:Z14) -> 19 | AF4: Total Sequences in Block Summary | AG4: =SUM(AE7:AE14) -> 20 | AK4: Total Sequences in Block Summary | AL4: =SUM(AJ7:AJ14) -> 20 | AP4: Total Sequences in Block Summary | AQ4: =SUM(AO7:AO14) -> 19 | AU4: Total Sequences in Block Summary | AV4: =SUM(AT7:AT14) -> 20
T5: Block 1 | Y5: Block 2 | AD5: Block 3 | AI5: Block 4 | AN5: Block 5 | AS5: Block 6
A6: Sequence Component 1 | B6: Time 1 | C6: Sequence Component 2 | D6: Time 2 | E6: Sequence Component 3 | F6: Time 3 | G6: Sequence Component 4 | H6: Time 4 | I6: Sequence Component 5 | J6: Time 5 | K6: Correct? 0=No 1=Yes | L6: Sequence | N6: Frequency | P6: Relative Frequency | Q6: Variability | T6: Frequency | V6: Relative Frequency | W6: Variability | Y6: Frequency | AA6: Relative Frequency | AB6: Variability | AD6: Frequency | AF6: Relative Frequency | AG6: Variability | AI6: Frequency | AK6: Relative Frequency | AL6: Variability | AN6: Frequency | AP6: Relative Frequency | AQ6: Variability | AS6: Frequency | AU6: Relative Frequency | AV6: Variability
A7: 22 | B7: 13 | C7: 23 | D7: 16 | E7: 23 | F7: 23 | K7: 0 | L7: 222 | N7: 111 | O7: =COUNTIF($L$7:$L$500,N7) -> 3 | P7: =O7/$Q$4 -> 0.02542372881 | Q7: =IF(P7=0,0,(P7*((LOG(P7))/LOG(2)))) -> -0.1346867936 | T7: =N7 -> 111 | U7: =COUNTIF(L7:L26,T7) -> 0 | V7: =U7/(W4-U10) -> 0 | W7: =IF(V7=0,0,(V7*((LOG(V7))/LOG(2)))) -> 0 | Y7: =N7 -> 111 | Z7: =COUNTIF(L27:L45,Y7) -> 0 | AA7: =Z7/(AB4-Z10) -> 0 | AB7: =IF(AA7=0,0,(AA7*((LOG(AA7))/LOG(2)))) -> 0 | AD7: =N7 -> 111 | AE7: =COUNTIF(L46:L65,AD7) -> 1 | AF7: =AE7/(AG4-AE10) -> 0.08333333333 | AG7: =IF(AF7=0,0,(AF7*((LOG(AF7))/LOG(2)))) -> -0.2987468751 | AI7: =N7 -> 111 | AJ7: =COUNTIF(L66:L85,AI7) -> 0 | AK7: =AJ7/(AL4-AJ10) -> 0 | AL7: =IF(AK7=0,0,(AK7*((LOG(AK7))/LOG(2)))) -> 0 | AN7: =N7 -> 111 | AO7: =COUNTIF(L86:L104,AN7) -> 1 | AP7: =AO7/(AQ4-AO10) -> 0.125 | AQ7: =IF(AP7=0,0,(AP7*((LOG(AP7))/LOG(2)))) -> -0.375 | AS7: =N7 -> 111 | AT7: =COUNTIF(L105:L124,AS7) -> 1 | AU7: =AT7/(AV4-AT10) -> 0.08333333333 | AV7: =IF(AU7=0,0,(AU7*((LOG(AU7))/LOG(2)))) -> -0.2987468751
A8: 22 | B8: 135 | C8: 23 | D8: 137 | E8: 23 | F8: 143 | K8: 0 | L8: 222 | N8: 112 | O8: =COUNTIF($L$7:$L$500,N8) -> 1 | P8: =O8/$Q$4 -> 0.008474576271 | Q8: =IF(P8=0,0,(P8*((LOG(P8))/LOG(2)))) -> -0.05832748347 | T8: =N8 -> 112 | U8: =COUNTIF(L7:L26,T8) -> 0 | V8: =U8/(W4-U10) -> 0 | W8: =IF(V8=0,0,(V8*((LOG(V8))/LOG(2)))) -> 0 | Y8: =N8 -> 112 | Z8: =COUNTIF(L27:L45,Y8) -> 0 | AA8: =Z8/(AB4-Z10) -> 0 | AB8: =IF(AA8=0,0,(AA8*((LOG(AA8))/LOG(2)))) -> 0 | AD8: =N8 -> 112 | AE8: =COUNTIF(L46:L65,AD8) -> 0 | AF8: =AE8/(AG4-AE10) -> 0 | AG8: =IF(AF8=0,0,(AF8*((LOG(AF8))/LOG(2)))) -> 0 | AI8: =N8 -> 112 | AJ8: =COUNTIF(L66:L85,AI8) -> 0 | AK8: =AJ8/(AL4-AJ10) -> 0 | AL8: =IF(AK8=0,0,(AK8*((LOG(AK8))/LOG(2)))) -> 0 | AN8: =N8 -> 112 | AO8: =COUNTIF(L86:L104,AN8) -> 1 | AP8: =AO8/(AQ4-AO10) -> 0.125 | AQ8: =IF(AP8=0,0,(AP8*((LOG(AP8))/LOG(2)))) -> -0.375 | AS8: =N8 -> 112 | AT8: =COUNTIF(L105:L124,AS8) -> 0 | AU8: =AT8/(AV4-AT10) -> 0 | AV8: =IF(AU8=0,0,(AU8*((LOG(AU8))/LOG(2)))) -> 0
A9: 22 | B9: 254 | C9: 23 | D9: 258 | E9: 23 | F9: 263 | K9: 0 | L9: 222 | N9: 121 | O9: =COUNTIF($L$7:$L$500,N9) -> 0 | P9: =O9/$Q$4 -> 0 | Q9: =IF(P9=0,0,(P9*((LOG(P9))/LOG(2)))) -> 0 | T9: =N9 -> 121 | U9: =COUNTIF(L7:L26,T9) -> 0 | V9: =U9/(W4-U10) -> 0 | W9: =IF(V9=0,0,(V9*((LOG(V9))/LOG(2)))) -> 0 | Y9: =N9 -> 121 | Z9: =COUNTIF(L27:L45,Y9) -> 0 | AA9: =Z9/(AB4-Z10) -> 0 | AB9: =IF(AA9=0,0,(AA9*((LOG(AA9))/LOG(2)))) -> 0 | AD9: =N9 -> 121 | AE9: =COUNTIF(L46:L65,AD9) -> 0 | AF9: =AE9/(AG4-AE10) -> 0 | AG9: =IF(AF9=0,0,(AF9*((LOG(AF9))/LOG(2)))) -> 0 | AI9: =N9 -> 121 | AJ9: =COUNTIF(L66:L85,AI9) -> 0 | AK9: =AJ9/(AL4-AJ10) -> 0 | AL9: =IF(AK9=0,0,(AK9*((LOG(AK9))/LOG(2)))) -> 0 | AN9: =N9 -> 121 | AO9: =COUNTIF(L86:L104,AN9) -> 0 | AP9: =AO9/(AQ4-AO10) -> 0 | AQ9: =IF(AP9=0,0,(AP9*((LOG(AP9))/LOG(2)))) -> 0 | AS9: =N9 -> 121 | AT9: =COUNTIF(L105:L124,AS9) -> 0 | AU9: =AT9/(AV4-AT10) -> 0 | AV9: =IF(AU9=0,0,(AU9*((LOG(AU9))/LOG(2)))) -> 0
A10: 22 | B10: 369 | C10: 23 | D10: 373 | E10: 23 | F10: 375 | K10: 0 | L10: 222 | N10: 122 | O10: =COUNTIF($L$7:$L$500,N10) -> 39 | P10: =O10/$Q$4 -> 0.3305084746 | Q10: =IF(P10=0,0,(P10*((LOG(P10))/LOG(2)))) -> -0.5279016304 | T10: =N10 -> 122 | U10: =COUNTIF(L7:L26,T10) -> 1 | Y10: =N10 -> 122 | Z10: =COUNTIF(L27:L45,Y10) -> 4 | AD10: =N10 -> 122 | AE10: =COUNTIF(L46:L65,AD10) -> 8 | AI10: =N10 -> 122 | AJ10: =COUNTIF(L66:L85,AI10) -> 7 | AN10: =N10 -> 122 | AO10: =COUNTIF(L86:L104,AN10) -> 11 | AS10: =N10 -> 122 | AT10: =COUNTIF(L105:L124,AS10) -> 8
A11: 22 | B11: 484 | C11: 23 | D11: 488 | E11: 23 | F11: 493 | K11: 0 | L11: 222 | N11: 211 | O11: =COUNTIF($L$7:$L$500,N11) -> 0 | P11: =O11/$Q$4 -> 0 | Q11: =IF(P11=0,0,(P11*((LOG(P11))/LOG(2)))) -> 0 | T11: =N11 -> 211 | U11: =COUNTIF(L7:L26,T11) -> 0 | V11: =U11/(W4-U10) -> 0 | W11: =IF(V11=0,0,(V11*((LOG(V11))/LOG(2)))) -> 0 | Y11: =N11 -> 211 | Z11: =COUNTIF(L27:L45,Y11) -> 0 | AA11: =Z11/(AB4-Z10) -> 0 | AB11: =IF(AA11=0,0,(AA11*((LOG(AA11))/LOG(2)))) -> 0 | AD11: =N11 -> 211 | AE11: =COUNTIF(L46:L65,AD11) -> 0 | AF11: =AE11/(AG4-AE10) -> 0 | AG11: =IF(AF11=0,0,(AF11*((LOG(AF11))/LOG(2)))) -> 0 | AI11: =N11 -> 211 | AJ11: =COUNTIF(L66:L85,AI11) -> 0 | AK11: =AJ11/(AL4-AJ10) -> 0 | AL11: =IF(AK11=0,0,(AK11*((LOG(AK11))/LOG(2)))) -> 0 | AN11: =N11 -> 211 | AO11: =COUNTIF(L86:L104,AN11) -> 0 | AP11: =AO11/(AQ4-AO10) -> 0 | AQ11: =IF(AP11=0,0,(AP11*((LOG(AP11))/LOG(2)))) -> 0 | AS11: =N11 -> 211 | AT11: =COUNTIF(L105:L124,AS11) -> 0 | AU11: =AT11/(AV4-AT10) -> 0 | AV11: =IF(AU11=0,0,(AU11*((LOG(AU11))/LOG(2)))) -> 0
A12: 22 | B12: 604 | C12: 23 | D12: 611 | E12: 23 | F12: 616 | K12: 0 | L12: 222 | N12: 212 | O12: =COUNTIF($L$7:$L$500,N12) -> 0 | P12: =O12/$Q$4 -> 0 | Q12: =IF(P12=0,0,(P12*((LOG(P12))/LOG(2)))) -> 0 | T12: =N12 -> 212 | U12: =COUNTIF(L7:L26,T12) -> 0 | V12: =U12/(W4-U10) -> 0 | W12: =IF(V12=0,0,(V12*((LOG(V12))/LOG(2)))) -> 0 | Y12: =N12 -> 212 | Z12: =COUNTIF(L27:L45,Y12) -> 0 | AA12: =Z12/(AB4-Z10) -> 0 | AB12: =IF(AA12=0,0,(AA12*((LOG(AA12))/LOG(2)))) -> 0 | AD12: =N12 -> 212 | AE12: =COUNTIF(L46:L65,AD12) -> 0 | AF12: =AE12/(AG4-AE10) -> 0 | AG12: =IF(AF12=0,0,(AF12*((LOG(AF12))/LOG(2)))) -> 0 | AI12: =N12 -> 212 | AJ12: =COUNTIF(L66:L85,AI12) -> 0 | AK12: =AJ12/(AL4-AJ10) -> 0 | AL12: =IF(AK12=0,0,(AK12*((LOG(AK12))/LOG(2)))) -> 0 | AN12: =N12 -> 212 | AO12: =COUNTIF(L86:L104,AN12) -> 0 | AP12: =AO12/(AQ4-AO10) -> 0 | AQ12: =IF(AP12=0,0,(AP12*((LOG(AP12))/LOG(2)))) -> 0 | AS12: =N12 -> 212 | AT12: =COUNTIF(L105:L124,AS12) -> 0 | AU12: =AT12/(AV4-AT10) -> 0 | AV12: =IF(AU12=0,0,(AU12*((LOG(AU12))/LOG(2)))) -> 0
A13: 22 | B13: 728 | C13: 23 | D13: 737 | E13: 23 | F13: 743 | K13: 0 | L13: 222 | N13: 221 | O13: =COUNTIF($L$7:$L$500,N13) -> 0 | P13: =O13/$Q$4 -> 0 | Q13: =IF(P13=0,0,(P13*((LOG(P13))/LOG(2)))) -> 0 | T13: =N13 -> 221 | U13: =COUNTIF(L7:L26,T13) -> 0 | V13: =U13/(W4-U10) -> 0 | W13: =IF(V13=0,0,(V13*((LOG(V13))/LOG(2)))) -> 0 | Y13: =N13 -> 221 | Z13: =COUNTIF(L27:L45,Y13) -> 0 | AA13: =Z13/(AB4-Z10) -> 0 | AB13: =IF(AA13=0,0,(AA13*((LOG(AA13))/LOG(2)))) -> 0 | AD13: =N13 -> 221 | AE13: =COUNTIF(L46:L65,AD13) -> 0 | AF13: =AE13/(AG4-AE10) -> 0 | AG13: =IF(AF13=0,0,(AF13*((LOG(AF13))/LOG(2)))) -> 0 | AI13: =N13 -> 221 | AJ13: =COUNTIF(L66:L85,AI13) -> 0 | AK13: =AJ13/(AL4-AJ10) -> 0 | AL13: =IF(AK13=0,0,(AK13*((LOG(AK13))/LOG(2)))) -> 0 | AN13: =N13 -> 221 | AO13: =COUNTIF(L86:L104,AN13) -> 0 | AP13: =AO13/(AQ4-AO10) -> 0 | AQ13: =IF(AP13=0,0,(AP13*((LOG(AP13))/LOG(2)))) -> 0 | AS13: =N13 -> 221 | AT13: =COUNTIF(L105:L124,AS13) -> 0 | AU13: =AT13/(AV4-AT10) -> 0 | AV13: =IF(AU13=0,0,(AU13*((LOG(AU13))/LOG(2)))) -> 0
A14: 22 | B14: 856 | C14: 23 | D14: 862 | E14: 23 | F14: 867 | K14: 0 | L14: 222 | N14: 222 | O14: =COUNTIF($L$7:$L$500,N14) -> 75 | P14: =O14/$Q$4 -> 0.6355932203 | Q14: =IF(P14=0,0,(P14*((LOG(P14))/LOG(2)))) -> -0.4155663298 | T14: =N14 -> 222 | U14: =COUNTIF(L7:L26,T14) -> 19 | V14: =U14/(W4-U10) -> 1 | W14: =IF(V14=0,0,(V14*((LOG(V14))/LOG(2)))) -> 0 | Y14: =N14 -> 222 | Z14: =COUNTIF(L27:L45,Y14) -> 15 | AA14: =Z14/(AB4-Z10) -> 1 | AB14: =IF(AA14=0,0,(AA14*((LOG(AA14))/LOG(2)))) -> 0 | AD14: =N14 -> 222 | AE14: =COUNTIF(L46:L65,AD14) -> 11 | AF14: =AE14/(AG4-AE10) -> 0.9166666667 | AG14: =IF(AF14=0,0,(AF14*((LOG(AF14))/LOG(2)))) -> -0.1150699752 | AI14: =N14 -> 222 | AJ14: =COUNTIF(L66:L85,AI14) -> 13 | AK14: =AJ14/(AL4-AJ10) -> 1 | AL14: =IF(AK14=0,0,(AK14*((LOG(AK14))/LOG(2)))) -> 0 | AN14: =N14 -> 222 | AO14: =COUNTIF(L86:L104,AN14) -> 6 | AP14: =AO14/(AQ4-AO10) -> 0.75 | AQ14: =IF(AP14=0,0,(AP14*((LOG(AP14))/LOG(2)))) -> -0.3112781245 | AS14: =N14 -> 222 | AT14: =COUNTIF(L105:L124,AS14) -> 11 | AU14: =AT14/(AV4-AT10) -> 0.9166666667 | AV14: =IF(AU14=0,0,(AU14*((LOG(AU14))/LOG(2)))) -> -0.1150699752
A15: 22 | B15: 971 | C15: 23 | D15: 975 | E15: 23 | F15: 989 | K15: 0 | L15: 222 | P15: =SUM(P7:P14) -> 1 | Q15: =-SUM(Q7:Q14) -> 1.136482237 | V15: =SUM(V7:V14) -> 1 | W15: =-SUM(W7:W14) -> 0 | AA15: =SUM(AA7:AA14) -> 1 | AB15: =-SUM(AB7:AB14) -> 0 | AF15: =SUM(AF7:AF14) -> 1 | AG15: =-SUM(AG7:AG14) -> 0.4138168503 | AK15: =SUM(AK7:AK14) -> 1 | AL15: =-SUM(AL7:AL14) -> 0 | AP15: =SUM(AP7:AP14) -> 1 | AQ15: =-SUM(AQ7:AQ14) -> 1.061278124 | AU15: =SUM(AU7:AU14) -> 1 | AV15: =-SUM(AV7:AV14) -> 0.4138168503
A16: 22 | B16: 1102 | C16: 23 | D16: 1107 | E16: 23 | F16: 1116 | K16: 0 | L16: 222 | P16: U= | Q16: =Q15/(LOG(Q4)/LOG(2)) -> 0.1651229374 | V16: U1= | W16: =W15/(LOG(W4)/LOG(2)) -> 0 | AA16: U2= | AB16: =AB15/(LOG(AB4)/LOG(2)) -> 0 | AF16: U3= | AG16: =AG15/(LOG(AG4)/LOG(2)) -> 0.0957482034 | AK16: U4= | AL16: =AL15/(LOG(AL4)/LOG(2)) -> 0 | AP16: U5= | AQ16: =AQ15/(LOG(AQ4)/LOG(2)) -> 0.2498343301 | AU16: U6= | AV16: =AV15/(LOG(AV4)/LOG(2)) -> 0.0957482034
A17: 22 | B17: 1229 | C17: 23 | D17: 1232 | E17: 23 | F17: 1236 | K17: 0 | L17: 222
A18: 22 | B18: 1346 | C18: 23 | D18: 1349 | E18: 23 | F18: 1356 | K18: 0 | L18: 222
A19: 22 | B19: 1475 | C19: 23 | D19: 1482 | E19: 23 | F19: 1487 | K19: 0 | L19: 222 | N19: Total Target Seq
A20: 22 | B20: 1607 | C20: 23 | D20: 1611 | E20: 23 | F20: 1615 | K20: 0 | L20: 222 | N20: =COUNTIF(L7:L124,G3) -> 39 | P20: 20 | Q20: 19 | R20: 20 | S20: 20 | T20: 19 | U20: 20
A21: 22 | B21: 1729 | C21: 23 | D21: 1733 | E21: 23 | F21: 1738 | K21: 0 | L21: 222 | P21: % of reinforcement given in 6 equal intervals based on number of trials
A22: 22 | B22: 1856 | C22: 23 | D22: 1859 | E22: 23 | F22: 1864 | K22: 0 | L22: 222 | P22: %_1 | Q22: %_2 | R22: %_3 | S22: %_4 | T22: %_5 | U22: %_6
A23: 22 | B23: 1978 | C23: 23 | D23: 1981 | E23: 23 | F23: 1986 | K23: 0 | L23: 222 | O23: target sequence | P23: =$G$3 -> 122 | Q23: =$G$3 -> 122 | R23: =$G$3 -> 122 | S23: =$G$3 -> 122 | T23: =$G$3 -> 122 | U23: =$G$3 -> 122
A24: 22 | B24: 2112 | C24: 23 | D24: 2115 | E24: 23 | F24: 2120 | K24: 0 | L24: 222 | O24: total reinforcement | P24: =U10 -> 1 | Q24: =Z10 -> 4 | R24: =AE10 -> 8 | S24: =AJ10 -> 7 | T24: =AO10 -> 11 | U24: =AT10 -> 8
A25: 11 | B25: 2218 | C25: 21 | D25: 2240 | E25: 21 | F25: 2251 | K25: 0 | L25: 122 | O25: % target
A26: 22 | B26: 2432 | C26: 23 | D26: 2440 | E26: 23 | F26: 2443 | K26: 0 | L26: 222 | O26: CCRF
A27: 22 | B27: 2554 | C27: 23 | D27: 2557 | E27: 23 | F27: 2562 | K27: 0 | L27: 222 | O27: % CCRf
A28: 11 | B28: 2660 | C28: 21 | D28: 2671 | E28: 21 | F28: 2675 | K28: 0 | L28: 122 | O28: average response rate | P28: =F26/P20 -> 122.15 | Q28: =(F45-F26)/Q20 -> 133.8947368 | R28: =(F65-F45)/R20 -> 136.1 | S28: =(F85-F65)/S20 -> 140 | T28: =(F104-F85)/T20 -> 141.1578947 | U28: =(F124-F104)/U20 -> 140.4
A29: 22 | B29: 2806 | C29: 23 | D29: 2811 | E29: 23 | F29: 2816 | K29: 0 | L29: 222
A30: 22 | B30: 2923 | C30: 23 | D30: 2926 | E30: 23 | F30: 2929 | K30: 0 | L30: 222
A31: 22 | B31: 3040 | C31: 23 | D31: 3044 | E31: 23 | F31: 3050 | K31: 0 | L31: 222
A32: 22 | B32: 3159 | C32: 23 | D32: 3167 | E32: 23 | F32: 3172 | K32: 0 | L32: 222
A33: 22 | B33: 3297 | C33: 23 | D33: 3305 | E33: 23 | F33: 3313 | K33: 0 | L33: 222
A34: 22 | B34: 3421 | C34: 23 | D34: 3424 | E34: 23 | F34: 3430 | K34: 0 | L34: 222
A35: 22 | B35: 3540 | C35: 23 | D35: 3544 | E35: 23 | F35: 3552 | K35: 0 | L35: 222
A36: 22 | B36: 3681 | C36: 23 | D36: 3684 | E36: 23 | F36: 3689 | K36: 0 | L36: 222
A37: 22 | B37: 3797 | C37: 23 | D37: 3800 | E37: 23 | F37: 3812 | K37: 0 | L37: 222
A38: 22 | B38: 3932 | C38: 23 | D38: 3935 | E38: 23 | F38: 3941 | K38: 0 | L38: 222
A39: 22 | B39: 4052 | C39: 23 | D39: 4069 | E39: 23 | F39: 4075 | K39: 0 | L39: 222
A40: 11 | B40: 4173 | C40: 21 | D40: 4189 | E40: 21 | F40: 4193 | K40: 0 | L40: 122
A41: 22 | B41: 4336 | C41: 23 | D41: 4339 | E41: 23 | F41: 4344 | K41: 0 | L41: 222
A42: 22 | B42: 4487 | C42: 23 | D42: 4489 | E42: 23 | F42: 4493 | K42: 0 | L42: 222
A43: 11 | B43: 4590 | C43: 21 | D43: 4601 | E43: 21 | F43: 4604 | K43: 0 | L43: 122
A44: 11 | B44: 4819 | C44: 21 | D44: 4830 | E44: 21 | F44: 4833 | K44: 0 | L44: 122
A45: 22 | B45: 4979 | C45: 23 | D45: 4981 | E45: 23 | F45: 4987 | K45: 0 | L45: 222
A46: 22 | B46: 5125 | C46: 23 | D46: 5130 | E46: 23 | F46: 5136 | K46: 0 | L46: 222
A47: 11 | B47: 5235 | C47: 21 | D47: 5254 | E47: 21 | F47: 5260 | K47: 0 | L47: 122
A48: 22 | B48: 5393 | C48: 23 | D48: 5398 | E48: 23 | F48: 5413 | K48: 0 | L48: 222
A49: 11 | B49: 5513 | C49: 21 | D49: 5524 | E49: 21 | F49: 5532 | K49: 0 | L49: 122
A50: 22 | B50: 5676 | C50: 23 | D50: 5680 | E50: 23 | F50: 5686 | K50: 0 | L50: 222
A51: 22 | B51: 5792 | C51: 23 | D51: 5803 | E51: 23 | F51: 5808 | K51: 0 | L51: 222
A52: 11 | B52: 5905 | C52: 21 | D52: 5918 | E52: 21 | F52: 5921 | K52: 0 | L52: 122
A53: 22 | B53: 6090 | C53: 23 | D53: 6093 | E53: 23 | F53: 6100 | K53: 0 | L53: 222
A54: 11 | B54: 6197 | C54: 21 | D54: 6207 | E54: 21 | F54: 6210 | K54: 0 | L54: 122
A55: 22 | B55: 6319 | C55: 23 | D55: 6328 | E55: 23 | F55: 6337 | K55: 0 | L55: 222
A56: 22 | B56: 6443 | C56: 23 | D56: 6446 | E56: 23 | F56: 6454 | K56: 0 | L56: 222
A57: 11 | B57: 6551 | C57: 12 | D57: 6564 | E57: 14 | F57: 6573 | K57: 0 | L57: 111
A58: 11 | B58: 6717 | C58: 21 | D58: 6728 | E58: 21 | F58: 6732 | K58: 0 | L58: 122
A59: 11 | B59: 6886 | C59: 21 | D59: 6900 | E59: 21 | F59: 6907 | K59: 0 | L59: 122
A60: 22 | B60: 7059 | C60: 23 | D60: 7063 | E60: 23 | F60: 7067 | K60: 0 | L60: 222
A61: 22 | B61: 7180 | C61: 23 | D61: 7184 | E61: 23 | F61: 7199 | K61: 0 | L61: 222
A62: 11 | B62: 7307 | C62: 21 | D62: 7317 | E62: 21 | F62: 7320 | K62: 0 | L62: 122
A63: 22 | B63: 7468 | C63: 23 | D63: 7471 | E63: 23 | F63: 7476 | K63: 0 | L63: 222
A64: 11 | B64: 7572 | C64: 21 | D64: 7584 | E64: 21 | F64: 7592 | K64: 0 | L64: 122
A65: 22 | B65: 7700 | C65: 23 | D65: 7703 | E65: 23 | F65: 7709 | K65: 0 | L65: 222
A66: 11 | B66: 7806 | C66: 21 | D66: 7817 | E66: 21 | F66: 7820 | K66: 0 | L66: 122
A67: 22 | B67: 7951 | C67: 23 | D67: 7958 | E67: 23 | F67: 7963 | K67: 0 | L67: 222
A68: 22 | B68: 8072 | C68: 23 | D68: 8075 | E68: 23 | F68: 8079 | K68: 0 | L68: 222
A69: 22 | B69: 8196 | C69: 23 | D69: 8201 | E69: 23 | F69: 8207 | K69: 0 | L69: 222
A70: 11 | B70: 8305 | C70: 21 | D70: 8321 | E70: 21 | F70: 8325 | K70: 0 | L70: 122
A71: 22 | B71: 8493 | C71: 23 | D71: 8498 | E71: 23 | F71: 8504 | K71: 0 | L71: 222
A72: 22 | B72: 8615 | C72: 23 | D72: 8619 | E72: 23 | F72: 8626 | K72: 0 | L72: 222
A73: 11 | B73: 8724 | C73: 21 | D73: 8736 | E73: 21 | F73: 8739 | K73: 0 | L73: 122
A74: 22 | B74: 8907 | C74: 23 | D74: 8912 | E74: 23 | F74: 8918 | K74: 0 | L74: 222
A75: 11 | B75: 9028 | C75: 21 | D75: 9039 | E75: 21 | F75: 9044 | K75: 0 | L75: 122
A76: 22 | B76: 9212 | C76: 23 | D76: 9217 | E76: 23 | F76: 9228 | K76: 0 | L76: 222
A77: 22 | B77: 9337 | C77: 23 | D77: 9340 | E77: 23 | F77: 9349 | K77: 0 | L77: 222
A78: 11 | B78: 9444 | C78: 21 | D78: 9456 | E78: 21 | F78: 9459 | K78: 0 | L78: 122
A79: 22 | B79: 9598 | C79: 23 | D79: 9602 | E79: 23 | F79: 9630 | K79: 0 | L79: 222
A80: 11 | B80: 9728 | C80: 21 | D80: 9740 | E80: 21 | F80: 9744 | K80: 0 | L80: 122
A81: 11 | B81: 9974 | C81: 21 | D81: 9985 | E81: 21 | F81: 9988 | K81: 0 | L81: 122
A82: 22 | B82: 10119 | C82: 23 | D82: 10126 | E82: 23 | F82: 10135 | K82: 0 | L82: 222
A83: 22 | B83: 10253 | C83: 23 | D83: 10257 | E83: 23 | F83: 10266 | K83: 0 | L83: 222
A84: 22 | B84: 10380 | C84: 23 | D84: 10383 | E84: 23 | F84: 10392 | K84: 0 | L84: 222
A85: 22 | B85: 10494 | C85: 23 | D85: 10503 | E85: 23 | F85: 10509 | K85: 0 | L85: 222
A86: 22 | B86: 10624 | C86: 23 | D86: 10628 | E86: 23 | F86: 10634 | K86: 0 | L86: 222
A87: 11 | B87: 10731 | C87: 21 | D87: 10742 | E87: 21 | F87: 10744 | K87: 0 | L87: 122
A88: 22 | B88: 10859 | C88: 23 | D88: 10867 | E88: 23 | F88: 10874 | K88: 0 | L88: 222
A89: 22 | B89: 11004 | C89: 23 | D89: 11008 | E89: 23 | F89: 11015 | K89: 0 | L89: 222
A90: 11 | B90: 11114 | C90: 21 | D90: 11127 | E90: 21 | F90: 11131 | K90: 0 | L90: 122
A91: 22 | B91: 11351 | C91: 23 | D91: 11354 | E91: 23 | F91: 11365 | K91: 0 | L91: 222
A92: 11 | B92: 11467 | C92: 12 | D92: 11505 | E92: 14 | F92: 11513 | K92: 0 | L92: 111
A93: 11 | B93: 11640 | C93: 21 | D93: 11652 | E93: 21 | F93: 11655 | K93: 0 | L93: 122
A94: 11 | B94: 11772 | C94: 21 | D94: 11784 | E94: 21 | F94: 11789 | K94: 0 | L94: 122
A95: 22 | B95: 11939 | C95: 23 | D95: 11942 | E95: 23 | F95: 11958 | K95: 0 | L95: 222
A96: 11 | B96: 12054 | C96: 12 | D96: 12056 | E96: 23 | F96: 12067 | K96: 0 | L96: 112
A97: 22 | B97: 12175 | C97: 23 | D97: 12178 | E97: 23 | F97: 12183 | K97: 0 | L97: 222
A98: 11 | B98: 12281 | C98: 21 | D98: 12293 | E98: 21 | F98: 12297 | K98: 0 | L98: 122
A99: 11 | B99: 12402 | C99: 21 | D99: 12413 | E99: 21 | F99: 12417 | K99: 0 | L99: 122
A100: 11 | B100: 12514 | C100: 21 | D100: 12524 | E100: 21 | F100: 12527 | K100: 0 | L100: 122
A101: 11 | B101: 12641 | C101: 21 | D101: 12653 | E101: 21 | F101: 12657 | K101: 0 | L101: 122
A102: 11 | B102: 12791 | C102: 21 | D102: 12809 | E102: 21 | F102: 12816 | K102: 0 | L102: 122
A103: 11 | B103: 12975 | C103: 21 | D103: 12985 | E103: 21 | F103: 12988 | K103: 0 | L103: 122
A104: 11 | B104: 13168 | C104: 21 | D104: 13181 | E104: 21 | F104: 13191 | K104: 0 | L104: 122
A105: 22 | B105: 13345 | C105: 23 | D105: 13348 | E105: 23 | F105: 13354 | K105: 0 | L105: 222
A106: 11 | B106: 13455 | C106: 21 | D106: 13466 | E106: 21 | F106: 13469 | K106: 0 | L106: 122
A107: 22 | B107: 13626 | C107: 23 | D107: 13630 | E107: 23 | F107: 13637 | K107: 0 | L107: 222
A108: 22 | B108: 13737 | C108: 23 | D108: 13742 | E108: 23 | F108: 13748 | K108: 0 | L108: 222
A109: 22 | B109: 13863 | C109: 23 | D109: 13867 | E109: 23 | F109: 13875 | K109: 0 | L109: 222
A110: 11 | B110: 13995 | C110: 12 | D110: 14001 | E110: 14 | F110: 14006 | K110: 0 | L110: 111
A111: 11 | B111: 14104 | C111: 21 | D111: 14117 | E111: 21 | F111: 14121 | K111: 0 | L111: 122
A112: 11 | B112: 14241 | C112: 21 | D112: 14250 | E112: 21 | F112: 14256 | K112: 0 | L112: 122
A113: 11 | B113: 14446 | C113: 21 | D113: 14458 | E113: 21 | F113: 14461 | K113: 0 | L113: 122
A114: 22 | B114: 14605 | C114: 23 | D114: 14609 | E114: 23 | F114: 14620 | K114: 0 | L114: 222
A115: 11 | B115: 14728 | C115: 21 | D115: 14739 | E115: 21 | F115: 14743 | K115: 0 | L115: 122
A116: 22 | B116: 14871 | C116: 23 | D116: 14880 | E116: 23 | F116: 14886 | K116: 0 | L116: 222
A117: 22 | B117: 15028 | C117: 23 | D117: 15032 | E117: 23 | F117: 15039 | K117: 0 | L117: 222
A118: 22 | B118: 15148 | C118: 23 | D118: 15155 | E118: 23 | F118: 15162 | K118: 0 | L118: 222
A119: 22 | B119: 15268 | C119: 23 | D119: 15279 | E119: 23 | F119: 15286 | K119: 0 | L119: 222
A120: 22 | B120: 15395 | C120: 23 | D120: 15403 | E120: 23 | F120: 15416 | K120: 0 | L120: 222
A121: 22 | B121: 15522 | C121: 23 | D121: 15528 | E121: 23 | F121: 15532 | K121: 0 | L121: 222
A122: 11 | B122: 15632 | C122: 21 | D122: 15653 | E122: 21 | F122: 15659 | K122: 0 | L122: 122
A123: 11 | B123: 15839 | C123: 21 | D123: 15854 | E123: 21 | F123: 15863 | K123: 0 | L123: 122
A124: 11 | B124: 15977 | C124: 21 | D124: 15995 | E124: 21 | F124: 15999 | K124: 1 | L124: 122

Sheet !LB22A43..Ta
A1: Report for:!LB22A43..Ta
A2: Date: | B2: <date>
A3: Hen: | B3: <hen> | F3: Correct Sequence | G3: =Start!J2 -> 122 | P3: Total Sequences in Data | Q3: =4994-COUNTBLANK(L7:L5000) -> 86 | V3: Total Sequences in Block Data | W3: =COUNTA(L7:L20) -> 14 | AA3: Total Sequences in Block Data | AB3: =COUNTA(L21:L35) -> 15 | AF3: Total Sequences in Block Data | AG3: =COUNTA(L36:L49) -> 14 | AK3: Total Sequences in Block Data | AL3: =COUNTA(L50:L63) -> 14 | AP3: Total Sequences in Block Data | AQ3: =COUNTA(L64:L78) -> 15 | AU3: Total Sequences in Block Data | AV3: =COUNTA(L79:L92) -> 14
P4: Total Sequences in Summary | Q4: =SUM(O7:O14) -> 86 | V4: Total Sequences in Block Summary | W4: =SUM(U7:U14) -> 14 | AA4: Total Sequences in Block Summary | AB4: =SUM(Z7:Z14) -> 15 | AF4: Total Sequences in Block Summary | AG4: =SUM(AE7:AE14) -> 14 | AK4: Total Sequences in Block Summary | AL4: =SUM(AJ7:AJ14) -> 14 | AP4: Total Sequences in Block Summary | AQ4: =SUM(AO7:AO14) -> 15 | AU4: Total Sequences in Block Summary | AV4: =SUM(AT7:AT14) -> 14
T5: Block 1 | Y5: Block 2 | AD5: Block 3 | AI5: Block 4 | AN5: Block 5 | AS5: Block 6
A6: Sequence Component 1 | B6: Time 1 | C6: Sequence Component 2 | D6: Time 2 | E6: Sequence Component 3 | F6: Time 3 | G6: Sequence Component 4 | H6: Time 4 | I6: Sequence Component 5 | J6: Time 5 | K6: Correct? 0=No 1=Yes | L6: Sequence | N6: Frequency | P6: Relative Frequency | Q6: Variability | T6: Frequency | V6: Relative Frequency | W6: Variability | Y6: Frequency | AA6: Relative Frequency | AB6: Variability | AD6: Frequency | AF6: Relative Frequency | AG6: Variability | AI6: Frequency | AK6: Relative Frequency | AL6: Variability | AN6: Frequency | AP6: Relative Frequency | AQ6: Variability | AS6: Frequency | AU6: Relative Frequency | AV6: Variability
A7: 22 | B7: 41 | C7: 23 | D7: 48 | E7: 23 | F7: 56 | K7: 0 | L7: 222 | N7: 111 | O7: =COUNTIF($L$7:$L$500,N7) -> 1 | P7: =O7/$Q$4 -> 0.01162790698 | Q7: =IF(P7=0,0,(P7*((LOG(P7))/LOG(2)))) -> -0.07472400878 | T7: =N7 -> 111 | U7: =COUNTIF(L7:L20,T7) -> 0 | V7: =U7/(W4-U10) -> 0 | W7: =IF(V7=0,0,(V7*((LOG(V7))/LOG(2)))) -> 0 | Y7: =N7 -> 111 | Z7: =COUNTIF(L21:L35,Y7) -> 0 | AA7: =Z7/(AB4-Z10) -> 0 | AB7: =IF(AA7=0,0,(AA7*((LOG(AA7))/LOG(2)))) -> 0 | AD7: =N7 -> 111 | AE7: =COUNTIF(L36:L49,AD7) -> 0 | AF7: =AE7/(AG4-AE10) -> 0 | AG7: =IF(AF7=0,0,(AF7*((LOG(AF7))/LOG(2)))) -> 0 | AI7: =N7 -> 111 | AJ7: =COUNTIF(L50:L63,AI7) -> 0 | AK7: =AJ7/(AL4-AJ10) -> 0 | AL7: =IF(AK7=0,0,(AK7*((LOG(AK7))/LOG(2)))) -> 0 | AN7: =N7 -> 111 | AO7: =COUNTIF(L64:L78,AN7) -> 0 | AP7: =AO7/(AQ4-AO10) -> 0 | AQ7: =IF(AP7=0,0,(AP7*((LOG(AP7))/LOG(2)))) -> 0 | AS7: =N7 -> 111 | AT7: =COUNTIF(L79:L92,AS7) -> 1 | AU7: =AT7/(AV4-AT10) -> 0.1666666667 | AV7: =IF(AU7=0,0,(AU7*((LOG(AU7))/LOG(2)))) -> -0.4308270835
A8: 22 | B8: 168 | C8: 23 | D8: 171 | E8: 23 | F8: 176 | K8: 0 | L8: 222 | N8: 112 | O8: =COUNTIF($L$7:$L$500,N8) -> 4 | P8: =O8/$Q$4 -> 0.04651162791 | Q8: =IF(P8=0,0,(P8*((LOG(P8))/LOG(2)))) -> -0.2058727793 | T8: =N8 -> 112 | U8: =COUNTIF(L7:L20,T8) -> 0 | V8: =U8/(W4-U10) -> 0 | W8: =IF(V8=0,0,(V8*((LOG(V8))/LOG(2)))) -> 0 | Y8: =N8 -> 112 | Z8: =COUNTIF(L21:L35,Y8) -> 1 | AA8: =Z8/(AB4-Z10) -> 0.1111111111 | AB8: =IF(AA8=0,0,(AA8*((LOG(AA8))/LOG(2)))) -> -0.352213889 | AD8: =N8 -> 112 | AE8: =COUNTIF(L36:L49,AD8) -> 0 | AF8: =AE8/(AG4-AE10) -> 0 | AG8: =IF(AF8=0,0,(AF8*((LOG(AF8))/LOG(2)))) -> 0 | AI8: =N8 -> 112 | AJ8: =COUNTIF(L50:L63,AI8) -> 0 | AK8: =AJ8/(AL4-AJ10) -> 0 | AL8: =IF(AK8=0,0,(AK8*((LOG(AK8))/LOG(2)))) -> 0 | AN8: =N8 -> 112 | AO8: =COUNTIF(L64:L78,AN8) -> 0 | AP8: =AO8/(AQ4-AO10) -> 0 | AQ8: =IF(AP8=0,0,(AP8*((LOG(AP8))/LOG(2)))) -> 0 | AS8: =N8 -> 112 | AT8: =COUNTIF(L79:L92,AS8) -> 3 | AU8: =AT8/(AV4-AT10) -> 0.5 | AV8: =IF(AU8=0,0,(AU8*((LOG(AU8))/LOG(2)))) -> -0.5
A9: 22 | B9: 288 | C9: 23 | D9: 291 | E9: 23 | F9: 297 | K9: 0 | L9: 222 | N9: 121 | O9: =COUNTIF($L$7:$L$500,N9) -> 0 | P9: =O9/$Q$4 -> 0 | Q9: =IF(P9=0,0,(P9*((LOG(P9))/LOG(2)))) -> 0 | T9: =N9 -> 121 | U9: =COUNTIF(L7:L20,T9) -> 0 | V9: =U9/(W4-U10) -> 0 | W9: =IF(V9=0,0,(V9*((LOG(V9))/LOG(2)))) -> 0 | Y9: =N9 -> 121 | Z9: =COUNTIF(L21:L35,Y9) -> 0 | AA9: =Z9/(AB4-Z10) -> 0 | AB9: =IF(AA9=0,0,(AA9*((LOG(AA9))/LOG(2)))) -> 0 | AD9: =N9 -> 121 | AE9: =COUNTIF(L36:L49,AD9) -> 0 | AF9: =AE9/(AG4-AE10) -> 0 | AG9: =IF(AF9=0,0,(AF9*((LOG(AF9))/LOG(2)))) -> 0 | AI9: =N9 -> 121 | AJ9: =COUNTIF(L50:L63,AI9) -> 0 | AK9: =AJ9/(AL4-AJ10) -> 0 | AL9: =IF(AK9=0,0,(AK9*((LOG(AK9))/LOG(2)))) -> 0 | AN9: =N9 -> 121 | AO9: =COUNTIF(L64:L78,AN9) -> 0 | AP9: =AO9/(AQ4-AO10) -> 0 | AQ9: =IF(AP9=0,0,(AP9*((LOG(AP9))/LOG(2)))) -> 0 | AS9: =N9 -> 121 | AT9: =COUNTIF(L79:L92,AS9) -> 0 | AU9: =AT9/(AV4-AT10) -> 0 | AV9: =IF(AU9=0,0,(AU9*((LOG(AU9))/LOG(2)))) -> 0
A10: 22 | B10: 419 | C10: 23 | D10: 423 | E10: 23 | F10: 429 | K10: 0 | L10: 222 | N10: 122 | O10: =COUNTIF($L$7:$L$500,N10) -> 38 | P10: =O10/$Q$4 -> 0.4418604651 | Q10: =IF(P10=0,0,(P10*((LOG(P10))/LOG(2)))) -> -0.5206606415 | T10: =N10 -> 122 | U10: =COUNTIF(L7:L20,T10) -> 0 | Y10: =N10 -> 122 | Z10: =COUNTIF(L21:L35,Y10) -> 6 | AD10: =N10 -> 122 | AE10: =COUNTIF(L36:L49,AD10) -> 7 | AI10: =N10 -> 122 | AJ10: =COUNTIF(L50:L63,AI10) -> 6 | AN10: =N10 -> 122 | AO10: =COUNTIF(L64:L78,AN10) -> 11 | AS10: =N10 -> 122 | AT10: =COUNTIF(L79:L92,AS10) -> 8
A11: 22 | B11: 621 | C11: 23 | D11: 624 | E11: 23 | F11: 633 | K11: 0 | L11: 222 | N11: 211 | O11: =COUNTIF($L$7:$L$500,N11) -> 0 | P11: =O11/$Q$4 -> 0 | Q11: =IF(P11=0,0,(P11*((LOG(P11))/LOG(2)))) -> 0 | T11: =N11 -> 211 | U11: =COUNTIF(L7:L20,T11) -> 0 | V11: =U11/(W4-U10) -> 0 | W11: =IF(V11=0,0,(V11*((LOG(V11))/LOG(2)))) -> 0 | Y11: =N11 -> 211 | Z11: =COUNTIF(L21:L35,Y11) -> 0 | AA11: =Z11/(AB4-Z10) -> 0 | AB11: =IF(AA11=0,0,(AA11*((LOG(AA11))/LOG(2)))) -> 0 | AD11: =N11 -> 211 | AE11: =COUNTIF(L36:L49,AD11) -> 0 | AF11: =AE11/(AG4-AE10) -> 0 | AG11: =IF(AF11=0,0,(AF11*((LOG(AF11))/LOG(2)))) -> 0 | AI11: =N11 -> 211 | AJ11: =COUNTIF(L50:L63,AI11) -> 0 | AK11: =AJ11/(AL4-AJ10) -> 0 | AL11: =IF(AK11=0,0,(AK11*((LOG(AK11))/LOG(2)))) -> 0 | AN11: =N11 -> 211 | AO11: =COUNTIF(L64:L78,AN11) -> 0 | AP11: =AO11/(AQ4-AO10) -> 0 | AQ11: =IF(AP11=0,0,(AP11*((LOG(AP11))/LOG(2)))) -> 0 | AS11: =N11 -> 211 | AT11: =COUNTIF(L79:L92,AS11) -> 0 | AU11: =AT11/(AV4-AT10) -> 0 | AV11: =IF(AU11=0,0,(AU11*((LOG(AU11))/LOG(2)))) -> 0
A12: 22 | B12: 757 | C12: 23 | D12: 767 | E12: 23 | F12: 774 | K12: 0 | L12: 222 | N12: 212 | O12: =COUNTIF($L$7:$L$500,N12) -> 0 | P12: =O12/$Q$4 -> 0 | Q12: =IF(P12=0,0,(P12*((LOG(P12))/LOG(2)))) -> 0 | T12: =N12 -> 212 | U12: =COUNTIF(L7:L20,T12) -> 0 | V12: =U12/(W4-U10) -> 0 | W12: =IF(V12=0,0,(V12*((LOG(V12))/LOG(2)))) -> 0 | Y12: =N12 -> 212 | Z12: =COUNTIF(L21:L35,Y12) -> 0 | AA12: =Z12/(AB4-Z10) -> 0 | AB12: =IF(AA12=0,0,(AA12*((LOG(AA12))/LOG(2)))) -> 0 | AD12: =N12 -> 212 | AE12: =COUNTIF(L36:L49,AD12) -> 0 | AF12: =AE12/(AG4-AE10) -> 0 | AG12: =IF(AF12=0,0,(AF12*((LOG(AF12))/LOG(2)))) -> 0 | AI12: =N12 -> 212 | AJ12: =COUNTIF(L50:L63,AI12) -> 0 | AK12: =AJ12/(AL4-AJ10) -> 0 | AL12: =IF(AK12=0,0,(AK12*((LOG(AK12))/LOG(2)))) -> 0 | AN12: =N12 -> 212 | AO12: =COUNTIF(L64:L78,AN12) -> 0 | AP12: =AO12/(AQ4-AO10) -> 0 | AQ12: =IF(AP12=0,0,(AP12*((LOG(AP12))/LOG(2)))) -> 0 | AS12: =N12 -> 212 | AT12: =COUNTIF(L79:L92,AS12) -> 0 | AU12: =AT12/(AV4-AT10) -> 0 | AV12: =IF(AU12=0,0,(AU12*((LOG(AU12))/LOG(2)))) -> 0
A13: 22 | B13: 894 | C13: 23 | D13: 897 | E13: 23 | F13: 900 | K13: 0 | L13: 222 | N13: 221 | O13: =COUNTIF($L$7:$L$500,N13) -> 0 | P13: =O13/$Q$4 -> 0 | Q13: =IF(P13=0,0,(P13*((LOG(P13))/LOG(2)))) -> 0 | T13: =N13 -> 221 | U13: =COUNTIF(L7:L20,T13) -> 0 | V13: =U13/(W4-U10) -> 0 | W13: =IF(V13=0,0,(V13*((LOG(V13))/LOG(2)))) -> 0 | Y13: =N13 -> 221 | Z13: =COUNTIF(L21:L35,Y13) -> 0 | AA13: =Z13/(AB4-Z10) -> 0 | AB13: =IF(AA13=0,0,(AA13*((LOG(AA13))/LOG(2)))) -> 0 | AD13: =N13 -> 221 | AE13: =COUNTIF(L36:L49,AD13) -> 0 | AF13: =AE13/(AG4-AE10) -> 0 | AG13: =IF(AF13=0,0,(AF13*((LOG(AF13))/LOG(2)))) -> 0 | AI13: =N13 -> 221 | AJ13: =COUNTIF(L50:L63,AI13) -> 0 | AK13: =AJ13/(AL4-AJ10) -> 0 | AL13: =IF(AK13=0,0,(AK13*((LOG(AK13))/LOG(2)))) -> 0 | AN13: =N13 -> 221 | AO13: =COUNTIF(L64:L78,AN13) -> 0 | AP13: =AO13/(AQ4-AO10) -> 0 | AQ13: =IF(AP13=0,0,(AP13*((LOG(AP13))/LOG(2)))) -> 0 | AS13: =N13 -> 221 | AT13: =COUNTIF(L79:L92,AS13) -> 0 | AU13: =AT13/(AV4-AT10) -> 0 | AV13: =IF(AU13=0,0,(AU13*((LOG(AU13))/LOG(2)))) -> 0
A14: 22 | B14: 1007 | C14: 23 | D14: 1011 | E14: 23 | F14: 1015 | K14: 0 | L14: 222 | N14: 222 | O14: =COUNTIF($L$7:$L$500,N14) -> 43 | P14: =O14/$Q$4 -> 0.5 | Q14: =IF(P14=0,0,(P14*((LOG(P14))/LOG(2)))) -> -0.5 | T14: =N14 -> 222 | U14: =COUNTIF(L7:L20,T14) -> 14 | V14: =U14/(W4-U10) -> 1 | W14: =IF(V14=0,0,(V14*((LOG(V14))/LOG(2)))) -> 0 | Y14: =N14 -> 222 | Z14: =COUNTIF(L21:L35,Y14) -> 8 | AA14: =Z14/(AB4-Z10) -> 0.8888888889 | AB14: =IF(AA14=0,0,(AA14*((LOG(AA14))/LOG(2)))) -> -0.1510444457 | AD14: =N14 -> 222 | AE14: =COUNTIF(L36:L49,AD14) -> 7 | AF14: =AE14/(AG4-AE10) -> 1 | AG14: =IF(AF14=0,0,(AF14*((LOG(AF14))/LOG(2)))) -> 0 | AI14: =N14 -> 222 | AJ14: =COUNTIF(L50:L63,AI14) -> 8 | AK14: =AJ14/(AL4-AJ10) -> 1 | AL14: =IF(AK14=0,0,(AK14*((LOG(AK14))/LOG(2)))) -> 0 | AN14: =N14 -> 222 | AO14: =COUNTIF(L64:L78,AN14) -> 4 | AP14: =AO14/(AQ4-AO10) -> 1 | AQ14: =IF(AP14=0,0,(AP14*((LOG(AP14))/LOG(2)))) -> 0 | AS14: =N14 -> 222 | AT14: =COUNTIF(L79:L92,AS14) -> 2 | AU14: =AT14/(AV4-AT10) -> 0.3333333333 | AV14: =IF(AU14=0,0,(AU14*((LOG(AU14))/LOG(2)))) -> -0.5283208336
A15: 22 | B15: 1125 | C15: 23 | D15: 1129 | E15: 23 | F15: 1135 | K15: 0 | L15: 222 | P15: =SUM(P7:P14) -> 1 | Q15: =-SUM(Q7:Q14) -> 1.30125743 | V15: =SUM(V7:V14) -> 1 | W15: =-SUM(W7:W14) -> 0 | AA15: =SUM(AA7:AA14) -> 1 | AB15: =-SUM(AB7:AB14) -> 0.5032583348 | AF15: =SUM(AF7:AF14) -> 1 | AG15: =-SUM(AG7:AG14) -> 0 | AK15: =SUM(AK7:AK14) -> 1 | AL15: =-SUM(AL7:AL14) -> 0 | AP15: =SUM(AP7:AP14) -> 1 | AQ15: =-SUM(AQ7:AQ14) -> 0 | AU15: =SUM(AU7:AU14) -> 1 | AV15: =-SUM(AV7:AV14) -> 1.459147917
A16: 22 | B16: 1260 | C16: 23 | D16: 1263 | E16: 23 | F16: 1269 | K16: 0 | L16: 222 | P16: U= | Q16: =Q15/(LOG(Q4)/LOG(2)) -> 0.2024904792 | V16: U1= | W16: =W15/(LOG(W4)/LOG(2)) -> 0 | AA16: U2= | AB16: =AB15/(LOG(AB4)/LOG(2)) -> 0.1288130093 | AF16: U3= | AG16: =AG15/(LOG(AG4)/LOG(2)) -> 0 | AK16: U4= | AL16: =AL15/(LOG(AL4)/LOG(2)) -> 0 | AP16: U5= | AQ16: =AQ15/(LOG(AQ4)/LOG(2)) -> 0 | AU16: U6= | AV16: =AV15/(LOG(AV4)/LOG(2)) -> 0.383244522
A17: 22 | B17: 1383 | C17: 23 | D17: 1386 | E17: 23 | F17: 1390 | K17: 0 | L17: 222
A18: 22 | B18: 1511 | C18: 23 | D18: 1514 | E18: 23 | F18: 1519 | K18: 0 | L18: 222
A19: 22 | B19: 1635 | C19: 23 | D19: 1638 | E19: 23 | F19: 1644 | K19: 0 | L19: 222 | N19: Total Target Seq
A20: 22 | B20: 1761 | C20: 23 | D20: 1765 | E20: 23 | F20: 1773 | K20: 0 | L20: 222 | N20: =COUNTIF(L7:L92,G3) -> 38 | P20: 14 | Q20: 15 | R20: 14 | S20: 14 | T20: 15 | U20: 14
A21: 22 | B21: 1893 | C21: 23 | D21: 1899 | E21: 23 | F21: 1903 | K21: 0 | L21: 222 | P21: % of reinforcement given in 6 equal intervals based on number of trials
A22: 22 | B22: 2018 | C22: 23 | D22: 2021 | E22: 23 | F22: 2025 | K22: 0 | L22: 222 | P22: %_1 | Q22: %_2 | R22: %_3 | S22: %_4 | T22: %_5 | U22: %_6
A23: 22 | B23: 2147 | C23: 23 | D23: 2151 | E23: 23 | F23: 2159 | K23: 0 | L23: 222 | O23: target sequence | P23: =$G$3 -> 122 | Q23: =$G$3 -> 122 | R23: =$G$3 -> 122 | S23: =$G$3 -> 122 | T23: =$G$3 -> 122 | U23: =$G$3 -> 122
A24: 22 | B24: 2266 | C24: 23 | D24: 2271 | E24: 23 | F24: 2274 | K24: 0 | L24: 222 | O24: total reinforcement | P24: =U10 -> 0 | Q24: =Z10 -> 6 | R24: =AE10 -> 7 | S24: =AJ10 -> 6 | T24: =AO10 -> 11 | U24: =AT10 -> 8
A25: 22 | B25: 2400 | C25: 23 | D25: 2410 | E25: 23 | F25: 2421 | K25: 0 | L25: 222 | O25: % target
A26: 11 | B26: 2518 | C26: 21 | D26: 2546 | E26: 21 | F26: 2552 | K26: 0 | L26: 122 | O26: CCRF
A27: 22 | B27: 2770 | C27: 23 | D27: 2774 | E27: 23 | F27: 2783 | K27: 0 | L27: 222 | O27: % CCRf
A28: 11 | B28: 2886 | C28: 21 | D28: 2898 | E28: 21 | F28: 2901 | K28: 0 | L28: 122 | O28: average response rate | P28: =F20/P20 -> 126.6428571 | Q28: =(F35-F20)/Q20 -> 144.4666667 | R28: =(F49-F35)/R20 -> 133.5 | S28: =(F63-F49)/S20 -> 135.0714286 | T28: =(F78-F63)/T20 -> 150.4 | U28: =(F92-F78)/U20 -> 148.7857143
A29: 11 | B29: 3017 | C29: 21 | D29: 3030 | E29: 21 | F29: 3036 | K29: 0 | L29: 122
A30: 11 | B30: 3134 | C30: 21 | D30: 3148 | E30: 21 | F30: 3151 | K30: 0 | L30: 122
A31: 11 | B31: 3282 | C31: 21 | D31: 3295 | E31: 21 | F31: 3312 | K31: 0 | L31: 122
A32: 22 | B32: 3456 | C32: 23 | D32: 3459 | E32: 23 | F32: 3463 | K32: 0 | L32: 222
A33: 11 | B33: 3566 | C33: 12 | D33: 3569 | E33: 23 | F33: 3585 | K33: 0 | L33: 112
A34: 11 | B34: 3765 | C34: 21 | D34: 3778 | E34: 21 | F34: 3781 | K34: 0 | L34: 122
A35: 22 | B35: 3929 | C35: 23 | D35: 3934 | E35: 23 | F35: 3940 | K35: 0 | L35: 222
A36: 22 | B36: 4048 | C36: 23 | D36: 4052 | E36: 23 | F36: 4058 | K36: 0 | L36: 222
A37: 22 | B37: 4168 | C37: 23 | D37: 4172 | E37: 23 | F37: 4178 | K37: 0 | L37: 222
A38: 11 | B38: 4275 | C38: 21 | D38: 4287 | E38: 21 | F38: 4290 | K38: 0 | L38: 122
A39: 11 | B39: 4456 | C39: 21 | D39: 4472 | E39: 21 | F39: 4479 | K39: 0 | L39: 122
A40: 22 | B40: 4623 | C40: 23 | D40: 4627 | E40: 23 | F40: 4638 | K40: 0 | L40: 222
A41: 11 | B41: 4737 | C41: 21 | D41: 4756 | E41: 21 | F41: 4765 | K41: 0 | L41: 122
A42: 22 | B42: 4873 | C42: 23 | D42: 4877 | E42: 23 | F42: 4880 | K42: 0 | L42: 222
A43: 11 | B43: 4974 | C43: 21 | D43: 4985 | E43: 21 | F43: 4988 | K43: 0 | L43: 122
A44: 11 | B44: 5084 | C44: 21 | D44: 5104 | E44: 21 | F44: 5108 | K44: 0 | L44: 122
A45: 11 | B45: 5247 | C45: 21 | D45: 5264 | E45: 21 | F45: 5276 | K45: 0 | L45: 122
A46: 22 | B46: 5380 | C46: 23 | D46: 5385 | E46: 23 | F46: 5391 | K46: 0 | L46: 222
A47: 11 | B47: 5488 | C47: 21 | D47: 5501 | E47: 21 | F47: 5505 | K47: 0 | L47: 122
A48: 22 | B48: 5674 | C48: 23 | D48: 5677 | E48: 23 | F48: 5682 | K48: 0 | L48: 222
A49: 22 | B49: 5799 | C49: 23 | D49: 5803 | E49: 23 | F49: 5809 | K49: 0 | L49: 222
A50: 22 | B50: 5916 | C50: 23 | D50: 5922 | E50: 23 | F50: 5928 | K50: 0 | L50: 222
A51: 22 | B51: 6036 | C51: 23 | D51: 6039 | E51: 23 | F51: 6044 | K51: 0 | L51: 222
A52: 11 | B52: 6140 | C52: 21 | D52: 6154 | E52: 21 | F52: 6164 | K52: 0 | L52: 122
A53: 11 | B53: 6291 | C53: 21 | D53: 6301 | E53: 21 | F53: 6304 | K53: 0 | L53: 122
A54: 22 | B54: 6514 | C54: 23 | D54: 6518 | E54: 23 | F54: 6523 | K54: 0 | L54: 222
A55: 22 | B55: 6636 | C55: 23 | D55: 6639 | E55: 23 | F55: 6643 | K55: 0 | L55: 222
A56: 11 | B56: 6740 | C56: 21 | D56: 6759 | E56: 21 | F56: 6765 | K56: 0 | L56: 122
A57: 22 | B57: 6881 | C57: 23 | D57: 6893 | E57: 23 | F57: 6902 | K57: 0 | L57: 222
A58: 22 | B58: 7002 | C58: 23 | D58: 7009 | E58: 23 | F58: 7014 | K58: 0 | L58: 222
A59: 11 | B59: 7123 | C59: 21 | D59: 7135 | E59: 21 | F59: 7139 | K59: 0 | L59: 122
A60: 22 | B60: 7283 | C60: 23 | D60: 7290 | E60: 23 | F60: 7299 | K60: 0 | L60: 222
A61: 22 | B61: 7412 | C61: 23 | D61: 7417 | E61: 23 | F61: 7423 | K61: 0 | L61: 222
A62: 11 | B62: 7517 | C62: 21 | D62: 7534 | E62: 21 | F62: 7539 | K62: 0 | L62: 122
A63: 11 | B63: 7685 | C63: 21 | D63: 7696 | E63: 21 | F63: 7700 | K63: 0 | L63: 122
A64: 22 | B64: 7815 | C64: 23 | D64: 7826 | E64: 23 | F64: 7831 | K64: 0 | L64: 222
A65: 22 | B65: 7942 | C65: 23 | D65: 7945 | E65: 23 | F65: 7948 | K65: 0 | L65: 222
A66: 11 | B66: 8044 | C66: 21 | D66: 8054 | E66: 21 | F66: 8057 | K66: 0 | L66: 122
A67: 11 | B67: 8220 | C67: 21 | D67: 8238 | E67: 21 | F67: 8244 | K67: 0 | L67: 122
A68: 11 | B68: 8423 | C68: 21 | D68: 8434 | E68: 21 | F68: 8438 | K68: 0 | L68: 122
A69: 11 | B69: 8582 | C69: 21 | D69: 8596 | E69: 21 | F69: 8603 | K69: 0 | L69: 122
A70: 11 | B70: 8703 | C70: 21 | D70: 8715 | E70: 21 | F70: 8723 | K70: 0 | L70: 122
A71: 22 | B71: 8868 | C71: 23 | D71: 8871 | E71: 23 | F71: 8892 | K71: 0 | L71: 222
A72: 11 | B72: 9005 | C72: 21 | D72: 9016 | E72: 21 | F72: 9021 | K72: 0 | L72: 122
A73: 22 | B73: 9162 | C73: 23 | D73: 9168 | E73: 23 | F73: 9187 | K73: 0 | L73: 222
A74: 11 | B74: 9291 | C74: 21 | D74: 9314 | E74: 21 | F74: 9320 | K74: 0 | L74: 122
A75: 11 | B75: 9456 | C75: 21 | D75: 9471 | E75: 21 | F75: 9473 | K75: 0 | L75: 122
A76: 11 | B76: 9616 | C76: 21 | D76: 9635 | E76: 21 | F76: 9643 | K76: 0 | L76: 122
A77: 11 | B77: 9812 | C77: 21 | D77: 9823 | E77: 21 | F77: 9825 | K77: 0 | L77: 122
A78: 11 | B78: 9941 | C78: 21 | D78: 9953 | E78: 21 | F78: 9956 | K78: 0 | L78: 122
A79: 22 | B79: 10089 | C79: 23 | D79: 10093 | E79: 23 | F79: 10101 | K79: 0 | L79: 222
A80: 11 | B80: 10198 | C80: 12 | D80: 10210 | E80: 23 | F80: 10220 | K80: 0 | L80: 112
A81: 11 | B81: 10318 | C81: 21 | D81: 10333 | E81: 21 | F81: 10357 | K81: 0 | L81: 122
A82: 11 | B82: 10468 | C82: 21 | D82: 10479 | E82: 21 | F82: 10481 | K82: 0 | L82: 122
A83: 11 | B83: 10611 | C83: 21 | D83: 10624 | E83: 21 | F83: 10629 | K83: 0 | L83: 122
A84: 11 | B84: 10786 | C84: 21 | D84: 10802 | E84: 21 | F84: 10805 | K84: 0 | L84: 122
A85: 11 | B85: 10957 | C85: 12 | D85: 10960 | E85: 23 | F85: 10971 | K85: 0 | L85: 112
A86: 11 | B86: 11095 | C86: 12 | D86: 11099 | E86: 14 | F86: 11108 | K86: 0 | L86: 111
